Workbook

Sheet Disclaimer
B2: Comparison tool qualifications, assumptions and limited conditions
B4: Ara Ake owns, or has a licence to use, all the intellectual property included in this long-distance heavy freight total cost of ownership comparison tool. The comparison tool is not to be used, reproduced, or distributed for any purpose other than those permitted by the terms of the Creative Commons – Attribution ShareAlike 4.0 International (CC BY-SA 4.0) license.
B6: Ara Ake believes that the information provided by others which is incorporated or reflected in the comparison tool is reliable, but this has not been verified. No warranty is given as to the accuracy of that information.
B8: The results produced by the comparison tool are solely for illustrative purposes and should not be used to forecast or predict actual results. Neither Ara Ake nor NERA accept any responsibility for any results produced by using the comparison tool. No obligation is assumed to revise the comparison tool to reflect changes, events or conditions which occur subsequent to the date on which the comparison tool was first made available on the Ara Ake website. Neither Ara Ake nor NERA have any responsibility for any modifications to, or derivative works based upon, the comparison tool made by any person.
B10: The comparison tool is provided for use by businesses within New Zealand. Neither Ara Ake nor NERA have any liability for any use of the comparison tool for non-business purposes or outside of New Zealand. All decisions in connection with the use of the comparison tool or any results produced by the comparison tool are the sole responsibility of the user.
B12: The comparison tool is provided “as is”, without any warranties or representations, express or implied, about its accuracy or completeness. To the maximum extent permitted by law, neither Ara Ake (including its affiliates) nor NERA have any liability to any user of the comparison tool in respect of the information set out in the comparison tool or any actions taken or refrained from or decisions made as a consequence of that information or for any consequential, special or similar losses or damages, even if you advise Ara Ake of the possibility of those losses or damages.
B14: Neither Ara Ake nor NERA accept any liability for (i) any third party software (ii) any liability that may arise as a result of delay or the user’s failure to install any software updates, upgrades, modifications, bug fixes, enhancements or versions; (iii) the user’s use of the comparison tool, whether or not this use is in the manner described in the comparison tool user guide; (iv) any viruses, worms, disabling, programming codes or other items that may be introduced to the user’s system, network or hardware as a result of installation and/or operation of any third party software; or (v) any failure of the user’s network and/or their IT system to comply with any requirements necessary to operate any third party software on which operation of the comparison tool is reliant and all other losses or damages arising from or relating to the user’s network and/or IT system functionality impairments or failures, network connections and/or telecommunications links.
B16: If Ara Ake and/or NERA are found to have any liability to any user of the comparison tool (or any other person), that liability is limited to $10.
B18: The rights and obligations relating to the use of the comparison tool are governed in accordance with the laws of New Zealand and all money is in New Zealand currency.

Sheet READ ME
B2: What's new in Version 3.0
C4: Version 3.0 of this comparison tool includes the following additions:
D5: - A new vehicle+fuel combination of Diesel + H2 blend in an ICEV (replacing the blue hyrdogen FCEV option); and
D6: - Added the cost per tonne of carbon abated for each vehicle+fuel combination on Dashboard A.
C8: Version 2.0 of this comparison tool included the following additions to Version 1.0:
D9: - Two new default scenarios to load into the calculator, one for a medium HGV (26t) and one for a smaller HGV (16t); and
D10: - An option to "pay for the vehicle" using a lease cost input instead of purchasing and financing the vehicle.
B13: Comparison tool purpose
C15: The purpose of this comparison tool is to allow users to estimate and compare the total cost of ownership (TCO) per tonne-kilometre of
C16: moving heavy freight in New Zealand using various vehicle+fuels. The comparison tool requests user-defined inputs around long-haul
C17: freight operation costs for:
D18: - Green hydrogen (H2) in a fuel cell electric vehicle (FCEV)
D19: - Directly charging a battery electric vehicle (BEV)
D20: - Drop-in biodiesel in an internal combustion engine vehicle (ICEV)
D21: - Conventional biodiesel in an ICEV
D22: - Diesel + H2 blend in an ICEV
D23: - Diesel in an ICEV (while paying a carbon price)
C25: Default scenario disclaimer: A default scenario is presented on each of the input tabs, intending to provide a reasonable estimate for
C26: each available parameter for user convenience. However, these default inputs are not intended to represent the views of Ara Ake or
C27: NERA. Each assumption is based on publicly available information at the time of publishing. New Zealand government and policy
C28: documents are relied upon where relevant and available. A reference and/or note relating to each default input can be found in the
C29: penultimate tab, Default scenario references.
B32: Freight task analysis
C34: Freight task analysis presents an aggregate analysis of EROAD's fleet movement tracking data for 2020. The analysis presents charts
C35: which group daily vehicle trips into weight bands for the truck and distance bands for the trip to help the user understand the composition
C36: of the freight task within New Zealand. Following the charts, a table is presented with driving behaviour statistics to assist the user in
C37: defining a trip for their comparison.
B40: Dashboard A
C42: Dashboard A presents point-in-time calculations of total cost of ownership per kilometre (TCO/km) and total cost of ownership
C43: per tonne-kilometre (TCO/tkm) for the various vehicle+fuel combinations with user input boxes for assumptions. A bar chart
C44: with cost components displayed for each vehicle+fuel combination in TCO/tkm is the main output displayed. Footnotes are
C45: provided for guidance and further description on certain inputs.
B48: Dashboard B
C50: Dashboard B presents a ten-year projection of TCO with further user inputs to calculate projections. The inputs available for
C51: projection on Dashboard B generally reflect those on Dashboard A, although certain inputs which are assumed to remain
C52: unchanged over time are not included to simplify the presentation. In general, two options are presented for the user to choose
C53: from with a dropdown menu:
D54: - Using the "year one" input from Dashboard A, a trend change input with a ceiling/floor value option can be selected.
D55: - Alternatively, individual user-defined inputs can be filled for each year.
C57: The main output displayed in this Dashboard are the TCO/tkm in a line chart and table.
B60: Calculations step-by-step
C62: Calculations-step-by-step is for informational purposes. This walks the user through the calculations underlying the TCO
C63: calculations for each vehicle+fuel combination. Further footnotes are provided for guidance and clarification.
B66: H2 cost calculator
C68: H2 cost calculator has optional user input to develop a built-up cost for green H2. Note that these calculations are relatively
C69: high level, but the purpose of the cost build up option is such that the cost of electricity is transparent, such that the cost of
C70: green H2 can be developed comparably to the cost of directly charging a BEV.
C72: The output from this sheet may be overriden by direct user-defined delivered cost of H2 fuel on this tab as well.
B75: BEV payload calculator
C77: BEV payload calculator has optional user input to develop the BEV payload capacity based on the size of battery specified
C78: on Dashboard A. Specific inputs on (a) the powertrain weight reduction in a BEV from an ICEV and (b) battery energy density
C79: is required to use this comparison tool properly. If this information is unavailable but the user wishes to change the payload
C80: directly, the output from this calculator can be overridden on this tab as well.
B83: Default scenario references
C85: Default scenario references provides, for each input throughout the comparison tool, a publicly available source from which the
C86: assumption was derived. As noted, New Zealand government and policy documents are referenced where available and
C87: relevant. In particular, the Climate Change Commission 2021 modelling and Ministry for the Environment's 2020 MACC tool.
B90: Saved scenarios
C92: Saved scenarios allows the user to save and store user-defined scenarios for Dashboard A, which can be loaded back into the
C93: dashboard as required. Note that scenarios developed in Dashboard B cannot be saved in this version of the comparison tool.
C94: Further instruction on how to use this tool is provided within the tab.

Sheet Freight task analysis
B2: Freight task analysis of EROAD data
B3: For the following analysis of the freight task, we have obtained aggregated vehicle movement data from EROAD regarding commercial freight vehicles from 7.5t and above in 2020.
B5: EROAD's fleet tracking service collects data from a large proportion of the commercial road freight industry in New Zealand. Therefore, these aggregations should be largely representative of the overall road freight movement, but note that because these data do not represent the entirety of New Zealand's fleet, there could potentially be subsections of the fleet which are underrepresented or overrepresented in this dataset.
B7: First, Figures 1 to 3 show the composition of freight movements across weight bands (as defined directly below) and 100km-increment distance bands (up through a >700km band). Following this breakdown, a table is presented which contains various statistics to help the user define freight trips in Dashboard A for any given weight band and distance band combination.
B9: Weight bands in analysis
B14: Figure 1
B15: Percent of all trips taken within a distance band by each weight band
B17: Each bar in Figure 1 represents all trips taken within the distance band. Within the bar, the colour-coded portions represent the proportion of those trips taken by vehicles within a given weight band. The gold box on the right-hand side shows the percent of total trips taken within that distance band. For example, 61.9% of all trips are less than 100kms.
C45: Source: NERA analysis of EROAD data.
B48: Figure 2
B49: Percent of total trips within each weight band taken within the distance band
B51: Each bar in Figure 2 represents all trips taken within the weight band. Within the bar, the gradient shading represent the proportion of those trips taken within a given 100-km increment distance band. The gold box on the right-hand side shows the percent of total trips taken by vehicles within that weight band. For example, 30.1% of all trips are taken by vehicles that weigh between 20t - 25t.
C79: Source: NERA analysis of EROAD data.
B82: Figure 3
B83: Percent of average annual days driving within a distance band by weight band
B84: Each bar in Figure 3 represents the annual days driving by any single truck within the weight band. Within the bar, the gradient shading represents the average proportion of those trips taken within a given 100-km increment distance band. The gold box on the right-hand side shows the median annual days driving by a single truck within the weight band. For example, the median days a 30t+ truck is driven is 243 in a year, and on average, roughly 24% of those days are spent making a trip between 0 and 100 kms.
C113: Source: NERA analysis of EROAD data.
B116: Table 1
B117: Statistics by weight band and distance band
B119: Table 1 includes statistics on the behaviour of truck drivers driving a truck in a given weight band across a certain distance band.
B121: These statistics can guide a user in defining the trip in Dashboard A.
D123: 0-100km | E123: 100-200km | F123: 200-300km | G123: 300-400km | H123: 400-500km | I123: 500-600km | J123: 600-700km | K123: 700km+
B124: 3.5t - 7.5t | C124: Average speed (kph) | D124: =SUMIFS('stats output'!$K$2:$K$49,'stats output'!$B$2:$B$49,D$123,'stats output'!$A$2:$A$49,$B$124) -> 33 | E124: =SUMIFS('stats output'!$K$2:$K$49,'stats output'!$B$2:$B$49,E$123,'stats output'!$A$2:$A$49,$B$124) -> 50 | F124: =SUMIFS('stats output'!$K$2:$K$49,'stats output'!$B$2:$B$49,F$123,'stats output'!$A$2:$A$49,$B$124) -> 55 | G124: =SUMIFS('stats output'!$K$2:$K$49,'stats output'!$B$2:$B$49,G$123,'stats output'!$A$2:$A$49,$B$124) -> 60 | H124: =SUMIFS('stats output'!$K$2:$K$49,'stats output'!$B$2:$B$49,H$123,'stats output'!$A$2:$A$49,$B$124) -> 66 | I124: =SUMIFS('stats output'!$K$2:$K$49,'stats output'!$B$2:$B$49,I$123,'stats output'!$A$2:$A$49,$B$124) -> 70 | J124: =SUMIFS('stats output'!$K$2:$K$49,'stats output'!$B$2:$B$49,J$123,'stats output'!$A$2:$A$49,$B$124) -> 70 | K124: =SUMIFS('stats output'!$K$2:$K$49,'stats output'!$B$2:$B$49,K$123,'stats output'!$A$2:$A$49,$B$124) -> 69
C125: Average count of 15+ minute stops | D125: =SUMIFS('stats output'!$J$2:$J$49,'stats output'!$B$2:$B$49,D$123,'stats output'!$A$2:$A$49,$B$124) -> 2 | E125: =SUMIFS('stats output'!$J$2:$J$49,'stats output'!$B$2:$B$49,E$123,'stats output'!$A$2:$A$49,$B$124) -> 3 | F125: =SUMIFS('stats output'!$J$2:$J$49,'stats output'!$B$2:$B$49,F$123,'stats output'!$A$2:$A$49,$B$124) -> 4 | G125: =SUMIFS('stats output'!$J$2:$J$49,'stats output'!$B$2:$B$49,G$123,'stats output'!$A$2:$A$49,$B$124) -> 4 | H125: =SUMIFS('stats output'!$J$2:$J$49,'stats output'!$B$2:$B$49,H$123,'stats output'!$A$2:$A$49,$B$124) -> 4 | I125: =SUMIFS('stats output'!$J$2:$J$49,'stats output'!$B$2:$B$49,I$123,'stats output'!$A$2:$A$49,$B$124) -> 3 | J125: =SUMIFS('stats output'!$J$2:$J$49,'stats output'!$B$2:$B$49,J$123,'stats output'!$A$2:$A$49,$B$124) -> 3 | K125: =SUMIFS('stats output'!$J$2:$J$49,'stats output'!$B$2:$B$49,K$123,'stats output'!$A$2:$A$49,$B$124) -> 6
C126: Average length of 15+ minute stop (mins) | D126: =SUMIFS('stats output'!$H$2:$H$49,'stats output'!$B$2:$B$49,D$123,'stats output'!$A$2:$A$49,$B$124) -> 30 | E126: =SUMIFS('stats output'!$H$2:$H$49,'stats output'!$B$2:$B$49,E$123,'stats output'!$A$2:$A$49,$B$124) -> 32 | F126: =SUMIFS('stats output'!$H$2:$H$49,'stats output'!$B$2:$B$49,F$123,'stats output'!$A$2:$A$49,$B$124) -> 32 | G126: =SUMIFS('stats output'!$H$2:$H$49,'stats output'!$B$2:$B$49,G$123,'stats output'!$A$2:$A$49,$B$124) -> 33 | H126: =SUMIFS('stats output'!$H$2:$H$49,'stats output'!$B$2:$B$49,H$123,'stats output'!$A$2:$A$49,$B$124) -> 28 | I126: =SUMIFS('stats output'!$H$2:$H$49,'stats output'!$B$2:$B$49,I$123,'stats output'!$A$2:$A$49,$B$124) -> 32 | J126: =SUMIFS('stats output'!$H$2:$H$49,'stats output'!$B$2:$B$49,J$123,'stats output'!$A$2:$A$49,$B$124) -> 27 | K126: =SUMIFS('stats output'!$H$2:$H$49,'stats output'!$B$2:$B$49,K$123,'stats output'!$A$2:$A$49,$B$124) -> 32
C127: Total length of 15+ min stop time less un/load (hours)1 | D127: =(D126*(D125-2))/60 -> 0 | E127: =(E126*(E125-2))/60 -> 0.5333333333 | F127: 1.066666667 | G127: 1.1 | H127: 0.9333333333 | I127: 0.5333333333 | J127: 0.45 | K127: 2.133333333
C128: Median annual days driving for a truck in weight band | D128: 224 | E128: 224 | F128: 224 | G128: 224 | H128: 224 | I128: 224 | J128: 224 | K128: 224
C129: Percent of total weight band trips taken | D129: =SUMIFS('stats output'!$N$2:$N$49,'stats output'!$B$2:$B$49,D$123,'stats output'!$A$2:$A$49,$B$124) -> 0.8335806649 | E129: =SUMIFS('stats output'!$N$2:$N$49,'stats output'!$B$2:$B$49,E$123,'stats output'!$A$2:$A$49,$B$124) -> 0.1345557009 | F129: =SUMIFS('stats output'!$N$2:$N$49,'stats output'!$B$2:$B$49,F$123,'stats output'!$A$2:$A$49,$B$124) -> 0.02638569801 | G129: =SUMIFS('stats output'!$N$2:$N$49,'stats output'!$B$2:$B$49,G$123,'stats output'!$A$2:$A$49,$B$124) -> 0.004433647353 | H129: =SUMIFS('stats output'!$N$2:$N$49,'stats output'!$B$2:$B$49,H$123,'stats output'!$A$2:$A$49,$B$124) -> 0.00075115513 | I129: =SUMIFS('stats output'!$N$2:$N$49,'stats output'!$B$2:$B$49,I$123,'stats output'!$A$2:$A$49,$B$124) -> 0.0001612235401 | J129: =SUMIFS('stats output'!$N$2:$N$49,'stats output'!$B$2:$B$49,J$123,'stats output'!$A$2:$A$49,$B$124) -> 7.328342732e-05 | K129: =SUMIFS('stats output'!$N$2:$N$49,'stats output'!$B$2:$B$49,K$123,'stats output'!$A$2:$A$49,$B$124) -> 5.862674186e-05
C130: Average percent of annual trips by any given truck | D130: =SUMIFS('stats output'!$P$2:$P$49,'stats output'!$B$2:$B$49,D$123,'stats output'!$A$2:$A$49,$B$124) -> 0.5617283951 | E130: =SUMIFS('stats output'!$P$2:$P$49,'stats output'!$B$2:$B$49,E$123,'stats output'!$A$2:$A$49,$B$124) -> 0.2469135802 | F130: =SUMIFS('stats output'!$P$2:$P$49,'stats output'!$B$2:$B$49,F$123,'stats output'!$A$2:$A$49,$B$124) -> 0.1049382716 | G130: =SUMIFS('stats output'!$P$2:$P$49,'stats output'!$B$2:$B$49,G$123,'stats output'!$A$2:$A$49,$B$124) -> 0.04938271605 | H130: =SUMIFS('stats output'!$P$2:$P$49,'stats output'!$B$2:$B$49,H$123,'stats output'!$A$2:$A$49,$B$124) -> 0.01234567901 | I130: =SUMIFS('stats output'!$P$2:$P$49,'stats output'!$B$2:$B$49,I$123,'stats output'!$A$2:$A$49,$B$124) -> 0.01234567901 | J130: =SUMIFS('stats output'!$P$2:$P$49,'stats output'!$B$2:$B$49,J$123,'stats output'!$A$2:$A$49,$B$124) -> 0.006172839506 | K130: =SUMIFS('stats output'!$P$2:$P$49,'stats output'!$B$2:$B$49,K$123,'stats output'!$A$2:$A$49,$B$124) -> 0.006172839506
B131: 7.5 - 10t | C131: Average speed (kph) | D131: =SUMIFS('stats output'!$K$2:$K$49,'stats output'!$B$2:$B$49,D$123,'stats output'!$A$2:$A$49,$B$131) -> 30 | E131: =SUMIFS('stats output'!$K$2:$K$49,'stats output'!$B$2:$B$49,E$123,'stats output'!$A$2:$A$49,$B$131) -> 47 | F131: =SUMIFS('stats output'!$K$2:$K$49,'stats output'!$B$2:$B$49,F$123,'stats output'!$A$2:$A$49,$B$131) -> 55 | G131: =SUMIFS('stats output'!$K$2:$K$49,'stats output'!$B$2:$B$49,G$123,'stats output'!$A$2:$A$49,$B$131) -> 59 | H131: =SUMIFS('stats output'!$K$2:$K$49,'stats output'!$B$2:$B$49,H$123,'stats output'!$A$2:$A$49,$B$131) -> 64 | I131: =SUMIFS('stats output'!$K$2:$K$49,'stats output'!$B$2:$B$49,I$123,'stats output'!$A$2:$A$49,$B$131) -> 66 | J131: =SUMIFS('stats output'!$K$2:$K$49,'stats output'!$B$2:$B$49,J$123,'stats output'!$A$2:$A$49,$B$131) -> 67 | K131: =SUMIFS('stats output'!$K$2:$K$49,'stats output'!$B$2:$B$49,K$123,'stats output'!$A$2:$A$49,$B$131) -> 71
C132: Average count of 15+ minute stops | D132: =SUMIFS('stats output'!$J$2:$J$49,'stats output'!$B$2:$B$49,D$123,'stats output'!$A$2:$A$49,$B$131) -> 2 | E132: =SUMIFS('stats output'!$J$2:$J$49,'stats output'!$B$2:$B$49,E$123,'stats output'!$A$2:$A$49,$B$131) -> 4 | F132: =SUMIFS('stats output'!$J$2:$J$49,'stats output'!$B$2:$B$49,F$123,'stats output'!$A$2:$A$49,$B$131) -> 4 | G132: =SUMIFS('stats output'!$J$2:$J$49,'stats output'!$B$2:$B$49,G$123,'stats output'!$A$2:$A$49,$B$131) -> 4 | H132: =SUMIFS('stats output'!$J$2:$J$49,'stats output'!$B$2:$B$49,H$123,'stats output'!$A$2:$A$49,$B$131) -> 4 | I132: =SUMIFS('stats output'!$J$2:$J$49,'stats output'!$B$2:$B$49,I$123,'stats output'!$A$2:$A$49,$B$131) -> 4 | J132: =SUMIFS('stats output'!$J$2:$J$49,'stats output'!$B$2:$B$49,J$123,'stats output'!$A$2:$A$49,$B$131) -> 3 | K132: =SUMIFS('stats output'!$J$2:$J$49,'stats output'!$B$2:$B$49,K$123,'stats output'!$A$2:$A$49,$B$131) -> 4
C133: Average length of 15+ minute stop (mins) | D133: =SUMIFS('stats output'!$H$2:$H$49,'stats output'!$B$2:$B$49,D$123,'stats output'!$A$2:$A$49,$B$131) -> 28 | E133: =SUMIFS('stats output'!$H$2:$H$49,'stats output'!$B$2:$B$49,E$123,'stats output'!$A$2:$A$49,$B$131) -> 27 | F133: =SUMIFS('stats output'!$H$2:$H$49,'stats output'!$B$2:$B$49,F$123,'stats output'!$A$2:$A$49,$B$131) -> 26 | G133: =SUMIFS('stats output'!$H$2:$H$49,'stats output'!$B$2:$B$49,G$123,'stats output'!$A$2:$A$49,$B$131) -> 25 | H133: =SUMIFS('stats output'!$H$2:$H$49,'stats output'!$B$2:$B$49,H$123,'stats output'!$A$2:$A$49,$B$131) -> 29 | I133: =SUMIFS('stats output'!$H$2:$H$49,'stats output'!$B$2:$B$49,I$123,'stats output'!$A$2:$A$49,$B$131) -> 27 | J133: =SUMIFS('stats output'!$H$2:$H$49,'stats output'!$B$2:$B$49,J$123,'stats output'!$A$2:$A$49,$B$131) -> 32 | K133: =SUMIFS('stats output'!$H$2:$H$49,'stats output'!$B$2:$B$49,K$123,'stats output'!$A$2:$A$49,$B$131) -> 26
C134: Total length of 15+ min stop time less un/load (hours)1 | D134: =(D133*(D132-2))/60 -> 0 | E134: =(E133*(E132-2))/60 -> 0.9 | F134: =(F133*(F132-2))/60 -> 0.8666666667 | G134: =(G133*(G132-2))/60 -> 0.8333333333 | H134: =(H133*(H132-2))/60 -> 0.9666666667 | I134: =(I133*(I132-2))/60 -> 0.9 | J134: =(J133*(J132-2))/60 -> 0.5333333333 | K134: =(K133*(K132-2))/60 -> 0.8666666667
C135: Median annual days driving for a truck in weight band | D135: 221 | E135: 221 | F135: 221 | G135: 221 | H135: 221 | I135: 221 | J135: 221 | K135: 221
C136: Percent of total weight band trips taken | D136: =SUMIFS('stats output'!$N$2:$N$49,'stats output'!$B$2:$B$49,D$123,'stats output'!$A$2:$A$49,$B$131) -> 0.8066327287 | E136: =SUMIFS('stats output'!$N$2:$N$49,'stats output'!$B$2:$B$49,E$123,'stats output'!$A$2:$A$49,$B$131) -> 0.1507683678 | F136: =SUMIFS('stats output'!$N$2:$N$49,'stats output'!$B$2:$B$49,F$123,'stats output'!$A$2:$A$49,$B$131) -> 0.03307897466 | G136: =SUMIFS('stats output'!$N$2:$N$49,'stats output'!$B$2:$B$49,G$123,'stats output'!$A$2:$A$49,$B$131) -> 0.007191541604 | H136: =SUMIFS('stats output'!$N$2:$N$49,'stats output'!$B$2:$B$49,H$123,'stats output'!$A$2:$A$49,$B$131) -> 0.001799208348 | I136: =SUMIFS('stats output'!$N$2:$N$49,'stats output'!$B$2:$B$49,I$123,'stats output'!$A$2:$A$49,$B$131) -> 0.0003968841945 | J136: =SUMIFS('stats output'!$N$2:$N$49,'stats output'!$B$2:$B$49,J$123,'stats output'!$A$2:$A$49,$B$131) -> 5.29178926e-05 | K136: =SUMIFS('stats output'!$N$2:$N$49,'stats output'!$B$2:$B$49,K$123,'stats output'!$A$2:$A$49,$B$131) -> 7.93768389e-05
C137: Average percent of annual trips by any given truck | D137: =SUMIFS('stats output'!$P$2:$P$49,'stats output'!$B$2:$B$49,D$123,'stats output'!$A$2:$A$49,$B$131) -> 0.4608294931 | E137: =SUMIFS('stats output'!$P$2:$P$49,'stats output'!$B$2:$B$49,E$123,'stats output'!$A$2:$A$49,$B$131) -> 0.2165898618 | F137: =SUMIFS('stats output'!$P$2:$P$49,'stats output'!$B$2:$B$49,F$123,'stats output'!$A$2:$A$49,$B$131) -> 0.1658986175 | G137: =SUMIFS('stats output'!$P$2:$P$49,'stats output'!$B$2:$B$49,G$123,'stats output'!$A$2:$A$49,$B$131) -> 0.04608294931 | H137: =SUMIFS('stats output'!$P$2:$P$49,'stats output'!$B$2:$B$49,H$123,'stats output'!$A$2:$A$49,$B$131) -> 0.07834101382 | I137: =SUMIFS('stats output'!$P$2:$P$49,'stats output'!$B$2:$B$49,I$123,'stats output'!$A$2:$A$49,$B$131) -> 0.01843317972 | J137: =SUMIFS('stats output'!$P$2:$P$49,'stats output'!$B$2:$B$49,J$123,'stats output'!$A$2:$A$49,$B$131) -> 0.004608294931 | K137: =SUMIFS('stats output'!$P$2:$P$49,'stats output'!$B$2:$B$49,K$123,'stats output'!$A$2:$A$49,$B$131) -> 0.009216589862
B138: 10 - 20t | C138: Average speed (kph) | D138: =SUMIFS('stats output'!$K$2:$K$49,'stats output'!$B$2:$B$49,D$123,'stats output'!$A$2:$A$49,$B$138) -> 31 | E138: =SUMIFS('stats output'!$K$2:$K$49,'stats output'!$B$2:$B$49,E$123,'stats output'!$A$2:$A$49,$B$131) -> 47 | F138: =SUMIFS('stats output'!$K$2:$K$49,'stats output'!$B$2:$B$49,F$123,'stats output'!$A$2:$A$49,$B$131) -> 55 | G138: =SUMIFS('stats output'!$K$2:$K$49,'stats output'!$B$2:$B$49,G$123,'stats output'!$A$2:$A$49,$B$131) -> 59 | H138: =SUMIFS('stats output'!$K$2:$K$49,'stats output'!$B$2:$B$49,H$123,'stats output'!$A$2:$A$49,$B$131) -> 64 | I138: =SUMIFS('stats output'!$K$2:$K$49,'stats output'!$B$2:$B$49,I$123,'stats output'!$A$2:$A$49,$B$131) -> 66 | J138: =SUMIFS('stats output'!$K$2:$K$49,'stats output'!$B$2:$B$49,J$123,'stats output'!$A$2:$A$49,$B$131) -> 67 | K138: =SUMIFS('stats output'!$K$2:$K$49,'stats output'!$B$2:$B$49,K$123,'stats output'!$A$2:$A$49,$B$131) -> 71
C139: Average count of 15+ minute stops | D139: =SUMIFS('stats output'!$J$2:$J$49,'stats output'!$B$2:$B$49,D$123,'stats output'!$A$2:$A$49,$B$138) -> 2 | E139: =SUMIFS('stats output'!$J$2:$J$49,'stats output'!$B$2:$B$49,E$123,'stats output'!$A$2:$A$49,$B$131) -> 4 | F139: =SUMIFS('stats output'!$J$2:$J$49,'stats output'!$B$2:$B$49,F$123,'stats output'!$A$2:$A$49,$B$131) -> 4 | G139: =SUMIFS('stats output'!$J$2:$J$49,'stats output'!$B$2:$B$49,G$123,'stats output'!$A$2:$A$49,$B$131) -> 4 | H139: =SUMIFS('stats output'!$J$2:$J$49,'stats output'!$B$2:$B$49,H$123,'stats output'!$A$2:$A$49,$B$131) -> 4 | I139: =SUMIFS('stats output'!$J$2:$J$49,'stats output'!$B$2:$B$49,I$123,'stats output'!$A$2:$A$49,$B$131) -> 4 | J139: =SUMIFS('stats output'!$J$2:$J$49,'stats output'!$B$2:$B$49,J$123,'stats output'!$A$2:$A$49,$B$131) -> 3 | K139: =SUMIFS('stats output'!$J$2:$J$49,'stats output'!$B$2:$B$49,K$123,'stats output'!$A$2:$A$49,$B$131) -> 4
C140: Average length of 15+ minute stop (mins) | D140: =SUMIFS('stats output'!$H$2:$H$49,'stats output'!$B$2:$B$49,D$123,'stats output'!$A$2:$A$49,$B$138) -> 30 | E140: =SUMIFS('stats output'!$H$2:$H$49,'stats output'!$B$2:$B$49,E$123,'stats output'!$A$2:$A$49,$B$124) -> 32 | F140: =SUMIFS('stats output'!$H$2:$H$49,'stats output'!$B$2:$B$49,F$123,'stats output'!$A$2:$A$49,$B$124) -> 32 | G140: =SUMIFS('stats output'!$H$2:$H$49,'stats output'!$B$2:$B$49,G$123,'stats output'!$A$2:$A$49,$B$124) -> 33 | H140: =SUMIFS('stats output'!$H$2:$H$49,'stats output'!$B$2:$B$49,H$123,'stats output'!$A$2:$A$49,$B$124) -> 28 | I140: =SUMIFS('stats output'!$H$2:$H$49,'stats output'!$B$2:$B$49,I$123,'stats output'!$A$2:$A$49,$B$124) -> 32 | J140: =SUMIFS('stats output'!$H$2:$H$49,'stats output'!$B$2:$B$49,J$123,'stats output'!$A$2:$A$49,$B$124) -> 27 | K140: =SUMIFS('stats output'!$H$2:$H$49,'stats output'!$B$2:$B$49,K$123,'stats output'!$A$2:$A$49,$B$124) -> 32
C141: Total length of 15+ min stop time less un/load (hours)1 | D141: =(D140*(D139-2))/60 -> 0 | E141: =(E140*(E139-2))/60 -> 1.066666667 | F141: =(F140*(F139-2))/60 -> 1.066666667 | G141: =(G140*(G139-2))/60 -> 1.1 | H141: =(H140*(H139-2))/60 -> 0.9333333333 | I141: =(I140*(I139-2))/60 -> 1.066666667 | J141: =(J140*(J139-2))/60 -> 0.45 | K141: =(K140*(K139-2))/60 -> 1.066666667
C142: Median annual days driving for a truck in weight band | D142: 221 | E142: 221 | F142: 221 | G142: 221 | H142: 221 | I142: 221 | J142: 221 | K142: 221
C143: Percent of total weight band trips taken | D143: =SUMIFS('stats output'!$N$2:$N$49,'stats output'!$B$2:$B$49,D$123,'stats output'!$A$2:$A$49,$B$138) -> 0.7140807774 | E143: =SUMIFS('stats output'!$N$2:$N$49,'stats output'!$B$2:$B$49,E$123,'stats output'!$A$2:$A$49,$B$131) -> 0.1507683678 | F143: =SUMIFS('stats output'!$N$2:$N$49,'stats output'!$B$2:$B$49,F$123,'stats output'!$A$2:$A$49,$B$131) -> 0.03307897466 | G143: =SUMIFS('stats output'!$N$2:$N$49,'stats output'!$B$2:$B$49,G$123,'stats output'!$A$2:$A$49,$B$131) -> 0.007191541604 | H143: =SUMIFS('stats output'!$N$2:$N$49,'stats output'!$B$2:$B$49,H$123,'stats output'!$A$2:$A$49,$B$131) -> 0.001799208348 | I143: =SUMIFS('stats output'!$N$2:$N$49,'stats output'!$B$2:$B$49,I$123,'stats output'!$A$2:$A$49,$B$131) -> 0.0003968841945 | J143: =SUMIFS('stats output'!$N$2:$N$49,'stats output'!$B$2:$B$49,J$123,'stats output'!$A$2:$A$49,$B$131) -> 5.29178926e-05 | K143: =SUMIFS('stats output'!$N$2:$N$49,'stats output'!$B$2:$B$49,K$123,'stats output'!$A$2:$A$49,$B$131) -> 7.93768389e-05
C144: Average percent of annual trips by any given truck | D144: =SUMIFS('stats output'!$P$2:$P$49,'stats output'!$B$2:$B$49,D$123,'stats output'!$A$2:$A$49,$B$138) -> 0.4189189189 | E144: =SUMIFS('stats output'!$P$2:$P$49,'stats output'!$B$2:$B$49,E$123,'stats output'!$A$2:$A$49,$B$131) -> 0.2165898618 | F144: =SUMIFS('stats output'!$P$2:$P$49,'stats output'!$B$2:$B$49,F$123,'stats output'!$A$2:$A$49,$B$131) -> 0.1658986175 | G144: =SUMIFS('stats output'!$P$2:$P$49,'stats output'!$B$2:$B$49,G$123,'stats output'!$A$2:$A$49,$B$131) -> 0.04608294931 | H144: =SUMIFS('stats output'!$P$2:$P$49,'stats output'!$B$2:$B$49,H$123,'stats output'!$A$2:$A$49,$B$131) -> 0.07834101382 | I144: =SUMIFS('stats output'!$P$2:$P$49,'stats output'!$B$2:$B$49,I$123,'stats output'!$A$2:$A$49,$B$131) -> 0.01843317972 | J144: =SUMIFS('stats output'!$P$2:$P$49,'stats output'!$B$2:$B$49,J$123,'stats output'!$A$2:$A$49,$B$131) -> 0.004608294931 | K144: =SUMIFS('stats output'!$P$2:$P$49,'stats output'!$B$2:$B$49,K$123,'stats output'!$A$2:$A$49,$B$131) -> 0.009216589862
B145: 20 - 25t | C145: Average speed (kph) | D145: =SUMIFS('stats output'!$K$2:$K$49,'stats output'!$B$2:$B$49,D$123,'stats output'!$A$2:$A$49,$B$145) -> 31 | E145: =SUMIFS('stats output'!$K$2:$K$49,'stats output'!$B$2:$B$49,E$123,'stats output'!$A$2:$A$49,$B$145) -> 48 | F145: =SUMIFS('stats output'!$K$2:$K$49,'stats output'!$B$2:$B$49,F$123,'stats output'!$A$2:$A$49,$B$145) -> 55 | G145: =SUMIFS('stats output'!$K$2:$K$49,'stats output'!$B$2:$B$49,G$123,'stats output'!$A$2:$A$49,$B$145) -> 59 | H145: =SUMIFS('stats output'!$K$2:$K$49,'stats output'!$B$2:$B$49,H$123,'stats output'!$A$2:$A$49,$B$145) -> 63 | I145: =SUMIFS('stats output'!$K$2:$K$49,'stats output'!$B$2:$B$49,I$123,'stats output'!$A$2:$A$49,$B$145) -> 65 | J145: =SUMIFS('stats output'!$K$2:$K$49,'stats output'!$B$2:$B$49,J$123,'stats output'!$A$2:$A$49,$B$145) -> 67 | K145: =SUMIFS('stats output'!$K$2:$K$49,'stats output'!$B$2:$B$49,K$123,'stats output'!$A$2:$A$49,$B$145) -> 70
C146: Average length of 15+ minute stop (mins) | D146: =SUMIFS('stats output'!$J$2:$J$49,'stats output'!$B$2:$B$49,D$123,'stats output'!$A$2:$A$49,$B$145) -> 2 | E146: =SUMIFS('stats output'!$J$2:$J$49,'stats output'!$B$2:$B$49,E$123,'stats output'!$A$2:$A$49,$B$145) -> 3 | F146: =SUMIFS('stats output'!$J$2:$J$49,'stats output'!$B$2:$B$49,F$123,'stats output'!$A$2:$A$49,$B$145) -> 3 | G146: =SUMIFS('stats output'!$J$2:$J$49,'stats output'!$B$2:$B$49,G$123,'stats output'!$A$2:$A$49,$B$145) -> 3 | H146: =SUMIFS('stats output'!$J$2:$J$49,'stats output'!$B$2:$B$49,H$123,'stats output'!$A$2:$A$49,$B$145) -> 3 | I146: =SUMIFS('stats output'!$J$2:$J$49,'stats output'!$B$2:$B$49,I$123,'stats output'!$A$2:$A$49,$B$145) -> 3 | J146: =SUMIFS('stats output'!$J$2:$J$49,'stats output'!$B$2:$B$49,J$123,'stats output'!$A$2:$A$49,$B$145) -> 3 | K146: =SUMIFS('stats output'!$J$2:$J$49,'stats output'!$B$2:$B$49,K$123,'stats output'!$A$2:$A$49,$B$145) -> 3
C147: Average length of stop (mins) | D147: =SUMIFS('stats output'!$H$2:$H$49,'stats output'!$B$2:$B$49,D$123,'stats output'!$A$2:$A$49,$B$145) -> 27 | E147: =SUMIFS('stats output'!$H$2:$H$49,'stats output'!$B$2:$B$49,E$123,'stats output'!$A$2:$A$49,$B$145) -> 27 | F147: =SUMIFS('stats output'!$H$2:$H$49,'stats output'!$B$2:$B$49,F$123,'stats output'!$A$2:$A$49,$B$145) -> 26 | G147: =SUMIFS('stats output'!$H$2:$H$49,'stats output'!$B$2:$B$49,G$123,'stats output'!$A$2:$A$49,$B$145) -> 27 | H147: =SUMIFS('stats output'!$H$2:$H$49,'stats output'!$B$2:$B$49,H$123,'stats output'!$A$2:$A$49,$B$145) -> 28 | I147: =SUMIFS('stats output'!$H$2:$H$49,'stats output'!$B$2:$B$49,I$123,'stats output'!$A$2:$A$49,$B$145) -> 31 | J147: =SUMIFS('stats output'!$H$2:$H$49,'stats output'!$B$2:$B$49,J$123,'stats output'!$A$2:$A$49,$B$145) -> 34 | K147: =SUMIFS('stats output'!$H$2:$H$49,'stats output'!$B$2:$B$49,K$123,'stats output'!$A$2:$A$49,$B$145) -> 44
C148: Total length of 15+ min stop time less un/load (hours)1 | D148: =(D147*(D146-2))/60 -> 0 | E148: =(E147*(E146-2))/60 -> 0.45 | F148: =(F147*(F146-2))/60 -> 0.4333333333 | G148: =(G147*(G146-2))/60 -> 0.45 | H148: =(H147*(H146-2))/60 -> 0.4666666667 | I148: =(I147*(I146-2))/60 -> 0.5166666667 | J148: =(J147*(J146-2))/60 -> 0.5666666667 | K148: =(K147*(K146-2))/60 -> 0.7333333333
C149: Median annual days driving for a truck in weight band | D149: 216 | E149: 216 | F149: 216 | G149: 216 | H149: 216 | I149: 216 | J149: 216 | K149: 216
C150: Percent of total weight band trips taken | D150: =SUMIFS('stats output'!$N$2:$N$49,'stats output'!$B$2:$B$49,D$123,'stats output'!$A$2:$A$49,$B$145) -> 0.6270408035 | E150: =SUMIFS('stats output'!$N$2:$N$49,'stats output'!$B$2:$B$49,E$123,'stats output'!$A$2:$A$49,$B$145) -> 0.2435353875 | F150: =SUMIFS('stats output'!$N$2:$N$49,'stats output'!$B$2:$B$49,F$123,'stats output'!$A$2:$A$49,$B$145) -> 0.08005822068 | G150: =SUMIFS('stats output'!$N$2:$N$49,'stats output'!$B$2:$B$49,G$123,'stats output'!$A$2:$A$49,$B$145) -> 0.02958514775 | H150: =SUMIFS('stats output'!$N$2:$N$49,'stats output'!$B$2:$B$49,H$123,'stats output'!$A$2:$A$49,$B$145) -> 0.01173144335 | I150: =SUMIFS('stats output'!$N$2:$N$49,'stats output'!$B$2:$B$49,I$123,'stats output'!$A$2:$A$49,$B$145) -> 0.004458642147 | J150: =SUMIFS('stats output'!$N$2:$N$49,'stats output'!$B$2:$B$49,J$123,'stats output'!$A$2:$A$49,$B$145) -> 0.002100154402 | K150: =SUMIFS('stats output'!$N$2:$N$49,'stats output'!$B$2:$B$49,K$123,'stats output'!$A$2:$A$49,$B$145) -> 0.001490200675
C151: Average percent of annual trips by any given truck | D151: =SUMIFS('stats output'!$P$2:$P$49,'stats output'!$B$2:$B$49,D$123,'stats output'!$A$2:$A$49,$B$145) -> 0.354679803 | E151: =SUMIFS('stats output'!$P$2:$P$49,'stats output'!$B$2:$B$49,E$123,'stats output'!$A$2:$A$49,$B$145) -> 0.1921182266 | F151: =SUMIFS('stats output'!$P$2:$P$49,'stats output'!$B$2:$B$49,F$123,'stats output'!$A$2:$A$49,$B$145) -> 0.1034482759 | G151: =SUMIFS('stats output'!$P$2:$P$49,'stats output'!$B$2:$B$49,G$123,'stats output'!$A$2:$A$49,$B$145) -> 0.06896551724 | H151: =SUMIFS('stats output'!$P$2:$P$49,'stats output'!$B$2:$B$49,H$123,'stats output'!$A$2:$A$49,$B$145) -> 0.05911330049 | I151: =SUMIFS('stats output'!$P$2:$P$49,'stats output'!$B$2:$B$49,I$123,'stats output'!$A$2:$A$49,$B$145) -> 0.04433497537 | J151: =SUMIFS('stats output'!$P$2:$P$49,'stats output'!$B$2:$B$49,J$123,'stats output'!$A$2:$A$49,$B$145) -> 0.09852216749 | K151: =SUMIFS('stats output'!$P$2:$P$49,'stats output'!$B$2:$B$49,K$123,'stats output'!$A$2:$A$49,$B$145) -> 0.07881773399
B152: 25 - 30t | C152: Average speed (kph) | D152: =SUMIFS('stats output'!$K$2:$K$49,'stats output'!$B$2:$B$49,D$123,'stats output'!$A$2:$A$49,$B$152) -> 33 | E152: =SUMIFS('stats output'!$K$2:$K$49,'stats output'!$B$2:$B$49,E$123,'stats output'!$A$2:$A$49,$B$152) -> 51 | F152: =SUMIFS('stats output'!$K$2:$K$49,'stats output'!$B$2:$B$49,F$123,'stats output'!$A$2:$A$49,$B$152) -> 57 | G152: =SUMIFS('stats output'!$K$2:$K$49,'stats output'!$B$2:$B$49,G$123,'stats output'!$A$2:$A$49,$B$152) -> 61 | H152: =SUMIFS('stats output'!$K$2:$K$49,'stats output'!$B$2:$B$49,H$123,'stats output'!$A$2:$A$49,$B$152) -> 63 | I152: =SUMIFS('stats output'!$K$2:$K$49,'stats output'!$B$2:$B$49,I$123,'stats output'!$A$2:$A$49,$B$152) -> 65 | J152: =SUMIFS('stats output'!$K$2:$K$49,'stats output'!$B$2:$B$49,J$123,'stats output'!$A$2:$A$49,$B$152) -> 68 | K152: =SUMIFS('stats output'!$K$2:$K$49,'stats output'!$B$2:$B$49,K$123,'stats output'!$A$2:$A$49,$B$152) -> 70
C153: Average count of 15+ minute stops | D153: =SUMIFS('stats output'!$J$2:$J$49,'stats output'!$B$2:$B$49,D$123,'stats output'!$A$2:$A$49,$B$152) -> 2 | E153: =SUMIFS('stats output'!$J$2:$J$49,'stats output'!$B$2:$B$49,E$123,'stats output'!$A$2:$A$49,$B$152) -> 3 | F153: =SUMIFS('stats output'!$J$2:$J$49,'stats output'!$B$2:$B$49,F$123,'stats output'!$A$2:$A$49,$B$152) -> 3 | G153: =SUMIFS('stats output'!$J$2:$J$49,'stats output'!$B$2:$B$49,G$123,'stats output'!$A$2:$A$49,$B$152) -> 3 | H153: =SUMIFS('stats output'!$J$2:$J$49,'stats output'!$B$2:$B$49,H$123,'stats output'!$A$2:$A$49,$B$152) -> 4 | I153: =SUMIFS('stats output'!$J$2:$J$49,'stats output'!$B$2:$B$49,I$123,'stats output'!$A$2:$A$49,$B$152) -> 4 | J153: =SUMIFS('stats output'!$J$2:$J$49,'stats output'!$B$2:$B$49,J$123,'stats output'!$A$2:$A$49,$B$152) -> 4 | K153: =SUMIFS('stats output'!$J$2:$J$49,'stats output'!$B$2:$B$49,K$123,'stats output'!$A$2:$A$49,$B$152) -> 4
C154: Average length of 15+ minute stop (mins) | D154: =SUMIFS('stats output'!$H$2:$H$49,'stats output'!$B$2:$B$49,D$123,'stats output'!$A$2:$A$49,$B$152) -> 33 | E154: =SUMIFS('stats output'!$H$2:$H$49,'stats output'!$B$2:$B$49,E$123,'stats output'!$A$2:$A$49,$B$152) -> 31 | F154: =SUMIFS('stats output'!$H$2:$H$49,'stats output'!$B$2:$B$49,F$123,'stats output'!$A$2:$A$49,$B$152) -> 31 | G154: =SUMIFS('stats output'!$H$2:$H$49,'stats output'!$B$2:$B$49,G$123,'stats output'!$A$2:$A$49,$B$152) -> 31 | H154: =SUMIFS('stats output'!$H$2:$H$49,'stats output'!$B$2:$B$49,H$123,'stats output'!$A$2:$A$49,$B$152) -> 32 | I154: =SUMIFS('stats output'!$H$2:$H$49,'stats output'!$B$2:$B$49,I$123,'stats output'!$A$2:$A$49,$B$152) -> 32 | J154: =SUMIFS('stats output'!$H$2:$H$49,'stats output'!$B$2:$B$49,J$123,'stats output'!$A$2:$A$49,$B$152) -> 34 | K154: =SUMIFS('stats output'!$H$2:$H$49,'stats output'!$B$2:$B$49,K$123,'stats output'!$A$2:$A$49,$B$152) -> 36
C155: Total length of 15+ min stop time less un/load (hours)1 | D155: =(D154*(D153-2))/60 -> 0 | E155: =(E154*(E153-2))/60 -> 0.5166666667 | F155: =(F154*(F153-2))/60 -> 0.5166666667 | G155: =(G154*(G153-2))/60 -> 0.5166666667 | H155: =(H154*(H153-2))/60 -> 1.066666667 | I155: =(I154*(I153-2))/60 -> 1.066666667 | J155: =(J154*(J153-2))/60 -> 1.133333333 | K155: =(K154*(K153-2))/60 -> 1.2
C156: Median annual days driving for a truck in weight band | D156: 225 | E156: 225 | F156: 225 | G156: 225 | H156: 225 | I156: 225 | J156: 225 | K156: 225
C157: Percent of total weight band trips taken | D157: =SUMIFS('stats output'!$N$2:$N$49,'stats output'!$B$2:$B$49,D$123,'stats output'!$A$2:$A$49,$B$152) -> 0.4839098051 | E157: =SUMIFS('stats output'!$N$2:$N$49,'stats output'!$B$2:$B$49,E$123,'stats output'!$A$2:$A$49,$B$152) -> 0.2770014192 | F157: =SUMIFS('stats output'!$N$2:$N$49,'stats output'!$B$2:$B$49,F$123,'stats output'!$A$2:$A$49,$B$152) -> 0.1326042797 | G157: =SUMIFS('stats output'!$N$2:$N$49,'stats output'!$B$2:$B$49,G$123,'stats output'!$A$2:$A$49,$B$152) -> 0.06322360427 | H157: =SUMIFS('stats output'!$N$2:$N$49,'stats output'!$B$2:$B$49,H$123,'stats output'!$A$2:$A$49,$B$152) -> 0.02662066023 | I157: =SUMIFS('stats output'!$N$2:$N$49,'stats output'!$B$2:$B$49,I$123,'stats output'!$A$2:$A$49,$B$152) -> 0.01012883658 | J157: =SUMIFS('stats output'!$N$2:$N$49,'stats output'!$B$2:$B$49,J$123,'stats output'!$A$2:$A$49,$B$152) -> 0.004097912087 | K157: =SUMIFS('stats output'!$N$2:$N$49,'stats output'!$B$2:$B$49,K$123,'stats output'!$A$2:$A$49,$B$152) -> 0.002413482854
C158: Average percent of annual trips by any given truck | D158: =SUMIFS('stats output'!$P$2:$P$49,'stats output'!$B$2:$B$49,D$123,'stats output'!$A$2:$A$49,$B$152) -> 0.331838565 | E158: =SUMIFS('stats output'!$P$2:$P$49,'stats output'!$B$2:$B$49,E$123,'stats output'!$A$2:$A$49,$B$152) -> 0.2107623318 | F158: =SUMIFS('stats output'!$P$2:$P$49,'stats output'!$B$2:$B$49,F$123,'stats output'!$A$2:$A$49,$B$152) -> 0.130044843 | G158: =SUMIFS('stats output'!$P$2:$P$49,'stats output'!$B$2:$B$49,G$123,'stats output'!$A$2:$A$49,$B$152) -> 0.09865470852 | H158: =SUMIFS('stats output'!$P$2:$P$49,'stats output'!$B$2:$B$49,H$123,'stats output'!$A$2:$A$49,$B$152) -> 0.08071748879 | I158: =SUMIFS('stats output'!$P$2:$P$49,'stats output'!$B$2:$B$49,I$123,'stats output'!$A$2:$A$49,$B$152) -> 0.04932735426 | J158: =SUMIFS('stats output'!$P$2:$P$49,'stats output'!$B$2:$B$49,J$123,'stats output'!$A$2:$A$49,$B$152) -> 0.04484304933 | K158: =SUMIFS('stats output'!$P$2:$P$49,'stats output'!$B$2:$B$49,K$123,'stats output'!$A$2:$A$49,$B$152) -> 0.05381165919
B159: 30t+ | C159: Average speed (kph) | D159: =SUMIFS('stats output'!$K$2:$K$49,'stats output'!$B$2:$B$49,D$123,'stats output'!$A$2:$A$49,$B$159) -> 36 | E159: =SUMIFS('stats output'!$K$2:$K$49,'stats output'!$B$2:$B$49,E$123,'stats output'!$A$2:$A$49,$B$159) -> 57 | F159: =SUMIFS('stats output'!$K$2:$K$49,'stats output'!$B$2:$B$49,F$123,'stats output'!$A$2:$A$49,$B$159) -> 60 | G159: =SUMIFS('stats output'!$K$2:$K$49,'stats output'!$B$2:$B$49,G$123,'stats output'!$A$2:$A$49,$B$159) -> 62 | H159: =SUMIFS('stats output'!$K$2:$K$49,'stats output'!$B$2:$B$49,H$123,'stats output'!$A$2:$A$49,$B$159) -> 63 | I159: =SUMIFS('stats output'!$K$2:$K$49,'stats output'!$B$2:$B$49,I$123,'stats output'!$A$2:$A$49,$B$159) -> 65 | J159: =SUMIFS('stats output'!$K$2:$K$49,'stats output'!$B$2:$B$49,J$123,'stats output'!$A$2:$A$49,$B$159) -> 66 | K159: =SUMIFS('stats output'!$K$2:$K$49,'stats output'!$B$2:$B$49,K$123,'stats output'!$A$2:$A$49,$B$159) -> 68
C160: Average count of 15+ minute stops | D160: =SUMIFS('stats output'!$J$2:$J$49,'stats output'!$B$2:$B$49,D$123,'stats output'!$A$2:$A$49,$B$159) -> 1 | E160: =SUMIFS('stats output'!$J$2:$J$49,'stats output'!$B$2:$B$49,E$123,'stats output'!$A$2:$A$49,$B$159) -> 2 | F160: =SUMIFS('stats output'!$J$2:$J$49,'stats output'!$B$2:$B$49,F$123,'stats output'!$A$2:$A$49,$B$159) -> 3 | G160: =SUMIFS('stats output'!$J$2:$J$49,'stats output'!$B$2:$B$49,G$123,'stats output'!$A$2:$A$49,$B$159) -> 3 | H160: =SUMIFS('stats output'!$J$2:$J$49,'stats output'!$B$2:$B$49,H$123,'stats output'!$A$2:$A$49,$B$159) -> 4 | I160: =SUMIFS('stats output'!$J$2:$J$49,'stats output'!$B$2:$B$49,I$123,'stats output'!$A$2:$A$49,$B$159) -> 4 | J160: =SUMIFS('stats output'!$J$2:$J$49,'stats output'!$B$2:$B$49,J$123,'stats output'!$A$2:$A$49,$B$159) -> 5 | K160: =SUMIFS('stats output'!$J$2:$J$49,'stats output'!$B$2:$B$49,K$123,'stats output'!$A$2:$A$49,$B$159) -> 6
C161: Average length of 15+ minute stop (mins) | D161: =SUMIFS('stats output'!$H$2:$H$49,'stats output'!$B$2:$B$49,D$123,'stats output'!$A$2:$A$49,$B$159) -> 26 | E161: =SUMIFS('stats output'!$H$2:$H$49,'stats output'!$B$2:$B$49,E$123,'stats output'!$A$2:$A$49,$B$159) -> 26 | F161: =SUMIFS('stats output'!$H$2:$H$49,'stats output'!$B$2:$B$49,F$123,'stats output'!$A$2:$A$49,$B$159) -> 27 | G161: =SUMIFS('stats output'!$H$2:$H$49,'stats output'!$B$2:$B$49,G$123,'stats output'!$A$2:$A$49,$B$159) -> 27 | H161: =SUMIFS('stats output'!$H$2:$H$49,'stats output'!$B$2:$B$49,H$123,'stats output'!$A$2:$A$49,$B$159) -> 27 | I161: =SUMIFS('stats output'!$H$2:$H$49,'stats output'!$B$2:$B$49,I$123,'stats output'!$A$2:$A$49,$B$159) -> 27 | J161: =SUMIFS('stats output'!$H$2:$H$49,'stats output'!$B$2:$B$49,J$123,'stats output'!$A$2:$A$49,$B$159) -> 26 | K161: =SUMIFS('stats output'!$H$2:$H$49,'stats output'!$B$2:$B$49,K$123,'stats output'!$A$2:$A$49,$B$159) -> 28
C162: Total length of 15+ min stop time less un/load (hours)1 | D162: =(D161*(D160-1))/60 -> 0 | E162: =(E161*(E160-2))/60 -> 0 | F162: =(F161*(F160-2))/60 -> 0.45 | G162: =(G161*(G160-2))/60 -> 0.45 | H162: =(H161*(H160-2))/60 -> 0.9 | I162: =(I161*(I160-2))/60 -> 0.9 | J162: =(J161*(J160-2))/60 -> 1.3 | K162: =(K161*(K160-2))/60 -> 1.866666667
C163: Median annual days driving for a truck in weight band | D163: 243 | E163: 243 | F163: 243 | G163: 243 | H163: 243 | I163: 243 | J163: 243 | K163: 243
C164: Percent of total weight band trips taken | D164: =SUMIFS('stats output'!$N$2:$N$49,'stats output'!$B$2:$B$49,D$123,'stats output'!$A$2:$A$49,$B$159) -> 0.3365765308 | E164: =SUMIFS('stats output'!$N$2:$N$49,'stats output'!$B$2:$B$49,E$123,'stats output'!$A$2:$A$49,$B$159) -> 0.244177179 | F164: =SUMIFS('stats output'!$N$2:$N$49,'stats output'!$B$2:$B$49,F$123,'stats output'!$A$2:$A$49,$B$159) -> 0.1768103969 | G164: =SUMIFS('stats output'!$N$2:$N$49,'stats output'!$B$2:$B$49,G$123,'stats output'!$A$2:$A$49,$B$159) -> 0.1082234438 | H164: =SUMIFS('stats output'!$N$2:$N$49,'stats output'!$B$2:$B$49,H$123,'stats output'!$A$2:$A$49,$B$159) -> 0.06371897938 | I164: =SUMIFS('stats output'!$N$2:$N$49,'stats output'!$B$2:$B$49,I$123,'stats output'!$A$2:$A$49,$B$159) -> 0.03653204538 | J164: =SUMIFS('stats output'!$N$2:$N$49,'stats output'!$B$2:$B$49,J$123,'stats output'!$A$2:$A$49,$B$159) -> 0.02148644784 | K164: =SUMIFS('stats output'!$N$2:$N$49,'stats output'!$B$2:$B$49,K$123,'stats output'!$A$2:$A$49,$B$159) -> 0.01247497696
C165: Average percent of annual trips by any given truck | D165: =SUMIFS('stats output'!$P$2:$P$49,'stats output'!$B$2:$B$49,D$123,'stats output'!$A$2:$A$49,$B$159) -> 0.2374429224 | E165: =SUMIFS('stats output'!$P$2:$P$49,'stats output'!$B$2:$B$49,E$123,'stats output'!$A$2:$A$49,$B$159) -> 0.1735159817 | F165: =SUMIFS('stats output'!$P$2:$P$49,'stats output'!$B$2:$B$49,F$123,'stats output'!$A$2:$A$49,$B$159) -> 0.1415525114 | G165: =SUMIFS('stats output'!$P$2:$P$49,'stats output'!$B$2:$B$49,G$123,'stats output'!$A$2:$A$49,$B$159) -> 0.1141552511 | H165: =SUMIFS('stats output'!$P$2:$P$49,'stats output'!$B$2:$B$49,H$123,'stats output'!$A$2:$A$49,$B$159) -> 0.09589041096 | I165: =SUMIFS('stats output'!$P$2:$P$49,'stats output'!$B$2:$B$49,I$123,'stats output'!$A$2:$A$49,$B$159) -> 0.08675799087 | J165: =SUMIFS('stats output'!$P$2:$P$49,'stats output'!$B$2:$B$49,J$123,'stats output'!$A$2:$A$49,$B$159) -> 0.08675799087 | K165: =SUMIFS('stats output'!$P$2:$P$49,'stats output'!$B$2:$B$49,K$123,'stats output'!$A$2:$A$49,$B$159) -> 0.06392694064
C166: Source: NERA analysis of EROAD data.
B168: Note:
B169: 1 | C169: We understand from EROAD that their data collection for a trip is from ignition-on to ignition-off, and that generally drivers leave their ignition running when loading and
C170: unloading their vehicle. Therefore, the "Total length of 15+ min stop time less un/load (mins)" rows use the average count of +15 minute stops, subtracts two (to
C171: represent stops counted for loading and unloading), and multiply by the average length of stops. This entry can then be input into the "Number of 60 min stops" in
C172: Dashboard A. Stops here are defined as being greater than 15 minutes assuming that any stop for less time than that is unlikely to be used for charging a vehicle.

Sheet Dashboard A
B2: Total cost of ownership per tonne-kilometre
AP3: Comparison Tool V3.0
B4: under various fuel sources + vehicle types
B7: This comparison tool presents an estimated total cost of ownership per tonne-km (TCO/tkm) for a variety of alternative fuel+vehicle combinations against a diesel+ICEV truck. Default scenarios for varying truck sizes are presented for ease of use; however, robust, stable and New Zealand-specific data are not readily available for many of the parameters surrounding these technologies. Thus, the default scenario should be interpreted as illustrative, although every effort has been made to reference reliable sources. | J7: General inputs | AC7: Road User Charges | AN7: Cost per tonne of carbon abated
AY8: BEV switch
K10: Carbon price | P10: 40.8 | Q10: per tCO2e | S10: Driver days driving/year | X10: 243 | Y10: days | AO10: Green H2 + FCEV | AQ10: =IF(FCEV_available=1,'Calculations step-by-step'!G128,"") -> 430.2963584 | AR10: per tonne | AY10: 0
K12: Cost of electricity1a,1b | S12: Daily trip distance | X12: 630 | Y12: km | AE12: Road User Charge per km | AI12: 0.599 | AJ12: per km | AO12: Direct charging + BEV | AQ12: =IF(BEV_available=1,'Calculations step-by-step'!AA128,"") -> 125.6839992 | AR12: per tonne | AY12: Lease / purchase switch
L14: Overnight cost | P14: 50 | Q14: per MWh | S14: Length of start/end un/load3 | X14: 0.43 | Y14: =IF(X16=1,"hour","hours") -> hours | AO14: Drop-in biodiesel + ICEV | AQ14: =IF(AB_available=1,'Calculations step-by-step'!AS128,"") -> 882.2695401 | AR14: per tonne | AY14: 0
B15: This comparison tool is intended to be a highly flexible tool to explore what needs to be true for a fuel+vehicle combination to be the lowest-cost option for a given freight trip.
L16: Overnight cost (incl. carbon cost) | P16: =overnight_cost_of_electricity+(emissions_grid_electricity*carbon_price) -> 50 | Q16: per MWh | S16: Number of 60 min stops4 | X16: 1.3 | Y16: =IF(X16=1,"stop","stops") -> stops | AE16: Exemptions | AO16: Conventional biodiesel + ICEV | AQ16: =IF(CB_available=1,'Calculations step-by-step'!BG128,"") -> 852.4631367 | AR16: per tonne | AY16: Maintenance included box
L18: Daytime cost of electricity | P18: 88 | Q18: per MWh | S18: Average driving speed | X18: 66 | Y18: km/h | AF18: Green H2 + FCEV | AO18: H2 blend + ICEV | AQ18: =IF(DH2_available=1,'Calculations step-by-step'!BU128,"") -> 1092.605623 | AR18: per tonne | AY18: TRUE
L20: Daytime cost (incl. carbon cost) | P20: =daytime_cost_of_electricity+(emissions_grid_electricity*carbon_price) -> 88 | Q20: per MWh | S20: Payload for non-BEV | X20: 27.5 | Y20: tonnes | AF20: Direct charging + BEV
K22: Grid electricity CO2e emissions2 | P22: 0 | Q22: kgCO2e/kWh | S22: Average loading factor5 | X22: 1 | AF22: Drop-in biodiesel + ICEV
K24: Freight operator's WACC | P24: 0.08 | Q24: =IF(lease_switch=1,"n/a","") ->  | S24: Vehicle purchase or lease6 | AF24: Conventional biodiesel + ICEV
X25: Maintenance incl.
K26: Duration of ownership | P26: 5 | Q26: =IF(lease_switch=1,"n/a","years") -> years | S26: Purchase | W26: Lease | AF26: H2 blend + ICEV
X27: with lease
K28: Driver wages | P28: 25 | Q28: per hour
K32: Battery electric vehicle | S32: Direct charging + BEV | AD32: Fuel cell electric vehicle
K34: Battery specs7 | S34: Overnight charging10 | AD34: =IF(AY14=0,"Vehicle capital cost","Vehicle lease cost") -> Vehicle capital cost | AH34: 9900 | AI34: 611000 | AJ34: =IF(AY14=0,"total","monthly") -> total
K36: Day fast charging | P36: Battery swapping | T36: Infrastructure cost | X36: 0.04 | Y36: per kWh | AD36: Residual value | AI36: 0.418
L38: Capacity | P38: 435 | Q38: kWh | T38: Network cost | X38: 0.038 | Y38: per kWh | AD38: Maintenance cost | AI38: 0.66 | AJ38: =IF(AND(AY14=1,AY18=TRUE),"n/a","of ICEV") -> of ICEV
L40: In-use capacity floor | P40: 0.2 | S40: =IF(AY10=0,"Midday fast charge","Midday battery swap") -> Midday fast charge | V40: 11 | AD40: Insurance | AI40: 0.006 | AJ40: of total cost
W41: =IF(BD168=2,"",IF(AND(BEV_switch=1,W42=0),"!","")) -> 
L42: Day-charge capacity ceiling | P42: 0.9 | Q42: =IF(AY10=0,"","n/a") ->  | T42: =IF(AY10=0,"Charger wattage","Swap cost") -> Charger wattage | X42: 300 | Y42: =IF(BEV_switch=0,"kW","per swap") -> kW | AD42: Fuel efficiency | AI42: 0.094 | AJ42: kgs/km
K44: Payload capacity8 | P44: ='Calculations step-by-step'!AA122 -> 25.22932331 | Q44: tonnes | T44: Infrastructure cost | W44: 0.04 | X44: 0.3 | Y44: per kWh | AD44: Green H2 + FCEV
T46: Network cost | W46: 0.038 | X46: 0.188 | Y46: per kWh | AD46: Cost of electricity13 | AI46: =IF('H2 cost calculator'!T125=1,GH2_electricity_cost,"n/a") -> 73.16 | AJ46: per MWh
K48: =IF(AY14=0,"Vehicle capital cost","Vehicle lease cost") -> Vehicle capital cost | O48: 6850 | P48: 409000 | Q48: =IF(AY14=0,"total","monthly") -> total | S48: Delivered cost of fuel | X48: ='Calculations step-by-step'!AA88 -> 0.4345904762 | Y48: per kWh | AD48: Delivered cost of fuel14 | AI48: ='Calculations step-by-step'!G41 -> 10.90799233 | AJ48: per kg
K50: Residual value | P50: 0.418 | S50: Delivered fuel cost per km | X50: ='Calculations step-by-step'!AA98 -> 0.7605333333 | Y50: per km | AD50: Delivered fuel cost per km | AI50: ='Calculations step-by-step'!G98 -> 1.025351279 | AJ50: per km
K52: Maintenance cost | P52: 0.66 | Q52: =IF(AND(AY14=1,AY18=TRUE),"n/a","of ICEV") -> of ICEV | S52: Labour hours12 | X52: ='Calculations step-by-step'!AA108 -> 12.92045455 | Y52: hrs per trip | AD52: Labour hours12 | AI52: ='Calculations step-by-step'!G108 -> 11.70545455 | AJ52: hrs per trip
K54: Insurance | P54: 0.006 | Q54: of total cost | S54: CO2e emissions cost | X54: ='Calculations step-by-step'!AA114 -> 0 | Y54: per km | AD54: CO2e emissions cost | AI54: ='Calculations step-by-step'!G114 -> 0 | AJ54: per km
K56: Fuel efficiency | P56: 1.75 | Q56: kWh/km | S56: TCO/km | X56: =IF(BD168=1,'Calculations step-by-step'!AA120,"n/a") -> 2.414978131 | AD56: TCO/km | AI56: =IF(BC168=1,'Calculations step-by-step'!G120,"n/a") -> 2.869459771
K58: =IF(BEV_switch=0,"Additional required stops","Total required swaps") -> Additional required stops | N58: 9 | P58: =IF(BEV_switch=0,'Calculations step-by-step'!AA66,'Calculations step-by-step'!AA64) -> 2.215 | Q58: =IF(BEV_switch=0,IF(P58=1,"hour","hours"),IF(P58=1,"swap","swaps")) -> hours | S58: TCO/tkm | X58: =IF(BD168=1,'Calculations step-by-step'!AA126,"n/a") -> 0.09572108224 | AD58: TCO/tkm | AI58: =IF(BC168=1,'Calculations step-by-step'!G126,"n/a") -> 0.1043439917
K62: Internal combustion engine vehicle
K64: =IF(AY14=0,"Vehicle capital cost","Vehicle lease cost") -> Vehicle capital cost | O64: 4900 | P64: 250000 | Q64: =IF(AY14=0,"total","monthly") -> total | S64: Residual value | X64: 0.418 | AD64: Maintenance cost | AI64: 0.092 | AJ64: =IF(AND(AY14=1,AY18=TRUE),"n/a","$/km") -> $/km | AN64: Fuel efficiency | AQ64: 0.555 | AR64: l/km
AD66: Insurance | AI66: 0.006 | AJ66: of total cost
K69: Diesel + ICEV | S69: Diesel + H2 + ICEV | AC69: Conventional biodiesel + ICEV | AN69: Drop-in biodiesel + ICEV
K72: Delivered cost of fuel15 | P72: 1.15 | Q72: per litre | S72: Delivered cost of diesel fuel15 | X72: =diesel_cost -> 1.15 | Y72: per litre | AD72: Delivered cost of fuel | AI72: 2.25 | AJ72: per litre | AN72: Delivered cost of fuel | AQ72: 3 | AR72: per litre
S74: Delivered cost of H2 fuel14 | X74: =AI48 -> 10.90799233 | Y74: per kg | AD74: Biodiesel blend17 | AI74: 0.2 | AN74: Biodiesel blend17 | AQ74: 1
S76: Retrofit cost18 | X76: 108000 | AD76: Retrofit cost18 | AI76: 0
K78: CO2e emissions per km | P78: 1.492 | Q78: kgCO2e | S78: Amount of diesel displacement20 | X78: 0.3 | Y78: kgCO2e | AD78: CO2e emissions reduction19 | AI78: 0.48 | AN78: CO2e emissions reduction19 | AQ78: 0.78
K80: PM emissions social cost16 | P80: 0.25 | Q80: per litre | S80: Energy ratio (kgs H2 per l diesel)21 | X80: 0.3003343297 | Y80: kg H2 | AD80: PM emissions reduction16 | AI80: 0 | AN80: PM emissions reduction16 | AQ80: 0
K82: Delivered fuel cost | P82: ='Calculations step-by-step'!CI98 -> 0.63825 | Q82: per km | S82: Delivered fuel cost | X82: ='Calculations step-by-step'!BU98 -> 0.9922364202 | Y82: per km | AD82: Delivered fuel cost | AI82: ='Calculations step-by-step'!BG98 -> 0.76035 | AJ82: per km | AN82: Delivered fuel cost | AQ82: ='Calculations step-by-step'!AS98 -> 1.665 | AR82: per km
K84: Labour hours12 | P84: ='Calculations step-by-step'!AS108 -> 11.70545455 | Q84: hrs per trip | S84: Labour hours12 | X84: ='Calculations step-by-step'!BU108 -> 11.70545455 | Y84: hrs per trip | AD84: Labour hours12 | AI84: ='Calculations step-by-step'!BG108 -> 11.70545455 | AJ84: hrs per trip | AN84: Labour hours12 | AQ84: ='Calculations step-by-step'!CI108 -> 11.70545455 | AR84: hrs per trip
K86: CO2e emissions cost | P86: ='Calculations step-by-step'!CI114 -> 0.0608736 | Q86: per km | S86: CO2e emissions cost | X86: ='Calculations step-by-step'!BU114 -> 0.04261152 | Y86: per km | AD86: CO2e emissions cost | AI86: ='Calculations step-by-step'!BG114 -> 0.0550297344 | AJ86: per km | AN86: CO2e emissions cost | AQ86: ='Calculations step-by-step'!AS114 -> 0.013392192 | AR86: per km
K88: PM emissions social cost16 | P88: ='Calculations step-by-step'!CI116 -> 0.13875 | Q88: per km | S88: PM emissions social cost16 | X88: ='Calculations step-by-step'!BU116 -> 0.097125 | Y88: per km | AD88: PM emissions social cost16 | AI88: ='Calculations step-by-step'!BG116 -> 0.13875 | AJ88: per km | AN88: PM emissions social cost16 | AQ88: ='Calculations step-by-step'!AS116 -> 0.13875 | AR88: per km
K90: TCO/km | P90: =IF(BH168=1,'Calculations step-by-step'!CI120,"n/a") -> 2.288331204 | S90: TCO/km | X90: =IF(BG168=1,'Calculations step-by-step'!BU120,"n/a") -> 2.759119401 | AD90: TCO/km | AI90: =IF(BF168=1,'Calculations step-by-step'!BG120,"n/a") -> 2.404587339 | AN90: TCO/km | AQ90: =IF(BE168=1,'Calculations step-by-step'!AS120,"n/a") -> 3.267599796
K92: TCO/tkm | P92: =IF(BH168=1,'Calculations step-by-step'!CI126,"n/a") -> 0.0832120438 | S92: TCO/tkm | X92: =IF(BG168=1,'Calculations step-by-step'!BU126,"n/a") -> 0.1003316146 | AD92: TCO/tkm | AI92: =IF(BF168=1,'Calculations step-by-step'!BG126,"n/a") -> 0.0874395396 | AN92: TCO/tkm | AQ92: =IF(BE168=1,'Calculations step-by-step'!AS126,"n/a") -> 0.1188218108
K96: Notes: | L96: References for comparison tool default inputs are provided on Default scenario references. The "Reset default scenario" buttons at the top reset all sheets.
L98: Each fuel + vehicle option on Dashboard A has a dropdown selection where the user may select "Available" or "Unavailable" to indicate that this fuel is not available as an option.
L99: Selecting "Unavailable" will remove the output from the bar chart on the left and TCO totals in the relevant box for that fuel + vehicle. However, Dashboard B will remain unaffected,
L100: as Dashboard B is more intended to evaluate technology and cost changes over time.
K102: 1a | L102: These inputs allow separate costs of electricity to be applied for BEV charging and battery swapping. Overnight cost is applied for both overnight charging and battery swapping, while
L103: daytime cost is applied to fast charging (i.e., daytime cost does not apply anywhere when battery swapping is assumed for BEVs). A separate electricity cost input is applied for green H2
L104: in the H2 cost calculator.
K106: 1b | L106: The electricity price in the default scenario is intended to represent the time-weighted average wholesale electricity cost (for the relevant period) based on the marginal cost of new renewable
L107: generation (i.e., zero-emission) to meet new demand and displace fossil generation. If the user chooses to model incremental grid electricity with an emissions component, the total cost of
L108: electricity including the cost of carbon is shown below the electricity input. This is for illustrative purposes, as the cost of carbon is applied to the TCO separately in the calculations.
K110: 2 | L110: Presently, grid electricity in New Zealand emits greenhouse gas emissions. The comparison tool assess costs and emissions associated with incremental generation to electrify heavy freight.
L111: This parameter is therefore the marginal emissions factor for new grid-connected generation (not accounting for fluctuations based on time of use). The default electricity scenario uses the
L112: marginal cost of developing new renewables, and therefore no carbon emissions are applied.
K114: 3 | L114: This length of time is allocated to both the beginning and end of the trip to assume the amount of labour hours required by the driver to load/unload (e.g., an entry of one hour
L115: allocates one hour of labour to the beginning and one hour to the end).
K117: 4 | L117: This reflects the stops built in to the trip (e.g., loading/unloading mid-trip), all of which will be allocated to potential charging time if required, as well as labour cost.
K119: 5 | L119: Average loading factor allows for the TCO calculations to account for the fact the truck will not always be full. For example, if the truck is generally full half the time, a 50% factor would be applied.
K121: 6 | L121: This toggle allows the user to either choose to "pay for the truck" by purchasing it and financing it, or inputting a monthly lease cost. This also allows the option of including maintenance with the
L122: lease input cost, or keeping it separately calculated.
K124: 7 | L124: Battery specifications allow the user to switch between assuming fast charging the BEV during the day when required, or using a battery swapping service. The dashboard will update itself to
L125: prompt the user for the relevant specifications. The battery capacity input is the rated capacity of the battery in the vehicle. However, the in-use capacity floor allows the user to limit the
L126: BEV to only be driven until the battery is at its floor (e.g., 10% battery left) before requiring recharge. When the dashboard is set to assume the BEV to use fast charging mid-trip, a capacity
L127: ceiling can be applied to indicate a cap on the mid-day charge, as current battery technology generally slows down significantly once it reaches a certain capacity (at which point the
L128: driver may not want to continue waiting, and the same kW charge capacity should not be applied).
K130: 8 | L130: Default payload capacity for BEV is determined in the BEV payload calculator. This can be altered there using relevant underlying information, or overridden with direct with user-defined inputs.
L131: Note that the default scenario calculation for BEV payload capacity is calibrated to reflect the payload capabilities of the BYD Class 8 truck.
K133: 9 | L133: =IF(BEV_switch=0,"This is the additional number of stops required by the BEV driver to charge the vehicle in order to complete the trip given the battery and trip specifications (including built-in stops where", "This is the required number of battery swaps the driver must undergo to complete the trip given the battery and trip specifications. Built-in stops do not affect swaps and are therefore only") -> This is the additional number of stops required by the BEV driver to charge the vehicle in order to complete the trip given the battery and trip specifications (including built-in stops where
L134: =IF(BEV_switch=0,"charging would occur without incurring additional labour cost).","accounted for in labour cost calculations.") -> charging would occur without incurring additional labour cost).
K136: 10 | L136: Charging costs are broken into $/kWh components of infrastructure cost, network cost, and electricity cost.
K138: 11 | L138: =IF(BEV_switch=0,"See fn 9. The fast charger wattage input is used to estimate the amount of stop hours required to charge the BEV, but it is not linked to the level of component costs. Note that the default","See fn 8. Additionally, a swap cost should be incurred, whether this is accounted for as the capital cost to own additional batteries or use of a third-party service. Note that the default") -> See fn 9. The fast charger wattage input is used to estimate the amount of stop hours required to charge the BEV, but it is not linked to the level of component costs. Note that the default
L139: =IF(BEV_switch=0,"fast charge cost component inputs are based upon costs related to the default charger wattage assumption.","scenario does not assume a swap cost (relying on a fast-charge scenario), as there is little public information on what this service will cost operators.") -> fast charge cost component inputs are based upon costs related to the default charger wattage assumption.
K141: 12 | L141: ! New Zealand labour laws limit truck drivers to 13 cumulative work hours per day. Values will shade red when the specified trip is not feasible in one day by one driver.
K143: 13 | L143: Green H2 electricity cost is available as an input in the H2 cost calculator. When the H2 cost calculator output is overridden by user-defined direct input, this cost will not display (as it is not relevant).
K145: 14 | L145: Default delivered cost of fuel is determined on H2 cost calculator tab, which builds up cost from further inputs. This can be altered there using relevant underlying information, or overridden
L146: with direct with user-defined inputs.
K148: 15 | L148: The delivered cost of fuel for each of diesel and the biodiesel options should be the delivered cost of fuel not including any carbon costs.
K150: 16 | L150: Particulate matter (PM) emissions social cost captures the estimated social/health costs to New Zealand from PM emissions per litre of fuel used in an ICEV. Use of biodiesels may reduce
L151: these emissions, therefore inputs are available to account for the assumed reduction from use.
K153: 17 | L153: An input allowing for a blend of biodiesel and fossil diesel is available for both biodiesel options. Regarding conventional biodiesel, this is likely due to limitations on the physical capabilities
L154: of the existing diesel powertrain (unless retrofitted, the cost of which is also available as an input). Regarding drop-in biodiesel, this may be due to supply limitations.
K156: 18 | L156: Retrofit cost allows the user to input an additional amount to add to the capital cost of the vehicle, which could be incurred if the vehicle needed modification to run the non-fossil diesel fuel.
K158: 19 | L158: CO2e emissions reduction indicates the percent of emissions reduced by the biodiesel used. For example, if the conventional biodiesel emissions reduction input was 100% and a
L159: 20% blend is applied (e.g., B20), overall emissions would be reduced 20%.
K161: 20 | L161: An ICEV converted to run on blended H2 and diesel, therefore displacing the overall diesel used. This calculator does not assume a change in fuel efficiency for ICEVs in MJ/km using either fuel source.
K163: 21 | L163: This value represents how many kgs H2 it takes to have the same amount of energy (in MJs) as 1 litre of diesel. This is used as a multiplier to convert diesel fuel efficiency (in l diesel per km) to
L164: H2 fuel efficiency (in kg H2 per km) to calculate the kgs H2 needed to replace the equivalent litres of diesel for an ICEV. The calculation of the energy ratio is outlined in Default scenario references | BC164: GH2 | BD164: BEV | BE164: AB | BF164: CB | BG164: D+H2 | BH164: DIES
L165: in the Diesel + H2 + ICEV section and note 4 of Calculations step-by-step further discusses the energy ratio. | BC165: Format controls
BC166: Available
BC167: Unavailable
BB168: avail switch | BC168: 1 | BD168: 1 | BE168: 1 | BF168: 1 | BG168: 1 | BH168: 1
BB169: exemptions | BC169: FALSE | BD169: FALSE | BE169: FALSE | BF169: FALSE | BG169: FALSE
BC171: Chart values
BB172: =IF(AND($AY$14=1,AY18=TRUE),"Lease + maintenance",IF($AY$14=0,"Capital","Lease")) -> Capital | BC172: =IF(BC168=1,('Calculations step-by-step'!G35/($X$20*$X$22)),0) -> 0.02600838631 | BD172: =IF(BD168=1,('Calculations step-by-step'!AA35/($P$44*$X$22)),0) -> 0.01897678323 | BE172: =IF(BE168=1,('Calculations step-by-step'!AS35/($X$20*$X$22)),0) -> 0.01064172926 | BF172: =IF(BF168=1,('Calculations step-by-step'!BG35/($X$20*$X$22)),0) -> 0.01064172926 | BG172: =IF(BG168=1,('Calculations step-by-step'!BU35/($X$20*$X$22)),0) -> 0.0170667786 | BH172: =IF(BH168=1,('Calculations step-by-step'!CI35/($X$20*$X$22)),0) -> 0.01064172926
BB173: Fuel | BC173: =IF(BC168=1,(AI50/($X$20*$X$22)),0) -> 0.03728550107 | BD173: =IF(BD168=1,(X50/($P$44*$X$22)),0) -> 0.03014481697 | BE173: =IF(BE168=1,(AQ82/($X$20*$X$22)),0) -> 0.06054545455 | BF173: =IF(BF168=1,(AI82/($X$20*$X$22)),0) -> 0.02764909091 | BG173: =IF(BG168=1,(X82/($X$20*$X$22)),0) -> 0.03608132437 | BH173: =IF(BH168=1,(P82/($X$20*$X$22)),0) -> 0.02320909091
BB174: =IF(AND($AY$14=1,AY18=TRUE),"Insurance","Insurance + maintenance") -> Insurance + maintenance | BC174: =IF(BC168=1,(('Calculations step-by-step'!G37+'Calculations step-by-step'!G39)/($X$20*$X$22)),0) -> 0.002377298318 | BD174: =IF(BD168=1,(('Calculations step-by-step'!AA37+'Calculations step-by-step'!AA39)/($P$44*$X$22)),0) -> 0.002535024329 | BE174: =IF(BE168=1,(('Calculations step-by-step'!AS37+'Calculations step-by-step'!AS39)/($X$20*$X$22)),0) -> 0.003429377648 | BF174: =IF(BF168=1,(('Calculations step-by-step'!BG37+'Calculations step-by-step'!BG39)/($X$20*$X$22)),0) -> 0.003429377648 | BG174: =IF(BG168=1,(('Calculations step-by-step'!BU37+'Calculations step-by-step'!BU39)/($X$20*$X$22)),0) -> 0.003429377648 | BH174: =IF(BH168=1,(('Calculations step-by-step'!CI37+'Calculations step-by-step'!CI39)/($X$20*$X$22)),0) -> 0.003429377648
BB175: Labour | BC175: =IF(BC168=1,(AI52*$P$28/$X$12/($X$20*$X$22)),0) -> 0.0168909878 | BD175: =IF(BD168=1,(X52*$P$28/$X$12/($P$44*$X$22)),0) -> 0.02032224344 | BE175: =IF(BE168=1,(AQ84*$P$28/$X$12/($X$20*$X$22)),0) -> 0.0168909878 | BF175: =IF(BF168=1,(AI84*$P$28/$X$12/($X$20*$X$22)),0) -> 0.0168909878 | BG175: =IF(BG168=1,(X84*$P$28/$X$12/($X$20*$X$22)),0) -> 0.0168909878 | BH175: =IF(BH168=1,(P84*$P$28/$X$12/($X$20*$X$22)),0) -> 0.0168909878
BB176: RUC | BC176: =IF(BC168=1,('Calculations step-by-step'!G118/($X$20*$X$22)),0) -> 0.02178181818 | BD176: =IF(BD168=1,('Calculations step-by-step'!AA118/($P$44*$X$22)),0) -> 0.02374221428 | BE176: =IF(BE168=1,('Calculations step-by-step'!AS118/($X$20*$X$22)),0) -> 0.02178181818 | BF176: =IF(BF168=1,('Calculations step-by-step'!BG118/($X$20*$X$22)),0) -> 0.02178181818 | BG176: =IF(BG168=1,('Calculations step-by-step'!BU118/($X$20*$X$22)),0) -> 0.02178181818 | BH176: =IF(BH168=1,('Calculations step-by-step'!CI118/($X$20*$X$22)),0) -> 0.02178181818
BB177: CO2e cost | BC177: =IF(BC168=1,((AI54/($X$20*$X$22))),0) -> 0 | BD177: =IF(BD168=1,(X54/($P$44*$X$22)),0) -> 0 | BE177: =IF(BE168=1,(AQ86/($X$20*$X$22)),0) -> 0.0004869888 | BF177: =IF(BF168=1,(AI86/($X$20*$X$22)),0) -> 0.002001081251 | BG177: =IF(BG168=1,(X86/($X$20*$X$22)),0) -> 0.001549509818 | BH177: =IF(BH168=1,(P86/($X$20*$X$22)),0) -> 0.002213585455
BB178: PM social cost | BE178: =IF(BE168=1,(AQ88/($X$20*$X$22)),0) -> 0.005045454545 | BF178: =IF(BF168=1,(AI88/($X$20*$X$22)),0) -> 0.005045454545 | BG178: =IF(BG168=1,(X88/($X$20*$X$22)),0) -> 0.003531818182 | BH178: =IF(BH168=1,(P88/($X$20*$X$22)),0) -> 0.005045454545
BB179: [labour error] | BC179: =IFERROR(IF(AND(BC168=1,AI52>13),0.005,""),"") ->  | BD179: =IFERROR(IF(AND(BD168=1,X52>13),0.005,""),"") ->  | BE179: =IFERROR(IF(AND(BE168=1,AQ84>13),0.005,""),"") ->  | BF179: =IFERROR(IF(AND(BF168=1,AI84>13),0.005,""),"") ->  | BG179: =IFERROR(IF(AND(BG168=1,X84>13),0.005,""),"") ->  | BH179: =IFERROR(IF(AND(BH168=1,P84>13),0.005,""),"") -> 
BC181: Chart labels (need to disappear when "Unavailable")
BC182: =IFERROR(IF(BC172>0,$BB172,""),$BB172) -> Capital | BD182: Capital | BE182: Capital | BF182: Capital | BG182: =IFERROR(IF(BG172>0,$BB172,""),$BB172) -> Capital | BH182: Capital
BC183: Fuel | BD183: Fuel | BE183: Fuel | BF183: Fuel | BG183: =IFERROR(IF(BG173>0,$BB173,""),$BB173) -> Fuel | BH183: Fuel
BC184: =IFERROR(IF(BC174>0,$BB174,""),$BB174) -> Insurance + maintenance | BD184: Insurance + maintenance | BE184: Insurance + maintenance | BF184: Insurance + maintenance | BG184: =IFERROR(IF(BG174>0,$BB174,""),$BB174) -> Insurance + maintenance | BH184: Insurance + maintenance
BC185: =IFERROR(IF(BC176>0,$BB176,""),$BB176) -> RUC | BD185: RUC | BE185: RUC | BF185: RUC | BG185: =IFERROR(IF(BG176>0,$BB176,""),$BB176) -> RUC | BH185: RUC
BC186: =IFERROR(IF(BC175>0,$BB175,""),$BB175) -> Labour | BD186: Labour | BE186: Labour | BF186: Labour | BG186: =IFERROR(IF(BG175>0,$BB175,""),$BB175) -> Labour | BH186: Labour
BC187: =IFERROR(IF(BC177>0,$BB177,""),$BB177) ->  | BD187: =IFERROR(IF(BD177>0,$BB177,""),$BB177) ->  | BE187: CO2e cost | BF187: CO2e cost | BG187: =IFERROR(IF(BG177>0,$BB177,""),$BB177) -> CO2e cost | BH187: CO2e cost
BC188: =IFERROR(IF(BC178>0,$BB178,""),$BB178) ->  | BD188: =IFERROR(IF(BD178>0,$BB178,""),$BB178) ->  | BE188: PM social cost | BF188: PM social cost | BG188: =IFERROR(IF(BG178>0,$BB178,""),$BB178) -> PM social cost | BH188: PM social cost
BC189: =IF(BC179<>"","!","") ->  | BD189: =IF(BD179<>"","!","") ->  | BF189: =IF(BF179<>"","!","") ->  | BG189: =IF(BG179<>"","!","") -> 

Sheet Dashboard B
M2: Total cost of ownership per tonne-kilometre
M3: under various fuel sources + vehicle types
M4: =_xlfn.CONCAT(M32,"–",M32+9) -> 2022–2031
M6: TCO/tkm
P8: =M32 -> 2022 | Q8: =P8+1 -> 2023 | R8: 2024 | S8: 2025 | T8: 2026 | U8: 2027 | V8: 2028 | W8: 2029 | X8: 2030 | Y8: 2031
M10: Green H2 + FCEV | P10: ='Calculations step-by-step'!G126 -> 0.1043439917 | Q10: ='Calculations step-by-step'!H126 -> 0.1014806234 | R10: ='Calculations step-by-step'!I126 -> 0.09877203996 | S10: ='Calculations step-by-step'!J126 -> 0.09620952964 | T10: ='Calculations step-by-step'!K126 -> 0.09378487656 | U10: ='Calculations step-by-step'!L126 -> 0.09149033251 | V10: ='Calculations step-by-step'!M126 -> 0.08931859004 | W10: ='Calculations step-by-step'!N126 -> 0.08726275726 | X10: ='Calculations step-by-step'!O126 -> 0.08531633407 | Y10: ='Calculations step-by-step'!P126 -> 0.08347318967
M12: Direct charging + BEV | P12: ='Calculations step-by-step'!AA126 -> 0.09572108224 | Q12: ='Calculations step-by-step'!AB126 -> 0.09440529438 | R12: ='Calculations step-by-step'!AC126 -> 0.09311224241 | S12: ='Calculations step-by-step'!AD126 -> 0.0918405063 | T12: ='Calculations step-by-step'!AE126 -> 0.09058870976 | U12: ='Calculations step-by-step'!AF126 -> 0.0893555176 | V12: ='Calculations step-by-step'!AG126 -> 0.08813963318 | W12: ='Calculations step-by-step'!AH126 -> 0.08693979596 | X12: ='Calculations step-by-step'!AI126 -> 0.08575477928 | Y12: ='Calculations step-by-step'!AJ126 -> 0.08458338813
M14: Drop-in biodiesel + ICEV | P14: ='Calculations step-by-step'!AS126 -> 0.1188218108 | Q14: ='Calculations step-by-step'!AT126 -> 0.1172232438 | R14: ='Calculations step-by-step'!AU126 -> 0.1156807654 | S14: ='Calculations step-by-step'!AV126 -> 0.1141946136 | T14: ='Calculations step-by-step'!AW126 -> 0.1127652784 | U14: ='Calculations step-by-step'!AX126 -> 0.1113935328 | V14: ='Calculations step-by-step'!AY126 -> 0.1100804683 | W14: ='Calculations step-by-step'!AZ126 -> 0.1088275351 | X14: ='Calculations step-by-step'!BA126 -> 0.1076365891 | Y14: ='Calculations step-by-step'!BB126 -> 0.1065099455
M16: Conventional biodiesel + ICEV | P16: ='Calculations step-by-step'!BG126 -> 0.0874395396 | Q16: ='Calculations step-by-step'!BH126 -> 0.08793036162 | R16: ='Calculations step-by-step'!BI126 -> 0.08846574116 | S16: ='Calculations step-by-step'!BJ126 -> 0.08905185408 | T16: ='Calculations step-by-step'!BK126 -> 0.08969577092 | U16: ='Calculations step-by-step'!BL126 -> 0.0904055869 | V16: ='Calculations step-by-step'!BM126 -> 0.09119057091 | W16: ='Calculations step-by-step'!BN126 -> 0.09206133609 | X16: ='Calculations step-by-step'!BO126 -> 0.09303003528 | Y16: ='Calculations step-by-step'!BP126 -> 0.09411058481
M18: Diesel + H2 + ICEV | P18: ='Calculations step-by-step'!BU126 -> 0.1003316146 | Q18: ='Calculations step-by-step'!BV126 -> 0.1000446733 | R18: ='Calculations step-by-step'!BW126 -> 0.09982469383 | S18: ='Calculations step-by-step'!BX126 -> 0.09967483294 | T18: ='Calculations step-by-step'!BY126 -> 0.09959902356 | U18: ='Calculations step-by-step'!BZ126 -> 0.09960207131 | V18: ='Calculations step-by-step'!CA126 -> 0.09968976574 | W18: ='Calculations step-by-step'!CB126 -> 0.09986900858 | X18: ='Calculations step-by-step'!CC126 -> 0.1001479614 | Y18: ='Calculations step-by-step'!CD126 -> 0.1005362154
M20: Diesel + ICEV | P20: ='Calculations step-by-step'!CI126 -> 0.0832120438 | Q20: ='Calculations step-by-step'!CJ126 -> 0.08378482394 | R20: ='Calculations step-by-step'!CK126 -> 0.08440721583 | S20: ='Calculations step-by-step'!CL126 -> 0.08508605475 | T20: ='Calculations step-by-step'!CM126 -> 0.08582916568 | U20: ='Calculations step-by-step'!CN126 -> 0.08664550716 | V20: ='Calculations step-by-step'!CO126 -> 0.08754533603 | W20: ='Calculations step-by-step'!CP126 -> 0.08854039623 | X20: ='Calculations step-by-step'!CQ126 -> 0.0896441349 | Y20: ='Calculations step-by-step'!CR126 -> 0.09087195002
F24: Dashboard B projects Dashboard A forward using the changes over time specified below. A "Year one" input is available to reflect the year the user wishes to begin their calculation. The user can choose between a linear percent annual change trend (defaulted on all inputs) with an option to define a floor/ceiling (depending on the direction of the change), or develop specific user-defined inputs in each year. The dropdown menu under each parameter name determines which value is being used by the calculator.
F27: Note that for delivered cost of green H2, all input options are provided on the H2 cost calculator. For BEV payload capacity, input options are available on BEV payload calculator.
K30: Year one
M32: 2022
F35: General inputs
H37: Carbon price (per tCO2e) | L37: 0.1454 | M37: annual change | P37: Floor or ceiling value | AF37: Selection forms
J39: =P$8 -> 2022 | K39: 2023 | L39: 2024 | M39: 2025 | N39: 2026 | O39: 2027 | P39: 2028 | Q39: 2029 | R39: 2030 | S39: 2031 | AF39: Trend | AG39: 1
I40: Trend | J40: ='Dashboard A'!P10 -> 40.8 | K40: =IF($Q37="",(IF(J40*(1+($L37))<0,0,J40*(1+($L37)))),IF($L37>0,MIN(J40*(1+($L37)),IF($Q37<J40,J40,$Q37)),MAX(J40*(1+($L37)),IF($Q37>J40,J40,$Q37),0))) -> 46.73232 | L40: =IF($Q37="",(IF(K40*(1+($L37))<0,0,K40*(1+($L37)))),IF($L37>0,MIN(K40*(1+($L37)),IF($Q37<K40,K40,$Q37)),MAX(K40*(1+($L37)),IF($Q37>K40,K40,$Q37),0))) -> 53.52719933 | M40: =IF($Q37="",(IF(L40*(1+($L37))<0,0,L40*(1+($L37)))),IF($L37>0,MIN(L40*(1+($L37)),IF($Q37<L40,L40,$Q37)),MAX(L40*(1+($L37)),IF($Q37>L40,L40,$Q37),0))) -> 61.31005411 | N40: 70.22453598 | O40: 80.43518351 | P40: =IF($Q37="",(IF(O40*(1+($L37))<0,0,O40*(1+($L37)))),IF($L37>0,MIN(O40*(1+($L37)),IF($Q37<O40,O40,$Q37)),MAX(O40*(1+($L37)),IF($Q37>O40,O40,$Q37),0))) -> 92.13045919 | Q40: 105.526228 | R40: 120.8697415 | S40: 138.4442019 | AF40: User input
I42: User input
J43: =IF($AG39=1,J40,J42) -> 40.8 | K43: 46.73232 | L43: 53.52719933 | M43: 61.31005411 | N43: 70.22453598 | O43: 80.43518351 | P43: 92.13045919 | Q43: 105.526228 | R43: 120.8697415 | S43: 138.4442019
H46: Overnight cost of electricity ($/MWh) | L46: 0 | M46: annual change | P46: Floor or ceiling value | AF46: Selection forms
J48: =P$8 -> 2022 | K48: 2023 | L48: 2024 | M48: 2025 | N48: 2026 | O48: 2027 | P48: 2028 | Q48: 2029 | R48: 2030 | S48: 2031 | AF48: Trend | AG48: 1
I49: Trend | J49: ='Dashboard A'!P14 -> 50 | K49: =IF($Q46="",(IF(J49*(1+($L46))<0,0,J49*(1+($L46)))),IF($L46>0,MIN(J49*(1+($L46)),IF($Q46<J49,J49,$Q46)),MAX(J49*(1+($L46)),IF($Q46>J49,J49,$Q46),0))) -> 50 | L49: =IF($Q46="",(IF(K49*(1+($L46))<0,0,K49*(1+($L46)))),IF($L46>0,MIN(K49*(1+($L46)),IF($Q46<K49,K49,$Q46)),MAX(K49*(1+($L46)),IF($Q46>K49,K49,$Q46),0))) -> 50 | M49: 50 | N49: 50 | O49: 50 | P49: 50 | Q49: 50 | R49: 50 | S49: 50 | AF49: User input
I51: User input
J52: =IF($AG48=1,J49,J51) -> 50 | K52: 50 | L52: 50 | M52: 50 | N52: 50 | O52: 50 | P52: 50 | Q52: 50 | R52: 50 | S52: 50
H55: Daytime cost of electricity ($/MWh) | L55: 0 | M55: annual change | P55: Floor or ceiling value | AF55: Selection forms
J57: =P$8 -> 2022 | K57: 2023 | L57: 2024 | M57: 2025 | N57: 2026 | O57: 2027 | P57: 2028 | Q57: 2029 | R57: 2030 | S57: 2031 | AF57: Trend | AG57: 1
I58: Trend | J58: ='Dashboard A'!P18 -> 88 | K58: =IF($Q55="",(IF(J58*(1+($L55))<0,0,J58*(1+($L55)))),IF($L55>0,MIN(J58*(1+($L55)),IF($Q55<J58,J58,$Q55)),MAX(J58*(1+($L55)),IF($Q55>J58,J58,$Q55),0))) -> 88 | L58: =IF($Q55="",(IF(K58*(1+($L55))<0,0,K58*(1+($L55)))),IF($L55>0,MIN(K58*(1+($L55)),IF($Q55<K58,K58,$Q55)),MAX(K58*(1+($L55)),IF($Q55>K58,K58,$Q55),0))) -> 88 | M58: =IF($Q55="",(IF(L58*(1+($L55))<0,0,L58*(1+($L55)))),IF($L55>0,MIN(L58*(1+($L55)),IF($Q55<L58,L58,$Q55)),MAX(L58*(1+($L55)),IF($Q55>L58,L58,$Q55),0))) -> 88 | N58: =IF($Q55="",(IF(M58*(1+($L55))<0,0,M58*(1+($L55)))),IF($L55>0,MIN(M58*(1+($L55)),IF($Q55<M58,M58,$Q55)),MAX(M58*(1+($L55)),IF($Q55>M58,M58,$Q55),0))) -> 88 | O58: =IF($Q55="",(IF(N58*(1+($L55))<0,0,N58*(1+($L55)))),IF($L55>0,MIN(N58*(1+($L55)),IF($Q55<N58,N58,$Q55)),MAX(N58*(1+($L55)),IF($Q55>N58,N58,$Q55),0))) -> 88 | P58: =IF($Q55="",(IF(O58*(1+($L55))<0,0,O58*(1+($L55)))),IF($L55>0,MIN(O58*(1+($L55)),IF($Q55<O58,O58,$Q55)),MAX(O58*(1+($L55)),IF($Q55>O58,O58,$Q55),0))) -> 88 | Q58: =IF($Q55="",(IF(P58*(1+($L55))<0,0,P58*(1+($L55)))),IF($L55>0,MIN(P58*(1+($L55)),IF($Q55<P58,P58,$Q55)),MAX(P58*(1+($L55)),IF($Q55>P58,P58,$Q55),0))) -> 88 | R58: =IF($Q55="",(IF(Q58*(1+($L55))<0,0,Q58*(1+($L55)))),IF($L55>0,MIN(Q58*(1+($L55)),IF($Q55<Q58,Q58,$Q55)),MAX(Q58*(1+($L55)),IF($Q55>Q58,Q58,$Q55),0))) -> 88 | S58: =IF($Q55="",(IF(R58*(1+($L55))<0,0,R58*(1+($L55)))),IF($L55>0,MIN(R58*(1+($L55)),IF($Q55<R58,R58,$Q55)),MAX(R58*(1+($L55)),IF($Q55>R58,R58,$Q55),0))) -> 88 | AF58: User input
I60: User input
J61: =IF($AG57=1,J58,J60) -> 88 | K61: 88 | L61: 88 | M61: 88 | N61: 88 | O61: 88 | P61: 88 | Q61: 88 | R61: 88 | S61: 88
H64: Emissions from grid electricity (kgCO2-e/kWh) | L64: 0 | M64: annual change | P64: Floor or ceiling value | AF64: Selection forms
J66: =P$8 -> 2022 | K66: 2023 | L66: 2024 | M66: 2025 | N66: 2026 | O66: 2027 | P66: 2028 | Q66: 2029 | R66: 2030 | S66: 2031 | AF66: Trend | AG66: 1
I67: Trend | J67: ='Dashboard A'!P22 -> 0 | K67: =IF($Q64="",(IF(J67*(1+($L64))<0,0,J67*(1+($L64)))),IF($L64>0,MIN(J67*(1+($L64)),IF($Q64<J67,J67,$Q64)),MAX(J67*(1+($L64)),IF($Q64>J67,J67,$Q64),0))) -> 0 | L67: =IF($Q64="",(IF(K67*(1+($L64))<0,0,K67*(1+($L64)))),IF($L64>0,MIN(K67*(1+($L64)),IF($Q64<K67,K67,$Q64)),MAX(K67*(1+($L64)),IF($Q64>K67,K67,$Q64),0))) -> 0 | M67: =IF($Q64="",(IF(L67*(1+($L64))<0,0,L67*(1+($L64)))),IF($L64>0,MIN(L67*(1+($L64)),IF($Q64<L67,L67,$Q64)),MAX(L67*(1+($L64)),IF($Q64>L67,L67,$Q64),0))) -> 0 | N67: =IF($Q64="",(IF(M67*(1+($L64))<0,0,M67*(1+($L64)))),IF($L64>0,MIN(M67*(1+($L64)),IF($Q64<M67,M67,$Q64)),MAX(M67*(1+($L64)),IF($Q64>M67,M67,$Q64),0))) -> 0 | O67: =IF($Q64="",(IF(N67*(1+($L64))<0,0,N67*(1+($L64)))),IF($L64>0,MIN(N67*(1+($L64)),IF($Q64<N67,N67,$Q64)),MAX(N67*(1+($L64)),IF($Q64>N67,N67,$Q64),0))) -> 0 | P67: =IF($Q64="",(IF(O67*(1+($L64))<0,0,O67*(1+($L64)))),IF($L64>0,MIN(O67*(1+($L64)),IF($Q64<O67,O67,$Q64)),MAX(O67*(1+($L64)),IF($Q64>O67,O67,$Q64),0))) -> 0 | Q67: =IF($Q64="",(IF(P67*(1+($L64))<0,0,P67*(1+($L64)))),IF($L64>0,MIN(P67*(1+($L64)),IF($Q64<P67,P67,$Q64)),MAX(P67*(1+($L64)),IF($Q64>P67,P67,$Q64),0))) -> 0 | R67: =IF($Q64="",(IF(Q67*(1+($L64))<0,0,Q67*(1+($L64)))),IF($L64>0,MIN(Q67*(1+($L64)),IF($Q64<Q67,Q67,$Q64)),MAX(Q67*(1+($L64)),IF($Q64>Q67,Q67,$Q64),0))) -> 0 | S67: =IF($Q64="",(IF(R67*(1+($L64))<0,0,R67*(1+($L64)))),IF($L64>0,MIN(R67*(1+($L64)),IF($Q64<R67,R67,$Q64)),MAX(R67*(1+($L64)),IF($Q64>R67,R67,$Q64),0))) -> 0 | AF67: User input
I69: User input
J70: =IF($AG66=1,J67,J69) -> 0 | K70: 0 | L70: 0 | M70: 0 | N70: 0 | O70: 0 | P70: 0 | Q70: 0 | R70: 0 | S70: 0
H73: Driver wages ($/hour) | L73: 0 | M73: % annual change | P73: Floor or ceiling value | AF73: Selection forms
J75: =P$8 -> 2022 | K75: 2023 | L75: 2024 | M75: 2025 | N75: 2026 | O75: 2027 | P75: 2028 | Q75: 2029 | R75: 2030 | S75: 2031 | AF75: Trend | AG75: 1
I76: Trend | J76: ='Dashboard A'!P28 -> 25 | K76: =IF($Q73="",(IF(J76*(1+($L73))<0,0,J76*(1+($L73)))),IF($L73>0,MIN(J76*(1+($L73)),IF($Q73<J76,J76,$Q73)),MAX(J76*(1+($L73)),IF($Q73>J76,J76,$Q73),0))) -> 25 | L76: =IF($Q73="",(IF(K76*(1+($L73))<0,0,K76*(1+($L73)))),IF($L73>0,MIN(K76*(1+($L73)),IF($Q73<K76,K76,$Q73)),MAX(K76*(1+($L73)),IF($Q73>K76,K76,$Q73),0))) -> 25 | M76: 25 | N76: 25 | O76: 25 | P76: 25 | Q76: 25 | R76: 25 | S76: 25 | AF76: User input
I78: User input
J79: =IF($AG75=1,J76,J78) -> 25 | K79: 25 | L79: 25 | M79: 25 | N79: 25 | O79: 25 | P79: 25 | Q79: 25 | R79: 25 | S79: 25
H83: Final year of RUC exemptions | J83: 2025
G88: Fuel cell electric vehicle
H90: Vehicle capital cost | L90: -0.06 | M90: annual change | P90: Floor or ceiling value | AF90: Selection forms
J92: =P$8 -> 2022 | K92: 2023 | L92: 2024 | M92: 2025 | N92: 2026 | O92: 2027 | P92: 2028 | Q92: 2029 | R92: 2030 | S92: 2031 | AF92: Trend | AG92: 1
I93: Trend | J93: ='Dashboard A'!AI34 -> 611000 | K93: =IF($Q90="",(IF(J93*(1+($L90))<0,0,J93*(1+($L90)))),IF($L90>0,MIN(J93*(1+($L90)),IF($Q90<J93,J93,$Q90)),MAX(J93*(1+($L90)),IF($Q90>J93,J93,$Q90),0))) -> 574340 | L93: =IF($Q90="",(IF(K93*(1+($L90))<0,0,K93*(1+($L90)))),IF($L90>0,MIN(K93*(1+($L90)),IF($Q90<K93,K93,$Q90)),MAX(K93*(1+($L90)),IF($Q90>K93,K93,$Q90),0))) -> 539879.6 | M93: 507486.824 | N93: 477037.6146 | O93: 448415.3577 | P93: 421510.4362 | Q93: =IF($Q90="",(IF(P93*(1+($L90))<0,0,P93*(1+($L90)))),IF($L90>0,MIN(P93*(1+($L90)),IF($Q90<P93,P93,$Q90)),MAX(P93*(1+($L90)),IF($Q90>P93,P93,$Q90),0))) -> 396219.8101 | R93: 372446.6214 | S93: 350099.8242 | AF93: User input
I95: User input
J96: =IF($AG92=1,J93,J95) -> 611000 | K96: =IF($AG92=1,K93,K95) -> 574340 | L96: 539879.6 | M96: 507486.824 | N96: 477037.6146 | O96: 448415.3577 | P96: 421510.4362 | Q96: 396219.8101 | R96: 372446.6214 | S96: 350099.8242
H99: Residual value | L99: 0 | M99: annual change | P99: Floor or ceiling value | AF99: Selection forms
J101: =P$8 -> 2022 | K101: 2023 | L101: 2024 | M101: 2025 | N101: 2026 | O101: 2027 | P101: 2028 | Q101: 2029 | R101: 2030 | S101: 2031 | AF101: Trend | AG101: 1
I102: Trend | J102: ='Dashboard A'!AI36 -> 0.418 | K102: =IF($Q99="",(IF(J102*(1+($L99))<0,0,IF(J102*(1+($L99))>1,1,J102*(1+($L99))))),IF($L99>0,MIN(J102*(1+($L99)),IF($Q99<J102,J102,$Q99)),MAX(J102*(1+($L99)),IF($Q99>J102,J102,$Q99),0))) -> 0.418 | L102: =IF($Q99="",(IF(K102*(1+($L99))<0,0,IF(K102*(1+($L99))>1,1,K102*(1+($L99))))),IF($L99>0,MIN(K102*(1+($L99)),IF($Q99<K102,K102,$Q99)),MAX(K102*(1+($L99)),IF($Q99>K102,K102,$Q99),0))) -> 0.418 | M102: 0.418 | N102: 0.418 | O102: 0.418 | P102: 0.418 | Q102: =IF($Q99="",(IF(P102*(1+($L99))<0,0,IF(P102*(1+($L99))>1,1,P102*(1+($L99))))),IF($L99>0,MIN(P102*(1+($L99)),IF($Q99<P102,P102,$Q99)),MAX(P102*(1+($L99)),IF($Q99>P102,P102,$Q99),0))) -> 0.418 | R102: 0.418 | S102: 0.418 | AF102: User input
I104: User input
J105: =IF($AG101=1,J102,J104) -> 0.418 | K105: 0.418 | L105: 0.418 | M105: 0.418 | N105: 0.418 | O105: 0.418 | P105: 0.418 | Q105: 0.418 | R105: 0.418 | S105: 0.418
H108: Maintenance cost (% of ICEV) | L108: 0 | M108: annual change | P108: Floor or ceiling value | AF108: Selection forms
J110: =P$8 -> 2022 | K110: 2023 | L110: 2024 | M110: 2025 | N110: 2026 | O110: 2027 | P110: 2028 | Q110: 2029 | R110: 2030 | S110: 2031 | AF110: Trend | AG110: 1
I111: Trend | J111: ='Dashboard A'!AI38 -> 0.66 | K111: =IF($Q108="",(IF(J111*(1+($L108))<0,0,IF(J111*(1+($L108))>1,1,J111*(1+($L108))))),IF($L108>0,MIN(J111*(1+($L108)),IF($Q108<J111,J111,$Q108)),MAX(J111*(1+($L108)),IF($Q108>J111,J111,$Q108),0))) -> 0.66 | L111: =IF($Q108="",(IF(K111*(1+($L108))<0,0,IF(K111*(1+($L108))>1,1,K111*(1+($L108))))),IF($L108>0,MIN(K111*(1+($L108)),IF($Q108<K111,K111,$Q108)),MAX(K111*(1+($L108)),IF($Q108>K111,K111,$Q108),0))) -> 0.66 | M111: 0.66 | N111: 0.66 | O111: 0.66 | P111: 0.66 | Q111: =IF($Q108="",(IF(P111*(1+($L108))<0,0,IF(P111*(1+($L108))>1,1,P111*(1+($L108))))),IF($L108>0,MIN(P111*(1+($L108)),IF($Q108<P111,P111,$Q108)),MAX(P111*(1+($L108)),IF($Q108>P111,P111,$Q108),0))) -> 0.66 | R111: 0.66 | S111: 0.66 | AF111: User input
I113: User input
J114: =IF($AG110=1,J111,J113) -> 0.66 | K114: 0.66 | L114: 0.66 | M114: 0.66 | N114: 0.66 | O114: 0.66 | P114: 0.66 | Q114: 0.66 | R114: 0.66 | S114: 0.66
H117: Lease cost | L117: -0.06 | M117: annual change | P117: Floor or ceiling value | AF117: Selection forms
J119: =P$8 -> 2022 | K119: 2023 | L119: 2024 | M119: 2025 | N119: 2026 | O119: 2027 | P119: 2028 | Q119: 2029 | R119: 2030 | S119: 2031 | AF119: Trend | AG119: 1
I120: Trend | J120: ='Dashboard A'!AH34 -> 9900 | K120: =IF($Q117="",(IF(J120*(1+($L117))<0,0,J120*(1+($L117)))),IF($L117>0,MIN(J120*(1+($L117)),IF($Q117<J120,J120,$Q117)),MAX(J120*(1+($L117)),IF($Q117>J120,J120,$Q117),0))) -> 9306 | L120: =IF($Q117="",(IF(K120*(1+($L117))<0,0,K120*(1+($L117)))),IF($L117>0,MIN(K120*(1+($L117)),IF($Q117<K120,K120,$Q117)),MAX(K120*(1+($L117)),IF($Q117>K120,K120,$Q117),0))) -> 8747.64 | M120: =IF($Q117="",(IF(L120*(1+($L117))<0,0,L120*(1+($L117)))),IF($L117>0,MIN(L120*(1+($L117)),IF($Q117<L120,L120,$Q117)),MAX(L120*(1+($L117)),IF($Q117>L120,L120,$Q117),0))) -> 8222.7816 | N120: 7729.414704 | O120: 7265.649822 | P120: 6829.710832 | Q120: 6419.928183 | R120: 6034.732492 | S120: =IF($Q117="",(IF(R120*(1+($L117))<0,0,R120*(1+($L117)))),IF($L117>0,MIN(R120*(1+($L117)),IF($Q117<R120,R120,$Q117)),MAX(R120*(1+($L117)),IF($Q117>R120,R120,$Q117),0))) -> 5672.648542 | AF120: User input
I122: User input
J123: =IF($AG119=1,J120,J122) -> 9900 | K123: =IF($AG119=1,K120,K122) -> 9306 | L123: 8747.64 | M123: 8222.7816 | N123: 7729.414704 | O123: 7265.649822 | P123: 6829.710832 | Q123: 6419.928183 | R123: 6034.732492 | S123: 5672.648542
H126: Insurance (% of total cost) | L126: 0 | M126: annual change | P126: Floor or ceiling value | AF126: Selection forms
J128: =P$8 -> 2022 | K128: 2023 | L128: 2024 | M128: 2025 | N128: 2026 | O128: 2027 | P128: 2028 | Q128: 2029 | R128: 2030 | S128: 2031 | AF128: Trend | AG128: 1
I129: Trend | J129: ='Dashboard A'!AI40 -> 0.006 | K129: =IF($Q126="",(IF(J129*(1+($L126))<0,0,IF(J129*(1+($L126))>1,1,J129*(1+($L126))))),IF($L126>0,MIN(J129*(1+($L126)),IF($Q126<J129,J129,$Q126)),MAX(J129*(1+($L126)),IF($Q126>J129,J129,$Q126),0))) -> 0.006 | L129: =IF($Q126="",(IF(K129*(1+($L126))<0,0,IF(K129*(1+($L126))>1,1,K129*(1+($L126))))),IF($L126>0,MIN(K129*(1+($L126)),IF($Q126<K129,K129,$Q126)),MAX(K129*(1+($L126)),IF($Q126>K129,K129,$Q126),0))) -> 0.006 | M129: 0.006 | N129: 0.006 | O129: 0.006 | P129: 0.006 | Q129: 0.006 | R129: 0.006 | S129: 0.006 | AF129: User input
I131: User input
J132: =IF($AG128=1,J129,J131) -> 0.006 | K132: 0.006 | L132: 0.006 | M132: 0.006 | N132: 0.006 | O132: 0.006 | P132: 0.006 | Q132: 0.006 | R132: 0.006 | S132: 0.006
H135: Fuel efficiency (kgs/km) | L135: 0 | M135: annual change | P135: Floor or ceiling value | AF135: Selection forms
J137: =P$8 -> 2022 | K137: 2023 | L137: 2024 | M137: 2025 | N137: 2026 | O137: 2027 | P137: 2028 | Q137: 2029 | R137: 2030 | S137: 2031 | AF137: Trend | AG137: 1
I138: Trend | J138: ='Dashboard A'!AI42 -> 0.094 | K138: =IF($Q135="",(IF(J138*(1+($L135))<0,0,J138*(1+($L135)))),IF($L135>0,MIN(J138*(1+($L135)),IF($Q135<J138,J138,$Q135)),MAX(J138*(1+($L135)),IF($Q135>J138,J138,$Q135),0))) -> 0.094 | L138: =IF($Q135="",(IF(K138*(1+($L135))<0,0,K138*(1+($L135)))),IF($L135>0,MIN(K138*(1+($L135)),IF($Q135<K138,K138,$Q135)),MAX(K138*(1+($L135)),IF($Q135>K138,K138,$Q135),0))) -> 0.094 | M138: 0.094 | N138: 0.094 | O138: 0.094 | P138: 0.094 | Q138: 0.094 | R138: 0.094 | S138: 0.094 | AF138: User input
I140: User input
J141: =IF($AG137=1,J138,J140) -> 0.094 | K141: 0.094 | L141: 0.094 | M141: 0.094 | N141: 0.094 | O141: 0.094 | P141: 0.094 | Q141: 0.094 | R141: 0.094 | S141: 0.094
G144: Green H2 + FCEV
H146: Delivered cost of fuel (kg) | J146: Options to change delivered cost of green H2 are available on the H2 cost calculator tab.
G151: Battery electric vehicle
H153: Battery capacity (kWh) | L153: 0.0275 | M153: annual change | P153: Floor or ceiling value | AF153: Selection forms
J155: =P$8 -> 2022 | K155: 2023 | L155: 2024 | M155: 2025 | N155: 2026 | O155: 2027 | P155: 2028 | Q155: 2029 | R155: 2030 | S155: 2031 | AF155: Trend | AG155: 1
I156: Trend | J156: ='Dashboard A'!P38 -> 435 | K156: =IF($Q153="",(IF(J156*(1+($L153))<0,0,J156*(1+($L153)))),IF($L153>0,MIN(J156*(1+($L153)),IF($Q153<J156,J156,$Q153)),MAX(J156*(1+($L153)),IF($Q153>J156,J156,$Q153),0))) -> 446.9625 | L156: =IF($Q153="",(IF(K156*(1+($L153))<0,0,K156*(1+($L153)))),IF($L153>0,MIN(K156*(1+($L153)),IF($Q153<K156,K156,$Q153)),MAX(K156*(1+($L153)),IF($Q153>K156,K156,$Q153),0))) -> 459.2539688 | M156: 471.8834529 | N156: 484.8602478 | O156: 498.1939047 | P156: 511.894237 | Q156: 525.9713286 | R156: 540.4355401 | S156: 555.2975174 | AF156: User input
I158: User input
J159: =IF($AG155=1,J156,J158) -> 435 | K159: 446.9625 | L159: 459.2539688 | M159: 471.8834529 | N159: 484.8602478 | O159: 498.1939047 | P159: 511.894237 | Q159: 525.9713286 | R159: 540.4355401 | S159: 555.2975174
H162: Battery in-use capacity floor | L162: 0 | M162: annual change | P162: Floor or ceiling value | AF162: Selection forms
J164: =P$8 -> 2022 | K164: 2023 | L164: 2024 | M164: 2025 | N164: 2026 | O164: 2027 | P164: 2028 | Q164: 2029 | R164: 2030 | S164: 2031 | AF164: Trend | AG164: 1
I165: Trend | J165: ='Dashboard A'!P40 -> 0.2 | K165: =IF($Q162="",(IF(J165*(1+($L162))<0,0,IF(J165*(1+($L162))>1,1,J165*(1+($L162))))),IF($L162>0,MIN(J165*(1+($L162)),IF($Q162<J165,J165,$Q162)),MAX(J165*(1+($L162)),IF($Q162>J165,J165,$Q162),0))) -> 0.2 | L165: =IF($Q162="",(IF(K165*(1+($L162))<0,0,IF(K165*(1+($L162))>1,1,K165*(1+($L162))))),IF($L162>0,MIN(K165*(1+($L162)),IF($Q162<K165,K165,$Q162)),MAX(K165*(1+($L162)),IF($Q162>K165,K165,$Q162),0))) -> 0.2 | M165: =IF($Q162="",(IF(L165*(1+($L162))<0,0,IF(L165*(1+($L162))>1,1,L165*(1+($L162))))),IF($L162>0,MIN(L165*(1+($L162)),IF($Q162<L165,L165,$Q162)),MAX(L165*(1+($L162)),IF($Q162>L165,L165,$Q162),0))) -> 0.2 | N165: =IF($Q162="",(IF(M165*(1+($L162))<0,0,IF(M165*(1+($L162))>1,1,M165*(1+($L162))))),IF($L162>0,MIN(M165*(1+($L162)),IF($Q162<M165,M165,$Q162)),MAX(M165*(1+($L162)),IF($Q162>M165,M165,$Q162),0))) -> 0.2 | O165: =IF($Q162="",(IF(N165*(1+($L162))<0,0,IF(N165*(1+($L162))>1,1,N165*(1+($L162))))),IF($L162>0,MIN(N165*(1+($L162)),IF($Q162<N165,N165,$Q162)),MAX(N165*(1+($L162)),IF($Q162>N165,N165,$Q162),0))) -> 0.2 | P165: =IF($Q162="",(IF(O165*(1+($L162))<0,0,IF(O165*(1+($L162))>1,1,O165*(1+($L162))))),IF($L162>0,MIN(O165*(1+($L162)),IF($Q162<O165,O165,$Q162)),MAX(O165*(1+($L162)),IF($Q162>O165,O165,$Q162),0))) -> 0.2 | Q165: =IF($Q162="",(IF(P165*(1+($L162))<0,0,IF(P165*(1+($L162))>1,1,P165*(1+($L162))))),IF($L162>0,MIN(P165*(1+($L162)),IF($Q162<P165,P165,$Q162)),MAX(P165*(1+($L162)),IF($Q162>P165,P165,$Q162),0))) -> 0.2 | R165: =IF($Q162="",(IF(Q165*(1+($L162))<0,0,IF(Q165*(1+($L162))>1,1,Q165*(1+($L162))))),IF($L162>0,MIN(Q165*(1+($L162)),IF($Q162<Q165,Q165,$Q162)),MAX(Q165*(1+($L162)),IF($Q162>Q165,Q165,$Q162),0))) -> 0.2 | S165: =IF($Q162="",(IF(R165*(1+($L162))<0,0,IF(R165*(1+($L162))>1,1,R165*(1+($L162))))),IF($L162>0,MIN(R165*(1+($L162)),IF($Q162<R165,R165,$Q162)),MAX(R165*(1+($L162)),IF($Q162>R165,R165,$Q162),0))) -> 0.2 | AF165: User input
I167: User input
J168: =IF($AG164=1,J165,J167) -> 0.2 | K168: 0.2 | L168: 0.2 | M168: 0.2 | N168: 0.2 | O168: 0.2 | P168: 0.2 | Q168: 0.2 | R168: 0.2 | S168: 0.2
H171: =IF(BEV_switch=0,"Battery day-charge capacity ceiling","Battery day-charge capacity ceiling (n/a for battery swap)") -> Battery day-charge capacity ceiling | L171: 0 | M171: annual change | P171: Floor or ceiling value | AF171: Selection forms
J173: =P$8 -> 2022 | K173: 2023 | L173: 2024 | M173: 2025 | N173: 2026 | O173: 2027 | P173: 2028 | Q173: 2029 | R173: 2030 | S173: 2031 | AF173: Trend | AG173: 1
I174: Trend | J174: ='Dashboard A'!P42 -> 0.9 | K174: =IF($Q171="",(IF(J174*(1+($L171))<0,0,IF(J174*(1+($L171))>1,1,J174*(1+($L171))))),IF($L171>0,MIN(J174*(1+($L171)),IF($Q171<J174,J174,$Q171)),MAX(J174*(1+($L171)),IF($Q171>J174,J174,$Q171),0))) -> 0.9 | L174: =IF($Q171="",(IF(K174*(1+($L171))<0,0,IF(K174*(1+($L171))>1,1,K174*(1+($L171))))),IF($L171>0,MIN(K174*(1+($L171)),IF($Q171<K174,K174,$Q171)),MAX(K174*(1+($L171)),IF($Q171>K174,K174,$Q171),0))) -> 0.9 | M174: 0.9 | N174: 0.9 | O174: 0.9 | P174: 0.9 | Q174: =IF($Q171="",(IF(P174*(1+($L171))<0,0,IF(P174*(1+($L171))>1,1,P174*(1+($L171))))),IF($L171>0,MIN(P174*(1+($L171)),IF($Q171<P174,P174,$Q171)),MAX(P174*(1+($L171)),IF($Q171>P174,P174,$Q171),0))) -> 0.9 | R174: =IF($Q171="",(IF(Q174*(1+($L171))<0,0,IF(Q174*(1+($L171))>1,1,Q174*(1+($L171))))),IF($L171>0,MIN(Q174*(1+($L171)),IF($Q171<Q174,Q174,$Q171)),MAX(Q174*(1+($L171)),IF($Q171>Q174,Q174,$Q171),0))) -> 0.9 | S174: 0.9 | AF174: User input
I176: User input
J177: =IF($AG173=1,J174,J176) -> 0.9 | K177: 0.9 | L177: 0.9 | M177: 0.9 | N177: 0.9 | O177: 0.9 | P177: 0.9 | Q177: 0.9 | R177: 0.9 | S177: 0.9
H180: Payload capacity (tonnes) | J180: Options to change BEV payload capacity are available on the BEV payload calculator tab.
H184: Vehicle capital cost | L184: -0.032 | M184: annual change | P184: Floor or ceiling value | AF184: Selection forms
J186: =P$8 -> 2022 | K186: 2023 | L186: 2024 | M186: 2025 | N186: 2026 | O186: 2027 | P186: 2028 | Q186: 2029 | R186: 2030 | S186: 2031 | AF186: Trend | AG186: 1
I187: Trend | J187: ='Dashboard A'!P48 -> 409000 | K187: =IF($Q184="",(IF(J187*(1+($L184))<0,0,J187*(1+($L184)))),IF($L184>0,MIN(J187*(1+($L184)),IF($Q184<J187,J187,$Q184)),MAX(J187*(1+($L184)),IF($Q184>J187,J187,$Q184),0))) -> 395912 | L187: =IF($Q184="",(IF(K187*(1+($L184))<0,0,K187*(1+($L184)))),IF($L184>0,MIN(K187*(1+($L184)),IF($Q184<K187,K187,$Q184)),MAX(K187*(1+($L184)),IF($Q184>K187,K187,$Q184),0))) -> 383242.816 | M187: 370979.0459 | N187: 359107.7164 | O187: 347616.2695 | P187: 336492.5489 | Q187: 325724.7873 | R187: 315301.5941 | S187: 305211.9431 | AF187: User input
I189: User input
J190: =IF($AG186=1,J187,J189) -> 409000 | K190: =IF($AG186=1,K187,K189) -> 395912 | L190: 383242.816 | M190: 370979.0459 | N190: 359107.7164 | O190: 347616.2695 | P190: 336492.5489 | Q190: 325724.7873 | R190: 315301.5941 | S190: 305211.9431
H193: Residual value | L193: 0 | M193: annual change | P193: Floor or ceiling value | AF193: Selection forms
J195: =P$8 -> 2022 | K195: 2023 | L195: 2024 | M195: 2025 | N195: 2026 | O195: 2027 | P195: 2028 | Q195: 2029 | R195: 2030 | S195: 2031 | AF195: Trend | AG195: 1
I196: Trend | J196: ='Dashboard A'!P50 -> 0.418 | K196: =IF($Q193="",(IF(J196*(1+($L193))<0,0,IF(J196*(1+($L193))>1,1,J196*(1+($L193))))),IF($L193>0,MIN(J196*(1+($L193)),IF($Q193<J196,J196,$Q193)),MAX(J196*(1+($L193)),IF($Q193>J196,J196,$Q193),0))) -> 0.418 | L196: =IF($Q193="",(IF(K196*(1+($L193))<0,0,IF(K196*(1+($L193))>1,1,K196*(1+($L193))))),IF($L193>0,MIN(K196*(1+($L193)),IF($Q193<K196,K196,$Q193)),MAX(K196*(1+($L193)),IF($Q193>K196,K196,$Q193),0))) -> 0.418 | M196: 0.418 | N196: 0.418 | O196: 0.418 | P196: 0.418 | Q196: 0.418 | R196: 0.418 | S196: 0.418 | AF196: User input
I198: User input
J199: =IF($AG195=1,J196,J198) -> 0.418 | K199: 0.418 | L199: 0.418 | M199: 0.418 | N199: 0.418 | O199: 0.418 | P199: 0.418 | Q199: 0.418 | R199: 0.418 | S199: 0.418
H202: Maintenance cost (% of ICEV) | L202: 0 | M202: annual change | P202: Floor or ceiling value | AF202: Selection forms
J204: =P$8 -> 2022 | K204: 2023 | L204: 2024 | M204: 2025 | N204: 2026 | O204: 2027 | P204: 2028 | Q204: 2029 | R204: 2030 | S204: 2031 | AF204: Trend | AG204: 1
I205: Trend | J205: ='Dashboard A'!P52 -> 0.66 | K205: =IF($Q202="",(IF(J205*(1+($L202))<0,0,IF(J205*(1+($L202))>1,1,J205*(1+($L202))))),IF($L202>0,MIN(J205*(1+($L202)),IF($Q202<J205,J205,$Q202)),MAX(J205*(1+($L202)),IF($Q202>J205,J205,$Q202),0))) -> 0.66 | L205: =IF($Q202="",(IF(K205*(1+($L202))<0,0,IF(K205*(1+($L202))>1,1,K205*(1+($L202))))),IF($L202>0,MIN(K205*(1+($L202)),IF($Q202<K205,K205,$Q202)),MAX(K205*(1+($L202)),IF($Q202>K205,K205,$Q202),0))) -> 0.66 | M205: 0.66 | N205: 0.66 | O205: 0.66 | P205: 0.66 | Q205: 0.66 | R205: 0.66 | S205: 0.66 | AF205: User input
I207: User input
J208: =IF($AG204=1,J205,J207) -> 0.66 | K208: 0.66 | L208: 0.66 | M208: 0.66 | N208: 0.66 | O208: 0.66 | P208: 0.66 | Q208: 0.66 | R208: 0.66 | S208: 0.66
H211: Lease cost | L211: -0.032 | M211: annual change | P211: Floor or ceiling value | AF211: Selection forms
J213: =P$8 -> 2022 | K213: 2023 | L213: 2024 | M213: 2025 | N213: 2026 | O213: 2027 | P213: 2028 | Q213: 2029 | R213: 2030 | S213: 2031 | AF213: Trend | AG213: 1
I214: Trend | J214: ='Dashboard A'!O48 -> 6850 | K214: =IF($Q211="",(IF(J214*(1+($L211))<0,0,J214*(1+($L211)))),IF($L211>0,MIN(J214*(1+($L211)),IF($Q211<J214,J214,$Q211)),MAX(J214*(1+($L211)),IF($Q211>J214,J214,$Q211),0))) -> 6630.8 | L214: =IF($Q211="",(IF(K214*(1+($L211))<0,0,K214*(1+($L211)))),IF($L211>0,MIN(K214*(1+($L211)),IF($Q211<K214,K214,$Q211)),MAX(K214*(1+($L211)),IF($Q211>K214,K214,$Q211),0))) -> 6418.6144 | M214: =IF($Q211="",(IF(L214*(1+($L211))<0,0,L214*(1+($L211)))),IF($L211>0,MIN(L214*(1+($L211)),IF($Q211<L214,L214,$Q211)),MAX(L214*(1+($L211)),IF($Q211>L214,L214,$Q211),0))) -> 6213.218739 | N214: =IF($Q211="",(IF(M214*(1+($L211))<0,0,M214*(1+($L211)))),IF($L211>0,MIN(M214*(1+($L211)),IF($Q211<M214,M214,$Q211)),MAX(M214*(1+($L211)),IF($Q211>M214,M214,$Q211),0))) -> 6014.39574 | O214: =IF($Q211="",(IF(N214*(1+($L211))<0,0,N214*(1+($L211)))),IF($L211>0,MIN(N214*(1+($L211)),IF($Q211<N214,N214,$Q211)),MAX(N214*(1+($L211)),IF($Q211>N214,N214,$Q211),0))) -> 5821.935076 | P214: =IF($Q211="",(IF(O214*(1+($L211))<0,0,O214*(1+($L211)))),IF($L211>0,MIN(O214*(1+($L211)),IF($Q211<O214,O214,$Q211)),MAX(O214*(1+($L211)),IF($Q211>O214,O214,$Q211),0))) -> 5635.633153 | Q214: =IF($Q211="",(IF(P214*(1+($L211))<0,0,P214*(1+($L211)))),IF($L211>0,MIN(P214*(1+($L211)),IF($Q211<P214,P214,$Q211)),MAX(P214*(1+($L211)),IF($Q211>P214,P214,$Q211),0))) -> 5455.292893 | R214: =IF($Q211="",(IF(Q214*(1+($L211))<0,0,Q214*(1+($L211)))),IF($L211>0,MIN(Q214*(1+($L211)),IF($Q211<Q214,Q214,$Q211)),MAX(Q214*(1+($L211)),IF($Q211>Q214,Q214,$Q211),0))) -> 5280.72352 | S214: =IF($Q211="",(IF(R214*(1+($L211))<0,0,R214*(1+($L211)))),IF($L211>0,MIN(R214*(1+($L211)),IF($Q211<R214,R214,$Q211)),MAX(R214*(1+($L211)),IF($Q211>R214,R214,$Q211),0))) -> 5111.740367 | AF214: User input
I216: User input
J217: =IF($AG213=1,J214,J216) -> 6850 | K217: =IF($AG213=1,K214,K216) -> 6630.8 | L217: 6418.6144 | M217: 6213.218739 | N217: 6014.39574 | O217: 5821.935076 | P217: 5635.633153 | Q217: 5455.292893 | R217: 5280.72352 | S217: 5111.740367
H220: Insurance (% of total cost) | L220: 0 | M220: annual change | P220: Floor or ceiling value | AF220: Selection forms
J222: =P$8 -> 2022 | K222: 2023 | L222: 2024 | M222: 2025 | N222: 2026 | O222: 2027 | P222: 2028 | Q222: 2029 | R222: 2030 | S222: 2031 | AF222: Trend | AG222: 1
I223: Trend | J223: ='Dashboard A'!P54 -> 0.006 | K223: =IF($Q220="",(IF(J223*(1+($L220))<0,0,IF(J223*(1+($L220))>1,1,J223*(1+($L220))))),IF($L220>0,MIN(J223*(1+($L220)),IF($Q220<J223,J223,$Q220)),MAX(J223*(1+($L220)),IF($Q220>J223,J223,$Q220),0))) -> 0.006 | L223: =IF($Q220="",(IF(K223*(1+($L220))<0,0,IF(K223*(1+($L220))>1,1,K223*(1+($L220))))),IF($L220>0,MIN(K223*(1+($L220)),IF($Q220<K223,K223,$Q220)),MAX(K223*(1+($L220)),IF($Q220>K223,K223,$Q220),0))) -> 0.006 | M223: 0.006 | N223: 0.006 | O223: 0.006 | P223: 0.006 | Q223: 0.006 | R223: 0.006 | S223: 0.006 | AF223: User input
I225: User input
J226: =IF($AG222=1,J223,J225) -> 0.006 | K226: 0.006 | L226: 0.006 | M226: 0.006 | N226: 0.006 | O226: 0.006 | P226: 0.006 | Q226: 0.006 | R226: 0.006 | S226: 0.006
H229: Fuel efficiency (kWh/km) | L229: -0.0021 | M229: annual change | P229: Floor or ceiling value | AF229: Selection forms
J231: =P$8 -> 2022 | K231: 2023 | L231: 2024 | M231: 2025 | N231: 2026 | O231: 2027 | P231: 2028 | Q231: 2029 | R231: 2030 | S231: 2031 | AF231: Trend | AG231: 1
I232: Trend | J232: ='Dashboard A'!P56 -> 1.75 | K232: =IF($Q229="",(IF(J232*(1+($L229))<0,0,J232*(1+($L229)))),IF($L229>0,MIN(J232*(1+($L229)),IF($Q229<J232,J232,$Q229)),MAX(J232*(1+($L229)),IF($Q229>J232,J232,$Q229),0))) -> 1.746325 | L232: =IF($Q229="",(IF(K232*(1+($L229))<0,0,K232*(1+($L229)))),IF($L229>0,MIN(K232*(1+($L229)),IF($Q229<K232,K232,$Q229)),MAX(K232*(1+($L229)),IF($Q229>K232,K232,$Q229),0))) -> 1.742657718 | M232: 1.738998136 | N232: 1.73534624 | O232: 1.731702013 | P232: 1.728065439 | Q232: 1.724436501 | R232: 1.720815185 | S232: 1.717201473 | AF232: User input
I234: User input
J235: =IF($AG231=1,J232,J234) -> 1.75 | K235: 1.746325 | L235: 1.742657718 | M235: 1.738998136 | N235: 1.73534624 | O235: 1.731702013 | P235: 1.728065439 | Q235: 1.724436501 | R235: 1.720815185 | S235: 1.717201473
G238: Direct charging + BEV
H240: Overnight charge - infrastructure cost ($/kWh) | L240: -0.01 | M240: annual change | P240: Floor or ceiling value | AF240: Selection forms
J242: =P$8 -> 2022 | K242: 2023 | L242: 2024 | M242: 2025 | N242: 2026 | O242: 2027 | P242: 2028 | Q242: 2029 | R242: 2030 | S242: 2031 | AF242: Trend | AG242: 1
I243: Trend | J243: ='Dashboard A'!X36 -> 0.04 | K243: =IF($Q240="",(IF(J243*(1+($L240))<0,0,J243*(1+($L240)))),IF($L240>0,MIN(J243*(1+($L240)),IF($Q240<J243,J243,$Q240)),MAX(J243*(1+($L240)),IF($Q240>J243,J243,$Q240),0))) -> 0.0396 | L243: =IF($Q240="",(IF(K243*(1+($L240))<0,0,K243*(1+($L240)))),IF($L240>0,MIN(K243*(1+($L240)),IF($Q240<K243,K243,$Q240)),MAX(K243*(1+($L240)),IF($Q240>K243,K243,$Q240),0))) -> 0.039204 | M243: =IF($Q240="",(IF(L243*(1+($L240))<0,0,L243*(1+($L240)))),IF($L240>0,MIN(L243*(1+($L240)),IF($Q240<L243,L243,$Q240)),MAX(L243*(1+($L240)),IF($Q240>L243,L243,$Q240),0))) -> 0.03881196 | N243: =IF($Q240="",(IF(M243*(1+($L240))<0,0,M243*(1+($L240)))),IF($L240>0,MIN(M243*(1+($L240)),IF($Q240<M243,M243,$Q240)),MAX(M243*(1+($L240)),IF($Q240>M243,M243,$Q240),0))) -> 0.0384238404 | O243: =IF($Q240="",(IF(N243*(1+($L240))<0,0,N243*(1+($L240)))),IF($L240>0,MIN(N243*(1+($L240)),IF($Q240<N243,N243,$Q240)),MAX(N243*(1+($L240)),IF($Q240>N243,N243,$Q240),0))) -> 0.038039602 | P243: =IF($Q240="",(IF(O243*(1+($L240))<0,0,O243*(1+($L240)))),IF($L240>0,MIN(O243*(1+($L240)),IF($Q240<O243,O243,$Q240)),MAX(O243*(1+($L240)),IF($Q240>O243,O243,$Q240),0))) -> 0.03765920598 | Q243: =IF($Q240="",(IF(P243*(1+($L240))<0,0,P243*(1+($L240)))),IF($L240>0,MIN(P243*(1+($L240)),IF($Q240<P243,P243,$Q240)),MAX(P243*(1+($L240)),IF($Q240>P243,P243,$Q240),0))) -> 0.03728261392 | R243: =IF($Q240="",(IF(Q243*(1+($L240))<0,0,Q243*(1+($L240)))),IF($L240>0,MIN(Q243*(1+($L240)),IF($Q240<Q243,Q243,$Q240)),MAX(Q243*(1+($L240)),IF($Q240>Q243,Q243,$Q240),0))) -> 0.03690978778 | S243: =IF($Q240="",(IF(R243*(1+($L240))<0,0,R243*(1+($L240)))),IF($L240>0,MIN(R243*(1+($L240)),IF($Q240<R243,R243,$Q240)),MAX(R243*(1+($L240)),IF($Q240>R243,R243,$Q240),0))) -> 0.0365406899 | AF243: User input
I245: User input
J246: =IF($AG242=1,J243,J245) -> 0.04 | K246: 0.0396 | L246: 0.039204 | M246: 0.03881196 | N246: 0.0384238404 | O246: 0.038039602 | P246: 0.03765920598 | Q246: 0.03728261392 | R246: 0.03690978778 | S246: 0.0365406899
H249: Overnight charge - network cost ($/kWh) | L249: -0.017 | M249: annual change | P249: Floor or ceiling value | AF249: Selection forms
J251: =P$8 -> 2022 | K251: 2023 | L251: 2024 | M251: 2025 | N251: 2026 | O251: 2027 | P251: 2028 | Q251: 2029 | R251: 2030 | S251: 2031 | AF251: Trend | AG251: 1
I252: Trend | J252: ='Dashboard A'!X38 -> 0.038 | K252: =IF($Q249="",(IF(J252*(1+($L249))<0,0,J252*(1+($L249)))),IF($L249>0,MIN(J252*(1+($L249)),IF($Q249<J252,J252,$Q249)),MAX(J252*(1+($L249)),IF($Q249>J252,J252,$Q249),0))) -> 0.037354 | L252: =IF($Q249="",(IF(K252*(1+($L249))<0,0,K252*(1+($L249)))),IF($L249>0,MIN(K252*(1+($L249)),IF($Q249<K252,K252,$Q249)),MAX(K252*(1+($L249)),IF($Q249>K252,K252,$Q249),0))) -> 0.036718982 | M252: =IF($Q249="",(IF(L252*(1+($L249))<0,0,L252*(1+($L249)))),IF($L249>0,MIN(L252*(1+($L249)),IF($Q249<L252,L252,$Q249)),MAX(L252*(1+($L249)),IF($Q249>L252,L252,$Q249),0))) -> 0.03609475931 | N252: =IF($Q249="",(IF(M252*(1+($L249))<0,0,M252*(1+($L249)))),IF($L249>0,MIN(M252*(1+($L249)),IF($Q249<M252,M252,$Q249)),MAX(M252*(1+($L249)),IF($Q249>M252,M252,$Q249),0))) -> 0.0354811484 | O252: =IF($Q249="",(IF(N252*(1+($L249))<0,0,N252*(1+($L249)))),IF($L249>0,MIN(N252*(1+($L249)),IF($Q249<N252,N252,$Q249)),MAX(N252*(1+($L249)),IF($Q249>N252,N252,$Q249),0))) -> 0.03487796888 | P252: =IF($Q249="",(IF(O252*(1+($L249))<0,0,O252*(1+($L249)))),IF($L249>0,MIN(O252*(1+($L249)),IF($Q249<O252,O252,$Q249)),MAX(O252*(1+($L249)),IF($Q249>O252,O252,$Q249),0))) -> 0.0342850434 | Q252: =IF($Q249="",(IF(P252*(1+($L249))<0,0,P252*(1+($L249)))),IF($L249>0,MIN(P252*(1+($L249)),IF($Q249<P252,P252,$Q249)),MAX(P252*(1+($L249)),IF($Q249>P252,P252,$Q249),0))) -> 0.03370219767 | R252: =IF($Q249="",(IF(Q252*(1+($L249))<0,0,Q252*(1+($L249)))),IF($L249>0,MIN(Q252*(1+($L249)),IF($Q249<Q252,Q252,$Q249)),MAX(Q252*(1+($L249)),IF($Q249>Q252,Q252,$Q249),0))) -> 0.03312926031 | S252: =IF($Q249="",(IF(R252*(1+($L249))<0,0,R252*(1+($L249)))),IF($L249>0,MIN(R252*(1+($L249)),IF($Q249<R252,R252,$Q249)),MAX(R252*(1+($L249)),IF($Q249>R252,R252,$Q249),0))) -> 0.03256606288 | AF252: User input
I254: User input
J255: =IF($AG251=1,J252,J254) -> 0.038 | K255: 0.037354 | L255: 0.036718982 | M255: 0.03609475931 | N255: 0.0354811484 | O255: 0.03487796888 | P255: 0.0342850434 | Q255: 0.03370219767 | R255: 0.03312926031 | S255: 0.03256606288
H258: Midday fast charge - charger wattage (kW) | L258: 0 | M258: annual change | P258: Floor or ceiling value | AF258: Selection forms
J260: =P$8 -> 2022 | K260: 2023 | L260: 2024 | M260: 2025 | N260: 2026 | O260: 2027 | P260: 2028 | Q260: 2029 | R260: 2030 | S260: 2031 | AF260: Trend | AG260: 1
I261: Trend | J261: ='Dashboard A'!X42 -> 300 | K261: =IF($Q258="",(IF(J261*(1+($L258))<0,0,J261*(1+($L258)))),IF($L258>0,MIN(J261*(1+($L258)),IF($Q258<J261,J261,$Q258)),MAX(J261*(1+($L258)),IF($Q258>J261,J261,$Q258),0))) -> 300 | L261: =IF($Q258="",(IF(K261*(1+($L258))<0,0,K261*(1+($L258)))),IF($L258>0,MIN(K261*(1+($L258)),IF($Q258<K261,K261,$Q258)),MAX(K261*(1+($L258)),IF($Q258>K261,K261,$Q258),0))) -> 300 | M261: 300 | N261: 300 | O261: 300 | P261: 300 | Q261: 300 | R261: 300 | S261: 300 | AF261: User input
I263: User input
J264: =IF($AG260=1,J261,J263) -> 300 | K264: 300 | L264: 300 | M264: 300 | N264: 300 | O264: 300 | P264: 300 | Q264: 300 | R264: 300 | S264: 300
H267: Midday fast charge - infrastructure cost ($/kWh) | L267: 0 | M267: annual change | P267: Floor or ceiling value | AF267: Selection forms
J269: =P$8 -> 2022 | K269: 2023 | L269: 2024 | M269: 2025 | N269: 2026 | O269: 2027 | P269: 2028 | Q269: 2029 | R269: 2030 | S269: 2031 | AF269: Trend | AG269: 1
I270: Trend | J270: ='Dashboard A'!X44 -> 0.3 | K270: =IF($Q267="",(IF(J270*(1+($L267))<0,0,J270*(1+($L267)))),IF($L267>0,MIN(J270*(1+($L267)),IF($Q267<J270,J270,$Q267)),MAX(J270*(1+($L267)),IF($Q267>J270,J270,$Q267),0))) -> 0.3 | L270: =IF($Q267="",(IF(K270*(1+($L267))<0,0,K270*(1+($L267)))),IF($L267>0,MIN(K270*(1+($L267)),IF($Q267<K270,K270,$Q267)),MAX(K270*(1+($L267)),IF($Q267>K270,K270,$Q267),0))) -> 0.3 | M270: 0.3 | N270: 0.3 | O270: 0.3 | P270: 0.3 | Q270: 0.3 | R270: 0.3 | S270: 0.3 | AF270: User input
I272: User input
J273: =IF($AG269=1,J270,J272) -> 0.3 | K273: 0.3 | L273: 0.3 | M273: 0.3 | N273: 0.3 | O273: 0.3 | P273: 0.3 | Q273: 0.3 | R273: 0.3 | S273: 0.3
H276: Midday fast charge - network cost ($/kWh) | L276: 0 | M276: annual change | P276: Floor or ceiling value | AF276: Selection forms
J278: =P$8 -> 2022 | K278: 2023 | L278: 2024 | M278: 2025 | N278: 2026 | O278: 2027 | P278: 2028 | Q278: 2029 | R278: 2030 | S278: 2031 | AF278: Trend | AG278: 1
I279: Trend | J279: ='Dashboard A'!X46 -> 0.188 | K279: =IF($Q276="",(IF(J279*(1+($L276))<0,0,J279*(1+($L276)))),IF($L276>0,MIN(J279*(1+($L276)),IF($Q276<J279,J279,$Q276)),MAX(J279*(1+($L276)),IF($Q276>J279,J279,$Q276),0))) -> 0.188 | L279: =IF($Q276="",(IF(K279*(1+($L276))<0,0,K279*(1+($L276)))),IF($L276>0,MIN(K279*(1+($L276)),IF($Q276<K279,K279,$Q276)),MAX(K279*(1+($L276)),IF($Q276>K279,K279,$Q276),0))) -> 0.188 | M279: 0.188 | N279: 0.188 | O279: 0.188 | P279: 0.188 | Q279: 0.188 | R279: 0.188 | S279: 0.188 | AF279: User input
I281: User input
J282: =IF($AG278=1,J279,J281) -> 0.188 | K282: 0.188 | L282: 0.188 | M282: 0.188 | N282: 0.188 | O282: 0.188 | P282: 0.188 | Q282: 0.188 | R282: 0.188 | S282: 0.188
H285: Midday battery swap - swap cost ($/kWh) | L285: 0 | M285: annual change | P285: Floor or ceiling value | AF285: Selection forms
J287: =P$8 -> 2022 | K287: 2023 | L287: 2024 | M287: 2025 | N287: 2026 | O287: 2027 | P287: 2028 | Q287: 2029 | R287: 2030 | S287: 2031 | AF287: Trend | AG287: 1
I288: Trend | J288: =swap_cost -> 0 | K288: =IF($Q285="",(IF(J288*(1+($L285))<0,0,J288*(1+($L285)))),IF($L285>0,MIN(J288*(1+($L285)),IF($Q285<J288,J288,$Q285)),MAX(J288*(1+($L285)),IF($Q285>J288,J288,$Q285),0))) -> 0 | L288: =IF($Q285="",(IF(K288*(1+($L285))<0,0,K288*(1+($L285)))),IF($L285>0,MIN(K288*(1+($L285)),IF($Q285<K288,K288,$Q285)),MAX(K288*(1+($L285)),IF($Q285>K288,K288,$Q285),0))) -> 0 | M288: =IF($Q285="",(IF(L288*(1+($L285))<0,0,L288*(1+($L285)))),IF($L285>0,MIN(L288*(1+($L285)),IF($Q285<L288,L288,$Q285)),MAX(L288*(1+($L285)),IF($Q285>L288,L288,$Q285),0))) -> 0 | N288: =IF($Q285="",(IF(M288*(1+($L285))<0,0,M288*(1+($L285)))),IF($L285>0,MIN(M288*(1+($L285)),IF($Q285<M288,M288,$Q285)),MAX(M288*(1+($L285)),IF($Q285>M288,M288,$Q285),0))) -> 0 | O288: =IF($Q285="",(IF(N288*(1+($L285))<0,0,N288*(1+($L285)))),IF($L285>0,MIN(N288*(1+($L285)),IF($Q285<N288,N288,$Q285)),MAX(N288*(1+($L285)),IF($Q285>N288,N288,$Q285),0))) -> 0 | P288: =IF($Q285="",(IF(O288*(1+($L285))<0,0,O288*(1+($L285)))),IF($L285>0,MIN(O288*(1+($L285)),IF($Q285<O288,O288,$Q285)),MAX(O288*(1+($L285)),IF($Q285>O288,O288,$Q285),0))) -> 0 | Q288: =IF($Q285="",(IF(P288*(1+($L285))<0,0,P288*(1+($L285)))),IF($L285>0,MIN(P288*(1+($L285)),IF($Q285<P288,P288,$Q285)),MAX(P288*(1+($L285)),IF($Q285>P288,P288,$Q285),0))) -> 0 | R288: =IF($Q285="",(IF(Q288*(1+($L285))<0,0,Q288*(1+($L285)))),IF($L285>0,MIN(Q288*(1+($L285)),IF($Q285<Q288,Q288,$Q285)),MAX(Q288*(1+($L285)),IF($Q285>Q288,Q288,$Q285),0))) -> 0 | S288: =IF($Q285="",(IF(R288*(1+($L285))<0,0,R288*(1+($L285)))),IF($L285>0,MIN(R288*(1+($L285)),IF($Q285<R288,R288,$Q285)),MAX(R288*(1+($L285)),IF($Q285>R288,R288,$Q285),0))) -> 0 | AF288: User input
I290: User input
J291: =IF($AG287=1,J288,J290) -> 0 | K291: 0 | L291: 0 | M291: 0 | N291: 0 | O291: 0 | P291: 0 | Q291: 0 | R291: 0 | S291: 0
H294: Midday battery swap - infrastructure cost ($/kWh) | L294: 0 | M294: annual change | P294: Floor or ceiling value | AF294: Selection forms
J296: =P$8 -> 2022 | K296: 2023 | L296: 2024 | M296: 2025 | N296: 2026 | O296: 2027 | P296: 2028 | Q296: 2029 | R296: 2030 | S296: 2031 | AF296: Trend | AG296: 1
I297: Trend | J297: =BS_infrastructure -> 0.04 | K297: =IF($Q294="",(IF(J297*(1+($L294))<0,0,J297*(1+($L294)))),IF($L294>0,MIN(J297*(1+($L294)),IF($Q294<J297,J297,$Q294)),MAX(J297*(1+($L294)),IF($Q294>J297,J297,$Q294),0))) -> 0.04 | L297: =IF($Q294="",(IF(K297*(1+($L294))<0,0,K297*(1+($L294)))),IF($L294>0,MIN(K297*(1+($L294)),IF($Q294<K297,K297,$Q294)),MAX(K297*(1+($L294)),IF($Q294>K297,K297,$Q294),0))) -> 0.04 | M297: =IF($Q294="",(IF(L297*(1+($L294))<0,0,L297*(1+($L294)))),IF($L294>0,MIN(L297*(1+($L294)),IF($Q294<L297,L297,$Q294)),MAX(L297*(1+($L294)),IF($Q294>L297,L297,$Q294),0))) -> 0.04 | N297: =IF($Q294="",(IF(M297*(1+($L294))<0,0,M297*(1+($L294)))),IF($L294>0,MIN(M297*(1+($L294)),IF($Q294<M297,M297,$Q294)),MAX(M297*(1+($L294)),IF($Q294>M297,M297,$Q294),0))) -> 0.04 | O297: =IF($Q294="",(IF(N297*(1+($L294))<0,0,N297*(1+($L294)))),IF($L294>0,MIN(N297*(1+($L294)),IF($Q294<N297,N297,$Q294)),MAX(N297*(1+($L294)),IF($Q294>N297,N297,$Q294),0))) -> 0.04 | P297: =IF($Q294="",(IF(O297*(1+($L294))<0,0,O297*(1+($L294)))),IF($L294>0,MIN(O297*(1+($L294)),IF($Q294<O297,O297,$Q294)),MAX(O297*(1+($L294)),IF($Q294>O297,O297,$Q294),0))) -> 0.04 | Q297: =IF($Q294="",(IF(P297*(1+($L294))<0,0,P297*(1+($L294)))),IF($L294>0,MIN(P297*(1+($L294)),IF($Q294<P297,P297,$Q294)),MAX(P297*(1+($L294)),IF($Q294>P297,P297,$Q294),0))) -> 0.04 | R297: =IF($Q294="",(IF(Q297*(1+($L294))<0,0,Q297*(1+($L294)))),IF($L294>0,MIN(Q297*(1+($L294)),IF($Q294<Q297,Q297,$Q294)),MAX(Q297*(1+($L294)),IF($Q294>Q297,Q297,$Q294),0))) -> 0.04 | S297: =IF($Q294="",(IF(R297*(1+($L294))<0,0,R297*(1+($L294)))),IF($L294>0,MIN(R297*(1+($L294)),IF($Q294<R297,R297,$Q294)),MAX(R297*(1+($L294)),IF($Q294>R297,R297,$Q294),0))) -> 0.04 | AF297: User input
I299: User input
J300: =IF($AG296=1,J297,J299) -> 0.04 | K300: 0.04 | L300: 0.04 | M300: 0.04 | N300: 0.04 | O300: 0.04 | P300: 0.04 | Q300: 0.04 | R300: 0.04 | S300: 0.04
H303: Midday battery swap - network cost ($/kWh) | L303: 0 | M303: annual change | P303: Floor or ceiling value | AF303: Selection forms
J305: =P$8 -> 2022 | K305: 2023 | L305: 2024 | M305: 2025 | N305: 2026 | O305: 2027 | P305: 2028 | Q305: 2029 | R305: 2030 | S305: 2031 | AF305: Trend | AG305: 1
I306: Trend | J306: =BS_network_cost -> 0.038 | K306: =IF($Q303="",(IF(J306*(1+($L303))<0,0,J306*(1+($L303)))),IF($L303>0,MIN(J306*(1+($L303)),IF($Q303<J306,J306,$Q303)),MAX(J306*(1+($L303)),IF($Q303>J306,J306,$Q303),0))) -> 0.038 | L306: =IF($Q303="",(IF(K306*(1+($L303))<0,0,K306*(1+($L303)))),IF($L303>0,MIN(K306*(1+($L303)),IF($Q303<K306,K306,$Q303)),MAX(K306*(1+($L303)),IF($Q303>K306,K306,$Q303),0))) -> 0.038 | M306: =IF($Q303="",(IF(L306*(1+($L303))<0,0,L306*(1+($L303)))),IF($L303>0,MIN(L306*(1+($L303)),IF($Q303<L306,L306,$Q303)),MAX(L306*(1+($L303)),IF($Q303>L306,L306,$Q303),0))) -> 0.038 | N306: =IF($Q303="",(IF(M306*(1+($L303))<0,0,M306*(1+($L303)))),IF($L303>0,MIN(M306*(1+($L303)),IF($Q303<M306,M306,$Q303)),MAX(M306*(1+($L303)),IF($Q303>M306,M306,$Q303),0))) -> 0.038 | O306: =IF($Q303="",(IF(N306*(1+($L303))<0,0,N306*(1+($L303)))),IF($L303>0,MIN(N306*(1+($L303)),IF($Q303<N306,N306,$Q303)),MAX(N306*(1+($L303)),IF($Q303>N306,N306,$Q303),0))) -> 0.038 | P306: =IF($Q303="",(IF(O306*(1+($L303))<0,0,O306*(1+($L303)))),IF($L303>0,MIN(O306*(1+($L303)),IF($Q303<O306,O306,$Q303)),MAX(O306*(1+($L303)),IF($Q303>O306,O306,$Q303),0))) -> 0.038 | Q306: =IF($Q303="",(IF(P306*(1+($L303))<0,0,P306*(1+($L303)))),IF($L303>0,MIN(P306*(1+($L303)),IF($Q303<P306,P306,$Q303)),MAX(P306*(1+($L303)),IF($Q303>P306,P306,$Q303),0))) -> 0.038 | R306: =IF($Q303="",(IF(Q306*(1+($L303))<0,0,Q306*(1+($L303)))),IF($L303>0,MIN(Q306*(1+($L303)),IF($Q303<Q306,Q306,$Q303)),MAX(Q306*(1+($L303)),IF($Q303>Q306,Q306,$Q303),0))) -> 0.038 | S306: =IF($Q303="",(IF(R306*(1+($L303))<0,0,R306*(1+($L303)))),IF($L303>0,MIN(R306*(1+($L303)),IF($Q303<R306,R306,$Q303)),MAX(R306*(1+($L303)),IF($Q303>R306,R306,$Q303),0))) -> 0.038 | AF306: User input
I308: User input
J309: =IF($AG305=1,J306,J308) -> 0.038 | K309: =IF($AG305=1,K306,K308) -> 0.038 | L309: 0.038 | M309: 0.038 | N309: 0.038 | O309: 0.038 | P309: 0.038 | Q309: 0.038 | R309: 0.038 | S309: 0.038
G314: Internal combustion engine vehicle
H316: Vehicle capital cost | L316: 0 | M316: annual change | P316: Floor or ceiling value | AF316: Selection forms
J318: =P$8 -> 2022 | K318: 2023 | L318: 2024 | M318: 2025 | N318: 2026 | O318: 2027 | P318: 2028 | Q318: 2029 | R318: 2030 | S318: 2031 | AF318: Trend | AG318: 1
I319: Trend | J319: ='Dashboard A'!P64 -> 250000 | K319: =IF($Q316="",(IF(J319*(1+($L316))<0,0,J319*(1+($L316)))),IF($L316>0,MIN(J319*(1+($L316)),IF($Q316<J319,J319,$Q316)),MAX(J319*(1+($L316)),IF($Q316>J319,J319,$Q316),0))) -> 250000 | L319: =IF($Q316="",(IF(K319*(1+($L316))<0,0,K319*(1+($L316)))),IF($L316>0,MIN(K319*(1+($L316)),IF($Q316<K319,K319,$Q316)),MAX(K319*(1+($L316)),IF($Q316>K319,K319,$Q316),0))) -> 250000 | M319: 250000 | N319: 250000 | O319: 250000 | P319: 250000 | Q319: 250000 | R319: 250000 | S319: 250000 | AF319: User input
I321: User input
J322: =IF($AG318=1,J319,J321) -> 250000 | K322: 250000 | L322: 250000 | M322: 250000 | N322: 250000 | O322: 250000 | P322: 250000 | Q322: 250000 | R322: 250000 | S322: 250000
H325: Residual value | L325: 0 | M325: annual change | P325: Floor or ceiling value | AF325: Selection forms
J327: =P$8 -> 2022 | K327: 2023 | L327: 2024 | M327: 2025 | N327: 2026 | O327: 2027 | P327: 2028 | Q327: 2029 | R327: 2030 | S327: 2031 | AF327: Trend | AG327: 1
I328: Trend | J328: ='Dashboard A'!X64 -> 0.418 | K328: =IF($Q325="",(IF(J328*(1+($L325))<0,0,IF(J328*(1+($L325))>1,1,J328*(1+($L325))))),IF($L325>0,MIN(J328*(1+($L325)),IF($Q325<J328,J328,$Q325)),MAX(J328*(1+($L325)),IF($Q325>J328,J328,$Q325),0))) -> 0.418 | L328: =IF($Q325="",(IF(K328*(1+($L325))<0,0,IF(K328*(1+($L325))>1,1,K328*(1+($L325))))),IF($L325>0,MIN(K328*(1+($L325)),IF($Q325<K328,K328,$Q325)),MAX(K328*(1+($L325)),IF($Q325>K328,K328,$Q325),0))) -> 0.418 | M328: 0.418 | N328: 0.418 | O328: 0.418 | P328: 0.418 | Q328: 0.418 | R328: 0.418 | S328: 0.418 | AF328: User input
I330: User input
J331: =IF($AG327=1,J328,J330) -> 0.418 | K331: 0.418 | L331: 0.418 | M331: 0.418 | N331: 0.418 | O331: 0.418 | P331: 0.418 | Q331: 0.418 | R331: 0.418 | S331: 0.418
H334: Maintenance cost ($/km) | L334: -0.0013 | M334: annual change | P334: Floor or ceiling value | AF334: Selection forms
J336: =P$8 -> 2022 | K336: 2023 | L336: 2024 | M336: 2025 | N336: 2026 | O336: 2027 | P336: 2028 | Q336: 2029 | R336: 2030 | S336: 2031 | AF336: Trend | AG336: 1
I337: Trend | J337: ='Dashboard A'!AI64 -> 0.092 | K337: =IF($Q334="",(IF(J337*(1+($L334))<0,0,J337*(1+($L334)))),IF($L334>0,MIN(J337*(1+($L334)),IF($Q334<J337,J337,$Q334)),MAX(J337*(1+($L334)),IF($Q334>J337,J337,$Q334),0))) -> 0.0918804 | L337: =IF($Q334="",(IF(K337*(1+($L334))<0,0,K337*(1+($L334)))),IF($L334>0,MIN(K337*(1+($L334)),IF($Q334<K337,K337,$Q334)),MAX(K337*(1+($L334)),IF($Q334>K337,K337,$Q334),0))) -> 0.09176095548 | M337: 0.09164166624 | N337: 0.09152253207 | O337: 0.09140355278 | P337: 0.09128472816 | Q337: 0.09116605801 | R337: 0.09104754214 | S337: 0.09092918033 | AF337: User input
I339: User input
J340: =IF($AG336=1,J337,J339) -> 0.092 | K340: 0.0918804 | L340: 0.09176095548 | M340: 0.09164166624 | N340: 0.09152253207 | O340: 0.09140355278 | P340: 0.09128472816 | Q340: 0.09116605801 | R340: 0.09104754214 | S340: 0.09092918033
H343: Lease cost | L343: 0 | M343: annual change | P343: Floor or ceiling value | AF343: Selection forms
J345: =P$8 -> 2022 | K345: 2023 | L345: 2024 | M345: 2025 | N345: 2026 | O345: 2027 | P345: 2028 | Q345: 2029 | R345: 2030 | S345: 2031 | AF345: Trend | AG345: 1
I346: Trend | J346: ='Dashboard A'!O64 -> 4900 | K346: =IF($Q343="",(IF(J346*(1+($L343))<0,0,J346*(1+($L343)))),IF($L343>0,MIN(J346*(1+($L343)),IF($Q343<J346,J346,$Q343)),MAX(J346*(1+($L343)),IF($Q343>J346,J346,$Q343),0))) -> 4900 | L346: =IF($Q343="",(IF(K346*(1+($L343))<0,0,K346*(1+($L343)))),IF($L343>0,MIN(K346*(1+($L343)),IF($Q343<K346,K346,$Q343)),MAX(K346*(1+($L343)),IF($Q343>K346,K346,$Q343),0))) -> 4900 | M346: =IF($Q343="",(IF(L346*(1+($L343))<0,0,L346*(1+($L343)))),IF($L343>0,MIN(L346*(1+($L343)),IF($Q343<L346,L346,$Q343)),MAX(L346*(1+($L343)),IF($Q343>L346,L346,$Q343),0))) -> 4900 | N346: =IF($Q343="",(IF(M346*(1+($L343))<0,0,M346*(1+($L343)))),IF($L343>0,MIN(M346*(1+($L343)),IF($Q343<M346,M346,$Q343)),MAX(M346*(1+($L343)),IF($Q343>M346,M346,$Q343),0))) -> 4900 | O346: =IF($Q343="",(IF(N346*(1+($L343))<0,0,N346*(1+($L343)))),IF($L343>0,MIN(N346*(1+($L343)),IF($Q343<N346,N346,$Q343)),MAX(N346*(1+($L343)),IF($Q343>N346,N346,$Q343),0))) -> 4900 | P346: =IF($Q343="",(IF(O346*(1+($L343))<0,0,O346*(1+($L343)))),IF($L343>0,MIN(O346*(1+($L343)),IF($Q343<O346,O346,$Q343)),MAX(O346*(1+($L343)),IF($Q343>O346,O346,$Q343),0))) -> 4900 | Q346: =IF($Q343="",(IF(P346*(1+($L343))<0,0,P346*(1+($L343)))),IF($L343>0,MIN(P346*(1+($L343)),IF($Q343<P346,P346,$Q343)),MAX(P346*(1+($L343)),IF($Q343>P346,P346,$Q343),0))) -> 4900 | R346: =IF($Q343="",(IF(Q346*(1+($L343))<0,0,Q346*(1+($L343)))),IF($L343>0,MIN(Q346*(1+($L343)),IF($Q343<Q346,Q346,$Q343)),MAX(Q346*(1+($L343)),IF($Q343>Q346,Q346,$Q343),0))) -> 4900 | S346: =IF($Q343="",(IF(R346*(1+($L343))<0,0,R346*(1+($L343)))),IF($L343>0,MIN(R346*(1+($L343)),IF($Q343<R346,R346,$Q343)),MAX(R346*(1+($L343)),IF($Q343>R346,R346,$Q343),0))) -> 4900 | AF346: User input
I348: User input
J349: =IF($AG345=1,J346,J348) -> 4900 | K349: =IF($AG345=1,K346,K348) -> 4900 | L349: 4900 | M349: 4900 | N349: 4900 | O349: 4900 | P349: 4900 | Q349: 4900 | R349: 4900 | S349: 4900
H352: Insurance (% of total cost) | L352: 0 | M352: annual change | P352: Floor or ceiling value | AF352: Selection forms
J354: =P$8 -> 2022 | K354: 2023 | L354: 2024 | M354: 2025 | N354: 2026 | O354: 2027 | P354: 2028 | Q354: 2029 | R354: 2030 | S354: 2031 | AF354: Trend | AG354: 1
I355: Trend | J355: ='Dashboard A'!AI66 -> 0.006 | K355: =IF($Q352="",(IF(J355*(1+($L352))<0,0,IF(J355*(1+($L352))>1,1,J355*(1+($L352))))),IF($L352>0,MIN(J355*(1+($L352)),IF($Q352<J355,J355,$Q352)),MAX(J355*(1+($L352)),IF($Q352>J355,J355,$Q352),0))) -> 0.006 | L355: =IF($Q352="",(IF(K355*(1+($L352))<0,0,IF(K355*(1+($L352))>1,1,K355*(1+($L352))))),IF($L352>0,MIN(K355*(1+($L352)),IF($Q352<K355,K355,$Q352)),MAX(K355*(1+($L352)),IF($Q352>K355,K355,$Q352),0))) -> 0.006 | M355: 0.006 | N355: 0.006 | O355: 0.006 | P355: 0.006 | Q355: 0.006 | R355: 0.006 | S355: 0.006 | AF355: User input
I357: User input
J358: =IF($AG354=1,J355,J357) -> 0.006 | K358: 0.006 | L358: 0.006 | M358: 0.006 | N358: 0.006 | O358: 0.006 | P358: 0.006 | Q358: 0.006 | R358: 0.006 | S358: 0.006
H361: Fuel efficiency (l/km) | L361: 0 | M361: annual change | P361: Floor or ceiling value | AF361: Selection forms
J363: =P$8 -> 2022 | K363: 2023 | L363: 2024 | M363: 2025 | N363: 2026 | O363: 2027 | P363: 2028 | Q363: 2029 | R363: 2030 | S363: 2031 | AF363: Trend | AG363: 1
I364: Trend | J364: ='Dashboard A'!AQ64 -> 0.555 | K364: =IF($Q361="",(IF(J364*(1+($L361))<0,0,J364*(1+($L361)))),IF($L361>0,MIN(J364*(1+($L361)),IF($Q361<J364,J364,$Q361)),MAX(J364*(1+($L361)),IF($Q361>J364,J364,$Q361),0))) -> 0.555 | L364: =IF($Q361="",(IF(K364*(1+($L361))<0,0,K364*(1+($L361)))),IF($L361>0,MIN(K364*(1+($L361)),IF($Q361<K364,K364,$Q361)),MAX(K364*(1+($L361)),IF($Q361>K364,K364,$Q361),0))) -> 0.555 | M364: 0.555 | N364: 0.555 | O364: 0.555 | P364: 0.555 | Q364: 0.555 | R364: 0.555 | S364: 0.555 | AF364: User input
I366: User input
J367: =IF($AG363=1,J364,J366) -> 0.555 | K367: 0.555 | L367: 0.555 | M367: 0.555 | N367: 0.555 | O367: 0.555 | P367: 0.555 | Q367: 0.555 | R367: 0.555 | S367: 0.555
G370: Diesel + ICEV
H372: Delivered cost of fuel ($/l) | L372: 0.011 | M372: annual change | P372: Floor or ceiling value | AF372: Selection forms
J374: =P$8 -> 2022 | K374: 2023 | L374: 2024 | M374: 2025 | N374: 2026 | O374: 2027 | P374: 2028 | Q374: 2029 | R374: 2030 | S374: 2031 | AF374: Trend | AG374: 1
I375: Trend | J375: ='Dashboard A'!P72 -> 1.15 | K375: =IF($Q372="",(IF(J375*(1+($L372))<0,0,J375*(1+($L372)))),IF($L372>0,MIN(J375*(1+($L372)),IF($Q372<J375,J375,$Q372)),MAX(J375*(1+($L372)),IF($Q372>J375,J375,$Q372),0))) -> 1.16265 | L375: =IF($Q372="",(IF(K375*(1+($L372))<0,0,K375*(1+($L372)))),IF($L372>0,MIN(K375*(1+($L372)),IF($Q372<K375,K375,$Q372)),MAX(K375*(1+($L372)),IF($Q372>K375,K375,$Q372),0))) -> 1.17543915 | M375: 1.188368981 | N375: 1.201441039 | O375: 1.214656891 | P375: 1.228018117 | Q375: 1.241526316 | R375: 1.255183105 | S375: 1.26899012 | AF375: User input
I377: User input
J378: =IF($AG374=1,J375,J377) -> 1.15 | K378: 1.16265 | L378: 1.17543915 | M378: 1.188368981 | N378: 1.201441039 | O378: 1.214656891 | P378: 1.228018117 | Q378: 1.241526316 | R378: 1.255183105 | S378: 1.26899012
... 70 more rows

Sheet Calculations step-by-step
A2: Step-by-step calculations for year one with underlying formulas
A3: Using calculator inputs
B5: This sheet displays the calculations underlying the TCO/tkm calculations displayed on Dashboard A and as year one on Dashboard B. Shaded cells indicate that a formula underlies the value displayed, while non-shaded cells refer back to the value indicated by the row name.
B6: Select cell to view formula, although note cells are non-editable. Cells with formulas which call on values presented in a Dashboard (i.e., not in this sheet) are either referred to by name or accompanied by a footnote below to describe the underlying calculation.
B8: Fuel cell electric vehicle | U8: Battery electric vehicle | AO8: Internal combustion engine vehicle
F10: Green H2 + FCEV | Z10: Direct charging + BEV | AR10: Drop-in biodiesel + ICEV | BF10: Conventional biodiesel + ICEV | BT10: Diesel + H2 + ICEV | CH10: Diesel + ICEV
G12: ='Dashboard B'!P8 -> 2022 | H12: ='Dashboard B'!Q8 -> 2023 | I12: ='Dashboard B'!R8 -> 2024 | J12: ='Dashboard B'!S8 -> 2025 | K12: ='Dashboard B'!T8 -> 2026 | L12: ='Dashboard B'!U8 -> 2027 | M12: ='Dashboard B'!V8 -> 2028 | N12: ='Dashboard B'!W8 -> 2029 | O12: ='Dashboard B'!X8 -> 2030 | P12: ='Dashboard B'!Y8 -> 2031 | AA12: ='Dashboard B'!P8 -> 2022 | AB12: ='Dashboard B'!Q8 -> 2023 | AC12: ='Dashboard B'!R8 -> 2024 | AD12: ='Dashboard B'!S8 -> 2025 | AE12: ='Dashboard B'!T8 -> 2026 | AF12: ='Dashboard B'!U8 -> 2027 | AG12: ='Dashboard B'!V8 -> 2028 | AH12: ='Dashboard B'!W8 -> 2029 | AI12: ='Dashboard B'!X8 -> 2030 | AJ12: ='Dashboard B'!Y8 -> 2031 | AS12: ='Dashboard B'!P8 -> 2022 | AT12: ='Dashboard B'!Q8 -> 2023 | AU12: ='Dashboard B'!R8 -> 2024 | AV12: ='Dashboard B'!S8 -> 2025 | AW12: ='Dashboard B'!T8 -> 2026 | AX12: ='Dashboard B'!U8 -> 2027 | AY12: ='Dashboard B'!V8 -> 2028 | AZ12: ='Dashboard B'!W8 -> 2029 | BA12: ='Dashboard B'!X8 -> 2030 | BB12: ='Dashboard B'!Y8 -> 2031 | BG12: ='Dashboard B'!P8 -> 2022 | BH12: ='Dashboard B'!Q8 -> 2023 | BI12: ='Dashboard B'!R8 -> 2024 | BJ12: ='Dashboard B'!S8 -> 2025 | BK12: ='Dashboard B'!T8 -> 2026 | BL12: ='Dashboard B'!U8 -> 2027 | BM12: ='Dashboard B'!V8 -> 2028 | BN12: ='Dashboard B'!W8 -> 2029 | BO12: ='Dashboard B'!X8 -> 2030 | BP12: ='Dashboard B'!Y8 -> 2031 | CI12: ='Dashboard B'!P8 -> 2022 | CJ12: ='Dashboard B'!Q8 -> 2023 | CK12: ='Dashboard B'!R8 -> 2024 | CL12: ='Dashboard B'!S8 -> 2025 | CM12: ='Dashboard B'!T8 -> 2026 | CN12: ='Dashboard B'!U8 -> 2027 | CO12: ='Dashboard B'!V8 -> 2028 | CP12: ='Dashboard B'!W8 -> 2029 | CQ12: ='Dashboard B'!X8 -> 2030 | CR12: ='Dashboard B'!Y8 -> 2031
C13: Vehicle capital cost | G13: ='Dashboard B'!J96 -> 611000 | H13: ='Dashboard B'!K96 -> 574340 | I13: ='Dashboard B'!L96 -> 539879.6 | J13: ='Dashboard B'!M96 -> 507486.824 | K13: ='Dashboard B'!N96 -> 477037.6146 | L13: ='Dashboard B'!O96 -> 448415.3577 | M13: ='Dashboard B'!P96 -> 421510.4362 | N13: ='Dashboard B'!Q96 -> 396219.8101 | O13: ='Dashboard B'!R96 -> 372446.6214 | P13: ='Dashboard B'!S96 -> 350099.8242 | V13: Vehicle capital cost | AA13: ='Dashboard B'!J190 -> 409000 | AB13: ='Dashboard B'!K190 -> 395912 | AC13: ='Dashboard B'!L190 -> 383242.816 | AD13: ='Dashboard B'!M190 -> 370979.0459 | AE13: ='Dashboard B'!N190 -> 359107.7164 | AF13: ='Dashboard B'!O190 -> 347616.2695 | AG13: ='Dashboard B'!P190 -> 336492.5489 | AH13: ='Dashboard B'!Q190 -> 325724.7873 | AI13: ='Dashboard B'!R190 -> 315301.5941 | AJ13: ='Dashboard B'!S190 -> 305211.9431 | AP13: Vehicle capital cost | AS13: ='Dashboard B'!J322 -> 250000 | AT13: ='Dashboard B'!K322 -> 250000 | AU13: ='Dashboard B'!L322 -> 250000 | AV13: ='Dashboard B'!M322 -> 250000 | AW13: ='Dashboard B'!N322 -> 250000 | AX13: ='Dashboard B'!O322 -> 250000 | AY13: ='Dashboard B'!P322 -> 250000 | AZ13: ='Dashboard B'!Q322 -> 250000 | BA13: ='Dashboard B'!R322 -> 250000 | BB13: ='Dashboard B'!S322 -> 250000 | BG13: ='Dashboard B'!J322 -> 250000 | BH13: ='Dashboard B'!K322 -> 250000 | BI13: ='Dashboard B'!L322 -> 250000 | BJ13: ='Dashboard B'!M322 -> 250000 | BK13: ='Dashboard B'!N322 -> 250000 | BL13: ='Dashboard B'!O322 -> 250000 | BM13: ='Dashboard B'!P322 -> 250000 | BN13: ='Dashboard B'!Q322 -> 250000 | BO13: ='Dashboard B'!R322 -> 250000 | BP13: ='Dashboard B'!S322 -> 250000 | BU13: ='Dashboard B'!J322 -> 250000 | BV13: ='Dashboard B'!K322 -> 250000 | BW13: ='Dashboard B'!L322 -> 250000 | BX13: ='Dashboard B'!M322 -> 250000 | BY13: ='Dashboard B'!N322 -> 250000 | BZ13: ='Dashboard B'!O322 -> 250000 | CA13: ='Dashboard B'!P322 -> 250000 | CB13: ='Dashboard B'!Q322 -> 250000 | CC13: ='Dashboard B'!R322 -> 250000 | CD13: ='Dashboard B'!S322 -> 250000 | CI13: ='Dashboard B'!J322 -> 250000 | CJ13: ='Dashboard B'!K322 -> 250000 | CK13: ='Dashboard B'!L322 -> 250000 | CL13: ='Dashboard B'!M322 -> 250000 | CM13: ='Dashboard B'!N322 -> 250000 | CN13: ='Dashboard B'!O322 -> 250000 | CO13: ='Dashboard B'!P322 -> 250000 | CP13: ='Dashboard B'!Q322 -> 250000 | CQ13: ='Dashboard B'!R322 -> 250000 | CR13: ='Dashboard B'!S322 -> 250000
C15: Lease cost | G15: ='Dashboard B'!J123 -> 9900 | H15: ='Dashboard B'!K123 -> 9306 | I15: ='Dashboard B'!L123 -> 8747.64 | J15: ='Dashboard B'!M123 -> 8222.7816 | K15: ='Dashboard B'!N123 -> 7729.414704 | L15: ='Dashboard B'!O123 -> 7265.649822 | M15: ='Dashboard B'!P123 -> 6829.710832 | N15: ='Dashboard B'!Q123 -> 6419.928183 | O15: ='Dashboard B'!R123 -> 6034.732492 | P15: ='Dashboard B'!S123 -> 5672.648542 | Q15: per month | V15: Lease cost | AA15: ='Dashboard B'!J217 -> 6850 | AB15: ='Dashboard B'!K217 -> 6630.8 | AC15: ='Dashboard B'!L217 -> 6418.6144 | AD15: ='Dashboard B'!M217 -> 6213.218739 | AE15: ='Dashboard B'!N217 -> 6014.39574 | AF15: ='Dashboard B'!O217 -> 5821.935076 | AG15: ='Dashboard B'!P217 -> 5635.633153 | AH15: ='Dashboard B'!Q217 -> 5455.292893 | AI15: ='Dashboard B'!R217 -> 5280.72352 | AJ15: ='Dashboard B'!S217 -> 5111.740367 | AK15: per month | AP15: Lease cost | AS15: ='Dashboard B'!J349 -> 4900 | AT15: ='Dashboard B'!K349 -> 4900 | AU15: ='Dashboard B'!L349 -> 4900 | AV15: ='Dashboard B'!M349 -> 4900 | AW15: ='Dashboard B'!N349 -> 4900 | AX15: ='Dashboard B'!O349 -> 4900 | AY15: ='Dashboard B'!P349 -> 4900 | AZ15: ='Dashboard B'!Q349 -> 4900 | BA15: ='Dashboard B'!R349 -> 4900 | BB15: ='Dashboard B'!S349 -> 4900 | BC15: per month | BG15: ='Dashboard B'!J349 -> 4900 | BH15: ='Dashboard B'!K349 -> 4900 | BI15: ='Dashboard B'!L349 -> 4900 | BJ15: ='Dashboard B'!M349 -> 4900 | BK15: ='Dashboard B'!N349 -> 4900 | BL15: ='Dashboard B'!O349 -> 4900 | BM15: ='Dashboard B'!P349 -> 4900 | BN15: ='Dashboard B'!Q349 -> 4900 | BO15: ='Dashboard B'!R349 -> 4900 | BP15: ='Dashboard B'!S349 -> 4900 | BQ15: per month | BU15: ='Dashboard B'!J349 -> 4900 | BV15: ='Dashboard B'!K349 -> 4900 | BW15: ='Dashboard B'!L349 -> 4900 | BX15: ='Dashboard B'!M349 -> 4900 | BY15: ='Dashboard B'!N349 -> 4900 | BZ15: ='Dashboard B'!O349 -> 4900 | CA15: ='Dashboard B'!P349 -> 4900 | CB15: ='Dashboard B'!Q349 -> 4900 | CC15: ='Dashboard B'!R349 -> 4900 | CD15: ='Dashboard B'!S349 -> 4900 | CE15: per month | CI15: ='Dashboard B'!J349 -> 4900 | CJ15: ='Dashboard B'!K349 -> 4900 | CK15: ='Dashboard B'!L349 -> 4900 | CL15: ='Dashboard B'!M349 -> 4900 | CM15: ='Dashboard B'!N349 -> 4900 | CN15: ='Dashboard B'!O349 -> 4900 | CO15: ='Dashboard B'!P349 -> 4900 | CP15: ='Dashboard B'!Q349 -> 4900 | CQ15: ='Dashboard B'!R349 -> 4900 | CR15: ='Dashboard B'!S349 -> 4900 | CS15: per month
AP17: Retrofit cost | AS17: n/a | AT17: n/a | AU17: n/a | AV17: n/a | AW17: n/a | AX17: n/a | AY17: n/a | AZ17: n/a | BA17: n/a | BB17: n/a | BG17: ='Dashboard B'!J450 -> 0 | BH17: ='Dashboard B'!K450 -> 0 | BI17: ='Dashboard B'!L450 -> 0 | BJ17: ='Dashboard B'!M450 -> 0 | BK17: ='Dashboard B'!N450 -> 0 | BL17: ='Dashboard B'!O450 -> 0 | BM17: ='Dashboard B'!P450 -> 0 | BN17: ='Dashboard B'!Q450 -> 0 | BO17: ='Dashboard B'!R450 -> 0 | BP17: ='Dashboard B'!S450 -> 0 | BU17: ='Dashboard B'!J411 -> 108000 | BV17: ='Dashboard B'!K411 -> 108000 | BW17: ='Dashboard B'!L411 -> 108000 | BX17: ='Dashboard B'!M411 -> 108000 | BY17: ='Dashboard B'!N411 -> 108000 | BZ17: ='Dashboard B'!O411 -> 108000 | CA17: ='Dashboard B'!P411 -> 108000 | CB17: ='Dashboard B'!Q411 -> 108000 | CC17: ='Dashboard B'!R411 -> 108000 | CD17: ='Dashboard B'!S411 -> 108000 | CI17: n/a | CJ17: n/a | CK17: n/a | CL17: n/a | CM17: n/a | CN17: n/a | CO17: n/a | CP17: n/a | CQ17: n/a | CR17: n/a
C19: Residual value | G19: ='Dashboard B'!J105 -> 0.418 | H19: ='Dashboard B'!K105 -> 0.418 | I19: ='Dashboard B'!L105 -> 0.418 | J19: ='Dashboard B'!M105 -> 0.418 | K19: ='Dashboard B'!N105 -> 0.418 | L19: ='Dashboard B'!O105 -> 0.418 | M19: ='Dashboard B'!P105 -> 0.418 | N19: ='Dashboard B'!Q105 -> 0.418 | O19: ='Dashboard B'!R105 -> 0.418 | P19: ='Dashboard B'!S105 -> 0.418 | V19: Residual value | AA19: ='Dashboard B'!J199 -> 0.418 | AB19: ='Dashboard B'!K199 -> 0.418 | AC19: ='Dashboard B'!L199 -> 0.418 | AD19: ='Dashboard B'!M199 -> 0.418 | AE19: ='Dashboard B'!N199 -> 0.418 | AF19: ='Dashboard B'!O199 -> 0.418 | AG19: ='Dashboard B'!P199 -> 0.418 | AH19: ='Dashboard B'!Q199 -> 0.418 | AI19: ='Dashboard B'!R199 -> 0.418 | AJ19: ='Dashboard B'!S199 -> 0.418 | AP19: Residual value | AS19: ='Dashboard B'!J331 -> 0.418 | AT19: ='Dashboard B'!K331 -> 0.418 | AU19: ='Dashboard B'!L331 -> 0.418 | AV19: ='Dashboard B'!M331 -> 0.418 | AW19: ='Dashboard B'!N331 -> 0.418 | AX19: ='Dashboard B'!O331 -> 0.418 | AY19: ='Dashboard B'!P331 -> 0.418 | AZ19: ='Dashboard B'!Q331 -> 0.418 | BA19: ='Dashboard B'!R331 -> 0.418 | BB19: ='Dashboard B'!S331 -> 0.418 | BG19: ='Dashboard B'!J331 -> 0.418 | BH19: ='Dashboard B'!K331 -> 0.418 | BI19: ='Dashboard B'!L331 -> 0.418 | BJ19: ='Dashboard B'!M331 -> 0.418 | BK19: ='Dashboard B'!N331 -> 0.418 | BL19: ='Dashboard B'!O331 -> 0.418 | BM19: ='Dashboard B'!P331 -> 0.418 | BN19: ='Dashboard B'!Q331 -> 0.418 | BO19: ='Dashboard B'!R331 -> 0.418 | BP19: ='Dashboard B'!S331 -> 0.418 | BU19: ='Dashboard B'!J331 -> 0.418 | BV19: ='Dashboard B'!K331 -> 0.418 | BW19: ='Dashboard B'!L331 -> 0.418 | BX19: ='Dashboard B'!M331 -> 0.418 | BY19: ='Dashboard B'!N331 -> 0.418 | BZ19: ='Dashboard B'!O331 -> 0.418 | CA19: ='Dashboard B'!P331 -> 0.418 | CB19: ='Dashboard B'!Q331 -> 0.418 | CC19: ='Dashboard B'!R331 -> 0.418 | CD19: ='Dashboard B'!S331 -> 0.418 | CI19: ='Dashboard B'!J331 -> 0.418 | CJ19: ='Dashboard B'!K331 -> 0.418 | CK19: ='Dashboard B'!L331 -> 0.418 | CL19: ='Dashboard B'!M331 -> 0.418 | CM19: ='Dashboard B'!N331 -> 0.418 | CN19: ='Dashboard B'!O331 -> 0.418 | CO19: ='Dashboard B'!P331 -> 0.418 | CP19: ='Dashboard B'!Q331 -> 0.418 | CQ19: ='Dashboard B'!R331 -> 0.418 | CR19: ='Dashboard B'!S331 -> 0.418
C21: Freight operator's WACC | G21: ='Dashboard A'!$P$24 -> 0.08 | H21: ='Dashboard A'!$P$24 -> 0.08 | I21: ='Dashboard A'!$P$24 -> 0.08 | J21: ='Dashboard A'!$P$24 -> 0.08 | K21: ='Dashboard A'!$P$24 -> 0.08 | L21: ='Dashboard A'!$P$24 -> 0.08 | M21: ='Dashboard A'!$P$24 -> 0.08 | N21: ='Dashboard A'!$P$24 -> 0.08 | O21: ='Dashboard A'!$P$24 -> 0.08 | P21: ='Dashboard A'!$P$24 -> 0.08 | V21: Freight operator's WACC | AA21: ='Dashboard A'!$P$24 -> 0.08 | AB21: ='Dashboard A'!$P$24 -> 0.08 | AC21: ='Dashboard A'!$P$24 -> 0.08 | AD21: ='Dashboard A'!$P$24 -> 0.08 | AE21: ='Dashboard A'!$P$24 -> 0.08 | AF21: ='Dashboard A'!$P$24 -> 0.08 | AG21: ='Dashboard A'!$P$24 -> 0.08 | AH21: ='Dashboard A'!$P$24 -> 0.08 | AI21: ='Dashboard A'!$P$24 -> 0.08 | AJ21: ='Dashboard A'!$P$24 -> 0.08 | AP21: Freight operator's WACC | AS21: ='Dashboard A'!$P$24 -> 0.08 | AT21: ='Dashboard A'!$P$24 -> 0.08 | AU21: ='Dashboard A'!$P$24 -> 0.08 | AV21: ='Dashboard A'!$P$24 -> 0.08 | AW21: ='Dashboard A'!$P$24 -> 0.08 | AX21: ='Dashboard A'!$P$24 -> 0.08 | AY21: ='Dashboard A'!$P$24 -> 0.08 | AZ21: ='Dashboard A'!$P$24 -> 0.08 | BA21: ='Dashboard A'!$P$24 -> 0.08 | BB21: ='Dashboard A'!$P$24 -> 0.08 | BG21: ='Dashboard A'!$P$24 -> 0.08 | BH21: ='Dashboard A'!$P$24 -> 0.08 | BI21: ='Dashboard A'!$P$24 -> 0.08 | BJ21: ='Dashboard A'!$P$24 -> 0.08 | BK21: ='Dashboard A'!$P$24 -> 0.08 | BL21: ='Dashboard A'!$P$24 -> 0.08 | BM21: ='Dashboard A'!$P$24 -> 0.08 | BN21: ='Dashboard A'!$P$24 -> 0.08 | BO21: ='Dashboard A'!$P$24 -> 0.08 | BP21: ='Dashboard A'!$P$24 -> 0.08 | BU21: ='Dashboard A'!$P$24 -> 0.08 | BV21: ='Dashboard A'!$P$24 -> 0.08 | BW21: ='Dashboard A'!$P$24 -> 0.08 | BX21: ='Dashboard A'!$P$24 -> 0.08 | BY21: ='Dashboard A'!$P$24 -> 0.08 | BZ21: ='Dashboard A'!$P$24 -> 0.08 | CA21: ='Dashboard A'!$P$24 -> 0.08 | CB21: ='Dashboard A'!$P$24 -> 0.08 | CC21: ='Dashboard A'!$P$24 -> 0.08 | CD21: ='Dashboard A'!$P$24 -> 0.08 | CI21: ='Dashboard A'!$P$24 -> 0.08 | CJ21: ='Dashboard A'!$P$24 -> 0.08 | CK21: ='Dashboard A'!$P$24 -> 0.08 | CL21: ='Dashboard A'!$P$24 -> 0.08 | CM21: ='Dashboard A'!$P$24 -> 0.08 | CN21: ='Dashboard A'!$P$24 -> 0.08 | CO21: ='Dashboard A'!$P$24 -> 0.08 | CP21: ='Dashboard A'!$P$24 -> 0.08 | CQ21: ='Dashboard A'!$P$24 -> 0.08 | CR21: ='Dashboard A'!$P$24 -> 0.08
C23: Duration of ownership | G23: ='Dashboard A'!$P$26 -> 5 | H23: ='Dashboard A'!$P$26 -> 5 | I23: ='Dashboard A'!$P$26 -> 5 | J23: ='Dashboard A'!$P$26 -> 5 | K23: ='Dashboard A'!$P$26 -> 5 | L23: ='Dashboard A'!$P$26 -> 5 | M23: ='Dashboard A'!$P$26 -> 5 | N23: ='Dashboard A'!$P$26 -> 5 | O23: ='Dashboard A'!$P$26 -> 5 | P23: ='Dashboard A'!$P$26 -> 5 | Q23: years | V23: Duration of ownership | AA23: ='Dashboard A'!$P$26 -> 5 | AB23: ='Dashboard A'!$P$26 -> 5 | AC23: ='Dashboard A'!$P$26 -> 5 | AD23: ='Dashboard A'!$P$26 -> 5 | AE23: ='Dashboard A'!$P$26 -> 5 | AF23: ='Dashboard A'!$P$26 -> 5 | AG23: ='Dashboard A'!$P$26 -> 5 | AH23: ='Dashboard A'!$P$26 -> 5 | AI23: ='Dashboard A'!$P$26 -> 5 | AJ23: ='Dashboard A'!$P$26 -> 5 | AK23: years | AP23: Duration of ownership | AS23: ='Dashboard A'!$P$26 -> 5 | AT23: ='Dashboard A'!$P$26 -> 5 | AU23: ='Dashboard A'!$P$26 -> 5 | AV23: ='Dashboard A'!$P$26 -> 5 | AW23: ='Dashboard A'!$P$26 -> 5 | AX23: ='Dashboard A'!$P$26 -> 5 | AY23: ='Dashboard A'!$P$26 -> 5 | AZ23: ='Dashboard A'!$P$26 -> 5 | BA23: ='Dashboard A'!$P$26 -> 5 | BB23: ='Dashboard A'!$P$26 -> 5 | BC23: =BQ23 -> years | BG23: ='Dashboard A'!$P$26 -> 5 | BH23: ='Dashboard A'!$P$26 -> 5 | BI23: ='Dashboard A'!$P$26 -> 5 | BJ23: ='Dashboard A'!$P$26 -> 5 | BK23: ='Dashboard A'!$P$26 -> 5 | BL23: ='Dashboard A'!$P$26 -> 5 | BM23: ='Dashboard A'!$P$26 -> 5 | BN23: ='Dashboard A'!$P$26 -> 5 | BO23: ='Dashboard A'!$P$26 -> 5 | BP23: ='Dashboard A'!$P$26 -> 5 | BQ23: =CS23 -> years | BU23: ='Dashboard A'!$P$26 -> 5 | BV23: ='Dashboard A'!$P$26 -> 5 | BW23: ='Dashboard A'!$P$26 -> 5 | BX23: ='Dashboard A'!$P$26 -> 5 | BY23: ='Dashboard A'!$P$26 -> 5 | BZ23: ='Dashboard A'!$P$26 -> 5 | CA23: ='Dashboard A'!$P$26 -> 5 | CB23: ='Dashboard A'!$P$26 -> 5 | CC23: ='Dashboard A'!$P$26 -> 5 | CD23: ='Dashboard A'!$P$26 -> 5 | CE23: years | CI23: ='Dashboard A'!$P$26 -> 5 | CJ23: ='Dashboard A'!$P$26 -> 5 | CK23: ='Dashboard A'!$P$26 -> 5 | CL23: ='Dashboard A'!$P$26 -> 5 | CM23: ='Dashboard A'!$P$26 -> 5 | CN23: ='Dashboard A'!$P$26 -> 5 | CO23: ='Dashboard A'!$P$26 -> 5 | CP23: ='Dashboard A'!$P$26 -> 5 | CQ23: ='Dashboard A'!$P$26 -> 5 | CR23: ='Dashboard A'!$P$26 -> 5 | CS23: years
C25: Annual capital cost | G25: =-PMT(G21,G23,G13,-(G13*G19),0) -> 109494.6562 | H25: =-PMT(H21,H23,H13,-(H13*H19),0) -> 102924.9768 | I25: 96749.47818 | J25: 90944.50949 | K25: 85487.83892 | L25: 80358.56858 | M25: 75537.05447 | N25: 71004.8312 | O25: 66744.54133 | P25: 62739.86885 | V25: Annual capital cost | AA25: =-PMT(AA21,AA23,AA13,-(AA13*AA19),0) -> 73295.11353 | AB25: =-PMT(AB21,AB23,AB13,-(AB13*AB19),0) -> 70949.6699 | AC25: 68679.28046 | AD25: 66481.54349 | AE25: 64354.1341 | AF25: 62294.8018 | AG25: 60301.36815 | AH25: 58371.72437 | AI25: 56503.82919 | AJ25: =-PMT(AJ21,AJ23,AJ13,-(AJ13*AJ19),0) -> 54695.70665 | AP25: Annual capital cost | AS25: =-PMT(AS21,AS23,AS13,-(AS13*AS19),0) -> 44801.41414 | AT25: =-PMT(AT21,AT23,AT13,-(AT13*AT19),0) -> 44801.41414 | AU25: 44801.41414 | AV25: 44801.41414 | AW25: 44801.41414 | AX25: 44801.41414 | AY25: 44801.41414 | AZ25: 44801.41414 | BA25: 44801.41414 | BB25: 44801.41414 | BG25: =-PMT(BG21,BG23,(BG13+BG17),-(BG13*BG19),0) -> 44801.41414 | BH25: =-PMT(BH21,BH23,(BH13+BH17),-(BH13*BH19),0) -> 44801.41414 | BI25: 44801.41414 | BJ25: 44801.41414 | BK25: 44801.41414 | BL25: 44801.41414 | BM25: 44801.41414 | BN25: 44801.41414 | BO25: 44801.41414 | BP25: 44801.41414 | BU25: =-PMT(BU21,BU23,(BU13+BU17),-(BU13*BU19),0) -> 71850.71123 | BV25: =-PMT(BV21,BV23,(BV13+BV17),-(BV13*BV19),0) -> 71850.71123 | BW25: 71850.71123 | BX25: 71850.71123 | BY25: 71850.71123 | BZ25: 71850.71123 | CA25: 71850.71123 | CB25: 71850.71123 | CC25: 71850.71123 | CD25: 71850.71123 | CI25: =-PMT(CI21,CI23,CI13,-(CI13*CI19),0) -> 44801.41414 | CJ25: =-PMT(CJ21,CJ23,CJ13,-(CJ13*CJ19),0) -> 44801.41414 | CK25: 44801.41414 | CL25: 44801.41414 | CM25: 44801.41414 | CN25: 44801.41414 | CO25: 44801.41414 | CP25: 44801.41414 | CQ25: 44801.41414 | CR25: 44801.41414
C29: Trip distance | G29: ='Dashboard A'!$X$12 -> 630 | H29: ='Dashboard A'!$X$12 -> 630 | I29: ='Dashboard A'!$X$12 -> 630 | J29: ='Dashboard A'!$X$12 -> 630 | K29: ='Dashboard A'!$X$12 -> 630 | L29: ='Dashboard A'!$X$12 -> 630 | M29: ='Dashboard A'!$X$12 -> 630 | N29: ='Dashboard A'!$X$12 -> 630 | O29: ='Dashboard A'!$X$12 -> 630 | P29: ='Dashboard A'!$X$12 -> 630 | Q29: kms | V29: Trip distance | AA29: ='Dashboard A'!$X$12 -> 630 | AB29: ='Dashboard A'!$X$12 -> 630 | AC29: ='Dashboard A'!$X$12 -> 630 | AD29: ='Dashboard A'!$X$12 -> 630 | AE29: ='Dashboard A'!$X$12 -> 630 | AF29: ='Dashboard A'!$X$12 -> 630 | AG29: ='Dashboard A'!$X$12 -> 630 | AH29: ='Dashboard A'!$X$12 -> 630 | AI29: ='Dashboard A'!$X$12 -> 630 | AJ29: ='Dashboard A'!$X$12 -> 630 | AK29: kms | AP29: Trip distance | AS29: ='Dashboard A'!$X$12 -> 630 | AT29: ='Dashboard A'!$X$12 -> 630 | AU29: ='Dashboard A'!$X$12 -> 630 | AV29: ='Dashboard A'!$X$12 -> 630 | AW29: ='Dashboard A'!$X$12 -> 630 | AX29: ='Dashboard A'!$X$12 -> 630 | AY29: ='Dashboard A'!$X$12 -> 630 | AZ29: ='Dashboard A'!$X$12 -> 630 | BA29: ='Dashboard A'!$X$12 -> 630 | BB29: ='Dashboard A'!$X$12 -> 630 | BC29: kms | BG29: ='Dashboard A'!$X$12 -> 630 | BH29: ='Dashboard A'!$X$12 -> 630 | BI29: ='Dashboard A'!$X$12 -> 630 | BJ29: ='Dashboard A'!$X$12 -> 630 | BK29: ='Dashboard A'!$X$12 -> 630 | BL29: ='Dashboard A'!$X$12 -> 630 | BM29: ='Dashboard A'!$X$12 -> 630 | BN29: ='Dashboard A'!$X$12 -> 630 | BO29: ='Dashboard A'!$X$12 -> 630 | BP29: ='Dashboard A'!$X$12 -> 630 | BQ29: kms | BU29: ='Dashboard A'!$X$12 -> 630 | BV29: ='Dashboard A'!$X$12 -> 630 | BW29: ='Dashboard A'!$X$12 -> 630 | BX29: ='Dashboard A'!$X$12 -> 630 | BY29: ='Dashboard A'!$X$12 -> 630 | BZ29: ='Dashboard A'!$X$12 -> 630 | CA29: ='Dashboard A'!$X$12 -> 630 | CB29: ='Dashboard A'!$X$12 -> 630 | CC29: ='Dashboard A'!$X$12 -> 630 | CD29: ='Dashboard A'!$X$12 -> 630 | CE29: kms | CI29: ='Dashboard A'!$X$12 -> 630 | CJ29: ='Dashboard A'!$X$12 -> 630 | CK29: ='Dashboard A'!$X$12 -> 630 | CL29: ='Dashboard A'!$X$12 -> 630 | CM29: ='Dashboard A'!$X$12 -> 630 | CN29: ='Dashboard A'!$X$12 -> 630 | CO29: ='Dashboard A'!$X$12 -> 630 | CP29: ='Dashboard A'!$X$12 -> 630 | CQ29: ='Dashboard A'!$X$12 -> 630 | CR29: ='Dashboard A'!$X$12 -> 630 | CS29: kms
C31: Driver days driving/year | G31: ='Dashboard A'!$X$10 -> 243 | H31: ='Dashboard A'!$X$10 -> 243 | I31: ='Dashboard A'!$X$10 -> 243 | J31: ='Dashboard A'!$X$10 -> 243 | K31: ='Dashboard A'!$X$10 -> 243 | L31: ='Dashboard A'!$X$10 -> 243 | M31: ='Dashboard A'!$X$10 -> 243 | N31: ='Dashboard A'!$X$10 -> 243 | O31: ='Dashboard A'!$X$10 -> 243 | P31: ='Dashboard A'!$X$10 -> 243 | Q31: days per year | V31: Driver days driving/year | AA31: ='Dashboard A'!$X$10 -> 243 | AB31: ='Dashboard A'!$X$10 -> 243 | AC31: ='Dashboard A'!$X$10 -> 243 | AD31: ='Dashboard A'!$X$10 -> 243 | AE31: ='Dashboard A'!$X$10 -> 243 | AF31: ='Dashboard A'!$X$10 -> 243 | AG31: ='Dashboard A'!$X$10 -> 243 | AH31: ='Dashboard A'!$X$10 -> 243 | AI31: ='Dashboard A'!$X$10 -> 243 | AJ31: ='Dashboard A'!$X$10 -> 243 | AK31: days per year | AP31: Driver days driving/year | AS31: ='Dashboard A'!$X$10 -> 243 | AT31: ='Dashboard A'!$X$10 -> 243 | AU31: ='Dashboard A'!$X$10 -> 243 | AV31: ='Dashboard A'!$X$10 -> 243 | AW31: ='Dashboard A'!$X$10 -> 243 | AX31: ='Dashboard A'!$X$10 -> 243 | AY31: ='Dashboard A'!$X$10 -> 243 | AZ31: ='Dashboard A'!$X$10 -> 243 | BA31: ='Dashboard A'!$X$10 -> 243 | BB31: ='Dashboard A'!$X$10 -> 243 | BC31: =BQ31 -> days per year | BG31: ='Dashboard A'!$X$10 -> 243 | BH31: ='Dashboard A'!$X$10 -> 243 | BI31: ='Dashboard A'!$X$10 -> 243 | BJ31: ='Dashboard A'!$X$10 -> 243 | BK31: ='Dashboard A'!$X$10 -> 243 | BL31: ='Dashboard A'!$X$10 -> 243 | BM31: ='Dashboard A'!$X$10 -> 243 | BN31: ='Dashboard A'!$X$10 -> 243 | BO31: ='Dashboard A'!$X$10 -> 243 | BP31: ='Dashboard A'!$X$10 -> 243 | BQ31: =CS31 -> days per year | BU31: ='Dashboard A'!$X$10 -> 243 | BV31: ='Dashboard A'!$X$10 -> 243 | BW31: ='Dashboard A'!$X$10 -> 243 | BX31: ='Dashboard A'!$X$10 -> 243 | BY31: ='Dashboard A'!$X$10 -> 243 | BZ31: ='Dashboard A'!$X$10 -> 243 | CA31: ='Dashboard A'!$X$10 -> 243 | CB31: ='Dashboard A'!$X$10 -> 243 | CC31: ='Dashboard A'!$X$10 -> 243 | CD31: ='Dashboard A'!$X$10 -> 243 | CE31: days per year | CI31: ='Dashboard A'!$X$10 -> 243 | CJ31: ='Dashboard A'!$X$10 -> 243 | CK31: ='Dashboard A'!$X$10 -> 243 | CL31: ='Dashboard A'!$X$10 -> 243 | CM31: ='Dashboard A'!$X$10 -> 243 | CN31: ='Dashboard A'!$X$10 -> 243 | CO31: ='Dashboard A'!$X$10 -> 243 | CP31: ='Dashboard A'!$X$10 -> 243 | CQ31: ='Dashboard A'!$X$10 -> 243 | CR31: ='Dashboard A'!$X$10 -> 243 | CS31: days per year
C33: Annual kms1 | G33: =G29*G31 -> 153090 | H33: =H29*H31 -> 153090 | I33: 153090 | J33: 153090 | K33: 153090 | L33: 153090 | M33: 153090 | N33: 153090 | O33: 153090 | P33: 153090 | Q33: kms per year | V33: Annual kms1 | AA33: =AA29*AA31 -> 153090 | AB33: =AB29*AB31 -> 153090 | AC33: 153090 | AD33: 153090 | AE33: 153090 | AF33: 153090 | AG33: 153090 | AH33: 153090 | AI33: 153090 | AJ33: =AJ29*AJ31 -> 153090 | AK33: kms per year | AP33: Annual kms1 | AS33: =AS29*AS31 -> 153090 | AT33: 153090 | AU33: 153090 | AV33: 153090 | AW33: 153090 | AX33: 153090 | AY33: 153090 | AZ33: 153090 | BA33: 153090 | BB33: 153090 | BC33: =BQ33 -> kms per year | BG33: =BG29*BG31 -> 153090 | BH33: 153090 | BI33: 153090 | BJ33: 153090 | BK33: 153090 | BL33: 153090 | BM33: 153090 | BN33: 153090 | BO33: 153090 | BP33: 153090 | BQ33: =CS33 -> kms per year | BU33: =BU29*BU31 -> 153090 | BV33: =BV29*BV31 -> 153090 | BW33: 153090 | BX33: 153090 | BY33: 153090 | BZ33: 153090 | CA33: 153090 | CB33: 153090 | CC33: 153090 | CD33: 153090 | CE33: kms per year | CI33: =CI29*CI31 -> 153090 | CJ33: 153090 | CK33: 153090 | CL33: 153090 | CM33: 153090 | CN33: 153090 | CO33: 153090 | CP33: 153090 | CQ33: 153090 | CR33: 153090 | CS33: kms per year
C35: Capital cost per km | G35: =IF('Dashboard A'!$AY$14=0,G25/G33,(G15/(G33/12))) -> 0.7152306235 | H35: =IF('Dashboard A'!$AY$14=0,H25/H33,(H15/(H33/12))) -> 0.6723167861 | I35: =IF('Dashboard A'!$AY$14=0,I25/I33,(I15/(I33/12))) -> 0.631977779 | J35: =IF('Dashboard A'!$AY$14=0,J25/J33,(J15/(J33/12))) -> 0.5940591122 | K35: =IF('Dashboard A'!$AY$14=0,K25/K33,(K15/(K33/12))) -> 0.5584155655 | L35: =IF('Dashboard A'!$AY$14=0,L25/L33,(L15/(L33/12))) -> 0.5249106316 | M35: =IF('Dashboard A'!$AY$14=0,M25/M33,(M15/(M33/12))) -> 0.4934159937 | N35: =IF('Dashboard A'!$AY$14=0,N25/N33,(N15/(N33/12))) -> 0.463811034 | O35: =IF('Dashboard A'!$AY$14=0,O25/O33,(O15/(O33/12))) -> 0.435982372 | P35: =IF('Dashboard A'!$AY$14=0,P25/P33,(P15/(P33/12))) -> 0.4098234297 | Q35: per km | V35: Capital cost per km | AA35: =IF('Dashboard A'!$AY$14=0,AA25/AA33,(AA15/(AA33/12))) -> 0.4787713994 | AB35: =IF('Dashboard A'!$AY$14=0,AB25/AB33,(AB15/(AB33/12))) -> 0.4634507146 | AC35: =IF('Dashboard A'!$AY$14=0,AC25/AC33,(AC15/(AC33/12))) -> 0.4486202917 | AD35: =IF('Dashboard A'!$AY$14=0,AD25/AD33,(AD15/(AD33/12))) -> 0.4342644424 | AE35: =IF('Dashboard A'!$AY$14=0,AE25/AE33,(AE15/(AE33/12))) -> 0.4203679802 | AF35: =IF('Dashboard A'!$AY$14=0,AF25/AF33,(AF15/(AF33/12))) -> 0.4069162049 | AG35: =IF('Dashboard A'!$AY$14=0,AG25/AG33,(AG15/(AG33/12))) -> 0.3938948863 | AH35: =IF('Dashboard A'!$AY$14=0,AH25/AH33,(AH15/(AH33/12))) -> 0.38129025 | AI35: =IF('Dashboard A'!$AY$14=0,AI25/AI33,(AI15/(AI33/12))) -> 0.369088962 | AJ35: =IF('Dashboard A'!$AY$14=0,AJ25/AJ33,(AJ15/(AJ33/12))) -> 0.3572781152 | AK35: per km | AP35: Capital cost per km | AS35: =IF('Dashboard A'!$AY$14=0,AS25/AS33,(AS15/(AS33/12))) -> 0.2926475546 | AT35: =IF('Dashboard A'!$AY$14=0,AT25/AT33,(AT15/(AT33/12))) -> 0.2926475546 | AU35: =IF('Dashboard A'!$AY$14=0,AU25/AU33,(AU15/(AU33/12))) -> 0.2926475546 | AV35: =IF('Dashboard A'!$AY$14=0,AV25/AV33,(AV15/(AV33/12))) -> 0.2926475546 | AW35: =IF('Dashboard A'!$AY$14=0,AW25/AW33,(AW15/(AW33/12))) -> 0.2926475546 | AX35: =IF('Dashboard A'!$AY$14=0,AX25/AX33,(AX15/(AX33/12))) -> 0.2926475546 | AY35: =IF('Dashboard A'!$AY$14=0,AY25/AY33,(AY15/(AY33/12))) -> 0.2926475546 | AZ35: =IF('Dashboard A'!$AY$14=0,AZ25/AZ33,(AZ15/(AZ33/12))) -> 0.2926475546 | BA35: =IF('Dashboard A'!$AY$14=0,BA25/BA33,(BA15/(BA33/12))) -> 0.2926475546 | BB35: =IF('Dashboard A'!$AY$14=0,BB25/BB33,(BB15/(BB33/12))) -> 0.2926475546 | BC35: =BQ35 -> per km | BG35: =IF('Dashboard A'!$AY$14=0,BG25/BG33,(BG15/(BG33/12))) -> 0.2926475546 | BH35: =IF('Dashboard A'!$AY$14=0,BH25/BH33,(BH15/(BH33/12))) -> 0.2926475546 | BI35: =IF('Dashboard A'!$AY$14=0,BI25/BI33,(BI15/(BI33/12))) -> 0.2926475546 | BJ35: =IF('Dashboard A'!$AY$14=0,BJ25/BJ33,(BJ15/(BJ33/12))) -> 0.2926475546 | BK35: =IF('Dashboard A'!$AY$14=0,BK25/BK33,(BK15/(BK33/12))) -> 0.2926475546 | BL35: =IF('Dashboard A'!$AY$14=0,BL25/BL33,(BL15/(BL33/12))) -> 0.2926475546 | BM35: =IF('Dashboard A'!$AY$14=0,BM25/BM33,(BM15/(BM33/12))) -> 0.2926475546 | BN35: =IF('Dashboard A'!$AY$14=0,BN25/BN33,(BN15/(BN33/12))) -> 0.2926475546 | BO35: =IF('Dashboard A'!$AY$14=0,BO25/BO33,(BO15/(BO33/12))) -> 0.2926475546 | BP35: =IF('Dashboard A'!$AY$14=0,BP25/BP33,(BP15/(BP33/12))) -> 0.2926475546 | BQ35: =CS35 -> per km | BU35: =IF('Dashboard A'!$AY$14=0,BU25/BU33,(BU15/(BU33/12))) -> 0.4693364115 | BV35: =IF('Dashboard A'!$AY$14=0,BV25/BV33,(BV15/(BV33/12))) -> 0.4693364115 | BW35: =IF('Dashboard A'!$AY$14=0,BW25/BW33,(BW15/(BW33/12))) -> 0.4693364115 | BX35: =IF('Dashboard A'!$AY$14=0,BX25/BX33,(BX15/(BX33/12))) -> 0.4693364115 | BY35: =IF('Dashboard A'!$AY$14=0,BY25/BY33,(BY15/(BY33/12))) -> 0.4693364115 | BZ35: =IF('Dashboard A'!$AY$14=0,BZ25/BZ33,(BZ15/(BZ33/12))) -> 0.4693364115 | CA35: =IF('Dashboard A'!$AY$14=0,CA25/CA33,(CA15/(CA33/12))) -> 0.4693364115 | CB35: =IF('Dashboard A'!$AY$14=0,CB25/CB33,(CB15/(CB33/12))) -> 0.4693364115 | CC35: =IF('Dashboard A'!$AY$14=0,CC25/CC33,(CC15/(CC33/12))) -> 0.4693364115 | CD35: =IF('Dashboard A'!$AY$14=0,CD25/CD33,(CD15/(CD33/12))) -> 0.4693364115 | CE35: per km | CI35: =IF('Dashboard A'!$AY$14=0,CI25/CI33,(CI15/(CI33/12))) -> 0.2926475546 | CJ35: =IF('Dashboard A'!$AY$14=0,CJ25/CJ33,(CJ15/(CJ33/12))) -> 0.2926475546 | CK35: =IF('Dashboard A'!$AY$14=0,CK25/CK33,(CK15/(CK33/12))) -> 0.2926475546 | CL35: =IF('Dashboard A'!$AY$14=0,CL25/CL33,(CL15/(CL33/12))) -> 0.2926475546 | CM35: =IF('Dashboard A'!$AY$14=0,CM25/CM33,(CM15/(CM33/12))) -> 0.2926475546 | CN35: =IF('Dashboard A'!$AY$14=0,CN25/CN33,(CN15/(CN33/12))) -> 0.2926475546 | CO35: =IF('Dashboard A'!$AY$14=0,CO25/CO33,(CO15/(CO33/12))) -> 0.2926475546 | CP35: =IF('Dashboard A'!$AY$14=0,CP25/CP33,(CP15/(CP33/12))) -> 0.2926475546 | CQ35: =IF('Dashboard A'!$AY$14=0,CQ25/CQ33,(CQ15/(CQ33/12))) -> 0.2926475546 | CR35: =IF('Dashboard A'!$AY$14=0,CR25/CR33,(CR15/(CR33/12))) -> 0.2926475546 | CS35: per km
C37: Maintenance cost per km2 | G37: =IF(AND('Dashboard A'!$AY$14=1,'Dashboard A'!$AY$18=TRUE),"n/a",'Dashboard B'!J340*'Dashboard B'!J114) -> 0.06072 | H37: =IF(AND('Dashboard A'!$AY$14=1,'Dashboard A'!$AY$18=TRUE),"n/a",'Dashboard B'!K340*'Dashboard B'!K114) -> 0.060641064 | I37: =IF(AND('Dashboard A'!$AY$14=1,'Dashboard A'!$AY$18=TRUE),"n/a",'Dashboard B'!L340*'Dashboard B'!L114) -> 0.06056223062 | J37: =IF(AND('Dashboard A'!$AY$14=1,'Dashboard A'!$AY$18=TRUE),"n/a",'Dashboard B'!M340*'Dashboard B'!M114) -> 0.06048349972 | K37: =IF(AND('Dashboard A'!$AY$14=1,'Dashboard A'!$AY$18=TRUE),"n/a",'Dashboard B'!N340*'Dashboard B'!N114) -> 0.06040487117 | L37: =IF(AND('Dashboard A'!$AY$14=1,'Dashboard A'!$AY$18=TRUE),"n/a",'Dashboard B'!O340*'Dashboard B'!O114) -> 0.06032634483 | M37: =IF(AND('Dashboard A'!$AY$14=1,'Dashboard A'!$AY$18=TRUE),"n/a",'Dashboard B'!P340*'Dashboard B'!P114) -> 0.06024792059 | N37: =IF(AND('Dashboard A'!$AY$14=1,'Dashboard A'!$AY$18=TRUE),"n/a",'Dashboard B'!Q340*'Dashboard B'!Q114) -> 0.06016959829 | O37: =IF(AND('Dashboard A'!$AY$14=1,'Dashboard A'!$AY$18=TRUE),"n/a",'Dashboard B'!R340*'Dashboard B'!R114) -> 0.06009137781 | P37: =IF(AND('Dashboard A'!$AY$14=1,'Dashboard A'!$AY$18=TRUE),"n/a",'Dashboard B'!S340*'Dashboard B'!S114) -> 0.06001325902 | Q37: per km | V37: Maintenance cost per km2 | AA37: =IF(AND('Dashboard A'!$AY$14=1,'Dashboard A'!$AY$18=TRUE),"n/a",'Dashboard B'!J340*'Dashboard B'!J208) -> 0.06072 | AB37: =IF(AND('Dashboard A'!$AY$14=1,'Dashboard A'!$AY$18=TRUE),"n/a",'Dashboard B'!K340*'Dashboard B'!K208) -> 0.060641064 | AC37: =IF(AND('Dashboard A'!$AY$14=1,'Dashboard A'!$AY$18=TRUE),"n/a",'Dashboard B'!L340*'Dashboard B'!L208) -> 0.06056223062 | AD37: =IF(AND('Dashboard A'!$AY$14=1,'Dashboard A'!$AY$18=TRUE),"n/a",'Dashboard B'!M340*'Dashboard B'!M208) -> 0.06048349972 | AE37: =IF(AND('Dashboard A'!$AY$14=1,'Dashboard A'!$AY$18=TRUE),"n/a",'Dashboard B'!N340*'Dashboard B'!N208) -> 0.06040487117 | AF37: =IF(AND('Dashboard A'!$AY$14=1,'Dashboard A'!$AY$18=TRUE),"n/a",'Dashboard B'!O340*'Dashboard B'!O208) -> 0.06032634483 | AG37: =IF(AND('Dashboard A'!$AY$14=1,'Dashboard A'!$AY$18=TRUE),"n/a",'Dashboard B'!P340*'Dashboard B'!P208) -> 0.06024792059 | AH37: =IF(AND('Dashboard A'!$AY$14=1,'Dashboard A'!$AY$18=TRUE),"n/a",'Dashboard B'!Q340*'Dashboard B'!Q208) -> 0.06016959829 | AI37: =IF(AND('Dashboard A'!$AY$14=1,'Dashboard A'!$AY$18=TRUE),"n/a",'Dashboard B'!R340*'Dashboard B'!R208) -> 0.06009137781 | AJ37: =IF(AND('Dashboard A'!$AY$14=1,'Dashboard A'!$AY$18=TRUE),"n/a",'Dashboard B'!S340*'Dashboard B'!S208) -> 0.06001325902 | AK37: per km | AP37: Maintenance cost per km | AS37: =IF(AND('Dashboard A'!$AY$14=1,'Dashboard A'!$AY$18=TRUE),"n/a",'Dashboard B'!J340) -> 0.092 | AT37: =IF(AND('Dashboard A'!$AY$14=1,'Dashboard A'!$AY$18=TRUE),"n/a",'Dashboard B'!K340) -> 0.0918804 | AU37: =IF(AND('Dashboard A'!$AY$14=1,'Dashboard A'!$AY$18=TRUE),"n/a",'Dashboard B'!L340) -> 0.09176095548 | AV37: =IF(AND('Dashboard A'!$AY$14=1,'Dashboard A'!$AY$18=TRUE),"n/a",'Dashboard B'!M340) -> 0.09164166624 | AW37: =IF(AND('Dashboard A'!$AY$14=1,'Dashboard A'!$AY$18=TRUE),"n/a",'Dashboard B'!N340) -> 0.09152253207 | AX37: =IF(AND('Dashboard A'!$AY$14=1,'Dashboard A'!$AY$18=TRUE),"n/a",'Dashboard B'!O340) -> 0.09140355278 | AY37: =IF(AND('Dashboard A'!$AY$14=1,'Dashboard A'!$AY$18=TRUE),"n/a",'Dashboard B'!P340) -> 0.09128472816 | AZ37: =IF(AND('Dashboard A'!$AY$14=1,'Dashboard A'!$AY$18=TRUE),"n/a",'Dashboard B'!Q340) -> 0.09116605801 | BA37: =IF(AND('Dashboard A'!$AY$14=1,'Dashboard A'!$AY$18=TRUE),"n/a",'Dashboard B'!R340) -> 0.09104754214 | BB37: =IF(AND('Dashboard A'!$AY$14=1,'Dashboard A'!$AY$18=TRUE),"n/a",'Dashboard B'!S340) -> 0.09092918033 | BC37: =BQ37 -> per km | BG37: =IF(AND('Dashboard A'!$AY$14=1,'Dashboard A'!$AY$18=TRUE),"n/a",'Dashboard B'!J340) -> 0.092 | BH37: =IF(AND('Dashboard A'!$AY$14=1,'Dashboard A'!$AY$18=TRUE),"n/a",'Dashboard B'!K340) -> 0.0918804 | BI37: =IF(AND('Dashboard A'!$AY$14=1,'Dashboard A'!$AY$18=TRUE),"n/a",'Dashboard B'!L340) -> 0.09176095548 | BJ37: =IF(AND('Dashboard A'!$AY$14=1,'Dashboard A'!$AY$18=TRUE),"n/a",'Dashboard B'!M340) -> 0.09164166624 | BK37: =IF(AND('Dashboard A'!$AY$14=1,'Dashboard A'!$AY$18=TRUE),"n/a",'Dashboard B'!N340) -> 0.09152253207 | BL37: =IF(AND('Dashboard A'!$AY$14=1,'Dashboard A'!$AY$18=TRUE),"n/a",'Dashboard B'!O340) -> 0.09140355278 | BM37: =IF(AND('Dashboard A'!$AY$14=1,'Dashboard A'!$AY$18=TRUE),"n/a",'Dashboard B'!P340) -> 0.09128472816 | BN37: =IF(AND('Dashboard A'!$AY$14=1,'Dashboard A'!$AY$18=TRUE),"n/a",'Dashboard B'!Q340) -> 0.09116605801 | BO37: =IF(AND('Dashboard A'!$AY$14=1,'Dashboard A'!$AY$18=TRUE),"n/a",'Dashboard B'!R340) -> 0.09104754214 | BP37: =IF(AND('Dashboard A'!$AY$14=1,'Dashboard A'!$AY$18=TRUE),"n/a",'Dashboard B'!S340) -> 0.09092918033 | BQ37: =CS37 -> per km | BU37: =IF(AND('Dashboard A'!$AY$14=1,'Dashboard A'!$AY$18=TRUE),"n/a",'Dashboard B'!J340) -> 0.092 | BV37: =IF(AND('Dashboard A'!$AY$14=1,'Dashboard A'!$AY$18=TRUE),"n/a",'Dashboard B'!K340) -> 0.0918804 | BW37: =IF(AND('Dashboard A'!$AY$14=1,'Dashboard A'!$AY$18=TRUE),"n/a",'Dashboard B'!L340) -> 0.09176095548 | BX37: =IF(AND('Dashboard A'!$AY$14=1,'Dashboard A'!$AY$18=TRUE),"n/a",'Dashboard B'!M340) -> 0.09164166624 | BY37: =IF(AND('Dashboard A'!$AY$14=1,'Dashboard A'!$AY$18=TRUE),"n/a",'Dashboard B'!N340) -> 0.09152253207 | BZ37: =IF(AND('Dashboard A'!$AY$14=1,'Dashboard A'!$AY$18=TRUE),"n/a",'Dashboard B'!O340) -> 0.09140355278 | CA37: =IF(AND('Dashboard A'!$AY$14=1,'Dashboard A'!$AY$18=TRUE),"n/a",'Dashboard B'!P340) -> 0.09128472816 | CB37: =IF(AND('Dashboard A'!$AY$14=1,'Dashboard A'!$AY$18=TRUE),"n/a",'Dashboard B'!Q340) -> 0.09116605801 | CC37: =IF(AND('Dashboard A'!$AY$14=1,'Dashboard A'!$AY$18=TRUE),"n/a",'Dashboard B'!R340) -> 0.09104754214 | CD37: =IF(AND('Dashboard A'!$AY$14=1,'Dashboard A'!$AY$18=TRUE),"n/a",'Dashboard B'!S340) -> 0.09092918033 | CE37: per km | CI37: =IF(AND('Dashboard A'!$AY$14=1,'Dashboard A'!$AY$18=TRUE),"n/a",'Dashboard B'!J340) -> 0.092 | CJ37: =IF(AND('Dashboard A'!$AY$14=1,'Dashboard A'!$AY$18=TRUE),"n/a",'Dashboard B'!K340) -> 0.0918804 | CK37: =IF(AND('Dashboard A'!$AY$14=1,'Dashboard A'!$AY$18=TRUE),"n/a",'Dashboard B'!L340) -> 0.09176095548 | CL37: =IF(AND('Dashboard A'!$AY$14=1,'Dashboard A'!$AY$18=TRUE),"n/a",'Dashboard B'!M340) -> 0.09164166624 | CM37: =IF(AND('Dashboard A'!$AY$14=1,'Dashboard A'!$AY$18=TRUE),"n/a",'Dashboard B'!N340) -> 0.09152253207 | CN37: =IF(AND('Dashboard A'!$AY$14=1,'Dashboard A'!$AY$18=TRUE),"n/a",'Dashboard B'!O340) -> 0.09140355278 | CO37: =IF(AND('Dashboard A'!$AY$14=1,'Dashboard A'!$AY$18=TRUE),"n/a",'Dashboard B'!P340) -> 0.09128472816 | CP37: =IF(AND('Dashboard A'!$AY$14=1,'Dashboard A'!$AY$18=TRUE),"n/a",'Dashboard B'!Q340) -> 0.09116605801 | CQ37: =IF(AND('Dashboard A'!$AY$14=1,'Dashboard A'!$AY$18=TRUE),"n/a",'Dashboard B'!R340) -> 0.09104754214 | CR37: =IF(AND('Dashboard A'!$AY$14=1,'Dashboard A'!$AY$18=TRUE),"n/a",'Dashboard B'!S340) -> 0.09092918033 | CS37: per km
C39: Insurance cost per km3 | G39: =IF(AND('Dashboard A'!$AY$14=1,'Dashboard A'!$AY$18=TRUE),'Dashboard B'!J132*G35,'Dashboard B'!J132*(G35+G37)) -> 0.004655703741 | H39: =IF(AND('Dashboard A'!$AY$14=1,'Dashboard A'!$AY$18=TRUE),'Dashboard B'!K132*H35,'Dashboard B'!K132*(H35+H37)) -> 0.004397747101 | I39: =IF(AND('Dashboard A'!$AY$14=1,'Dashboard A'!$AY$18=TRUE),'Dashboard B'!L132*I35,'Dashboard B'!L132*(I35+I37)) -> 0.004155240057 | J39: =IF(AND('Dashboard A'!$AY$14=1,'Dashboard A'!$AY$18=TRUE),'Dashboard B'!M132*J35,'Dashboard B'!M132*(J35+J37)) -> 0.003927255672 | K39: =IF(AND('Dashboard A'!$AY$14=1,'Dashboard A'!$AY$18=TRUE),'Dashboard B'!N132*K35,'Dashboard B'!N132*(K35+K37)) -> 0.00371292262 | L39: =IF(AND('Dashboard A'!$AY$14=1,'Dashboard A'!$AY$18=TRUE),'Dashboard B'!O132*L35,'Dashboard B'!O132*(L35+L37)) -> 0.003511421858 | M39: =IF(AND('Dashboard A'!$AY$14=1,'Dashboard A'!$AY$18=TRUE),'Dashboard B'!P132*M35,'Dashboard B'!P132*(M35+M37)) -> 0.003321983485 | N39: =IF(AND('Dashboard A'!$AY$14=1,'Dashboard A'!$AY$18=TRUE),'Dashboard B'!Q132*N35,'Dashboard B'!Q132*(N35+N37)) -> 0.003143883794 | O39: =IF(AND('Dashboard A'!$AY$14=1,'Dashboard A'!$AY$18=TRUE),'Dashboard B'!R132*O35,'Dashboard B'!R132*(O35+O37)) -> 0.002976442499 | P39: =IF(AND('Dashboard A'!$AY$14=1,'Dashboard A'!$AY$18=TRUE),'Dashboard B'!S132*P35,'Dashboard B'!S132*(P35+P37)) -> 0.002819020132 | Q39: per km | V39: Insurance cost per km3 | AA39: =IF(AND('Dashboard A'!$AY$14=1,'Dashboard A'!$AY$18=TRUE),'Dashboard B'!J226*AA35,'Dashboard B'!J226*(AA35+AA37)) -> 0.003236948396 | AB39: =IF(AND('Dashboard A'!$AY$14=1,'Dashboard A'!$AY$18=TRUE),'Dashboard B'!K226*AB35,'Dashboard B'!K226*(AB35+AB37)) -> 0.003144550672 | AC39: =IF(AND('Dashboard A'!$AY$14=1,'Dashboard A'!$AY$18=TRUE),'Dashboard B'!L226*AC35,'Dashboard B'!L226*(AC35+AC37)) -> 0.003055095134 | AD39: =IF(AND('Dashboard A'!$AY$14=1,'Dashboard A'!$AY$18=TRUE),'Dashboard B'!M226*AD35,'Dashboard B'!M226*(AD35+AD37)) -> 0.002968487653 | AE39: =IF(AND('Dashboard A'!$AY$14=1,'Dashboard A'!$AY$18=TRUE),'Dashboard B'!N226*AE35,'Dashboard B'!N226*(AE35+AE37)) -> 0.002884637108 | AF39: =IF(AND('Dashboard A'!$AY$14=1,'Dashboard A'!$AY$18=TRUE),'Dashboard B'!O226*AF35,'Dashboard B'!O226*(AF35+AF37)) -> 0.002803455298 | AG39: =IF(AND('Dashboard A'!$AY$14=1,'Dashboard A'!$AY$18=TRUE),'Dashboard B'!P226*AG35,'Dashboard B'!P226*(AG35+AG37)) -> 0.002724856841 | AH39: =IF(AND('Dashboard A'!$AY$14=1,'Dashboard A'!$AY$18=TRUE),'Dashboard B'!Q226*AH35,'Dashboard B'!Q226*(AH35+AH37)) -> 0.00264875909 | AI39: =IF(AND('Dashboard A'!$AY$14=1,'Dashboard A'!$AY$18=TRUE),'Dashboard B'!R226*AI35,'Dashboard B'!R226*(AI35+AI37)) -> 0.002575082039 | AJ39: =IF(AND('Dashboard A'!$AY$14=1,'Dashboard A'!$AY$18=TRUE),'Dashboard B'!S226*AJ35,'Dashboard B'!S226*(AJ35+AJ37)) -> 0.002503748245 | AK39: per km | AP39: Insurance cost per km3 | AS39: =IF(AND('Dashboard A'!$AY$14=1,'Dashboard A'!$AY$18=TRUE),'Dashboard B'!J358*AS35,'Dashboard B'!J358*(AS35+AS37)) -> 0.002307885328 | AT39: =IF(AND('Dashboard A'!$AY$14=1,'Dashboard A'!$AY$18=TRUE),'Dashboard B'!K358*AT35,'Dashboard B'!K358*(AT35+AT37)) -> 0.002307167728 | AU39: =IF(AND('Dashboard A'!$AY$14=1,'Dashboard A'!$AY$18=TRUE),'Dashboard B'!L358*AU35,'Dashboard B'!L358*(AU35+AU37)) -> 0.002306451061 | AV39: =IF(AND('Dashboard A'!$AY$14=1,'Dashboard A'!$AY$18=TRUE),'Dashboard B'!M358*AV35,'Dashboard B'!M358*(AV35+AV37)) -> 0.002305735325 | AW39: =IF(AND('Dashboard A'!$AY$14=1,'Dashboard A'!$AY$18=TRUE),'Dashboard B'!N358*AW35,'Dashboard B'!N358*(AW35+AW37)) -> 0.00230502052 | AX39: =IF(AND('Dashboard A'!$AY$14=1,'Dashboard A'!$AY$18=TRUE),'Dashboard B'!O358*AX35,'Dashboard B'!O358*(AX35+AX37)) -> 0.002304306645 | AY39: =IF(AND('Dashboard A'!$AY$14=1,'Dashboard A'!$AY$18=TRUE),'Dashboard B'!P358*AY35,'Dashboard B'!P358*(AY35+AY37)) -> 0.002303593697 | AZ39: =IF(AND('Dashboard A'!$AY$14=1,'Dashboard A'!$AY$18=TRUE),'Dashboard B'!Q358*AZ35,'Dashboard B'!Q358*(AZ35+AZ37)) -> 0.002302881676 | BA39: =IF(AND('Dashboard A'!$AY$14=1,'Dashboard A'!$AY$18=TRUE),'Dashboard B'!R358*BA35,'Dashboard B'!R358*(BA35+BA37)) -> 0.002302170581 | BB39: =IF(AND('Dashboard A'!$AY$14=1,'Dashboard A'!$AY$18=TRUE),'Dashboard B'!S358*BB35,'Dashboard B'!S358*(BB35+BB37)) -> 0.00230146041 | BC39: =BQ39 -> per km | BG39: =IF(AND('Dashboard A'!$AY$14=1,'Dashboard A'!$AY$18=TRUE),'Dashboard B'!J358*BG35,'Dashboard B'!J358*(BG35+BG37)) -> 0.002307885328 | BH39: =IF(AND('Dashboard A'!$AY$14=1,'Dashboard A'!$AY$18=TRUE),'Dashboard B'!K358*BH35,'Dashboard B'!K358*(BH35+BH37)) -> 0.002307167728 | BI39: =IF(AND('Dashboard A'!$AY$14=1,'Dashboard A'!$AY$18=TRUE),'Dashboard B'!L358*BI35,'Dashboard B'!L358*(BI35+BI37)) -> 0.002306451061 | BJ39: =IF(AND('Dashboard A'!$AY$14=1,'Dashboard A'!$AY$18=TRUE),'Dashboard B'!M358*BJ35,'Dashboard B'!M358*(BJ35+BJ37)) -> 0.002305735325 | BK39: =IF(AND('Dashboard A'!$AY$14=1,'Dashboard A'!$AY$18=TRUE),'Dashboard B'!N358*BK35,'Dashboard B'!N358*(BK35+BK37)) -> 0.00230502052 | BL39: =IF(AND('Dashboard A'!$AY$14=1,'Dashboard A'!$AY$18=TRUE),'Dashboard B'!O358*BL35,'Dashboard B'!O358*(BL35+BL37)) -> 0.002304306645 | BM39: =IF(AND('Dashboard A'!$AY$14=1,'Dashboard A'!$AY$18=TRUE),'Dashboard B'!P358*BM35,'Dashboard B'!P358*(BM35+BM37)) -> 0.002303593697 | BN39: =IF(AND('Dashboard A'!$AY$14=1,'Dashboard A'!$AY$18=TRUE),'Dashboard B'!Q358*BN35,'Dashboard B'!Q358*(BN35+BN37)) -> 0.002302881676 | BO39: =IF(AND('Dashboard A'!$AY$14=1,'Dashboard A'!$AY$18=TRUE),'Dashboard B'!R358*BO35,'Dashboard B'!R358*(BO35+BO37)) -> 0.002302170581 | BP39: =IF(AND('Dashboard A'!$AY$14=1,'Dashboard A'!$AY$18=TRUE),'Dashboard B'!S358*BP35,'Dashboard B'!S358*(BP35+BP37)) -> 0.00230146041 | BQ39: =CS39 -> per km | BU39: =IF(AND('Dashboard A'!$AY$14=1,'Dashboard A'!$AY$18=TRUE),'Dashboard B'!J358*BU35,'Dashboard B'!J358*(BG35+BU37)) -> 0.002307885328 | BV39: =IF(AND('Dashboard A'!$AY$14=1,'Dashboard A'!$AY$18=TRUE),'Dashboard B'!K358*BV35,'Dashboard B'!K358*(BH35+BV37)) -> 0.002307167728 | BW39: =IF(AND('Dashboard A'!$AY$14=1,'Dashboard A'!$AY$18=TRUE),'Dashboard B'!L358*BW35,'Dashboard B'!L358*(BI35+BW37)) -> 0.002306451061 | BX39: =IF(AND('Dashboard A'!$AY$14=1,'Dashboard A'!$AY$18=TRUE),'Dashboard B'!M358*BX35,'Dashboard B'!M358*(BJ35+BX37)) -> 0.002305735325 | BY39: =IF(AND('Dashboard A'!$AY$14=1,'Dashboard A'!$AY$18=TRUE),'Dashboard B'!N358*BY35,'Dashboard B'!N358*(BK35+BY37)) -> 0.00230502052 | BZ39: =IF(AND('Dashboard A'!$AY$14=1,'Dashboard A'!$AY$18=TRUE),'Dashboard B'!O358*BZ35,'Dashboard B'!O358*(BL35+BZ37)) -> 0.002304306645 | CA39: =IF(AND('Dashboard A'!$AY$14=1,'Dashboard A'!$AY$18=TRUE),'Dashboard B'!P358*CA35,'Dashboard B'!P358*(BM35+CA37)) -> 0.002303593697 | CB39: =IF(AND('Dashboard A'!$AY$14=1,'Dashboard A'!$AY$18=TRUE),'Dashboard B'!Q358*CB35,'Dashboard B'!Q358*(BN35+CB37)) -> 0.002302881676 | CC39: =IF(AND('Dashboard A'!$AY$14=1,'Dashboard A'!$AY$18=TRUE),'Dashboard B'!R358*CC35,'Dashboard B'!R358*(BO35+CC37)) -> 0.002302170581 | CD39: =IF(AND('Dashboard A'!$AY$14=1,'Dashboard A'!$AY$18=TRUE),'Dashboard B'!S358*CD35,'Dashboard B'!S358*(BP35+CD37)) -> 0.00230146041 | CE39: per km | CI39: =IF(AND('Dashboard A'!$AY$14=1,'Dashboard A'!$AY$18=TRUE),'Dashboard B'!J358*CI35,'Dashboard B'!J358*(CI35+CI37)) -> 0.002307885328 | CJ39: =IF(AND('Dashboard A'!$AY$14=1,'Dashboard A'!$AY$18=TRUE),'Dashboard B'!K358*CJ35,'Dashboard B'!K358*(CJ35+CJ37)) -> 0.002307167728 | CK39: =IF(AND('Dashboard A'!$AY$14=1,'Dashboard A'!$AY$18=TRUE),'Dashboard B'!L358*CK35,'Dashboard B'!L358*(CK35+CK37)) -> 0.002306451061 | CL39: =IF(AND('Dashboard A'!$AY$14=1,'Dashboard A'!$AY$18=TRUE),'Dashboard B'!M358*CL35,'Dashboard B'!M358*(CL35+CL37)) -> 0.002305735325 | CM39: =IF(AND('Dashboard A'!$AY$14=1,'Dashboard A'!$AY$18=TRUE),'Dashboard B'!N358*CM35,'Dashboard B'!N358*(CM35+CM37)) -> 0.00230502052 | CN39: =IF(AND('Dashboard A'!$AY$14=1,'Dashboard A'!$AY$18=TRUE),'Dashboard B'!O358*CN35,'Dashboard B'!O358*(CN35+CN37)) -> 0.002304306645 | CO39: =IF(AND('Dashboard A'!$AY$14=1,'Dashboard A'!$AY$18=TRUE),'Dashboard B'!P358*CO35,'Dashboard B'!P358*(CO35+CO37)) -> 0.002303593697 | CP39: =IF(AND('Dashboard A'!$AY$14=1,'Dashboard A'!$AY$18=TRUE),'Dashboard B'!Q358*CP35,'Dashboard B'!Q358*(CP35+CP37)) -> 0.002302881676 | CQ39: =IF(AND('Dashboard A'!$AY$14=1,'Dashboard A'!$AY$18=TRUE),'Dashboard B'!R358*CQ35,'Dashboard B'!R358*(CQ35+CQ37)) -> 0.002302170581 | CR39: =IF(AND('Dashboard A'!$AY$14=1,'Dashboard A'!$AY$18=TRUE),'Dashboard B'!S358*CR35,'Dashboard B'!S358*(CR35+CR37)) -> 0.00230146041 | CS39: per km
C41: Delivered cost of fuel | G41: ='H2 cost calculator'!E128 -> 10.90799233 | H41: ='H2 cost calculator'!F128 -> 10.53041895 | I41: ='H2 cost calculator'!G128 -> 10.17057112 | J41: ='H2 cost calculator'!H128 -> 9.827553541 | K41: ='H2 cost calculator'!I128 -> 9.500516826 | L41: ='H2 cost calculator'!J128 -> 9.188655119 | M41: ='H2 cost calculator'!K128 -> 8.89120387 | N41: ='H2 cost calculator'!L128 -> 8.607437704 | O41: ='H2 cost calculator'!M128 -> 8.336668405 | P41: ='H2 cost calculator'!N128 -> 8.078243007 | Q41: per kg | AP41: Delivered cost of fuel | AS41: ='Dashboard B'!J479 -> 3 | AT41: ='Dashboard B'!K479 -> 2.9175 | AU41: ='Dashboard B'!L479 -> 2.83726875 | AV41: ='Dashboard B'!M479 -> 2.759243859 | AW41: ='Dashboard B'!N479 -> 2.683364653 | AX41: ='Dashboard B'!O479 -> 2.609572125 | AY41: ='Dashboard B'!P479 -> 2.537808892 | AZ41: ='Dashboard B'!Q479 -> 2.468019147 | BA41: ='Dashboard B'!R479 -> 2.400148621 | BB41: ='Dashboard B'!S479 -> 2.334144534 | BC41: per litre | BG41: ='Dashboard B'!J432 -> 2.25 | BH41: ='Dashboard B'!K432 -> 2.25 | BI41: ='Dashboard B'!L432 -> 2.25 | BJ41: ='Dashboard B'!M432 -> 2.25 | BK41: ='Dashboard B'!N432 -> 2.25 | BL41: ='Dashboard B'!O432 -> 2.25 | BM41: ='Dashboard B'!P432 -> 2.25 | BN41: ='Dashboard B'!Q432 -> 2.25 | BO41: ='Dashboard B'!R432 -> 2.25 | BP41: ='Dashboard B'!S432 -> 2.25 | BQ41: per litre | CI41: ='Dashboard B'!J378 -> 1.15 | CJ41: ='Dashboard B'!K378 -> 1.16265 | CK41: ='Dashboard B'!L378 -> 1.17543915 | CL41: ='Dashboard B'!M378 -> 1.188368981 | CM41: ='Dashboard B'!N378 -> 1.201441039 | CN41: ='Dashboard B'!O378 -> 1.214656891 | CO41: ='Dashboard B'!P378 -> 1.228018117 | CP41: ='Dashboard B'!Q378 -> 1.241526316 | CQ41: ='Dashboard B'!R378 -> 1.255183105 | CR41: ='Dashboard B'!S378 -> 1.26899012 | CS41: per litre
C43: Fuel efficiency | G43: ='Dashboard B'!J141 -> 0.094 | H43: ='Dashboard B'!K141 -> 0.094 | I43: ='Dashboard B'!L141 -> 0.094 | J43: ='Dashboard B'!M141 -> 0.094 | K43: ='Dashboard B'!N141 -> 0.094 | L43: ='Dashboard B'!O141 -> 0.094 | M43: ='Dashboard B'!P141 -> 0.094 | N43: ='Dashboard B'!Q141 -> 0.094 | O43: ='Dashboard B'!R141 -> 0.094 | P43: ='Dashboard B'!S141 -> 0.094 | Q43: kgs/km | V43: Fuel efficiency | AA43: ='Dashboard B'!J235 -> 1.75 | AB43: ='Dashboard B'!K235 -> 1.746325 | AC43: ='Dashboard B'!L235 -> 1.742657718 | AD43: ='Dashboard B'!M235 -> 1.738998136 | AE43: ='Dashboard B'!N235 -> 1.73534624 | AF43: ='Dashboard B'!O235 -> 1.731702013 | AG43: ='Dashboard B'!P235 -> 1.728065439 | AH43: ='Dashboard B'!Q235 -> 1.724436501 | AI43: ='Dashboard B'!R235 -> 1.720815185 | AJ43: ='Dashboard B'!S235 -> 1.717201473 | AK43: kWh/km | AP43: Fuel efficiency | AS43: ='Dashboard B'!J367 -> 0.555 | AT43: ='Dashboard B'!K367 -> 0.555 | AU43: ='Dashboard B'!L367 -> 0.555 | AV43: ='Dashboard B'!M367 -> 0.555 | AW43: ='Dashboard B'!N367 -> 0.555 | AX43: ='Dashboard B'!O367 -> 0.555 | AY43: ='Dashboard B'!P367 -> 0.555 | AZ43: ='Dashboard B'!Q367 -> 0.555 | BA43: ='Dashboard B'!R367 -> 0.555 | BB43: ='Dashboard B'!S367 -> 0.555 | BC43: l/km | BG43: ='Dashboard B'!J367 -> 0.555 | BH43: ='Dashboard B'!K367 -> 0.555 | BI43: ='Dashboard B'!L367 -> 0.555 | BJ43: ='Dashboard B'!M367 -> 0.555 | BK43: ='Dashboard B'!N367 -> 0.555 | BL43: ='Dashboard B'!O367 -> 0.555 | BM43: ='Dashboard B'!P367 -> 0.555 | BN43: ='Dashboard B'!Q367 -> 0.555 | BO43: ='Dashboard B'!R367 -> 0.555 | BP43: ='Dashboard B'!S367 -> 0.555 | BQ43: l/km | BU43: ='Dashboard B'!J367 -> 0.555 | BV43: ='Dashboard B'!K367 -> 0.555 | BW43: ='Dashboard B'!L367 -> 0.555 | BX43: ='Dashboard B'!M367 -> 0.555 | BY43: ='Dashboard B'!N367 -> 0.555 | BZ43: ='Dashboard B'!O367 -> 0.555 | CA43: ='Dashboard B'!P367 -> 0.555 | CB43: ='Dashboard B'!Q367 -> 0.555 | CC43: ='Dashboard B'!R367 -> 0.555 | CD43: ='Dashboard B'!S367 -> 0.555 | CE43: diesel l/km | CI43: ='Dashboard B'!J367 -> 0.555 | CJ43: ='Dashboard B'!K367 -> 0.555 | CK43: ='Dashboard B'!L367 -> 0.555 | CL43: ='Dashboard B'!M367 -> 0.555 | CM43: ='Dashboard B'!N367 -> 0.555 | CN43: ='Dashboard B'!O367 -> 0.555 | CO43: ='Dashboard B'!P367 -> 0.555 | CP43: ='Dashboard B'!Q367 -> 0.555 | CQ43: ='Dashboard B'!R367 -> 0.555 | CR43: ='Dashboard B'!S367 -> 0.555 | CS43: l/km
AP45: Kg of H2 required per km4 | BU45: =BU43*'Dashboard A'!$X$80 -> 0.166685553 | BV45: =BV43*'Dashboard A'!$X$80 -> 0.166685553 | BW45: =BW43*'Dashboard A'!$X$80 -> 0.166685553 | BX45: =BX43*'Dashboard A'!$X$80 -> 0.166685553 | BY45: =BY43*'Dashboard A'!$X$80 -> 0.166685553 | BZ45: =BZ43*'Dashboard A'!$X$80 -> 0.166685553 | CA45: =CA43*'Dashboard A'!$X$80 -> 0.166685553 | CB45: =CB43*'Dashboard A'!$X$80 -> 0.166685553 | CC45: =CC43*'Dashboard A'!$X$80 -> 0.166685553 | CD45: =CD43*'Dashboard A'!$X$80 -> 0.166685553 | CE45: H2 kg/km
V47: Overnight cost of electricity | AA47: ='Dashboard B'!J52 -> 50 | AB47: ='Dashboard B'!K52 -> 50 | AC47: ='Dashboard B'!L52 -> 50 | AD47: ='Dashboard B'!M52 -> 50 | AE47: ='Dashboard B'!N52 -> 50 | AF47: ='Dashboard B'!O52 -> 50 | AG47: ='Dashboard B'!P52 -> 50 | AH47: ='Dashboard B'!Q52 -> 50 | AI47: ='Dashboard B'!R52 -> 50 | AJ47: ='Dashboard B'!S52 -> 50 | AK47: per MWh
V49: Daytime cost of electricity | AA49: ='Dashboard B'!J61 -> 88 | AB49: ='Dashboard B'!K61 -> 88 | AC49: ='Dashboard B'!L61 -> 88 | AD49: ='Dashboard B'!M61 -> 88 | AE49: ='Dashboard B'!N61 -> 88 | AF49: ='Dashboard B'!O61 -> 88 | AG49: ='Dashboard B'!P61 -> 88 | AH49: ='Dashboard B'!Q61 -> 88 | AI49: ='Dashboard B'!R61 -> 88 | AJ49: ='Dashboard B'!S61 -> 88 | AK49: per MWh
V51: Vehicle battery capacity | AA51: ='Dashboard B'!J159 -> 435 | AB51: ='Dashboard B'!K159 -> 446.9625 | AC51: ='Dashboard B'!L159 -> 459.2539688 | AD51: ='Dashboard B'!M159 -> 471.8834529 | AE51: ='Dashboard B'!N159 -> 484.8602478 | AF51: ='Dashboard B'!O159 -> 498.1939047 | AG51: ='Dashboard B'!P159 -> 511.894237 | AH51: ='Dashboard B'!Q159 -> 525.9713286 | AI51: ='Dashboard B'!R159 -> 540.4355401 | AJ51: ='Dashboard B'!S159 -> 555.2975174 | AK51: kWh
V53: In-use capacity floor | AA53: ='Dashboard B'!J168 -> 0.2 | AB53: ='Dashboard B'!K168 -> 0.2 | AC53: ='Dashboard B'!L168 -> 0.2 | AD53: ='Dashboard B'!M168 -> 0.2 | AE53: ='Dashboard B'!N168 -> 0.2 | AF53: ='Dashboard B'!O168 -> 0.2 | AG53: ='Dashboard B'!P168 -> 0.2 | AH53: ='Dashboard B'!Q168 -> 0.2 | AI53: ='Dashboard B'!R168 -> 0.2 | AJ53: ='Dashboard B'!S168 -> 0.2
V55: Day-charge capacity ceiling | AA55: =IF(BEV_switch=0,'Dashboard B'!J177,"n/a") -> 0.9 | AB55: =IF(BEV_switch=0,'Dashboard B'!K177,"n/a") -> 0.9 | AC55: =IF(BEV_switch=0,'Dashboard B'!L177,"n/a") -> 0.9 | AD55: =IF(BEV_switch=0,'Dashboard B'!M177,"n/a") -> 0.9 | AE55: =IF(BEV_switch=0,'Dashboard B'!N177,"n/a") -> 0.9 | AF55: =IF(BEV_switch=0,'Dashboard B'!O177,"n/a") -> 0.9 | AG55: =IF(BEV_switch=0,'Dashboard B'!P177,"n/a") -> 0.9 | AH55: =IF(BEV_switch=0,'Dashboard B'!Q177,"n/a") -> 0.9 | AI55: =IF(BEV_switch=0,'Dashboard B'!R177,"n/a") -> 0.9 | AJ55: =IF(BEV_switch=0,'Dashboard B'!S177,"n/a") -> 0.9
C57: Number of 60 min stops | G57: ='Dashboard A'!$X$16 -> 1.3 | H57: ='Dashboard A'!$X$16 -> 1.3 | I57: ='Dashboard A'!$X$16 -> 1.3 | J57: ='Dashboard A'!$X$16 -> 1.3 | K57: ='Dashboard A'!$X$16 -> 1.3 | L57: ='Dashboard A'!$X$16 -> 1.3 | M57: ='Dashboard A'!$X$16 -> 1.3 | N57: ='Dashboard A'!$X$16 -> 1.3 | O57: ='Dashboard A'!$X$16 -> 1.3 | P57: ='Dashboard A'!$X$16 -> 1.3 | Q57: ='Dashboard A'!Y16 -> stops | V57: Number of 60 min stops | AA57: ='Dashboard A'!$X$16 -> 1.3 | AB57: ='Dashboard A'!$X$16 -> 1.3 | AC57: ='Dashboard A'!$X$16 -> 1.3 | AD57: ='Dashboard A'!$X$16 -> 1.3 | AE57: ='Dashboard A'!$X$16 -> 1.3 | AF57: ='Dashboard A'!$X$16 -> 1.3 | AG57: ='Dashboard A'!$X$16 -> 1.3 | AH57: ='Dashboard A'!$X$16 -> 1.3 | AI57: ='Dashboard A'!$X$16 -> 1.3 | AJ57: ='Dashboard A'!$X$16 -> 1.3 | AK57: ='Dashboard A'!Y16 -> stops | AP57: Number of 60 min stops | AS57: ='Dashboard A'!$X$16 -> 1.3 | AT57: ='Dashboard A'!$X$16 -> 1.3 | AU57: ='Dashboard A'!$X$16 -> 1.3 | AV57: ='Dashboard A'!$X$16 -> 1.3 | AW57: ='Dashboard A'!$X$16 -> 1.3 | AX57: ='Dashboard A'!$X$16 -> 1.3 | AY57: ='Dashboard A'!$X$16 -> 1.3 | AZ57: ='Dashboard A'!$X$16 -> 1.3 | BA57: ='Dashboard A'!$X$16 -> 1.3 | BB57: ='Dashboard A'!$X$16 -> 1.3 | BC57: ='Dashboard A'!Y16 -> stops | BG57: ='Dashboard A'!$X$16 -> 1.3 | BH57: ='Dashboard A'!$X$16 -> 1.3 | BI57: ='Dashboard A'!$X$16 -> 1.3 | BJ57: ='Dashboard A'!$X$16 -> 1.3 | BK57: ='Dashboard A'!$X$16 -> 1.3 | BL57: ='Dashboard A'!$X$16 -> 1.3 | BM57: ='Dashboard A'!$X$16 -> 1.3 | BN57: ='Dashboard A'!$X$16 -> 1.3 | BO57: ='Dashboard A'!$X$16 -> 1.3 | BP57: ='Dashboard A'!$X$16 -> 1.3 | BQ57: ='Dashboard A'!Y16 -> stops | BU57: ='Dashboard A'!$X$16 -> 1.3 | BV57: ='Dashboard A'!$X$16 -> 1.3 | BW57: ='Dashboard A'!$X$16 -> 1.3 | BX57: ='Dashboard A'!$X$16 -> 1.3 | BY57: ='Dashboard A'!$X$16 -> 1.3 | BZ57: ='Dashboard A'!$X$16 -> 1.3 | CA57: ='Dashboard A'!$X$16 -> 1.3 | CB57: ='Dashboard A'!$X$16 -> 1.3 | CC57: ='Dashboard A'!$X$16 -> 1.3 | CD57: ='Dashboard A'!$X$16 -> 1.3 | CE57: ='Dashboard A'!Y16 -> stops | CI57: ='Dashboard A'!$X$16 -> 1.3 | CJ57: ='Dashboard A'!$X$16 -> 1.3 | CK57: ='Dashboard A'!$X$16 -> 1.3 | CL57: ='Dashboard A'!$X$16 -> 1.3 | CM57: ='Dashboard A'!$X$16 -> 1.3 | CN57: ='Dashboard A'!$X$16 -> 1.3 | CO57: ='Dashboard A'!$X$16 -> 1.3 | CP57: ='Dashboard A'!$X$16 -> 1.3 | CQ57: ='Dashboard A'!$X$16 -> 1.3 | CR57: ='Dashboard A'!$X$16 -> 1.3 | CS57: ='Dashboard A'!Y16 -> stops
V59: Trip completion requirements
W60: Total kWh | AA60: =AA29*AA43 -> 1102.5 | AB60: =AB29*AB43 -> 1100.18475 | AC60: 1097.874362 | AD60: 1095.568826 | AE60: 1093.268131 | AF60: 1090.972268 | AG60: 1088.681226 | AH60: 1086.394996 | AI60: 1084.113566 | AJ60: =AJ29*AJ43 -> 1081.836928 | AK60: kWh
W62: Total charge stops | X62: =IF(BEV_switch=0,5,"") -> 5 | AA62: =IF(BEV_switch=0,(IF(AA60<=(AA51*(1-AA53)),0,(((AA60-(AA51*(1-AA53)))/MIN(AA51*(AA55-AA53),AA74))+1))),"n/a") -> 3.515 | AB62: =IF(BEV_switch=0,(IF(AB60<=(AB51*(1-AB53)),0,(((AB60-(AB51*(1-AB53)))/MIN(AB51*(AB55-AB53),AB74))+1))),"n/a") -> 3.4753825 | AC62: 3.434903957 | AD62: 3.393540212 | AE62: 3.351266444 | AF62: 3.308057148 | AG62: 3.263886123 | AH62: 3.218726444 | AI62: 3.172550448 | AJ62: 3.125329713 | AK62: stops
W64: Req. battey swaps | X64: =IF(BEV_switch=1,4,"") ->  | AA64: =IF(BEV_switch=1,IF(AA60<=(AA51*(1-AA53)),0,(CEILING(AA60/(AA51*(1-AA53)),1))),"n/a") -> n/a | AB64: =IF(BEV_switch=1,IF(AB60<=(AB51*(1-AB53)),0,(CEILING(AB60/(AB51*(1-AB53)),1))),"n/a") -> n/a | AC64: n/a | AD64: n/a | AE64: n/a | AF64: n/a | AG64: n/a | AH64: n/a | AI64: n/a | AJ64: n/a | AK64: swaps
W66: Additional charge stops | AA66: =IF(BEV_switch=0,MAX(AA62-AA57,0),0) -> 2.215 | AB66: =IF(BEV_switch=0,MAX(AB62-AB57,0),0) -> 2.1753825 | AC66: 2.134903957 | AD66: 2.093540212 | AE66: 2.051266444 | AF66: 2.008057148 | AG66: 1.963886123 | AH66: 1.918726444 | AI66: 1.872550448 | AJ66: 1.825329713 | AK66: stops
V68: Overnight charge
W69: Infrastructure cost | AA69: ='Dashboard B'!J246 -> 0.04 | AB69: ='Dashboard B'!K246 -> 0.0396 | AC69: ='Dashboard B'!L246 -> 0.039204 | AD69: ='Dashboard B'!M246 -> 0.03881196 | AE69: ='Dashboard B'!N246 -> 0.0384238404 | AF69: ='Dashboard B'!O246 -> 0.038039602 | AG69: ='Dashboard B'!P246 -> 0.03765920598 | AH69: ='Dashboard B'!Q246 -> 0.03728261392 | AI69: ='Dashboard B'!R246 -> 0.03690978778 | AJ69: ='Dashboard B'!S246 -> 0.0365406899 | AK69: per kWh
W71: Network cost | AA71: ='Dashboard B'!J255 -> 0.038 | AB71: ='Dashboard B'!K255 -> 0.037354 | AC71: ='Dashboard B'!L255 -> 0.036718982 | AD71: ='Dashboard B'!M255 -> 0.03609475931 | AE71: ='Dashboard B'!N255 -> 0.0354811484 | AF71: ='Dashboard B'!O255 -> 0.03487796888 | AG71: ='Dashboard B'!P255 -> 0.0342850434 | AH71: ='Dashboard B'!Q255 -> 0.03370219767 | AI71: ='Dashboard B'!R255 -> 0.03312926031 | AJ71: ='Dashboard B'!S255 -> 0.03256606288 | AK71: per kWh
V73: =IF(BEV_switch=0,"Midday fast charge","Midday battery swap") -> Midday fast charge
W74: =IF(BEV_switch=0,"Charger wattage","Swap cost") -> Charger wattage | AA74: =IF(BEV_switch=0,'Dashboard B'!J264,'Dashboard B'!J291) -> 300 | AB74: =IF(BEV_switch=0,'Dashboard B'!K264,'Dashboard B'!K291) -> 300 | AC74: =IF(BEV_switch=0,'Dashboard B'!L264,'Dashboard B'!L291) -> 300 | AD74: =IF(BEV_switch=0,'Dashboard B'!M264,'Dashboard B'!M291) -> 300 | AE74: =IF(BEV_switch=0,'Dashboard B'!N264,'Dashboard B'!N291) -> 300 | AF74: =IF(BEV_switch=0,'Dashboard B'!O264,'Dashboard B'!O291) -> 300 | AG74: =IF(BEV_switch=0,'Dashboard B'!P264,'Dashboard B'!P291) -> 300 | AH74: =IF(BEV_switch=0,'Dashboard B'!Q264,'Dashboard B'!Q291) -> 300 | AI74: =IF(BEV_switch=0,'Dashboard B'!R264,'Dashboard B'!R291) -> 300 | AJ74: =IF(BEV_switch=0,'Dashboard B'!S264,'Dashboard B'!S291) -> 300 | AK74: =IF(BEV_switch=0,"kW","per swap") -> kW
W76: Infrastructure cost | AA76: =IF(BEV_switch=0,'Dashboard B'!J273,'Dashboard B'!J300) -> 0.3 | AB76: =IF(BEV_switch=0,'Dashboard B'!K273,'Dashboard B'!K300) -> 0.3 | AC76: =IF(BEV_switch=0,'Dashboard B'!L273,'Dashboard B'!L300) -> 0.3 | AD76: =IF(BEV_switch=0,'Dashboard B'!M273,'Dashboard B'!M300) -> 0.3 | AE76: =IF(BEV_switch=0,'Dashboard B'!N273,'Dashboard B'!N300) -> 0.3 | AF76: =IF(BEV_switch=0,'Dashboard B'!O273,'Dashboard B'!O300) -> 0.3 | AG76: =IF(BEV_switch=0,'Dashboard B'!P273,'Dashboard B'!P300) -> 0.3 | AH76: =IF(BEV_switch=0,'Dashboard B'!Q273,'Dashboard B'!Q300) -> 0.3 | AI76: =IF(BEV_switch=0,'Dashboard B'!R273,'Dashboard B'!R300) -> 0.3 | AJ76: =IF(BEV_switch=0,'Dashboard B'!S273,'Dashboard B'!S300) -> 0.3 | AK76: per kWh
W78: Network cost | AA78: =IF(BEV_switch=0,'Dashboard B'!J282,'Dashboard B'!J309) -> 0.188 | AB78: =IF(BEV_switch=0,'Dashboard B'!K282,'Dashboard B'!K309) -> 0.188 | AC78: =IF(BEV_switch=0,'Dashboard B'!L282,'Dashboard B'!L309) -> 0.188 | AD78: =IF(BEV_switch=0,'Dashboard B'!M282,'Dashboard B'!M309) -> 0.188 | AE78: =IF(BEV_switch=0,'Dashboard B'!N282,'Dashboard B'!N309) -> 0.188 | AF78: =IF(BEV_switch=0,'Dashboard B'!O282,'Dashboard B'!O309) -> 0.188 | AG78: =IF(BEV_switch=0,'Dashboard B'!P282,'Dashboard B'!P309) -> 0.188 | AH78: =IF(BEV_switch=0,'Dashboard B'!Q282,'Dashboard B'!Q309) -> 0.188 | AI78: =IF(BEV_switch=0,'Dashboard B'!R282,'Dashboard B'!R309) -> 0.188 | AJ78: =IF(BEV_switch=0,'Dashboard B'!S282,'Dashboard B'!S309) -> 0.188 | AK78: per kWh
V80: Total cost per kWh
W82: Overnight charge | AA82: =AA69+AA71+(AA47/1000) -> 0.128 | AB82: =AB69+AB71+(AB47/1000) -> 0.126954 | AC82: 0.125922982 | AD82: 0.1249067193 | AE82: 0.1239049888 | AF82: 0.1229175709 | AG82: 0.1219442494 | AH82: 0.1209848116 | AI82: 0.1200390481 | AJ82: =AJ69+AJ71+(AJ47/1000) -> 0.1191067528 | AK82: per kWh
W84: Fast charge | AA84: =IF(BEV_switch=0,AA76+AA78+(AA49/1000),"n/a") -> 0.576 | AB84: 0.576 | AC84: 0.576 | AD84: 0.576 | AE84: 0.576 | AF84: 0.576 | AG84: 0.576 | AH84: 0.576 | AI84: 0.576 | AJ84: 0.576 | AK84: per kWh
W86: Battery swapping | AA86: =IF(BEV_switch=1,AA78+AA76+(AA47/1000)+((AA74/(AA51*(1-AA53)))*AA64),"n/a") -> n/a | AB86: =IF(BEV_switch=1,AB78+AB76+(AB47/1000)+((AB74/(AB51*(1-AB53)))*AB64),"n/a") -> n/a | AC86: n/a | AD86: n/a | AE86: n/a | AF86: n/a | AG86: n/a | AH86: n/a | AI86: n/a | AJ86: n/a | AK86: per kWh
W88: Trip cost per kWh6 | AA88: =IF(BEV_switch=0,(((AA51*(1-AA53)*AA82)+((AA60-(AA51*(1-AA53)))*AA84))/AA60),(((AA51*(1-AA53)*AA82)+((AA60-(AA51*(1-AA53)))*(AA86-((AA74/(AA51*(1-AA53)))*AA64)))+(AA74*AA64))/AA60)) -> 0.4345904762 | AB88: =IF(BEV_switch=0,(((AB51*(1-AB53)*AB82)+((AB60-(AB51*(1-AB53)))*AB84))/AB60),(((AB51*(1-AB53)*AB82)+((AB60-(AB51*(1-AB53)))*AB86))/AB60)) -> 0.4300559863 | AC88: 0.4253819228 | AD88: 0.4205640658 | AE88: 0.415598069 | AF88: 0.4104794558 | AG88: 0.4052036153 | AH88: 0.3997657986 | AI88: 0.3941611145 | AJ88: 0.3883845253 | AK88: per kWh
V90: Emissions per kWh | AA90: ='Dashboard B'!J70 -> 0 | AB90: ='Dashboard B'!K70 -> 0 | AC90: ='Dashboard B'!L70 -> 0 | AD90: ='Dashboard B'!M70 -> 0 | AE90: ='Dashboard B'!N70 -> 0 | AF90: ='Dashboard B'!O70 -> 0 | AG90: ='Dashboard B'!P70 -> 0 | AH90: ='Dashboard B'!Q70 -> 0 | AI90: ='Dashboard B'!R70 -> 0 | AJ90: ='Dashboard B'!S70 -> 0 | AK90: kgCO2-e | AP90: Blend of biodiesel7 | AS90: ='Dashboard B'!J488 -> 1 | AT90: ='Dashboard B'!K488 -> 1 | AU90: ='Dashboard B'!L488 -> 1 | AV90: ='Dashboard B'!M488 -> 1 | AW90: ='Dashboard B'!N488 -> 1 | AX90: ='Dashboard B'!O488 -> 1 | AY90: ='Dashboard B'!P488 -> 1 | AZ90: ='Dashboard B'!Q488 -> 1 | BA90: ='Dashboard B'!R488 -> 1 | BB90: ='Dashboard B'!S488 -> 1 | BG90: ='Dashboard B'!J441 -> 0.2 | BH90: ='Dashboard B'!K441 -> 0.2 | BI90: ='Dashboard B'!L441 -> 0.2 | BJ90: ='Dashboard B'!M441 -> 0.2 | BK90: ='Dashboard B'!N441 -> 0.2 | BL90: ='Dashboard B'!O441 -> 0.2 | BM90: ='Dashboard B'!P441 -> 0.2 | BN90: ='Dashboard B'!Q441 -> 0.2 | BO90: ='Dashboard B'!R441 -> 0.2 | BP90: ='Dashboard B'!S441 -> 0.2 | BU90: n/a | CI90: n/a | CJ90: n/a | CK90: n/a | CL90: n/a | CM90: n/a | CN90: n/a | CO90: n/a | CP90: n/a | CQ90: n/a | CR90: n/a
C92: Carbon price | G92: ='Dashboard B'!J43 -> 40.8 | H92: ='Dashboard B'!K43 -> 46.73232 | I92: ='Dashboard B'!L43 -> 53.52719933 | J92: ='Dashboard B'!M43 -> 61.31005411 | K92: ='Dashboard B'!N43 -> 70.22453598 | L92: ='Dashboard B'!O43 -> 80.43518351 | M92: ='Dashboard B'!P43 -> 92.13045919 | N92: ='Dashboard B'!Q43 -> 105.526228 | O92: ='Dashboard B'!R43 -> 120.8697415 | P92: ='Dashboard B'!S43 -> 138.4442019 | Q92: per tCO2e | V92: Carbon price | AA92: ='Dashboard B'!J43 -> 40.8 | AB92: ='Dashboard B'!K43 -> 46.73232 | AC92: ='Dashboard B'!L43 -> 53.52719933 | AD92: ='Dashboard B'!M43 -> 61.31005411 | AE92: ='Dashboard B'!N43 -> 70.22453598 | AF92: ='Dashboard B'!O43 -> 80.43518351 | AG92: ='Dashboard B'!P43 -> 92.13045919 | AH92: ='Dashboard B'!Q43 -> 105.526228 | AI92: ='Dashboard B'!R43 -> 120.8697415 | AJ92: ='Dashboard B'!S43 -> 138.4442019 | AK92: per tCO2e | AP92: Carbon price | AS92: ='Dashboard B'!J43 -> 40.8 | AT92: ='Dashboard B'!K43 -> 46.73232 | AU92: ='Dashboard B'!L43 -> 53.52719933 | AV92: ='Dashboard B'!M43 -> 61.31005411 | AW92: ='Dashboard B'!N43 -> 70.22453598 | AX92: ='Dashboard B'!O43 -> 80.43518351 | AY92: ='Dashboard B'!P43 -> 92.13045919 | AZ92: ='Dashboard B'!Q43 -> 105.526228 | BA92: ='Dashboard B'!R43 -> 120.8697415 | BB92: ='Dashboard B'!S43 -> 138.4442019 | BC92: per tCO2e | BG92: ='Dashboard B'!J43 -> 40.8 | BH92: ='Dashboard B'!K43 -> 46.73232 | BI92: ='Dashboard B'!L43 -> 53.52719933 | BJ92: ='Dashboard B'!M43 -> 61.31005411 | BK92: ='Dashboard B'!N43 -> 70.22453598 | BL92: ='Dashboard B'!O43 -> 80.43518351 | BM92: ='Dashboard B'!P43 -> 92.13045919 | BN92: ='Dashboard B'!Q43 -> 105.526228 | BO92: ='Dashboard B'!R43 -> 120.8697415 | BP92: ='Dashboard B'!S43 -> 138.4442019 | BQ92: per tCO2e | BU92: ='Dashboard B'!J43 -> 40.8 | BV92: ='Dashboard B'!K43 -> 46.73232 | BW92: ='Dashboard B'!L43 -> 53.52719933 | BX92: ='Dashboard B'!M43 -> 61.31005411 | BY92: ='Dashboard B'!N43 -> 70.22453598 | BZ92: ='Dashboard B'!O43 -> 80.43518351 | CA92: ='Dashboard B'!P43 -> 92.13045919 | CB92: ='Dashboard B'!Q43 -> 105.526228 | CC92: ='Dashboard B'!R43 -> 120.8697415 | CD92: ='Dashboard B'!S43 -> 138.4442019 | CE92: per tCO2e | CI92: ='Dashboard B'!J43 -> 40.8 | CJ92: ='Dashboard B'!K43 -> 46.73232 | CK92: ='Dashboard B'!L43 -> 53.52719933 | CL92: ='Dashboard B'!M43 -> 61.31005411 | CM92: ='Dashboard B'!N43 -> 70.22453598 | CN92: ='Dashboard B'!O43 -> 80.43518351 | CO92: ='Dashboard B'!P43 -> 92.13045919 | CP92: ='Dashboard B'!Q43 -> 105.526228 | CQ92: ='Dashboard B'!R43 -> 120.8697415 | CR92: ='Dashboard B'!S43 -> 138.4442019 | CS92: per tCO2e
C94: Emissions per km8 | G94: =('Dashboard B'!J70*'H2 cost calculator'!E60)*G43 -> 0 | H94: =('Dashboard B'!K70*'H2 cost calculator'!F60)*H43 -> 0 | I94: =('Dashboard B'!L70*'H2 cost calculator'!G60)*I43 -> 0 | J94: =('Dashboard B'!M70*'H2 cost calculator'!H60)*J43 -> 0 | K94: =('Dashboard B'!N70*'H2 cost calculator'!I60)*K43 -> 0 | L94: =('Dashboard B'!O70*'H2 cost calculator'!J60)*L43 -> 0 | M94: =('Dashboard B'!P70*'H2 cost calculator'!K60)*M43 -> 0 | N94: =('Dashboard B'!Q70*'H2 cost calculator'!L60)*N43 -> 0 | O94: =('Dashboard B'!R70*'H2 cost calculator'!M60)*O43 -> 0 | P94: =('Dashboard B'!S70*'H2 cost calculator'!N60)*P43 -> 0 | Q94: kgCO2-e | V94: Emissions per km9 | AA94: =AA90*AA43 -> 0 | AB94: =AB90*AB43 -> 0 | AC94: 0 | AD94: 0 | AE94: 0 | AF94: 0 | AG94: 0 | AH94: 0 | AI94: 0 | AJ94: 0 | AK94: kgCO2-e | AP94: Emissions per km10 | AS94: =(((1-('Dashboard B'!J497))*CI94)*AS90)+(CI94*(1-AS90)) -> 0.32824 | AT94: =(((1-('Dashboard B'!K497))*CJ94)*AT90)+(CJ94*(1-AT90)) -> 0.32824 | AU94: =(((1-('Dashboard B'!L497))*CK94)*AU90)+(CK94*(1-AU90)) -> 0.32824 | AV94: =(((1-('Dashboard B'!M497))*CL94)*AV90)+(CL94*(1-AV90)) -> 0.32824 | AW94: =(((1-('Dashboard B'!N497))*CM94)*AW90)+(CM94*(1-AW90)) -> 0.32824 | AX94: =(((1-('Dashboard B'!O497))*CN94)*AX90)+(CN94*(1-AX90)) -> 0.32824 | AY94: =(((1-('Dashboard B'!P497))*CO94)*AY90)+(CO94*(1-AY90)) -> 0.32824 | AZ94: =(((1-('Dashboard B'!Q497))*CP94)*AZ90)+(CP94*(1-AZ90)) -> 0.32824 | BA94: =(((1-('Dashboard B'!R497))*CQ94)*BA90)+(CQ94*(1-BA90)) -> 0.32824 | BB94: =(((1-('Dashboard B'!S497))*CR94)*BB90)+(CR94*(1-BB90)) -> 0.32824 | BC94: kgCO2e | BG94: =(((1-('Dashboard B'!J459))*CI94)*BG90)+(CI94*(1-BG90)) -> 1.348768 | BH94: =(((1-('Dashboard B'!K459))*CJ94)*BH90)+(CJ94*(1-BH90)) -> 1.348768 | BI94: =(((1-('Dashboard B'!L459))*CK94)*BI90)+(CK94*(1-BI90)) -> 1.348768 | BJ94: =(((1-('Dashboard B'!M459))*CL94)*BJ90)+(CL94*(1-BJ90)) -> 1.348768 | BK94: =(((1-('Dashboard B'!N459))*CM94)*BK90)+(CM94*(1-BK90)) -> 1.348768 | BL94: =(((1-('Dashboard B'!O459))*CN94)*BL90)+(CN94*(1-BL90)) -> 1.348768 | BM94: =(((1-('Dashboard B'!P459))*CO94)*BM90)+(CO94*(1-BM90)) -> 1.348768 | BN94: =(((1-('Dashboard B'!Q459))*CP94)*BN90)+(CP94*(1-BN90)) -> 1.348768 | BO94: =(((1-('Dashboard B'!R459))*CQ94)*BO90)+(CQ94*(1-BO90)) -> 1.348768 | BP94: =(((1-('Dashboard B'!S459))*CR94)*BP90)+(CR94*(1-BP90)) -> 1.348768 | BQ94: kgCO2e | BU94: ='Dashboard B'!J387*(1-'Dashboard B'!J420) -> 1.0444 | BV94: ='Dashboard B'!K387*(1-'Dashboard B'!K420) -> 1.0444 | BW94: ='Dashboard B'!L387*(1-'Dashboard B'!L420) -> 1.0444 | BX94: ='Dashboard B'!M387*(1-'Dashboard B'!M420) -> 1.0444 | BY94: ='Dashboard B'!N387*(1-'Dashboard B'!N420) -> 1.0444 | BZ94: ='Dashboard B'!O387*(1-'Dashboard B'!O420) -> 1.0444 | CA94: ='Dashboard B'!P387*(1-'Dashboard B'!P420) -> 1.0444 | CB94: ='Dashboard B'!Q387*(1-'Dashboard B'!Q420) -> 1.0444 | CC94: ='Dashboard B'!R387*(1-'Dashboard B'!R420) -> 1.0444 | CD94: ='Dashboard B'!S387*(1-'Dashboard B'!S420) -> 1.0444 | CE94: kgCO2e | CI94: ='Dashboard B'!J387 -> 1.492 | CJ94: ='Dashboard B'!K387 -> 1.492 | CK94: ='Dashboard B'!L387 -> 1.492 | CL94: ='Dashboard B'!M387 -> 1.492 | CM94: ='Dashboard B'!N387 -> 1.492 | CN94: ='Dashboard B'!O387 -> 1.492 | CO94: ='Dashboard B'!P387 -> 1.492 | CP94: ='Dashboard B'!Q387 -> 1.492 | CQ94: ='Dashboard B'!R387 -> 1.492 | CR94: ='Dashboard B'!S387 -> 1.492 | CS94: kgCO2e
AP96: Estimated health cost11 | AS96: =(((1-('Dashboard B'!J506))*CI96)*AS90)+(CI96*(1-AS90)) -> 0.25 | AT96: =(((1-('Dashboard B'!K506))*CJ96)*AT90)+(CJ96*(1-AT90)) -> 0.25 | AU96: =(((1-('Dashboard B'!L506))*CK96)*AU90)+(CK96*(1-AU90)) -> 0.25 | AV96: =(((1-('Dashboard B'!M506))*CL96)*AV90)+(CL96*(1-AV90)) -> 0.25 | AW96: =(((1-('Dashboard B'!N506))*CM96)*AW90)+(CM96*(1-AW90)) -> 0.25 | AX96: =(((1-('Dashboard B'!O506))*CN96)*AX90)+(CN96*(1-AX90)) -> 0.25 | AY96: =(((1-('Dashboard B'!P506))*CO96)*AY90)+(CO96*(1-AY90)) -> 0.25 | AZ96: =(((1-('Dashboard B'!Q506))*CP96)*AZ90)+(CP96*(1-AZ90)) -> 0.25 | BA96: =(((1-('Dashboard B'!R506))*CQ96)*BA90)+(CQ96*(1-BA90)) -> 0.25 | BB96: =(((1-('Dashboard B'!S506))*CR96)*BB90)+(CR96*(1-BB90)) -> 0.25 | BC96: per litre | BG96: =(((1-('Dashboard B'!J468))*CI96)*BG90)+(CI96*(1-BG90)) -> 0.25 | BH96: =(((1-('Dashboard B'!K468))*CJ96)*BH90)+(CJ96*(1-BH90)) -> 0.25 | BI96: =(((1-('Dashboard B'!L468))*CK96)*BI90)+(CK96*(1-BI90)) -> 0.25 | BJ96: =(((1-('Dashboard B'!M468))*CL96)*BJ90)+(CL96*(1-BJ90)) -> 0.25 | BK96: =(((1-('Dashboard B'!N468))*CM96)*BK90)+(CM96*(1-BK90)) -> 0.25 | BL96: =(((1-('Dashboard B'!O468))*CN96)*BL90)+(CN96*(1-BL90)) -> 0.25 | BM96: =(((1-('Dashboard B'!P468))*CO96)*BM90)+(CO96*(1-BM90)) -> 0.25 | BN96: =(((1-('Dashboard B'!Q468))*CP96)*BN90)+(CP96*(1-BN90)) -> 0.25 | BO96: =(((1-('Dashboard B'!R468))*CQ96)*BO90)+(CQ96*(1-BO90)) -> 0.25 | BP96: =(((1-('Dashboard B'!S468))*CR96)*BP90)+(CR96*(1-BP90)) -> 0.25 | BQ96: per litre | BU96: =(1-('Dashboard B'!J420))*CI96 -> 0.175 | BV96: =(1-('Dashboard B'!K420))*CJ96 -> 0.175 | BW96: =(1-('Dashboard B'!L420))*CK96 -> 0.175 | BX96: =(1-('Dashboard B'!M420))*CL96 -> 0.175 | BY96: =(1-('Dashboard B'!N420))*CM96 -> 0.175 | BZ96: =(1-('Dashboard B'!O420))*CN96 -> 0.175 | CA96: =(1-('Dashboard B'!P420))*CO96 -> 0.175 | CB96: =(1-('Dashboard B'!Q420))*CP96 -> 0.175 | CC96: =(1-('Dashboard B'!R420))*CQ96 -> 0.175 | CD96: =(1-('Dashboard B'!S420))*CR96 -> 0.175 | CE96: per litre | CI96: ='Dashboard B'!J396 -> 0.25 | CJ96: ='Dashboard B'!K396 -> 0.25 | CK96: ='Dashboard B'!L396 -> 0.25 | CL96: ='Dashboard B'!M396 -> 0.25 | CM96: ='Dashboard B'!N396 -> 0.25 | CN96: ='Dashboard B'!O396 -> 0.25 | CO96: ='Dashboard B'!P396 -> 0.25 | CP96: ='Dashboard B'!Q396 -> 0.25 | CQ96: ='Dashboard B'!R396 -> 0.25 | CR96: ='Dashboard B'!S396 -> 0.25 | CS96: per litre
C98: Fuel cost per km | G98: =G41*G43 -> 1.025351279 | H98: 0.9898593809 | I98: 0.9560336849 | J98: 0.9237900329 | K98: 0.8930485817 | L98: 0.8637335812 | M98: 0.8357731638 | N98: 0.8090991441 | O98: 0.7836468301 | P98: 0.7593548427 | Q98: per km | V98: Fuel cost per km | AA98: =AA43*AA88 -> 0.7605333333 | AB98: =AB43*AB88 -> 0.7510175203 | AC98: 0.7412950907 | AD98: 0.7313601267 | AE98: 0.7212065465 | AF98: 0.7108280999 | AG98: 0.7002183632 | AH98: 0.6893707351 | AI98: 0.6782784311 | AJ98: 0.666934479 | AK98: per km | AP98: Fuel cost per km12 | AS98: =((AS41*AS90)+(CI41*(1-AS90)))*AS43 -> 1.665 | AT98: 1.6192125 | AU98: 1.574684156 | AV98: 1.531380342 | AW98: 1.489267383 | AX98: 1.44831253 | AY98: 1.408483935 | AZ98: 1.369750627 | BA98: 1.332082485 | BB98: 1.295450216 | BC98: =BQ98 -> per km | BG98: =((BG41*BG90)+(CI41*(1-BG90)))*BG43 -> 0.76035 | BH98: 0.7659666 | BI98: 0.7716449826 | BJ98: 0.7773858274 | BK98: 0.7831898215 | BL98: 0.7890576595 | BM98: 0.7949900438 | BN98: 0.8009876843 | BO98: 0.8070512988 | BP98: 0.8131816131 | BQ98: =CS98 -> per km | BU98: =BU100*(1-'Dashboard B'!J420)+BU102*('Dashboard B'!J420) -> 0.9922364202 | BV98: =BV100*(1-'Dashboard B'!K420)+BV102*('Dashboard B'!K420) -> 0.9782701365 | BW98: =BW100*(1-'Dashboard B'!L420)+BW102*('Dashboard B'!L420) -> 0.9652442909 | BX98: =BX100*(1-'Dashboard B'!M420)+BX102*('Dashboard B'!M420) -> 0.9531147079 | BY98: =BY100*(1-'Dashboard B'!N420)+BY102*('Dashboard B'!N420) -> 0.941839514 | BZ98: =BZ100*(1-'Dashboard B'!O420)+BZ102*('Dashboard B'!O420) -> 0.93137902 | CA98: =CA100*(1-'Dashboard B'!P420)+CA102*('Dashboard B'!P420) -> 0.9216956084 | CB98: =CB100*(1-'Dashboard B'!Q420)+CB102*('Dashboard B'!Q420) -> 0.9127536277 | CC98: =CC100*(1-'Dashboard B'!R420)+CC102*('Dashboard B'!R420) -> 0.9045192914 | CD98: =CD100*(1-'Dashboard B'!S420)+CD102*('Dashboard B'!S420) -> 0.8969605823 | CE98: per km | CI98: =CI41*CI43 -> 0.63825 | CJ98: 0.64527075 | CK98: 0.6523687282 | CL98: 0.6595447843 | CM98: 0.6667997769 | CN98: 0.6741345744 | CO98: 0.6815500548 | CP98: 0.6890471054 | CQ98: 0.6966266235 | CR98: 0.7042895164 | CS98: per km
AP100: Diesel fuel cost per km | AS100: n/a | BG100: n/a | BU100: =(CI41*BU43) -> 0.63825 | BV100: =(CJ41*BV43) -> 0.64527075 | BW100: 0.6523687282 | BX100: 0.6595447843 | BY100: 0.6667997769 | BZ100: 0.6741345744 | CA100: 0.6815500548 | CB100: 0.6890471054 | CC100: 0.6966266235 | CD100: 0.7042895164 | CE100: per km | CI100: n/a
AP102: H2 fuel cost per km | AS102: n/a | BG102: n/a | BU102: =(BU45*G41) -> 1.818204734 | BV102: 1.755268705 | BW102: 1.69528727 | BX102: 1.638111196 | BY102: 1.583598901 | BZ102: 1.53161606 | CA102: 1.482035234 | CB102: 1.434735513 | CC102: 1.389602183 | CD102: 1.346526403 | CE102: per km | CI102: n/a
C104: Length of load/unload | G104: =length_of_load -> 0.43 | H104: 0.43 | I104: 0.43 | J104: 0.43 | K104: 0.43 | L104: 0.43 | M104: 0.43 | N104: 0.43 | O104: 0.43 | P104: 0.43 | Q104: hour | V104: Length of load/unload | AA104: =length_of_load -> 0.43 | AB104: 0.43 | AC104: 0.43 | AD104: 0.43 | AE104: 0.43 | AF104: 0.43 | AG104: 0.43 | AH104: 0.43 | AI104: 0.43 | AJ104: 0.43 | AK104: hour | AP104: Length of load/unload | AS104: =length_of_load -> 0.43 | AT104: 0.43 | AU104: 0.43 | AV104: 0.43 | AW104: 0.43 | AX104: 0.43 | AY104: 0.43 | AZ104: 0.43 | BA104: 0.43 | BB104: 0.43 | BC104: hour | BG104: =length_of_load -> 0.43 | BH104: =length_of_load -> 0.43 | BI104: 0.43 | BJ104: 0.43 | BK104: 0.43 | BL104: 0.43 | BM104: 0.43 | BN104: 0.43 | BO104: 0.43 | BP104: 0.43 | BQ104: hour | BU104: =length_of_load -> 0.43 | BV104: 0.43 | BW104: 0.43 | BX104: 0.43 | BY104: 0.43 | BZ104: 0.43 | CA104: 0.43 | CB104: 0.43 | CC104: 0.43 | CD104: 0.43 | CE104: hour | CI104: =length_of_load -> 0.43 | CJ104: 0.43 | CK104: 0.43 | CL104: 0.43 | CM104: 0.43 | CN104: 0.43 | CO104: 0.43 | CP104: 0.43 | CQ104: 0.43 | CR104: 0.43 | CS104: hour
C106: Average driving speed | G106: =average_speed -> 66 | H106: 66 | I106: 66 | J106: 66 | K106: 66 | L106: 66 | M106: 66 | N106: 66 | O106: 66 | P106: 66 | Q106: kph | V106: Average driving speed | AA106: =average_speed -> 66 | AB106: 66 | AC106: 66 | AD106: 66 | AE106: 66 | AF106: 66 | AG106: 66 | AH106: 66 | AI106: 66 | AJ106: 66 | AK106: kph | AP106: Average driving speed | AS106: =average_speed -> 66 | AT106: 66 | AU106: 66 | AV106: 66 | AW106: 66 | AX106: 66 | AY106: 66 | AZ106: 66 | BA106: 66 | BB106: 66 | BC106: kph | BG106: =average_speed -> 66 | BH106: =average_speed -> 66 | BI106: 66 | BJ106: 66 | BK106: 66 | BL106: 66 | BM106: 66 | BN106: 66 | BO106: 66 | BP106: 66 | BQ106: kph | BU106: =average_speed -> 66 | BV106: 66 | BW106: 66 | BX106: 66 | BY106: 66 | BZ106: 66 | CA106: 66 | CB106: 66 | CC106: 66 | CD106: 66 | CE106: kph | CI106: =average_speed -> 66 | CJ106: 66 | CK106: 66 | CL106: 66 | CM106: 66 | CN106: 66 | CO106: 66 | CP106: 66 | CQ106: 66 | CR106: 66 | CS106: kph
C108: Labour hours13 | G108: =(G29/G106)+(G104*2)+G57 -> 11.70545455 | H108: 11.70545455 | I108: 11.70545455 | J108: 11.70545455 | K108: 11.70545455 | L108: 11.70545455 | M108: 11.70545455 | N108: 11.70545455 | O108: 11.70545455 | P108: 11.70545455 | Q108: hours | V108: Labour hours13 | AA108: =(AA29/AA106)+(AA104*2)+(AA57+AA66)-IF(AND((AA29/AA106)+(AA104*2)+(AA57+AA66),AA66>0)>5.5,0.5,0)-IF(AND(((AA29/AA106)+AA104*2)+(AA57+AA66),AA66>0.5)>11.5,0.5,0) -> 12.92045455 | AB108: 12.88083705 | AC108: 12.8403585 | AD108: 12.79899476 | AE108: 12.75672099 | AF108: 12.71351169 | AG108: 12.66934067 | AH108: 12.62418099 | AI108: 12.57800499 | AJ108: 12.53078426 | AK108: hours | AP108: Labour hours13 | AS108: =(AS29/AS106)+(AS104*2)+AS57 -> 11.70545455 | AT108: 11.70545455 | AU108: 11.70545455 | AV108: 11.70545455 | AW108: 11.70545455 | AX108: 11.70545455 | AY108: 11.70545455 | AZ108: 11.70545455 | BA108: 11.70545455 | BB108: 11.70545455 | BC108: =BQ108 -> hours | BG108: =(BG29/BG106)+(BG104*2)+BG57 -> 11.70545455 | BH108: 11.70545455 | BI108: 11.70545455 | BJ108: 11.70545455 | BK108: 11.70545455 | BL108: 11.70545455 | BM108: 11.70545455 | BN108: 11.70545455 | BO108: 11.70545455 | BP108: 11.70545455 | BQ108: =CS108 -> hours | BU108: =(BU29/BU106)+(BU104*2)+BU57 -> 11.70545455 | BV108: 11.70545455 | BW108: 11.70545455 | BX108: 11.70545455 | BY108: 11.70545455 | BZ108: 11.70545455 | CA108: 11.70545455 | CB108: 11.70545455 | CC108: 11.70545455 | CD108: 11.70545455 | CE108: hours | CI108: =(CI29/CI106)+(CI104*2)+CI57 -> 11.70545455 | CJ108: 11.70545455 | CK108: 11.70545455 | CL108: 11.70545455 | CM108: 11.70545455 | CN108: 11.70545455 | CO108: 11.70545455 | CP108: 11.70545455 | CQ108: 11.70545455 | CR108: 11.70545455 | CS108: hours
C110: Driver wages | G110: ='Dashboard B'!J79 -> 25 | H110: ='Dashboard B'!K79 -> 25 | I110: ='Dashboard B'!L79 -> 25 | J110: ='Dashboard B'!M79 -> 25 | K110: ='Dashboard B'!N79 -> 25 | L110: ='Dashboard B'!O79 -> 25 | M110: ='Dashboard B'!P79 -> 25 | N110: ='Dashboard B'!Q79 -> 25 | O110: ='Dashboard B'!R79 -> 25 | P110: ='Dashboard B'!S79 -> 25 | Q110: per hour | V110: Driver wages | AA110: ='Dashboard B'!J79 -> 25 | AB110: ='Dashboard B'!K79 -> 25 | AC110: ='Dashboard B'!L79 -> 25 | AD110: ='Dashboard B'!M79 -> 25 | AE110: ='Dashboard B'!N79 -> 25 | AF110: ='Dashboard B'!O79 -> 25 | AG110: ='Dashboard B'!P79 -> 25 | AH110: ='Dashboard B'!Q79 -> 25 | AI110: ='Dashboard B'!R79 -> 25 | AJ110: ='Dashboard B'!S79 -> 25 | AK110: per hour | AP110: Driver wages | AS110: ='Dashboard B'!J79 -> 25 | AT110: ='Dashboard B'!K79 -> 25 | AU110: ='Dashboard B'!L79 -> 25 | AV110: ='Dashboard B'!M79 -> 25 | AW110: ='Dashboard B'!N79 -> 25 | AX110: ='Dashboard B'!O79 -> 25 | AY110: ='Dashboard B'!P79 -> 25 | AZ110: ='Dashboard B'!Q79 -> 25 | BA110: ='Dashboard B'!R79 -> 25 | BB110: ='Dashboard B'!S79 -> 25 | BC110: =BQ110 -> per hour | BG110: ='Dashboard B'!J79 -> 25 | BH110: ='Dashboard B'!K79 -> 25 | BI110: ='Dashboard B'!L79 -> 25 | BJ110: ='Dashboard B'!M79 -> 25 | BK110: ='Dashboard B'!N79 -> 25 | BL110: ='Dashboard B'!O79 -> 25 | BM110: ='Dashboard B'!P79 -> 25 | BN110: ='Dashboard B'!Q79 -> 25 | BO110: ='Dashboard B'!R79 -> 25 | BP110: ='Dashboard B'!S79 -> 25 | BQ110: =CS110 -> per hour | BU110: ='Dashboard B'!J79 -> 25 | BV110: ='Dashboard B'!K79 -> 25 | BW110: ='Dashboard B'!L79 -> 25 | BX110: ='Dashboard B'!M79 -> 25 | BY110: ='Dashboard B'!N79 -> 25 | BZ110: ='Dashboard B'!O79 -> 25 | CA110: ='Dashboard B'!P79 -> 25 | CB110: ='Dashboard B'!Q79 -> 25 | CC110: ='Dashboard B'!R79 -> 25 | CD110: ='Dashboard B'!S79 -> 25 | CE110: per hour | CI110: ='Dashboard B'!J79 -> 25 | CJ110: ='Dashboard B'!K79 -> 25 | CK110: ='Dashboard B'!L79 -> 25 | CL110: ='Dashboard B'!M79 -> 25 | CM110: ='Dashboard B'!N79 -> 25 | CN110: ='Dashboard B'!O79 -> 25 | CO110: ='Dashboard B'!P79 -> 25 | CP110: ='Dashboard B'!Q79 -> 25 | CQ110: ='Dashboard B'!R79 -> 25 | CR110: ='Dashboard B'!S79 -> 25 | CS110: per hour
C112: Labour cost per km | G112: =(G110*G108)/G29 -> 0.4645021645 | H112: 0.4645021645 | I112: 0.4645021645 | J112: 0.4645021645 | K112: 0.4645021645 | L112: 0.4645021645 | M112: 0.4645021645 | N112: 0.4645021645 | O112: 0.4645021645 | P112: 0.4645021645 | Q112: per km | V112: Labour cost per km | AA112: =(AA110*AA108)/(AA33/AA31) -> 0.5127164502 | AB112: 0.5111443272 | AC112: 0.5095380358 | AD112: 0.5078966174 | AE112: 0.5062190869 | AF112: 0.5045044323 | AG112: 0.5027516138 | AH112: 0.5009595631 | AI112: 0.4991271823 | AJ112: 0.4972533436 | AK112: per km | AP112: Labour cost per km | AS112: =(AS110*AS108)/AS29 -> 0.4645021645 | AT112: 0.4645021645 | AU112: 0.4645021645 | AV112: 0.4645021645 | AW112: 0.4645021645 | AX112: 0.4645021645 | AY112: 0.4645021645 | AZ112: 0.4645021645 | BA112: 0.4645021645 | BB112: 0.4645021645 | BC112: =BQ112 -> per km | BG112: =(BG110*BG108)/BG29 -> 0.4645021645 | BH112: 0.4645021645 | BI112: 0.4645021645 | BJ112: 0.4645021645 | BK112: 0.4645021645 | BL112: 0.4645021645 | BM112: 0.4645021645 | BN112: 0.4645021645 | BO112: 0.4645021645 | BP112: 0.4645021645 | BQ112: =CS112 -> per km | BU112: =(BU110*BU108)/BU29 -> 0.4645021645 | BV112: 0.4645021645 | BW112: 0.4645021645 | BX112: 0.4645021645 | BY112: 0.4645021645 | BZ112: 0.4645021645 | CA112: 0.4645021645 | CB112: 0.4645021645 | CC112: 0.4645021645 | CD112: 0.4645021645 | CE112: per km | CI112: =(CI110*CI108)/CI29 -> 0.4645021645 | CJ112: 0.4645021645 | CK112: 0.4645021645 | CL112: 0.4645021645 | CM112: 0.4645021645 | CN112: 0.4645021645 | CO112: 0.4645021645 | CP112: 0.4645021645 | CQ112: 0.4645021645 | CR112: 0.4645021645 | CS112: per km
C114: CO2e cost per km13 | G114: ='H2 cost calculator'!E114*G43 -> 0 | H114: ='H2 cost calculator'!F114*H43 -> 0 | I114: ='H2 cost calculator'!G114*I43 -> 0 | J114: ='H2 cost calculator'!H114*J43 -> 0 | K114: ='H2 cost calculator'!I114*K43 -> 0 | L114: ='H2 cost calculator'!J114*L43 -> 0 | M114: ='H2 cost calculator'!K114*M43 -> 0 | N114: ='H2 cost calculator'!L114*N43 -> 0 | O114: ='H2 cost calculator'!M114*O43 -> 0 | P114: ='H2 cost calculator'!N114*P43 -> 0 | Q114: per km | V114: CO2-e cost per km | AA114: =(AA92/1000)*AA94 -> 0 | AB114: =(AB92/1000)*AB94 -> 0 | AC114: 0 | AD114: 0 | AE114: 0 | AF114: 0 | AG114: 0 | AH114: 0 | AI114: 0 | AJ114: 0 | AK114: per km | AP114: CO2-e cost per km | AS114: =(AS92/1000)*AS94 -> 0.013392192 | AT114: =(AT92/1000)*AT94 -> 0.01533941672 | AU114: 0.01756976791 | AV114: 0.02012441216 | AW114: 0.02305050169 | AX114: 0.02640204464 | AY114: 0.03024090192 | AZ114: 0.03463792906 | BA114: 0.03967428395 | BB114: 0.04544292484 | BC114: =BQ114 -> per km | BG114: =(BG92/1000)*BG94 -> 0.0550297344 | BH114: 0.06303105778 | BI114: 0.07219577358 | BJ114: 0.08269303906 | BK114: 0.09471660694 | BL114: 0.1084884016 | BM114: 0.1242626152 | BN114: 0.1423303994 | BO114: 0.1630252395 | BP114: 0.1867291093 | BQ114: =CS114 -> per km | BU114: =(BU92/1000)*BU94 -> 0.04261152 | BV114: 0.04880723501 | BW114: 0.05590380698 | BX114: 0.06403222051 | BY114: 0.07334250538 | BZ114: 0.08400650566 | CA114: 0.09622105158 | CB114: 0.1102115925 | CC114: 0.126236358 | CD114: 0.1445911245 | CE114: per km | CI114: =(CI92/1000)*CI94 -> 0.0608736 | CJ114: 0.06972462144 | CK114: 0.0798625814 | CL114: 0.09147460073 | CM114: 0.1047750077 | CN114: 0.1200092938 | CO114: 0.1374586451 | CP114: 0.1574451321 | CQ114: 0.1803376543 | CR114: 0.2065587493 | CS114: per km
AP116: Health cost per km | AS116: =(AS96*AS43) -> 0.13875 | AT116: 0.13875 | AU116: 0.13875 | AV116: 0.13875 | AW116: 0.13875 | AX116: 0.13875 | AY116: 0.13875 | AZ116: 0.13875 | BA116: 0.13875 | BB116: 0.13875 | BC116: =BQ116 -> per km | BG116: =(BG96*BG43) -> 0.13875 | BH116: 0.13875 | BI116: 0.13875 | BJ116: 0.13875 | BK116: 0.13875 | BL116: 0.13875 | BM116: 0.13875 | BN116: 0.13875 | BO116: 0.13875 | BP116: 0.13875 | BQ116: =CS116 -> per km | BU116: =(BU96*BU43) -> 0.097125 | BV116: =(BV96*BV43) -> 0.097125 | BW116: 0.097125 | BX116: 0.097125 | BY116: 0.097125 | BZ116: 0.097125 | CA116: 0.097125 | CB116: 0.097125 | CC116: 0.097125 | CD116: 0.097125 | CE116: per km | CI116: =(CI96*CI43) -> 0.13875 | CJ116: 0.13875 | CK116: 0.13875 | CL116: 0.13875 | CM116: 0.13875 | CN116: 0.13875 | CO116: 0.13875 | CP116: 0.13875 | CQ116: 0.13875 | CR116: 0.13875 | CS116: per km
C118: Road User Charge per km14 | G118: =IF(G12<='Dashboard B'!$J$83,IF('Dashboard A'!$BC$169=TRUE,0,'Dashboard A'!$AI$12),'Dashboard A'!$AI$12) -> 0.599 | H118: =IF(H12<='Dashboard B'!$J$83,IF('Dashboard A'!$AY$48=TRUE,0,'Dashboard A'!$AI$12),'Dashboard A'!$AI$12) -> 0.599 | I118: =IF(I12<='Dashboard B'!$J$83,IF('Dashboard A'!$AY$48=TRUE,0,'Dashboard A'!$AI$12),'Dashboard A'!$AI$12) -> 0.599 | J118: =IF(J12<='Dashboard B'!$J$83,IF('Dashboard A'!$AY$48=TRUE,0,'Dashboard A'!$AI$12),'Dashboard A'!$AI$12) -> 0.599 | K118: =IF(K12<='Dashboard B'!$J$83,IF('Dashboard A'!$AY$48=TRUE,0,'Dashboard A'!$AI$12),'Dashboard A'!$AI$12) -> 0.599 | L118: =IF(L12<='Dashboard B'!$J$83,IF('Dashboard A'!$AY$48=TRUE,0,'Dashboard A'!$AI$12),'Dashboard A'!$AI$12) -> 0.599 | M118: =IF(M12<='Dashboard B'!$J$83,IF('Dashboard A'!$AY$48=TRUE,0,'Dashboard A'!$AI$12),'Dashboard A'!$AI$12) -> 0.599 | N118: =IF(N12<='Dashboard B'!$J$83,IF('Dashboard A'!$AY$48=TRUE,0,'Dashboard A'!$AI$12),'Dashboard A'!$AI$12) -> 0.599 | O118: =IF(O12<='Dashboard B'!$J$83,IF('Dashboard A'!$AY$48=TRUE,0,'Dashboard A'!$AI$12),'Dashboard A'!$AI$12) -> 0.599 | P118: =IF(P12<='Dashboard B'!$J$83,IF('Dashboard A'!$AY$48=TRUE,0,'Dashboard A'!$AI$12),'Dashboard A'!$AI$12) -> 0.599 | Q118: per km | V118: Road User Charge per km14 | AA118: =IF(AA12<='Dashboard B'!$J$83,IF('Dashboard A'!$BD$169=TRUE,0,'Dashboard A'!$AI$12),'Dashboard A'!$AI$12) -> 0.599 | AB118: =IF(AB12<='Dashboard B'!$J$83,IF('Dashboard A'!$AY$52=TRUE,0,'Dashboard A'!$AI$12),'Dashboard A'!$AI$12) -> 0.599 | AC118: =IF(AC12<='Dashboard B'!$J$83,IF('Dashboard A'!$AY$52=TRUE,0,'Dashboard A'!$AI$12),'Dashboard A'!$AI$12) -> 0.599 | AD118: =IF(AD12<='Dashboard B'!$J$83,IF('Dashboard A'!$AY$52=TRUE,0,'Dashboard A'!$AI$12),'Dashboard A'!$AI$12) -> 0.599 | AE118: =IF(AE12<='Dashboard B'!$J$83,IF('Dashboard A'!$AY$52=TRUE,0,'Dashboard A'!$AI$12),'Dashboard A'!$AI$12) -> 0.599 | AF118: =IF(AF12<='Dashboard B'!$J$83,IF('Dashboard A'!$AY$52=TRUE,0,'Dashboard A'!$AI$12),'Dashboard A'!$AI$12) -> 0.599 | AG118: =IF(AG12<='Dashboard B'!$J$83,IF('Dashboard A'!$AY$52=TRUE,0,'Dashboard A'!$AI$12),'Dashboard A'!$AI$12) -> 0.599 | AH118: =IF(AH12<='Dashboard B'!$J$83,IF('Dashboard A'!$AY$52=TRUE,0,'Dashboard A'!$AI$12),'Dashboard A'!$AI$12) -> 0.599 | AI118: =IF(AI12<='Dashboard B'!$J$83,IF('Dashboard A'!$AY$52=TRUE,0,'Dashboard A'!$AI$12),'Dashboard A'!$AI$12) -> 0.599 | AJ118: =IF(AJ12<='Dashboard B'!$J$83,IF('Dashboard A'!$AY$52=TRUE,0,'Dashboard A'!$AI$12),'Dashboard A'!$AI$12) -> 0.599 | AK118: per km | AP118: Road User Charge per km14 | AS118: =IF(AS12<='Dashboard B'!$J$83,IF('Dashboard A'!$BE$169=TRUE,0,'Dashboard A'!$AI$12),'Dashboard A'!$AI$12) -> 0.599 | AT118: =IF(AT12<='Dashboard B'!$J$83,IF('Dashboard A'!$AY$54=TRUE,0,'Dashboard A'!$AI$12),'Dashboard A'!$AI$12) -> 0.599 | AU118: =IF(AU12<='Dashboard B'!$J$83,IF('Dashboard A'!$AY$54=TRUE,0,'Dashboard A'!$AI$12),'Dashboard A'!$AI$12) -> 0.599 | AV118: =IF(AV12<='Dashboard B'!$J$83,IF('Dashboard A'!$AY$54=TRUE,0,'Dashboard A'!$AI$12),'Dashboard A'!$AI$12) -> 0.599 | AW118: =IF(AW12<='Dashboard B'!$J$83,IF('Dashboard A'!$AY$54=TRUE,0,'Dashboard A'!$AI$12),'Dashboard A'!$AI$12) -> 0.599 | AX118: =IF(AX12<='Dashboard B'!$J$83,IF('Dashboard A'!$AY$54=TRUE,0,'Dashboard A'!$AI$12),'Dashboard A'!$AI$12) -> 0.599 | AY118: =IF(AY12<='Dashboard B'!$J$83,IF('Dashboard A'!$AY$54=TRUE,0,'Dashboard A'!$AI$12),'Dashboard A'!$AI$12) -> 0.599 | AZ118: =IF(AZ12<='Dashboard B'!$J$83,IF('Dashboard A'!$AY$54=TRUE,0,'Dashboard A'!$AI$12),'Dashboard A'!$AI$12) -> 0.599 | BA118: =IF(BA12<='Dashboard B'!$J$83,IF('Dashboard A'!$AY$54=TRUE,0,'Dashboard A'!$AI$12),'Dashboard A'!$AI$12) -> 0.599 | BB118: =IF(BB12<='Dashboard B'!$J$83,IF('Dashboard A'!$AY$54=TRUE,0,'Dashboard A'!$AI$12),'Dashboard A'!$AI$12) -> 0.599 | BC118: per km | BG118: =IF(BG12<='Dashboard B'!$J$83,IF('Dashboard A'!$BF$169=TRUE,0,'Dashboard A'!$AI$12),'Dashboard A'!$AI$12) -> 0.599 | BH118: =IF(BH12<='Dashboard B'!$J$83,IF('Dashboard A'!$AY$56=TRUE,0,'Dashboard A'!$AI$12),'Dashboard A'!$AI$12) -> 0.599 | BI118: =IF(BI12<='Dashboard B'!$J$83,IF('Dashboard A'!$AY$56=TRUE,0,'Dashboard A'!$AI$12),'Dashboard A'!$AI$12) -> 0.599 | BJ118: =IF(BJ12<='Dashboard B'!$J$83,IF('Dashboard A'!$AY$56=TRUE,0,'Dashboard A'!$AI$12),'Dashboard A'!$AI$12) -> 0.599 | BK118: =IF(BK12<='Dashboard B'!$J$83,IF('Dashboard A'!$AY$56=TRUE,0,'Dashboard A'!$AI$12),'Dashboard A'!$AI$12) -> 0.599 | BL118: =IF(BL12<='Dashboard B'!$J$83,IF('Dashboard A'!$AY$56=TRUE,0,'Dashboard A'!$AI$12),'Dashboard A'!$AI$12) -> 0.599 | BM118: =IF(BM12<='Dashboard B'!$J$83,IF('Dashboard A'!$AY$56=TRUE,0,'Dashboard A'!$AI$12),'Dashboard A'!$AI$12) -> 0.599 | BN118: =IF(BN12<='Dashboard B'!$J$83,IF('Dashboard A'!$AY$56=TRUE,0,'Dashboard A'!$AI$12),'Dashboard A'!$AI$12) -> 0.599 | BO118: =IF(BO12<='Dashboard B'!$J$83,IF('Dashboard A'!$AY$56=TRUE,0,'Dashboard A'!$AI$12),'Dashboard A'!$AI$12) -> 0.599 | BP118: =IF(BP12<='Dashboard B'!$J$83,IF('Dashboard A'!$AY$56=TRUE,0,'Dashboard A'!$AI$12),'Dashboard A'!$AI$12) -> 0.599 | BQ118: per km | BU118: =IF(BG12<='Dashboard B'!$J$83,IF('Dashboard A'!$BG$169=TRUE,0,'Dashboard A'!$AI$12),'Dashboard A'!$AI$12) -> 0.599 | BV118: =IF(BH12<='Dashboard B'!$J$83,IF('Dashboard A'!$BG$169=TRUE,0,'Dashboard A'!$AI$12),'Dashboard A'!$AI$12) -> 0.599 | BW118: =IF(BI12<='Dashboard B'!$J$83,IF('Dashboard A'!$BG$169=TRUE,0,'Dashboard A'!$AI$12),'Dashboard A'!$AI$12) -> 0.599 | BX118: =IF(BJ12<='Dashboard B'!$J$83,IF('Dashboard A'!$BG$169=TRUE,0,'Dashboard A'!$AI$12),'Dashboard A'!$AI$12) -> 0.599 | BY118: =IF(BK12<='Dashboard B'!$J$83,IF('Dashboard A'!$BG$169=TRUE,0,'Dashboard A'!$AI$12),'Dashboard A'!$AI$12) -> 0.599 | BZ118: =IF(BL12<='Dashboard B'!$J$83,IF('Dashboard A'!$BG$169=TRUE,0,'Dashboard A'!$AI$12),'Dashboard A'!$AI$12) -> 0.599 | CA118: =IF(BM12<='Dashboard B'!$J$83,IF('Dashboard A'!$BG$169=TRUE,0,'Dashboard A'!$AI$12),'Dashboard A'!$AI$12) -> 0.599 | CB118: =IF(BN12<='Dashboard B'!$J$83,IF('Dashboard A'!$BG$169=TRUE,0,'Dashboard A'!$AI$12),'Dashboard A'!$AI$12) -> 0.599 | CC118: =IF(BO12<='Dashboard B'!$J$83,IF('Dashboard A'!$BG$169=TRUE,0,'Dashboard A'!$AI$12),'Dashboard A'!$AI$12) -> 0.599 | CD118: =IF(BP12<='Dashboard B'!$J$83,IF('Dashboard A'!$BG$169=TRUE,0,'Dashboard A'!$AI$12),'Dashboard A'!$AI$12) -> 0.599 | CE118: per km | CI118: ='Dashboard A'!$AI$12 -> 0.599 | CJ118: ='Dashboard A'!$AI$12 -> 0.599 | CK118: ='Dashboard A'!$AI$12 -> 0.599 | CL118: ='Dashboard A'!$AI$12 -> 0.599 | CM118: ='Dashboard A'!$AI$12 -> 0.599 | CN118: ='Dashboard A'!$AI$12 -> 0.599 | CO118: ='Dashboard A'!$AI$12 -> 0.599 | CP118: ='Dashboard A'!$AI$12 -> 0.599 | CQ118: ='Dashboard A'!$AI$12 -> 0.599 | CR118: ='Dashboard A'!$AI$12 -> 0.599 | CS118: per km
C120: TCO/km | G120: =IF('Dashboard A'!$AY$14=0,G35+G37+G39+G112+G98+G114+G118,G35+G39+G112+G98+G114+G118) -> 2.869459771 | H120: =IF('Dashboard A'!$AY$14=0,H35+H37+H39+H112+H98+H114+H118,H35+H39+H112+H98+H114+H118) -> 2.790717143 | I120: =IF('Dashboard A'!$AY$14=0,I35+I37+I39+I112+I98+I114+I118,I35+I39+I112+I98+I114+I118) -> 2.716231099 | J120: =IF('Dashboard A'!$AY$14=0,J35+J37+J39+J112+J98+J114+J118,J35+J39+J112+J98+J114+J118) -> 2.645762065 | K120: =IF('Dashboard A'!$AY$14=0,K35+K37+K39+K112+K98+K114+K118,K35+K39+K112+K98+K114+K118) -> 2.579084105 | L120: =IF('Dashboard A'!$AY$14=0,L35+L37+L39+L112+L98+L114+L118,L35+L39+L112+L98+L114+L118) -> 2.515984144 | M120: =IF('Dashboard A'!$AY$14=0,M35+M37+M39+M112+M98+M114+M118,M35+M39+M112+M98+M114+M118) -> 2.456261226 | N120: =IF('Dashboard A'!$AY$14=0,N35+N37+N39+N112+N98+N114+N118,N35+N39+N112+N98+N114+N118) -> 2.399725825 | O120: =IF('Dashboard A'!$AY$14=0,O35+O37+O39+O112+O98+O114+O118,O35+O39+O112+O98+O114+O118) -> 2.346199187 | P120: =IF('Dashboard A'!$AY$14=0,P35+P37+P39+P112+P98+P114+P118,P35+P39+P112+P98+P114+P118) -> 2.295512716 | Q120: per km | V120: TCO/km | AA120: =IF('Dashboard A'!$AY$14=0,AA35+AA37+AA39+AA112+AA98+AA114+AA118,AA35+AA39+AA112+AA98+AA114+AA118) -> 2.414978131 | AB120: =IF('Dashboard A'!$AY$14=0,AB35+AB37+AB39+AB112+AB98+AB114+AB118,AB35+AB39+AB112+AB98+AB114+AB118) -> 2.388398177 | AC120: =IF('Dashboard A'!$AY$14=0,AC35+AC37+AC39+AC112+AC98+AC114+AC118,AC35+AC39+AC112+AC98+AC114+AC118) -> 2.362070744 | AD120: =IF('Dashboard A'!$AY$14=0,AD35+AD37+AD39+AD112+AD98+AD114+AD118,AD35+AD39+AD112+AD98+AD114+AD118) -> 2.335973174 | AE120: =IF('Dashboard A'!$AY$14=0,AE35+AE37+AE39+AE112+AE98+AE114+AE118,AE35+AE39+AE112+AE98+AE114+AE118) -> 2.310083122 | AF120: =IF('Dashboard A'!$AY$14=0,AF35+AF37+AF39+AF112+AF98+AF114+AF118,AF35+AF39+AF112+AF98+AF114+AF118) -> 2.284378537 | AG120: =IF('Dashboard A'!$AY$14=0,AG35+AG37+AG39+AG112+AG98+AG114+AG118,AG35+AG39+AG112+AG98+AG114+AG118) -> 2.258837641 | AH120: =IF('Dashboard A'!$AY$14=0,AH35+AH37+AH39+AH112+AH98+AH114+AH118,AH35+AH39+AH112+AH98+AH114+AH118) -> 2.233438905 | AI120: =IF('Dashboard A'!$AY$14=0,AI35+AI37+AI39+AI112+AI98+AI114+AI118,AI35+AI39+AI112+AI98+AI114+AI118) -> 2.208161035 | AJ120: =IF('Dashboard A'!$AY$14=0,AJ35+AJ37+AJ39+AJ112+AJ98+AJ114+AJ118,AJ35+AJ39+AJ112+AJ98+AJ114+AJ118) -> 2.182982945 | AK120: per km | AP120: TCO/km | AS120: =IF('Dashboard A'!$AY$14=0,AS35+AS37+AS39+AS112+AS98+AS114+AS116+AS118,AS35+AS39+AS112+AS98+AS114+AS116+AS118) -> 3.267599796 | AT120: =IF('Dashboard A'!$AY$14=0,AT35+AT37+AT39+AT112+AT98+AT114+AT116+AT118,AT35+AT39+AT112+AT98+AT114+AT116+AT118) -> 3.223639204 | AU120: =IF('Dashboard A'!$AY$14=0,AU35+AU37+AU39+AU112+AU98+AU114+AU116+AU118,AU35+AU39+AU112+AU98+AU114+AU116+AU118) -> 3.18122105 | AV120: =IF('Dashboard A'!$AY$14=0,AV35+AV37+AV39+AV112+AV98+AV114+AV116+AV118,AV35+AV39+AV112+AV98+AV114+AV116+AV118) -> 3.140351875 | AW120: =IF('Dashboard A'!$AY$14=0,AW35+AW37+AW39+AW112+AW98+AW114+AW116+AW118,AW35+AW39+AW112+AW98+AW114+AW116+AW118) -> 3.101045156 | AX120: =IF('Dashboard A'!$AY$14=0,AX35+AX37+AX39+AX112+AX98+AX114+AX116+AX118,AX35+AX39+AX112+AX98+AX114+AX116+AX118) -> 3.063322153 | AY120: =IF('Dashboard A'!$AY$14=0,AY35+AY37+AY39+AY112+AY98+AY114+AY116+AY118,AY35+AY39+AY112+AY98+AY114+AY116+AY118) -> 3.027212878 | AZ120: =IF('Dashboard A'!$AY$14=0,AZ35+AZ37+AZ39+AZ112+AZ98+AZ114+AZ116+AZ118,AZ35+AZ39+AZ112+AZ98+AZ114+AZ116+AZ118) -> 2.992757215 | BA120: =IF('Dashboard A'!$AY$14=0,BA35+BA37+BA39+BA112+BA98+BA114+BA116+BA118,BA35+BA39+BA112+BA98+BA114+BA116+BA118) -> 2.9600062 | BB120: =IF('Dashboard A'!$AY$14=0,BB35+BB37+BB39+BB112+BB98+BB114+BB116+BB118,BB35+BB39+BB112+BB98+BB114+BB116+BB118) -> 2.929023501 | BC120: =BQ120 -> per km | BG120: =IF('Dashboard A'!$AY$14=0,BG35+BG37+BG39+BG112+BG98+BG114+BG116+BG118,BG35+BG39+BG112+BG98+BG114+BG116+BG118) -> 2.404587339 | BH120: =IF('Dashboard A'!$AY$14=0,BH35+BH37+BH39+BH112+BH98+BH114+BH116+BH118,BH35+BH39+BH112+BH98+BH114+BH116+BH118) -> 2.418084945 | BI120: =IF('Dashboard A'!$AY$14=0,BI35+BI37+BI39+BI112+BI98+BI114+BI116+BI118,BI35+BI39+BI112+BI98+BI114+BI116+BI118) -> 2.432807882 | BJ120: =IF('Dashboard A'!$AY$14=0,BJ35+BJ37+BJ39+BJ112+BJ98+BJ114+BJ116+BJ118,BJ35+BJ39+BJ112+BJ98+BJ114+BJ116+BJ118) -> 2.448925987 | BK120: =IF('Dashboard A'!$AY$14=0,BK35+BK37+BK39+BK112+BK98+BK114+BK116+BK118,BK35+BK39+BK112+BK98+BK114+BK116+BK118) -> 2.4666337 | BL120: =IF('Dashboard A'!$AY$14=0,BL35+BL37+BL39+BL112+BL98+BL114+BL116+BL118,BL35+BL39+BL112+BL98+BL114+BL116+BL118) -> 2.48615364 | BM120: =IF('Dashboard A'!$AY$14=0,BM35+BM37+BM39+BM112+BM98+BM114+BM116+BM118,BM35+BM39+BM112+BM98+BM114+BM116+BM118) -> 2.5077407 | BN120: =IF('Dashboard A'!$AY$14=0,BN35+BN37+BN39+BN112+BN98+BN114+BN116+BN118,BN35+BN39+BN112+BN98+BN114+BN116+BN118) -> 2.531686743 | BO120: =IF('Dashboard A'!$AY$14=0,BO35+BO37+BO39+BO112+BO98+BO114+BO116+BO118,BO35+BO39+BO112+BO98+BO114+BO116+BO118) -> 2.55832597 | BP120: =IF('Dashboard A'!$AY$14=0,BP35+BP37+BP39+BP112+BP98+BP114+BP116+BP118,BP35+BP39+BP112+BP98+BP114+BP116+BP118) -> 2.588041082 | BQ120: =CS120 -> per km | BU120: =IF('Dashboard A'!$AY$14=0,BU35+BU37+BU39+BU112+BU98+BU114+BU116+BU118,BU35+BU39+BU112+BU98+BU114+BU116+BU118) -> 2.759119401 | BV120: =IF('Dashboard A'!$AY$14=0,BV35+BV37+BV39+BV112+BV98+BV114+BV116+BV118,BV35+BV39+BV112+BV98+BV114+BV116+BV118) -> 2.751228515 | BW120: =IF('Dashboard A'!$AY$14=0,BW35+BW37+BW39+BW112+BW98+BW114+BW116+BW118,BW35+BW39+BW112+BW98+BW114+BW116+BW118) -> 2.74517908 | BX120: =IF('Dashboard A'!$AY$14=0,BX35+BX37+BX39+BX112+BX98+BX114+BX116+BX118,BX35+BX39+BX112+BX98+BX114+BX116+BX118) -> 2.741057906 | BY120: =IF('Dashboard A'!$AY$14=0,BY35+BY37+BY39+BY112+BY98+BY114+BY116+BY118,BY35+BY39+BY112+BY98+BY114+BY116+BY118) -> 2.738973148 | BZ120: =IF('Dashboard A'!$AY$14=0,BZ35+BZ37+BZ39+BZ112+BZ98+BZ114+BZ116+BZ118,BZ35+BZ39+BZ112+BZ98+BZ114+BZ116+BZ118) -> 2.739056961 | CA120: =IF('Dashboard A'!$AY$14=0,CA35+CA37+CA39+CA112+CA98+CA114+CA116+CA118,CA35+CA39+CA112+CA98+CA114+CA116+CA118) -> 2.741468558 | CB120: =IF('Dashboard A'!$AY$14=0,CB35+CB37+CB39+CB112+CB98+CB114+CB116+CB118,CB35+CB39+CB112+CB98+CB114+CB116+CB118) -> 2.746397736 | CC120: =IF('Dashboard A'!$AY$14=0,CC35+CC37+CC39+CC112+CC98+CC114+CC116+CC118,CC35+CC39+CC112+CC98+CC114+CC116+CC118) -> 2.754068938 | CD120: =IF('Dashboard A'!$AY$14=0,CD35+CD37+CD39+CD112+CD98+CD114+CD116+CD118,CD35+CD39+CD112+CD98+CD114+CD116+CD118) -> 2.764745923 | CE120: per km | CI120: =IF('Dashboard A'!$AY$14=0,CI35+CI37+CI39+CI112+CI98+CI114+CI116+CI118,CI35+CI39+CI112+CI98+CI114+CI116+CI118) -> 2.288331204 | CJ120: =IF('Dashboard A'!$AY$14=0,CJ35+CJ37+CJ39+CJ112+CJ98+CJ114+CJ116+CJ118,CJ35+CJ39+CJ112+CJ98+CJ114+CJ116+CJ118) -> 2.304082658 | CK120: =IF('Dashboard A'!$AY$14=0,CK35+CK37+CK39+CK112+CK98+CK114+CK116+CK118,CK35+CK39+CK112+CK98+CK114+CK116+CK118) -> 2.321198435 | CL120: =IF('Dashboard A'!$AY$14=0,CL35+CL37+CL39+CL112+CL98+CL114+CL116+CL118,CL35+CL39+CL112+CL98+CL114+CL116+CL118) -> 2.339866506 | CM120: =IF('Dashboard A'!$AY$14=0,CM35+CM37+CM39+CM112+CM98+CM114+CM116+CM118,CM35+CM39+CM112+CM98+CM114+CM116+CM118) -> 2.360302056 | CN120: =IF('Dashboard A'!$AY$14=0,CN35+CN37+CN39+CN112+CN98+CN114+CN116+CN118,CN35+CN39+CN112+CN98+CN114+CN116+CN118) -> 2.382751447 | CO120: =IF('Dashboard A'!$AY$14=0,CO35+CO37+CO39+CO112+CO98+CO114+CO116+CO118,CO35+CO39+CO112+CO98+CO114+CO116+CO118) -> 2.407496741 | CP120: =IF('Dashboard A'!$AY$14=0,CP35+CP37+CP39+CP112+CP98+CP114+CP116+CP118,CP35+CP39+CP112+CP98+CP114+CP116+CP118) -> 2.434860896 | CQ120: =IF('Dashboard A'!$AY$14=0,CQ35+CQ37+CQ39+CQ112+CQ98+CQ114+CQ116+CQ118,CQ35+CQ39+CQ112+CQ98+CQ114+CQ116+CQ118) -> 2.46521371 | CR120: =IF('Dashboard A'!$AY$14=0,CR35+CR37+CR39+CR112+CR98+CR114+CR116+CR118,CR35+CR39+CR112+CR98+CR114+CR116+CR118) -> 2.498978626 | CS120: per km
C122: Payload for non-BEV | G122: ='Dashboard A'!$X$20 -> 27.5 | H122: ='Dashboard A'!$X$20 -> 27.5 | I122: ='Dashboard A'!$X$20 -> 27.5 | J122: ='Dashboard A'!$X$20 -> 27.5 | K122: ='Dashboard A'!$X$20 -> 27.5 | L122: ='Dashboard A'!$X$20 -> 27.5 | M122: ='Dashboard A'!$X$20 -> 27.5 | N122: ='Dashboard A'!$X$20 -> 27.5 | O122: ='Dashboard A'!$X$20 -> 27.5 | P122: ='Dashboard A'!$X$20 -> 27.5 | Q122: tonnes | V122: Payload for BEV | AA122: ='BEV payload calculator'!E46 -> 25.22932331 | AB122: ='BEV payload calculator'!F46 -> 25.29940924 | AC122: ='BEV payload calculator'!G46 -> 25.36799333 | AD122: ='BEV payload calculator'!H46 -> 25.43510775 | AE122: ='BEV payload calculator'!I46 -> 25.50078402 | AF122: ='BEV payload calculator'!J46 -> 25.56505293 | AG122: ='BEV payload calculator'!K46 -> 25.62794465 | AH122: ='BEV payload calculator'!L46 -> 25.6894887 | AI122: ='BEV payload calculator'!M46 -> 25.74971394 | AJ122: ='BEV payload calculator'!N46 -> 25.80864864 | AK122: tonnes | AP122: Payload for non-BEV | AS122: ='Dashboard A'!$X$20 -> 27.5 | AT122: ='Dashboard A'!$X$20 -> 27.5 | AU122: ='Dashboard A'!$X$20 -> 27.5 | AV122: ='Dashboard A'!$X$20 -> 27.5 | AW122: ='Dashboard A'!$X$20 -> 27.5 | AX122: ='Dashboard A'!$X$20 -> 27.5 | AY122: ='Dashboard A'!$X$20 -> 27.5 | AZ122: ='Dashboard A'!$X$20 -> 27.5 | BA122: ='Dashboard A'!$X$20 -> 27.5 | BB122: ='Dashboard A'!$X$20 -> 27.5 | BC122: =BQ122 -> tonnes | BG122: ='Dashboard A'!$X$20 -> 27.5 | BH122: ='Dashboard A'!$X$20 -> 27.5 | BI122: ='Dashboard A'!$X$20 -> 27.5 | BJ122: ='Dashboard A'!$X$20 -> 27.5 | BK122: ='Dashboard A'!$X$20 -> 27.5 | BL122: ='Dashboard A'!$X$20 -> 27.5 | BM122: ='Dashboard A'!$X$20 -> 27.5 | BN122: ='Dashboard A'!$X$20 -> 27.5 | BO122: ='Dashboard A'!$X$20 -> 27.5 | BP122: ='Dashboard A'!$X$20 -> 27.5 | BQ122: =CS122 -> tonnes | BU122: ='Dashboard A'!$X$20 -> 27.5 | BV122: ='Dashboard A'!$X$20 -> 27.5 | BW122: ='Dashboard A'!$X$20 -> 27.5 | BX122: ='Dashboard A'!$X$20 -> 27.5 | BY122: ='Dashboard A'!$X$20 -> 27.5 | BZ122: ='Dashboard A'!$X$20 -> 27.5 | CA122: ='Dashboard A'!$X$20 -> 27.5 | CB122: ='Dashboard A'!$X$20 -> 27.5 | CC122: ='Dashboard A'!$X$20 -> 27.5 | CD122: ='Dashboard A'!$X$20 -> 27.5 | CE122: tonnes | CI122: ='Dashboard A'!$X$20 -> 27.5 | CJ122: ='Dashboard A'!$X$20 -> 27.5 | CK122: ='Dashboard A'!$X$20 -> 27.5 | CL122: ='Dashboard A'!$X$20 -> 27.5 | CM122: ='Dashboard A'!$X$20 -> 27.5 | CN122: ='Dashboard A'!$X$20 -> 27.5 | CO122: ='Dashboard A'!$X$20 -> 27.5 | CP122: ='Dashboard A'!$X$20 -> 27.5 | CQ122: ='Dashboard A'!$X$20 -> 27.5 | CR122: ='Dashboard A'!$X$20 -> 27.5 | CS122: tonnes
C124: Average load factor | G124: ='Dashboard A'!$X$22 -> 1 | H124: ='Dashboard A'!$X$22 -> 1 | I124: ='Dashboard A'!$X$22 -> 1 | J124: ='Dashboard A'!$X$22 -> 1 | K124: ='Dashboard A'!$X$22 -> 1 | L124: ='Dashboard A'!$X$22 -> 1 | M124: ='Dashboard A'!$X$22 -> 1 | N124: ='Dashboard A'!$X$22 -> 1 | O124: ='Dashboard A'!$X$22 -> 1 | P124: ='Dashboard A'!$X$22 -> 1 | V124: Average load factor | AA124: ='Dashboard A'!$X$22 -> 1 | AB124: ='Dashboard A'!$X$22 -> 1 | AC124: ='Dashboard A'!$X$22 -> 1 | AD124: ='Dashboard A'!$X$22 -> 1 | AE124: ='Dashboard A'!$X$22 -> 1 | AF124: ='Dashboard A'!$X$22 -> 1 | AG124: ='Dashboard A'!$X$22 -> 1 | AH124: ='Dashboard A'!$X$22 -> 1 | AI124: ='Dashboard A'!$X$22 -> 1 | AJ124: ='Dashboard A'!$X$22 -> 1 | AP124: Average load factor | AS124: ='Dashboard A'!$X$22 -> 1 | AT124: ='Dashboard A'!$X$22 -> 1 | AU124: ='Dashboard A'!$X$22 -> 1 | AV124: ='Dashboard A'!$X$22 -> 1 | AW124: ='Dashboard A'!$X$22 -> 1 | AX124: ='Dashboard A'!$X$22 -> 1 | AY124: ='Dashboard A'!$X$22 -> 1 | AZ124: ='Dashboard A'!$X$22 -> 1 | BA124: ='Dashboard A'!$X$22 -> 1 | BB124: ='Dashboard A'!$X$22 -> 1 | BG124: ='Dashboard A'!$X$22 -> 1 | BH124: ='Dashboard A'!$X$22 -> 1 | BI124: ='Dashboard A'!$X$22 -> 1 | BJ124: ='Dashboard A'!$X$22 -> 1 | BK124: ='Dashboard A'!$X$22 -> 1 | BL124: ='Dashboard A'!$X$22 -> 1 | BM124: ='Dashboard A'!$X$22 -> 1 | BN124: ='Dashboard A'!$X$22 -> 1 | BO124: ='Dashboard A'!$X$22 -> 1 | BP124: ='Dashboard A'!$X$22 -> 1 | BU124: ='Dashboard A'!$X$22 -> 1 | BV124: ='Dashboard A'!$X$22 -> 1 | BW124: ='Dashboard A'!$X$22 -> 1 | BX124: ='Dashboard A'!$X$22 -> 1 | BY124: ='Dashboard A'!$X$22 -> 1 | BZ124: ='Dashboard A'!$X$22 -> 1 | CA124: ='Dashboard A'!$X$22 -> 1 | CB124: ='Dashboard A'!$X$22 -> 1 | CC124: ='Dashboard A'!$X$22 -> 1 | CD124: ='Dashboard A'!$X$22 -> 1 | CI124: ='Dashboard A'!$X$22 -> 1 | CJ124: ='Dashboard A'!$X$22 -> 1 | CK124: ='Dashboard A'!$X$22 -> 1 | CL124: ='Dashboard A'!$X$22 -> 1 | CM124: ='Dashboard A'!$X$22 -> 1 | CN124: ='Dashboard A'!$X$22 -> 1 | CO124: ='Dashboard A'!$X$22 -> 1 | CP124: ='Dashboard A'!$X$22 -> 1 | CQ124: ='Dashboard A'!$X$22 -> 1 | CR124: ='Dashboard A'!$X$22 -> 1
C126: TCO $/tkm | G126: =G120/(G122*G124) -> 0.1043439917 | H126: =H120/(H122*H124) -> 0.1014806234 | I126: 0.09877203996 | J126: 0.09620952964 | K126: 0.09378487656 | L126: 0.09149033251 | M126: 0.08931859004 | N126: 0.08726275726 | O126: 0.08531633407 | P126: 0.08347318967 | Q126: per tkm | V126: TCO $/tkm | AA126: =AA120/(AA122*AA124) -> 0.09572108224 | AB126: =AB120/(AB122*AB124) -> 0.09440529438 | AC126: 0.09311224241 | AD126: 0.0918405063 | AE126: 0.09058870976 | AF126: 0.0893555176 | AG126: 0.08813963318 | AH126: 0.08693979596 | AI126: 0.08575477928 | AJ126: 0.08458338813 | AK126: per tkm | AP126: TCO $/tkm | AS126: =AS120/(AS122*AS124) -> 0.1188218108 | AT126: =AT120/(AT122*AT124) -> 0.1172232438 | AU126: 0.1156807654 | AV126: 0.1141946136 | AW126: 0.1127652784 | AX126: 0.1113935328 | AY126: 0.1100804683 | AZ126: 0.1088275351 | BA126: 0.1076365891 | BB126: 0.1065099455 | BC126: per tkm | BG126: =BG120/(BG122*BG124) -> 0.0874395396 | BH126: =BH120/(BH122*BH124) -> 0.08793036162 | BI126: 0.08846574116 | BJ126: 0.08905185408 | BK126: 0.08969577092 | BL126: 0.0904055869 | BM126: 0.09119057091 | BN126: 0.09206133609 | BO126: 0.09303003528 | BP126: 0.09411058481 | BQ126: per tkm | BU126: =BU120/(BU122*BU124) -> 0.1003316146 | BV126: =BV120/(BV122*BV124) -> 0.1000446733 | BW126: 0.09982469383 | BX126: 0.09967483294 | BY126: 0.09959902356 | BZ126: 0.09960207131 | CA126: 0.09968976574 | CB126: 0.09986900858 | CC126: 0.1001479614 | CD126: 0.1005362154 | CE126: per tkm | CI126: =CI120/(CI122*CI124) -> 0.0832120438 | CJ126: =CJ120/(CJ122*CJ124) -> 0.08378482394 | CK126: 0.08440721583 | CL126: 0.08508605475 | CM126: 0.08582916568 | CN126: 0.08664550716 | CO126: 0.08754533603 | CP126: 0.08854039623 | CQ126: 0.0896441349 | CR126: 0.09087195002 | CS126: per tkm
C128: Cost of carbon abatement | G128: =-((G120-G114)-(CI120-CI114))/(G94-CI94)*1000 -> 430.2963584 | H128: =-((H120-H114)-(CJ120-CJ114))/(H94-CJ94)*1000 -> 372.894843 | I128: 318.2944002 | J128: 266.3338874 | K128: 216.8612981 | L128: 169.7332379 | M128: 124.8144305 | N128: 81.9772524 | O128: 41.1012946 | P128: 2.072948895 | Q128: per tonne | V128: Cost of carbon abatement | AA128: =-((AA120-AA114)-(CI120-CI114))/(AA94-CI94)*1000 -> 125.6839992 | AB128: =-((AB120-AB114)-(CJ120-CJ114))/(AB94-CJ94)*1000 -> 103.2440616 | AC128: 80.92150806 | AD128: 58.70058233 | AE128: 36.56573276 | AF128: 14.50159797 | AG128: -7.507007343 | AH128: -29.47510636 | AI128: -51.41757383 | AJ128: -73.34914962 | AK128: per tonne | AP128: Cost of carbon abatement | AS128: =-((AS120-AS114)-(CI120-CI114))/(AS94-CI94)*1000 -> 882.2695401 | AT128: =-((AT120-AT114)-(CJ120-CJ114))/(AT94-CJ94)*1000 -> 836.8922716 | AU128: 792.5306146 | AV128: 749.1540848 | AW128: 706.7330082 | AX128: 665.2384986 | AY128: 624.6424351 | AZ128: 584.9174412 | BA128: 546.0368641 | BB128: 507.9747541 | BC128: per tonne | BG128: =-((BG120-BG114)-(CI120-CI114))/(BG94-CI94)*1000 -> 852.4631367 | BH128: =-((BH120-BH114)-(CJ120-CJ114))/(BH94-CJ94)*1000 -> 842.6598107 | BI128: 832.748648 | BJ128: 822.7284625 | BK128: 812.5980551 | BL128: 802.3562131 | BM128: 792.0017109 | BN128: 781.5333091 | BO128: 770.9497549 | BP128: 760.2497817 | BQ128: per tonne | BU128: =-((BU120-BU114)-(CI120-CI114))/(BU94-CI94)*1000 -> 1092.605623 | BV128: =-((BV120-BV114)-(CJ120-CJ114))/(BV94-CJ94)*1000 -> 1045.717702 | BW128: 1000.75831 | BX128: 957.6268553 | BY128: 916.2278686 | BZ128: 876.4707381 | CA128: 838.2694604 | CB128: 801.5424022 | CC128: 766.2120748 | CD128: 732.2049212 | CE128: per tonne | CI128: n/a
C133: Notes:
C134: 1 | D134: Annual kms are calculated without a cap; in other words, the annual mileage for one driver may not be physically or legally possible given the specifications.
C136: 2 | D136: Maintenance cost per km for FCEVs and BEVs are calculated as a percentage of ICEV maintenance costs.
C138: 3 | D138: Insurance cost is calculated as a percentage of the total cost (i.e., capital cost plus maintenance).
C140: 4 | D140: As detailed in note 21 of Dashboard A, an energy ratio is used to calculate the kgs of H2 needed to replace the equivalent litres of diesel for an ICEV. This is a simplified calculation finding the fuel efficiency of burning H2 in the ICEV in litres per MJ/km, then using the energy ratio
D141: to determine the number of kgs of H2 needed per km. This tool assumes no change in energy efficiency between H2 and diesel for ICEVs, which means the fuel efficiency of H2 per km can be calculated by applying the energy ratio to the fuel efficiency of diesel per km
D142: as it is assumed that the energy efficiency in MJ/km is equivalent between H2 and diesel for an ICEV.
C144: 5 | D144: =IF(BEV_switch=0,"Total charge stops is determined given the total kWh required to complete the trip and the capacity of the vehicle battery, including accounting for the capcity floor and ceiling. This assumes the vehicle leaves for the day fully charged, runs to","Required battery swaps are calculated assuming that the driver is still restrained by the capacity floor. The driver must stop to swap a battery each time the capacity floor is reached. However, the capacity ceiling") -> Total charge stops is determined given the total kWh required to complete the trip and the capacity of the vehicle battery, including accounting for the capcity floor and ceiling. This assumes the vehicle leaves for the day fully charged, runs to
D145: =IF(BEV_switch=0,"the capacity floor, then charges between the floor and ceiling the remainder of the trip.","does not apply as the driver is assumed to receive a fully charged battery at each swap.") -> the capacity floor, then charges between the floor and ceiling the remainder of the trip.
C147: 6 | D147: This calculation allocates one initial battery charge to the capacity floor to overnight charging and the remainder required to complete the trip to fast charging between the floor and ceiling capacity limits.
C149: 7 | D149: This percent represents the percent of biodiesel used, with the remainder of the fuel blend as diesel.
C151: 8 | D151: Any emissions costs for green H2 are only incurred when grid electricity is used for production. These costs are developed in the H2 cost calculator sheet.
C153: 9 | D153: Emissions are calculated using an average for grid generation, rather than allocating emissions by time of use. Therefore, this applies the same way per kWh for fast charging or battery swapping.
C155: 10 | D155: CO2 emissions calculations for biodiesel-fuelled ICEVs applies CO2 emissions reductions specified for the relevant biodiesel to the specified fossil diesel-fuelled ICEV emissions, applied to the proportion of biodiesel used in the blend.
D156: CO2 emissions calculations for diesel/H2 - fuelled ICEVs applies CO2 emissions reductions based on the diesel displacement percentage to diesel-fuelled ICEV emissions.
C158: 11 | D158: Social health costs from particulate matter (PM) per litre of fuel used is scaled down according to the specified reduction, applied to the proportion of biodiesel used in the blend (for biodiesel-fuelled ICEVs) or the amount of diesel displaced by H2 (for the H2/diesel-fuelled ICEVs).
C160: 12 | D160: Fuel cost per km for H2+diesel ICEVs is calculated using the disel displacement percent populated in Dashboard A. The fuel cost per km of each fuel is displayed in the rows directly below the combined fuel cost per km.
C162: 13 | D162: Labour hours are calculated such that:
D163: a) Load/unload time is allocated to both the beginning and end of the trip, plus any additional stops, on top of the time required to drive the specified kilometres at the specified average speed.
D164: b) Labour costs for BEVs also account for additional charge stops necessary (row 57) under certain battery capacity/trip length specifications.
D165: c) Mandatory rest breaks (every 5.5 hours) are assumed unpaid and therefore not accounted for, except for BEVs which require charge stops. Calculations assume that charging could occur during rest breaks, and therefore are subtracted from any additional charge stop time.
C167: 14 | D167: Road user charges are applied directly from the input on Dashboard A, unless (1) the exclusion is selected on Dashboard A and (2) the expiration year set on Dashboard B has not yet been reached.

Sheet H2 cost calculator
A2: Green H2 cost calculator
B4: Estimates for the delivered costs of green H2 are calculated here, with cost build-up estimates used as the default input into the Dashboard calculations. The user can override the outputs from this calculator directly below the output estimated cost.
B7: Note that the user may select all cells in this sheet to review (such that formulas are transparent), but only white cells with green borders are editable as inputs.
B9: Distribution
C11: Compression losses | G11: 0 | H11: annual change | K11: Floor or ceiling value
E13: ='Dashboard B'!P$8 -> 2022 | F13: ='Dashboard B'!Q$8 -> 2023 | G13: ='Dashboard B'!R$8 -> 2024 | H13: ='Dashboard B'!S$8 -> 2025 | I13: ='Dashboard B'!T$8 -> 2026 | J13: ='Dashboard B'!U$8 -> 2027 | K13: ='Dashboard B'!V$8 -> 2028 | L13: ='Dashboard B'!W$8 -> 2029 | M13: ='Dashboard B'!X$8 -> 2030 | N13: ='Dashboard B'!Y$8 -> 2031
D15: Trend | E15: 0.125 | F15: =IF($L11="",(IF(E15*(1+($G11))<0,0,IF(E15*(1+($G11))>1,1,E15*(1+($G11))))),IF($G11>0,MIN(E15*(1+($G11)),IF($L11<E15,E15,$L11)),MAX(E15*(1+($G11)),IF($L11>E15,E15,$L11),0))) -> 0.125 | G15: =IF($L11="",(IF(F15*(1+($G11))<0,0,IF(F15*(1+($G11))>1,1,F15*(1+($G11))))),IF($G11>0,MIN(F15*(1+($G11)),IF($L11<F15,F15,$L11)),MAX(F15*(1+($G11)),IF($L11>F15,F15,$L11),0))) -> 0.125 | H15: 0.125 | I15: 0.125 | J15: 0.125 | K15: 0.125 | L15: =IF($L11="",(IF(K15*(1+($G11))<0,0,IF(K15*(1+($G11))>1,1,K15*(1+($G11))))),IF($G11>0,MIN(K15*(1+($G11)),IF($L11<K15,K15,$L11)),MAX(K15*(1+($G11)),IF($L11>K15,K15,$L11),0))) -> 0.125 | M15: 0.125 | N15: 0.125 | S15: Selection forms
D17: User input | S17: Trend | T17: 1
E18: =IF($T17=1,E15,E17) -> 0.125 | F18: =IF($T17=1,F15,F17) -> 0.125 | G18: 0.125 | H18: 0.125 | I18: 0.125 | J18: 0.125 | K18: 0.125 | L18: 0.125 | M18: 0.125 | N18: 0.125 | S18: User input
B21: Green H2
C23: Electricity cost ($/MWh) | G23: -0.004 | H23: annual change | K23: Floor or ceiling value
E25: ='Dashboard B'!P$8 -> 2022 | F25: ='Dashboard B'!Q$8 -> 2023 | G25: ='Dashboard B'!R$8 -> 2024 | H25: ='Dashboard B'!S$8 -> 2025 | I25: ='Dashboard B'!T$8 -> 2026 | J25: ='Dashboard B'!U$8 -> 2027 | K25: ='Dashboard B'!V$8 -> 2028 | L25: ='Dashboard B'!W$8 -> 2029 | M25: ='Dashboard B'!X$8 -> 2030 | N25: ='Dashboard B'!Y$8 -> 2031
D27: Trend | E27: 73.16 | F27: =IF($L23="",(IF(E27*(1+($G23))<0,0,E27*(1+($G23)))),IF($G23>0,MIN(E27*(1+($G23)),IF($L23<E27,E27,$L23)),MAX(E27*(1+($G23)),IF($L23>E27,E27,$L23),0))) -> 72.86736 | G27: =IF($L23="",(IF(F27*(1+($G23))<0,0,F27*(1+($G23)))),IF($G23>0,MIN(F27*(1+($G23)),IF($L23<F27,F27,$L23)),MAX(F27*(1+($G23)),IF($L23>F27,F27,$L23),0))) -> 72.57589056 | H27: =IF($L23="",(IF(G27*(1+($G23))<0,0,G27*(1+($G23)))),IF($G23>0,MIN(G27*(1+($G23)),IF($L23<G27,G27,$L23)),MAX(G27*(1+($G23)),IF($L23>G27,G27,$L23),0))) -> 72.285587 | I27: =IF($L23="",(IF(H27*(1+($G23))<0,0,H27*(1+($G23)))),IF($G23>0,MIN(H27*(1+($G23)),IF($L23<H27,H27,$L23)),MAX(H27*(1+($G23)),IF($L23>H27,H27,$L23),0))) -> 71.99644465 | J27: =IF($L23="",(IF(I27*(1+($G23))<0,0,I27*(1+($G23)))),IF($G23>0,MIN(I27*(1+($G23)),IF($L23<I27,I27,$L23)),MAX(I27*(1+($G23)),IF($L23>I27,I27,$L23),0))) -> 71.70845887 | K27: =IF($L23="",(IF(J27*(1+($G23))<0,0,J27*(1+($G23)))),IF($G23>0,MIN(J27*(1+($G23)),IF($L23<J27,J27,$L23)),MAX(J27*(1+($G23)),IF($L23>J27,J27,$L23),0))) -> 71.42162504 | L27: =IF($L23="",(IF(K27*(1+($G23))<0,0,K27*(1+($G23)))),IF($G23>0,MIN(K27*(1+($G23)),IF($L23<K27,K27,$L23)),MAX(K27*(1+($G23)),IF($L23>K27,K27,$L23),0))) -> 71.13593854 | M27: =IF($L23="",(IF(L27*(1+($G23))<0,0,L27*(1+($G23)))),IF($G23>0,MIN(L27*(1+($G23)),IF($L23<L27,L27,$L23)),MAX(L27*(1+($G23)),IF($L23>L27,L27,$L23),0))) -> 70.85139478 | N27: =IF($L23="",(IF(M27*(1+($G23))<0,0,M27*(1+($G23)))),IF($G23>0,MIN(M27*(1+($G23)),IF($L23<M27,M27,$L23)),MAX(M27*(1+($G23)),IF($L23>M27,M27,$L23),0))) -> 70.5679892 | S27: Selection forms
D29: User input | S29: Trend | T29: 1
E30: =IF($T29=1,E27,E29) -> 73.16 | F30: 72.86736 | G30: 72.57589056 | H30: 72.285587 | I30: 71.99644465 | J30: 71.70845887 | K30: 71.42162504 | L30: 71.13593854 | M30: 70.85139478 | N30: 70.5679892 | S30: User input
C33: Network costs ($/kWh)1 | H33: annual change | K33: Floor or ceiling value
E35: ='Dashboard B'!P$8 -> 2022 | F35: ='Dashboard B'!Q$8 -> 2023 | G35: ='Dashboard B'!R$8 -> 2024 | H35: ='Dashboard B'!S$8 -> 2025 | I35: ='Dashboard B'!T$8 -> 2026 | J35: ='Dashboard B'!U$8 -> 2027 | K35: ='Dashboard B'!V$8 -> 2028 | L35: ='Dashboard B'!W$8 -> 2029 | M35: ='Dashboard B'!X$8 -> 2030 | N35: ='Dashboard B'!Y$8 -> 2031
D37: Trend | F37: =IF($L33="",(IF(E37*(1+($G33))<0,0,E37*(1+($G33)))),IF($G33>0,MIN(E37*(1+($G33)),IF($L33<E37,E37,$L33)),MAX(E37*(1+($G33)),IF($L33>E37,E37,$L33),0))) -> 0 | G37: 0 | H37: 0 | I37: 0 | J37: 0 | K37: 0 | L37: 0 | M37: 0 | N37: 0 | S37: Selection forms
D39: User input | S39: Trend | T39: 1
E40: =IF($T39=1,E37,E39) -> 0 | F40: 0 | G40: 0 | H40: 0 | I40: 0 | J40: 0 | K40: 0 | L40: 0 | M40: 0 | N40: 0 | S40: User input
C43: Utilisation | G43: 0 | H43: annual change | K43: Floor or ceiling value
E45: ='Dashboard B'!P$8 -> 2022 | F45: ='Dashboard B'!Q$8 -> 2023 | G45: ='Dashboard B'!R$8 -> 2024 | H45: ='Dashboard B'!S$8 -> 2025 | I45: ='Dashboard B'!T$8 -> 2026 | J45: ='Dashboard B'!U$8 -> 2027 | K45: ='Dashboard B'!V$8 -> 2028 | L45: ='Dashboard B'!W$8 -> 2029 | M45: ='Dashboard B'!X$8 -> 2030 | N45: ='Dashboard B'!Y$8 -> 2031
D47: Trend | E47: 0.856 | F47: =IF($L43="",(IF(E47*(1+($G43))<0,0,IF(E47*(1+($G43))>1,1,E47*(1+($G43))))),IF($G43>0,MIN(E47*(1+($G43)),IF($L43<E47,E47,$L43)),MAX(E47*(1+($G43)),IF($L43>E47,E47,$L43),0))) -> 0.856 | G47: =IF($L43="",(IF(F47*(1+($G43))<0,0,IF(F47*(1+($G43))>1,1,F47*(1+($G43))))),IF($G43>0,MIN(F47*(1+($G43)),IF($L43<F47,F47,$L43)),MAX(F47*(1+($G43)),IF($L43>F47,F47,$L43),0))) -> 0.856 | H47: 0.856 | I47: 0.856 | J47: 0.856 | K47: 0.856 | L47: 0.856 | M47: 0.856 | N47: 0.856 | S47: Selection forms
D49: User input | S49: Trend | T49: 1
E50: =IF($T49=1,E47,E49) -> 0.856 | F50: 0.856 | G50: 0.856 | H50: 0.856 | I50: 0.856 | J50: 0.856 | K50: 0.856 | L50: 0.856 | M50: 0.856 | N50: 0.856 | S50: User input
C53: Power demand (kWh/kg) | G53: -0.005 | H53: annual change | K53: Floor or ceiling value
E55: ='Dashboard B'!P$8 -> 2022 | F55: ='Dashboard B'!Q$8 -> 2023 | G55: ='Dashboard B'!R$8 -> 2024 | H55: ='Dashboard B'!S$8 -> 2025 | I55: ='Dashboard B'!T$8 -> 2026 | J55: ='Dashboard B'!U$8 -> 2027 | K55: ='Dashboard B'!V$8 -> 2028 | L55: ='Dashboard B'!W$8 -> 2029 | M55: ='Dashboard B'!X$8 -> 2030 | N55: ='Dashboard B'!Y$8 -> 2031
D57: Trend | E57: 52 | F57: =IF($L53="",(IF(E57*(1+($G53))<0,0,E57*(1+($G53)))),IF($G53>0,MIN(E57*(1+($G53)),IF($L53<E57,E57,$L53)),MAX(E57*(1+($G53)),IF($L53>E57,E57,$L53),0))) -> 51.74 | G57: =IF($L53="",(IF(F57*(1+($G53))<0,0,F57*(1+($G53)))),IF($G53>0,MIN(F57*(1+($G53)),IF($L53<F57,F57,$L53)),MAX(F57*(1+($G53)),IF($L53>F57,F57,$L53),0))) -> 51.4813 | H57: 51.2238935 | I57: 50.96777403 | J57: 50.71293516 | K57: 50.45937049 | L57: 50.20707363 | M57: 49.95603827 | N57: 49.70625807 | S57: Selection forms
D59: User input | S59: Trend | T59: 1
E60: =IF($T59=1,E57,E59) -> 52 | F60: 51.74 | G60: 51.4813 | H60: 51.2238935 | I60: 50.96777403 | J60: 50.71293516 | K60: 50.45937049 | L60: 50.20707363 | M60: 49.95603827 | N60: 49.70625807 | S60: User input
C63: Electrolyser cost ($/kW) | G63: -0.05 | H63: annual change | K63: Floor or ceiling value
E65: ='Dashboard B'!P$8 -> 2022 | F65: ='Dashboard B'!Q$8 -> 2023 | G65: ='Dashboard B'!R$8 -> 2024 | H65: ='Dashboard B'!S$8 -> 2025 | I65: ='Dashboard B'!T$8 -> 2026 | J65: ='Dashboard B'!U$8 -> 2027 | K65: ='Dashboard B'!V$8 -> 2028 | L65: ='Dashboard B'!W$8 -> 2029 | M65: ='Dashboard B'!X$8 -> 2030 | N65: ='Dashboard B'!Y$8 -> 2031
D67: Trend | E67: 1900 | F67: =IF($L63="",(IF(E67*(1+($G63))<0,0,E67*(1+($G63)))),IF($G63>0,MIN(E67*(1+($G63)),IF($L63<E67,E67,$L63)),MAX(E67*(1+($G63)),IF($L63>E67,E67,$L63),0))) -> 1805 | G67: =IF($L63="",(IF(F67*(1+($G63))<0,0,F67*(1+($G63)))),IF($G63>0,MIN(F67*(1+($G63)),IF($L63<F67,F67,$L63)),MAX(F67*(1+($G63)),IF($L63>F67,F67,$L63),0))) -> 1714.75 | H67: 1629.0125 | I67: 1547.561875 | J67: 1470.183781 | K67: 1396.674592 | L67: 1326.840863 | M67: 1260.498819 | N67: 1197.473878 | S67: Selection forms
D69: User input | S69: Trend | T69: 1
E70: =IF($T69=1,E67,E69) -> 1900 | F70: 1805 | G70: 1714.75 | H70: 1629.0125 | I70: 1547.561875 | J70: 1470.183781 | K70: 1396.674592 | L70: 1326.840863 | M70: 1260.498819 | N70: 1197.473878 | S70: User input
C73: Stack life (hours) | G73: 0 | H73: annual change | K73: Floor or ceiling value
E75: ='Dashboard B'!P$8 -> 2022 | F75: ='Dashboard B'!Q$8 -> 2023 | G75: ='Dashboard B'!R$8 -> 2024 | H75: ='Dashboard B'!S$8 -> 2025 | I75: ='Dashboard B'!T$8 -> 2026 | J75: ='Dashboard B'!U$8 -> 2027 | K75: ='Dashboard B'!V$8 -> 2028 | L75: ='Dashboard B'!W$8 -> 2029 | M75: ='Dashboard B'!X$8 -> 2030 | N75: ='Dashboard B'!Y$8 -> 2031
D77: Trend | E77: 75000 | F77: =IF($L73="",(IF(E77*(1+($G73))<0,0,E77*(1+($G73)))),IF($G73>0,MIN(E77*(1+($G73)),IF($L73<E77,E77,$L73)),MAX(E77*(1+($G73)),IF($L73>E77,E77,$L73),0))) -> 75000 | G77: =IF($L73="",(IF(F77*(1+($G73))<0,0,F77*(1+($G73)))),IF($G73>0,MIN(F77*(1+($G73)),IF($L73<F77,F77,$L73)),MAX(F77*(1+($G73)),IF($L73>F77,F77,$L73),0))) -> 75000 | H77: 75000 | I77: 75000 | J77: 75000 | K77: 75000 | L77: 75000 | M77: 75000 | N77: 75000 | S77: Selection forms
D79: User input | S79: Trend | T79: 1
E80: =IF($T79=1,E77,E79) -> 75000 | F80: 75000 | G80: 75000 | H80: 75000 | I80: 75000 | J80: 75000 | K80: 75000 | L80: 75000 | M80: 75000 | N80: 75000 | S80: User input
C83: Energy cost per kWh (incl. network cost) | E83: =((E30/1000)+E40) -> 0.07316 | F83: =((F30/1000)+F40) -> 0.07286736 | G83: 0.07257589056 | H83: 0.072285587 | I83: 0.07199644465 | J83: 0.07170845887 | K83: 0.07142162504 | L83: 0.07113593854 | M83: 0.07085139478 | N83: 0.0705679892
C85: Installation (% of cap) | E85: 0.12
C87: WACC | E87: 0.06
C89: Economic life (years) | E89: 25
C91: Annualised CapEx (per kW) | E91: =-PMT($E$87,$E$89,((E70*(1+$E$85)))) -> 166.4664564 | F91: 158.1431335 | G91: 150.2359769 | H91: 142.724178 | I91: 135.5879691 | J91: 128.8085707 | K91: 122.3681421 | L91: 116.249735 | M91: 110.4372483 | N91: 104.9153859
C93: OpEx (as % of CapEx) | E93: 0.05
C95: CapEx+OpEx per kg | E95: =(E91*(1+$E$93))*E60/(365.25*24*E50) -> 1.211278884 | F95: 1.144961365 | G95: 1.08227473 | H95: 1.023020189 | I95: 0.9670098336 | J95: 0.9140660452 | K95: 0.8640209292 | L95: 0.8167157833 | M95: 0.7720005942 | N95: 0.7297335617
C97: Electrolyser stack replacement (% of installed cost) | E97: 0.4
C99: Cost of stack replacement per kg2 | E99: =IF(365.25*24*$E$89>E80,(E70*(1+$E$85)*$E$97)*E60/($E$89*365.25*24*E50),0) -> 0.2359498572 | F99: 0.2230316026 | G99: 0.2108206223 | H99: 0.1992781932 | I99: 0.1883677122 | J99: 0.1780545799 | K99: 0.1683060917 | L99: 0.1590913332 | M99: 0.1503810827 | N99: 0.1421477184
C101: Estimated levelised cost of H2 per kg | E101: =(E83*E60)+E95+E99 -> 5.251548741 | F101: =(F83*F60)+F95+F99 -> 5.138150174 | G101: =(G83*G60)+G95+G99 -> 5.029396547 | H101: 4.925047592 | I101: 4.824876068 | J101: 4.72866705 | K101: 4.636217259 | L101: 4.547334421 | M101: 4.461836666 | N101: 4.379551963
C104: Estimated cost of distribution3 | G104: -0.05 | H104: annual change | K104: Floor or ceiling value
D105: (includes compression, storage, transport, service station)
E106: ='Dashboard B'!P$8 -> 2022 | F106: ='Dashboard B'!Q$8 -> 2023 | G106: ='Dashboard B'!R$8 -> 2024 | H106: ='Dashboard B'!S$8 -> 2025 | I106: ='Dashboard B'!T$8 -> 2026 | J106: ='Dashboard B'!U$8 -> 2027 | K106: ='Dashboard B'!V$8 -> 2028 | L106: ='Dashboard B'!W$8 -> 2029 | M106: ='Dashboard B'!X$8 -> 2030 | N106: ='Dashboard B'!Y$8 -> 2031
D108: Trend | E108: 5 | F108: =IF($L104="",(IF(E108*(1+($G104))<0,0,E108*(1+($G104)))),IF($G104>0,MIN(E108*(1+($G104)),IF($L104<E108,E108,$L104)),MAX(E108*(1+($G104)),IF($L104>E108,E108,$L104),0))) -> 4.75 | G108: =IF($L104="",(IF(F108*(1+($G104))<0,0,F108*(1+($G104)))),IF($G104>0,MIN(F108*(1+($G104)),IF($L104<F108,F108,$L104)),MAX(F108*(1+($G104)),IF($L104>F108,F108,$L104),0))) -> 4.5125 | H108: =IF($L104="",(IF(G108*(1+($G104))<0,0,G108*(1+($G104)))),IF($G104>0,MIN(G108*(1+($G104)),IF($L104<G108,G108,$L104)),MAX(G108*(1+($G104)),IF($L104>G108,G108,$L104),0))) -> 4.286875 | I108: =IF($L104="",(IF(H108*(1+($G104))<0,0,H108*(1+($G104)))),IF($G104>0,MIN(H108*(1+($G104)),IF($L104<H108,H108,$L104)),MAX(H108*(1+($G104)),IF($L104>H108,H108,$L104),0))) -> 4.07253125 | J108: =IF($L104="",(IF(I108*(1+($G104))<0,0,I108*(1+($G104)))),IF($G104>0,MIN(I108*(1+($G104)),IF($L104<I108,I108,$L104)),MAX(I108*(1+($G104)),IF($L104>I108,I108,$L104),0))) -> 3.868904687 | K108: =IF($L104="",(IF(J108*(1+($G104))<0,0,J108*(1+($G104)))),IF($G104>0,MIN(J108*(1+($G104)),IF($L104<J108,J108,$L104)),MAX(J108*(1+($G104)),IF($L104>J108,J108,$L104),0))) -> 3.675459453 | L108: =IF($L104="",(IF(K108*(1+($G104))<0,0,K108*(1+($G104)))),IF($G104>0,MIN(K108*(1+($G104)),IF($L104<K108,K108,$L104)),MAX(K108*(1+($G104)),IF($L104>K108,K108,$L104),0))) -> 3.49168648 | M108: =IF($L104="",(IF(L108*(1+($G104))<0,0,L108*(1+($G104)))),IF($G104>0,MIN(L108*(1+($G104)),IF($L104<L108,L108,$L104)),MAX(L108*(1+($G104)),IF($L104>L108,L108,$L104),0))) -> 3.317102156 | N108: =IF($L104="",(IF(M108*(1+($G104))<0,0,M108*(1+($G104)))),IF($G104>0,MIN(M108*(1+($G104)),IF($L104<M108,M108,$L104)),MAX(M108*(1+($G104)),IF($L104>M108,M108,$L104),0))) -> 3.151247049 | S108: Selection forms
D110: User input | S110: Trend | T110: 1
E111: =IF($T110=1,E108,E110) -> 5 | F111: =IF($T110=1,F108,F110) -> 4.75 | G111: 4.5125 | H111: 4.286875 | I111: 4.07253125 | J111: 3.868904687 | K111: 3.675459453 | L111: 3.49168648 | M111: 3.317102156 | N111: 3.151247049 | S111: User input
C114: Emissions cost per kg4 | E114: =IF(E40="",0,IF(E40>0,(('Dashboard B'!J70*E60)*('Dashboard B'!J43/1000)),0)) -> 0 | F114: =IF(F40="",0,IF(F40>0,(('Dashboard B'!K70*F60)*('Dashboard B'!K43/1000)),0)) -> 0 | G114: =IF(G40="",0,IF(G40>0,(('Dashboard B'!L70*G60)*('Dashboard B'!L43/1000)),0)) -> 0 | H114: =IF(H40="",0,IF(H40>0,(('Dashboard B'!M70*H60)*('Dashboard B'!M43/1000)),0)) -> 0 | I114: =IF(I40="",0,IF(I40>0,(('Dashboard B'!N70*I60)*('Dashboard B'!N43/1000)),0)) -> 0 | J114: =IF(J40="",0,IF(J40>0,(('Dashboard B'!O70*J60)*('Dashboard B'!O43/1000)),0)) -> 0 | K114: =IF(K40="",0,IF(K40>0,(('Dashboard B'!P70*K60)*('Dashboard B'!P43/1000)),0)) -> 0 | L114: =IF(L40="",0,IF(L40>0,(('Dashboard B'!Q70*L60)*('Dashboard B'!Q43/1000)),0)) -> 0 | M114: =IF(M40="",0,IF(M40>0,(('Dashboard B'!R70*M60)*('Dashboard B'!R43/1000)),0)) -> 0 | N114: =IF(N40="",0,IF(N40>0,(('Dashboard B'!S70*N60)*('Dashboard B'!S43/1000)),0)) -> 0
C116: Estimated delivered cost of Green H2 per kg5 | E116: =E101*(1+E18)+E111 -> 10.90799233 | F116: 10.53041895 | G116: 10.17057112 | H116: 9.827553541 | I116: 9.500516826 | J116: 9.188655119 | K116: 8.89120387 | L116: 8.607437704 | M116: 8.336668405 | N116: 8.078243007
C119: Delivered cost of H2 override for Dashboards
D120: The dropdown below allows the user to override
D121: the above cost build-up with user input and trend
D122: or complete user-defined input. | H122: annual change | K122: Floor or ceiling value | S122: Selection forms
D124: Trend | F124: =IF($L122="",(IF(E124*(1+($G122))<0,0,E124*(1+($G122)))),IF($G122>0,MIN(E124*(1+($G122)),IF($L122<E124,E124,$L122)),MAX(E124*(1+($G122)),IF($L122>E124,E124,$L122),0))) -> 0 | G124: 0 | H124: 0 | I124: 0 | J124: 0 | K124: 0 | L124: 0 | M124: 0 | N124: 0 | S124: Cost build-up
S125: Trend | T125: 1
D126: User input | S126: User input
D128: Input delivered cost of H2 in Dahsboards: | E128: =IF($T125=1,E116,IF($T125=2,E124,E126)) -> 10.90799233 | F128: 10.53041895 | G128: 10.17057112 | H128: 9.827553541 | I128: 9.500516826 | J128: 9.188655119 | K128: 8.89120387 | L128: 8.607437704 | M128: 8.336668405 | N128: 8.078243007
C132: Notes:
C133: 1 | D133: The default scenario assumes captive generation is used for centralised production, therefore network costs are not incurred. A scenario modelling
D134: decentralised green H2 production would likely incur network costs as it is likely to be grid-connected. Note also that when grid electricity is used,
D135: emissions from grid generation are automatically applied (and, therefore, the user may want to review their input on Dashboard A for this assumption).
C137: 2 | D137: Stack replacement is required in the electrolyser at the end of the stack life. If the stack life ends before the end of the electrolyser economic life
D138: (given the utilisation), stack life replacement costs will be incurred.
C140: 3 | D140: Distribution costs include cost of compression, storage, transportation and station capital and running costs.
C142: 4 | D142: Emissions from grid-connected electricity are applied when network costs are entered (and, therefore, the user may want to review their input on Dashboard A
D143: for this assumption).
C145: 5 | D145: This calculation accounts for compression losses.

Sheet BEV payload calculator
A2: BEV payload calculator
B4: An estimated BEV payload is calculated here, with the calculated estimate used as the default input into the Dashboard calculations. The user can override the outputs from this calculator directly below the calculated output.
B7: Note that the user may select all cells in this sheet to review (such that formulas are transparent), but only white cells with green borders are editable as inputs.
B9: BEV payload
E11: ='Dashboard B'!P$8 -> 2022 | F11: ='Dashboard B'!Q$8 -> 2023 | G11: ='Dashboard B'!R$8 -> 2024 | H11: ='Dashboard B'!S$8 -> 2025 | I11: ='Dashboard B'!T$8 -> 2026 | J11: ='Dashboard B'!U$8 -> 2027 | K11: ='Dashboard B'!V$8 -> 2028 | L11: ='Dashboard B'!W$8 -> 2029 | M11: ='Dashboard B'!X$8 -> 2030 | N11: ='Dashboard B'!Y$8 -> 2031
C13: Battery capacity (kWh) | E13: ='Dashboard B'!J159 -> 435 | F13: ='Dashboard B'!K159 -> 446.9625 | G13: ='Dashboard B'!L159 -> 459.2539688 | H13: ='Dashboard B'!M159 -> 471.8834529 | I13: ='Dashboard B'!N159 -> 484.8602478 | J13: ='Dashboard B'!O159 -> 498.1939047 | K13: ='Dashboard B'!P159 -> 511.894237 | L13: ='Dashboard B'!Q159 -> 525.9713286 | M13: ='Dashboard B'!R159 -> 540.4355401 | N13: ='Dashboard B'!S159 -> 555.2975174
C15: Non-BEV payload (t) | E15: =payload_nonbev -> 27.5 | F15: 27.5 | G15: 27.5 | H15: 27.5 | I15: 27.5 | J15: 27.5 | K15: 27.5 | L15: 27.5 | M15: 27.5 | N15: 27.5
C17: Payload gain from powertrain weight reduction1 | E17: 1
C21: Battery energy density (Wh/kg) | G21: 0.05 | H21: annual change | K21: Floor or ceiling value
E23: ='Dashboard B'!P$8 -> 2022 | F23: ='Dashboard B'!Q$8 -> 2023 | G23: ='Dashboard B'!R$8 -> 2024 | H23: ='Dashboard B'!S$8 -> 2025 | I23: ='Dashboard B'!T$8 -> 2026 | J23: ='Dashboard B'!U$8 -> 2027 | K23: ='Dashboard B'!V$8 -> 2028 | L23: ='Dashboard B'!W$8 -> 2029 | M23: ='Dashboard B'!X$8 -> 2030 | N23: ='Dashboard B'!Y$8 -> 2031
D25: Trend | E25: 133 | F25: =IF($L21="",(IF(E25*(1+($G21))<0,0,E25*(1+($G21)))),IF($G21>0,MIN(E25*(1+($G21)),IF($L21<E25,E25,$L21)),MAX(E25*(1+($G21)),IF($L21>E25,E25,$L21),0))) -> 139.65 | G25: =IF($L21="",(IF(F25*(1+($G21))<0,0,F25*(1+($G21)))),IF($G21>0,MIN(F25*(1+($G21)),IF($L21<F25,F25,$L21)),MAX(F25*(1+($G21)),IF($L21>F25,F25,$L21),0))) -> 146.6325 | H25: 153.964125 | I25: 161.6623313 | J25: 169.7454478 | K25: 178.2327202 | L25: 187.1443562 | M25: 196.501574 | N25: 206.3266527 | S25: Selection forms
D27: User input | S27: Trend | T27: 1
E28: =IF($T27=1,E25,E27) -> 133 | F28: 139.65 | G28: 146.6325 | H28: 153.964125 | I28: 161.6623313 | J28: 169.7454478 | K28: 178.2327202 | L28: 187.1443562 | M28: 196.501574 | N28: 206.3266527 | S28: User input
C31: Battery weight (t) | E31: =E13/E25 -> 3.270676692 | F31: =F13/F25 -> 3.200590763 | G31: 3.132006675 | H31: 3.064892246 | I31: 2.999215984 | J31: 2.93494707 | K31: 2.872055347 | L31: 2.810511304 | M31: 2.750286061 | N31: 2.69135136
C33: BEV payload | E33: =E15+BEV_payload_gain-E31 -> 25.22932331 | F33: 25.29940924 | G33: 25.36799333 | H33: 25.43510775 | I33: 25.50078402 | J33: 25.56505293 | K33: 25.62794465 | L33: 25.6894887 | M33: 25.74971394 | N33: 25.80864864
C36: BEV payload override for Dashboards
D38: The dropdown below allows the user to override
D39: the above calculated payload with user input and
D40: trend or complete user-defined input. | H40: annual change | K40: Floor or ceiling value | S40: Selection forms
D42: Trend | F42: =IF($L40="",(IF(E42*(1+($G40))<0,0,E42*(1+($G40)))),IF($G40>0,MIN(E42*(1+($G40)),IF($L40<E42,E42,$L40)),MAX(E42*(1+($G40)),IF($L40>E42,E42,$L40),0))) -> 0 | G42: 0 | H42: 0 | I42: 0 | J42: 0 | K42: 0 | L42: 0 | M42: 0 | N42: 0 | S42: Payload build-up
S43: Trend | T43: 1
D44: User input | S44: User input
D46: Input BEV payload capacity for Dashboards: | E46: =IF($T43=1,E33,IF($T43=2,E42,E44)) -> 25.22932331 | F46: =IF($T43=1,F33,IF($T43=2,F42,F44)) -> 25.29940924 | G46: 25.36799333 | H46: 25.43510775 | I46: 25.50078402 | J46: 25.56505293 | K46: 25.62794465 | L46: 25.6894887 | M46: 25.74971394 | N46: 25.80864864
C51: Notes: | D51: No payload change is assumed for FCEVs. Although FCEVs will also have an electric motor in place of an internal combustion engine, the net payload
D52: change for FCEVs will likely be small or zero due to additional powertrain components.
C54: 1 | D54: Default assumption here is set to calibrate the calculated payload capabilites of the BYD truck modelled. The spec sheet for this vehicle is available in Default
D55: scenario references under the BEV header. The trailer weight used to calculate payload is the same trailer used for RUC determination.

Sheet Default scenario references
B2: Default Scenario References
B4: General inputs
C5: General
D6: Parameter | E6: Value | G6: Note | H6: Reference | J6: Location
D7: USD exchange rate | E7: 0.72 | G7: 10-year OECD average. Relevant values presented here have exchange rates applied | H7: OECD exhange rates
D8: EUR exchange rate | E8: 0.6 | G8: 10-year OECD average. Relevant values presented here have exchange rates applied | H8: OECD exhange rates
D9: Carbon price | E9: 40.8 | F9: ='Dashboard A'!$Q$10 -> per tCO2e | G9: This uses the target aligned scenario | H9: Climate Change Commission, Technical assumptions In ENZ energy and transport, 2021 | J9: Sheet "Macro drivers", cell AH9
D10: Carbon price, annual change | E10: 0.1454 | G10: Follows the CCC scenario to the 2030 assumption | H10: Climate Change Commission, Technical assumptions In ENZ energy and transport, 2021 | J10: Sheet "Macro drivers", cell AQ9
D11: Overnight cost of electricity | E11: 50 | F11: ='Dashboard A'!Q14 -> per MWh | H11: Ministry for the Environment, MACC tool, 2020 | J11: Sheet "Trans2", cell AA199
D12: Overnight cost of electricity, annual change | E12: 0 | G12: Assumed the same change as CCC central scenario (varies within less than $1 2021-2030) and MACC | H12: Climate Change Commission, Technical assumptions In ENZ energy and transport, 2021 | I12: Ministry for the Environment, MACC tool, 2020 | J12: See time projection at above ref
D13: Daytime cost of electricity | E13: 88 | F13: ='Dashboard A'!Q18 -> per MWh | H13: Ministry for the Environment, MACC tool, 2020 | J13: Sheet "Trans2", cell AA201
D14: Daytime cost of electricity, annual change | E14: 0 | G14: Assumed the same change as CCC central scenario (varies within less than $1 2021-2030) and MACC | H14: Climate Change Commission, Technical assumptions In ENZ energy and transport, 2021 | I14: Ministry for the Environment, MACC tool, 2020 | J14: See time projection at above ref
D15: Emissions from grid electricity | E15: 0 | F15: kgCO2-e/kWh | G15: For user input | J15: Table 9 (p 36)
D16: Emissions from grid electricity, annual change | E16: 0 | G16: No change | J16: MR scenario spreadsheet
D17: Freight operator's WACC | E17: 0.08 | H17: Climate Change Commission, Technical assumptions In ENZ energy and transport, 2021 | J17: Sheet "Road transport", cell D236
D18: Duration of ownership | E18: 5 | F18: ='Dashboard A'!$Q$26 -> years | H18: Climate Change Commission, Technical assumptions In ENZ energy and transport, 2021 | J18: Sheet "Road transport", cell D235
D19: Driver wages | E19: 25 | F19: ='Dashboard A'!$Q$28 -> per hour | H19: Indeed.com, Average salary for a truck driver in New Zealand, accessed 10/03/21
D20: Driver wages, annual change | E20: 0 | G20: Assume no increase in real terms
D21: Driver days driving/year | E21: 243 | F21: ='Dashboard A'!$Y$10 -> days | G21: EROAD sourced data: median days driving for a 30t+ vehicle. | H21: EROAD. See Freight task analysis tab.
D22: Average load factor | E22: 1 | G22: For user input
D23: Final year of RUC exemptions | E23: 2025 | G23: Current legislation | H23: Exemption period for heavy electric RUC vehicles
C25: Vehicle sizes
D26: Parameter | E26: Value | G26: Note | H26: Reference | J26: Location
D27: Large HGV
D28: Trip distance | E28: 630 | F28: ='Dashboard A'!$Y$12 -> km | G28: Chosen "reference trip". AKL->WTG
D29: Average driving speed | E29: 66 | F29: ='Dashboard A'!Y18 -> km/h | G29: EROAD sourced data: average speed of 30t+ vehicle traveling between 600-700kms.
D30: Length of start/end un/load | E30: 0.43 | F30: hour | G30: EROAD sourced data: EROAD collects data from trucks from ignition-on to ignition-off, and we understand trucks leave the ignition running while they un/load. Therefore, loading time based on average length stop of 15+ minutes for a 30t+ vehicle traveling between 600-700kms. | H30: EROAD. See Freight task analysis tab.
D31: Number of 60 min stops | E31: 1.3 | F31: ='Dashboard A'!$Y$16 -> stops | G31: EROAD sourced data: Average length of stop for a 30t+ vehicle traveling between 600-700kms is 27 minutes, and average count of stops more than 15 minutes is 3 - assuming 2 of these stops are used to load unload, 1 remains. | H31: EROAD. See Freight task analysis tab.
D32: Driver days driving/year | E32: 243 | F32: ='Dashboard A'!$Y$10 -> days | G32: EROAD sourced data: median days driving for a 30t+ vehicle. | H32: EROAD. See Freight task analysis tab.
D33: Payload for non-BEV | E33: 27.5 | F33: ='Dashboard A'!$Y$20 -> tonnes | G33: Using 6 Axle B train + 6x4 tractor | H33: Domett Curtain Siders specs | I33: FUSO 6x4 HD FV2547 spec sheet | J33: p 15
D34: Road User Charges | E34: 0.599 | G34: Based on H97 license | H34: NZTA RUC calculator | I34: NZTA 50MAX FAQs | J34: p 37
D35: Medium HGV
D36: Trip distance | E36: 450 | F36: ='Dashboard A'!$Y$12 -> km | G36: Chosen "reference trip" - based on upper end of trips for this weight range from EROAD analysis
D37: Average driving speed | E37: 63 | F37: ='Dashboard A'!Y18 -> km/h | G37: EROAD sourced data: average speed of 20-30t vehicle traveling between 400-500kms.
D38: Length of start/end un/load | E38: 0.5333333333 | F38: hour | G38: EROAD sourced data: EROAD collects data from trucks from ignition-on to ignition-off, and we understand trucks leave the ignition running while they un/load. Therefore, loading time based on average length stop of 15+ minutes for a 20-30t vehicle traveling between 400-500kms. | H38: EROAD. See Freight task analysis tab.
D39: Number of 60 min stops | E39: 1.07 | F39: ='Dashboard A'!$Y$16 -> stops | G39: EROAD sourced data: Average length of stop for a 20-30t vehicle traveling between 400-500kms is 32 minutes, and average count of stops more than 15 minutes is 4 - assuming 2 of these stops are used to load unload, 2 remain. | H39: EROAD. See Freight task analysis tab.
D40: Driver days driving/year | E40: 225 | F40: ='Dashboard A'!$Y$10 -> days | G40: EROAD sourced data: median days driving for a 20-30t vehicle. | H40: EROAD. See Freight task analysis tab.
D41: Payload for non-BEV | E41: 18 | F41: tonnes | G41: Note that no payload reduction is assumed for BEV for medium HGV scenario, as modelled BEV is optimized to be slightly heavier with no payload change. Incremental change in weight does not affect RUC license. | H41: https://stpi.it.volvo.com/STPIFiles/Volvo/ModelRange/fe62tra_gbr_eng.pdf
D42: Road User Charges | E42: 0.434 | G42: Based on Type 6, greater than 18t | H42: NZTA RUC calculator
D43: Small HGV
D44: Trip distance | E44: 250 | F44: ='Dashboard A'!$Y$12 -> km | G44: Chosen "reference trip" - based on upper end of trips for this weight range from EROAD analysis
D45: Average driving speed | E45: 55 | F45: ='Dashboard A'!Y18 -> km/h | G45: EROAD sourced data: average speed of a 10-20t vehicle traveling between 200-300kms.
D46: Length of start/end un/load | E46: 0.53 | F46: hour | G46: EROAD sourced data: EROAD collects data from trucks from ignition-on to ignition-off, and we understand trucks leave the ignition running while they un/load. Therefore, loading time based on average length stop of 15+ minutes for a 10-20t vehicle traveling between 200-300kms. | H46: EROAD. See Freight task analysis tab.
D47: Number of 60 min stops | E47: 1.07 | F47: ='Dashboard A'!$Y$16 -> stops | G47: EROAD sourced data: Average length of stop for a 10-20t vehicle traveling between 200-300kms is 32 minutes, and average count of stops more than 15 minutes is 4 - assuming 2 of these stops are used to load unload, 2 remain. | H47: EROAD. See Freight task analysis tab.
D48: Driver days driving/year | E48: 221 | F48: ='Dashboard A'!$Y$10 -> days | G48: EROAD sourced data: median days driving for a 20-30t vehicle. | H48: EROAD. See Freight task analysis tab.
D49: Payload for non-BEV | E49: 9.8 | F49: tonnes | G49: Note that no payload reduction is assumed for BEV for small HGV scenario, as modelled BEV is optimized to be slightly heavier with no payload change. Incremental change in weight does not affect RUC license. | H49: https://stpi.it.volvo.com/STPIFiles/Volvo/ModelRange/fl42r816a_gbr_eng.pdf
D50: Road User Charges | E50: 0.315 | G50: Based on Type 2, greater than 12t | H50: NZTA RUC calculator
B53: Hydrogen
C54: Fuel cell electric vehicle
D55: Parameter | E55: Value | G55: Note | H55: Reference | J55: Location
D56: Residual value | E56: 0.418 | G56: Assumed same as ICEV | H56: International Energy Agency, The Future of Hydrogen: Report prepared by the IEA for the G20: Assumptions, Japan, 2020 | J56: p 10
D57: Residual value, annual change | E57: 0 | G57: No change assumed
D58: Maintenance cost | E58: 0.66 | F58: of ICEV cost | H58: International Energy Agency, The Future of Hydrogen: Report prepared by the IEA for the G20: Assumptions, Japan, 2020 | J58: p 11
D59: Maintenance cost, annual change | E59: 0 | G59: No change assumed
D60: Insurance | E60: 0.006 | F60: ='Dashboard A'!$AJ$40 -> of total cost | H60: Fuel Cells Hydrogen Joint Understanding, Roland Berger, Study report - Fuel Cells Hydrogen Trucks: Heavy-Duty High Performance Green Solution, 2020
D61: Insurance, annual change | E61: 0 | G61: No change assumed
D62: Fuel efficiency | E62: 0.094 | F62: ='Dashboard A'!$AJ$42 -> kgs/km | G62: Midpoint of range | H62: Khzouz et. Al (2020), Life Cycle Costing Analysis: Tools and Applications for Determining H2 Production cost for Fuel Cell Vehicle Technology, Energies 13(15), 3783 | J62: p 16
D63: Fuel efficiency, annual change | E63: 0 | G63: No change assumed
D64: Large HGV
D65: Vehicle capital cost | E65: 611000 | G65: Difficult to find public sources. As proxy, inflating BEV assumption to diff between Nikola 2 and Tesla Semi | H65: CleanTechnica, Head to Head: Nikola's Hydrogen Fuel Cell Trucks Vs. The Tesla Semi
D66: Vehicle capital cost, annual change | E66: -0.06 | H66: Hydrogen Council, Path to Hydrogen Competitiveness | J66: p 38
D67: Vehicle lease cost | E67: 9900
D68: Vehicle lease cost, annual change | E68: -0.06 | H68: Same as capital cost
D69: Medium and small FCEV HGVs unavailable at time of publishing.
C71: H2 Distribution
D72: Parameter | E72: Value | G72: Note | H72: Reference
D73: Compression losses | E73: 0.125 | H73: International Energy Agency, The Future of Hydrogen: Report prepared by the IEA for the G20: Assumptions, Japan, 2020
D74: Compression losses, annual change | E74: 0 | G74: No change assumed
C76: Green H2
D77: Parameter | E77: Value | G77: Note | H77: Reference
D78: Cost of electricity | E78: 73.16 | F78: per MWh | G78: Midpoint of reference scenario in MBIE EDGS Wind LRMC 2021 | H78: MBIE, Electricity demand and generation scenarios (EDGS)
D79: Cost of electricity, annual change | E79: -0.004 | F79: per MWh | G79: Midpoint of reference scenario in MBIE EDGS Wind LRMC 2021-2030 | H79: MBIE, Electricity demand and generation scenarios (EDGS)
D80: Utilisation | E80: 0.856 | F80: time running | H80: Fuel Cells Hydrogen Joint Understanding, Roland Berger, Study report - Fuel Cells Hydrogen Trucks: Heavy-Duty High Performance Green Solution, 2020
D81: Utilisation, annual change | E81: 0 | G81: No change assumed
D82: Power demand (kWh/kg) | E82: 52 | F82: kWh/kg | H82: CSIRO Energy, Cost assessment of hydrogen production from PV and electrolysis, pg.22
D83: Power demand, annual change | E83: -0.005 | H83: CSIRO Energy, Cost assessment of hydrogen production from PV and electrolysis, pg.22
D84: Electrolyser cost ($/kW) | E84: 1900 | F84: $/kW | G84: Assumed 2021 value (in NZD) given cost expectations. | H84: CSIRO Energy, Cost assessment of hydrogen production from PV and electrolysis, pg.22
D85: Electrolyser cost, annual change | E85: -0.05 | H85: CSIRO Energy, Cost assessment of hydrogen production from PV and electrolysis, pg.22
D86: Stack life (hours) | E86: 75000 | F86: hours | G86: Midpoint of range | H86: International Energy Agency, The Future of Hydrogen: Report prepared by the IEA for the G20: Assumptions, Japan, 2020
D87: Stack life, annual change | E87: 0 | G87: No change assumed
D88: Installation (% of cap) | E88: 0.12 | F88: of capex | H88: CSIRO Energy, Cost assessment of hydrogen production from PV and electrolysis | J88: p22
D89: WACC | E89: 0.06 | H89: Transport and Environment, Comparison of hydrogen and battery electric trucks: Methodology and underlying assumptions, 2020
D90: Economic life (years) | E90: 25 | F90: years | H90: CSIRO Energy, Cost assessment of hydrogen production from PV and electrolysis | J90: p23
D91: OpEx (as % of CapEx) | E91: 0.05 | F91: of capex | H91: Ministry for the Environment, MACC tool, 2020
D92: Electrolyser stack replacement (% of installed cost) | E92: 0.4 | F92: of installed cost | H92: CSIRO Energy, Cost assessment of hydrogen production from PV and electrolysis | J92: p16
D93: Estimated cost of distribution | E93: 5 | F93: per kg | G93: 2015 US centralised costs (converted to NZD), unlikely stated 2020 targets would apply in NZ. | H93: US EERE, DOE Technical Targets for Hydrogen Delivery
D94: Estimated cost of distribution, annual change | E94: -0.05 | H94: US EERE, DOE Technical Targets for Hydrogen Delivery
E95: 0 | K95: hide this row
E96: 0
B99: Battery electric
C100: Battery electric vehicle
D101: Parameter | E101: Value | G101: Note | H101: Reference | J101: Location
D102: Residual value | E102: 0.418 | G102: Assumed same as ICEV | H102: International Energy Agency, The Future of Hydrogen: Report prepared by the IEA for the G20: Assumptions, Japan, 2020 | J102: p 10
D103: Residual value, annual change | E103: 0 | G103: No change assumed
D104: Maintenance cost | E104: 0.66 | F104: of ICEV cost | H104: International Energy Agency, The Future of Hydrogen: Report prepared by the IEA for the G20: Assumptions, Japan, 2020 | J104: p 11
D105: Maintenance cost, annual change | E105: 0 | G105: No change assumed
D106: Insurance | E106: 0.006 | F106: ='Dashboard A'!$Q$54 -> of total cost | H106: Fuel Cells Hydrogen Joint Understanding, Roland Berger, Study report - Fuel Cells Hydrogen Trucks: Heavy-Duty High Performance Green Solution, 2020
D107: Insurance, annual change | E107: 0 | G107: No change assumed
D108: Large HGV
D109: Battery capacity | E109: 435 | F109: ='Dashboard A'!$Q$38 -> kWh | H109: BYD Class 8 BEV spec sheet
D110: Battery capacity, annual change | E110: 0.0275 | G110: Increase to size of eCascadia Freightliner. | H110: International Council on Clean Transportation, Estimating the Infrastructure Needs and Costs for the Launch of Zero-Emission Trucks, 2019 | J110: p 29
D111: In-use capacity floor | E111: 0.2 | G111: Mid-point is chosen; it is likely commercial users will prefer to expand the capacity rather than spare lifetime | H111: Battery University, BU-1003: Electric Vehicle | J111: Figure 5
D112: In-use capacity floor, annual change | E112: 0 | G112: No change assumed
D113: Day-charge capacity ceiling | E113: 0.9 | G113: Mid-point is chosen; it is likely commercial users will prefer to expand the capacity rather than spare lifetime | H113: Battery University, BU-1003: Electric Vehicle | J113: Figure 5
D114: Day-charge capacity ceiling, annual change | E114: 0 | G114: No change assumed
D115: Payload capacity, annual change | E115: 0
D116: Vehicle capital cost | E116: 409000 | G116: Assuming that the difference in total ICEV truck+trailer cost from MACC tool+industry data (see note in ICEV capital cost), assumes MACC value+trailer assumption (334k+75k) | H116: Ministry for the Environment, MACC tool, 2020 | J116: Sheet "Trans2", cell AA111
D117: Vehicle capital cost, annual change | E117: -0.032 | G117: Alignment between MACC tool and Hydrogen Council paper | H117: Hydrogen Council, Path to Hydrogen Competitiveness (Exhibit 20) | I117: Ministry for the Environment, MACC tool, 2020 | J117: Sheet "Trans2", cell AJ111
D118: Vehicle lease cost | E118: 6850
D119: Vehicle lease cost, annual change | E119: -0.032 | H119: Same as capital cost
D120: Fuel efficiency | E120: 1.75 | F120: ='Dashboard A'!$Q$56 -> kWh/km | G120: Calculated assuming 20% capacity floor, fully laden | H120: BYD Class 8 BEV spec sheet
D121: Fuel efficiency, annual change | E121: -0.0021 | H121: Climate Change Commission, Technical assumptions In ENZ energy and transport, 2021 | J121: Sheet "Road Transport, cell P181
D122: Medium HGV
D123: Battery capacity | E123: 265 | F123: ='Dashboard A'!$Q$38 -> kWh | G123: Based on Volvo FE with 4 batteries | H123: https://www.volvotrucks.com/en-en/trucks/trucks/volvo-fe/volvo-fe-electric.html
D124: Battery capacity, annual change | E124: 0 | G124: No speculation input as payload is unaffected | J124: p 29
D125: In-use capacity floor | E125: 0.2 | G125: Mid-point is chosen; it is likely commercial users will prefer to expand the capacity rather than spare lifetime | H125: Battery University, BU-1003: Electric Vehicle | J125: Figure 5
D126: In-use capacity floor, annual change | E126: 0 | G126: No change assumed
D127: Day-charge capacity ceiling | E127: 0.9 | G127: Mid-point is chosen; it is likely commercial users will prefer to expand the capacity rather than spare lifetime | H127: Battery University, BU-1003: Electric Vehicle | J127: Figure 5
D128: Day-charge capacity ceiling, annual change | E128: 0 | G128: No change assumed
D129: Payload capacity, annual change | E129: 0
D130: Vehicle capital cost | E130: 342000 | G130: Assumption generated by scaling difference between large diesel and large BEV based on example medium ICEV value.
D131: Vehicle capital cost, annual change | E131: -0.032 | G131: Alignment between MACC tool and Hydrogen Council paper | H131: Hydrogen Council, Path to Hydrogen Competitiveness (Exhibit 20) | I131: Ministry for the Environment, MACC tool, 2020 | J131: Sheet "Trans2", cell AJ111
D132: Vehicle lease cost | E132: 5500
D133: Vehicle lease cost, annual change | E133: -0.032 | H133: Same as capital cost
D134: Fuel efficiency | E134: =265/200 -> 1.325 | F134: ='Dashboard A'!$Q$56 -> kWh/km | G134: Based on Volvo FE maximum battery capacity and stated range | H134: https://www.volvotrucks.com/en-en/trucks/trucks/volvo-fe/volvo-fe-electric.html
D135: Fuel efficiency, annual change | E135: -0.0035 | H135: Climate Change Commission, Technical assumptions In ENZ energy and transport, 2021 | J135: Sheet "Road Transport, cell P179
D136: Small HGV
D137: Battery capacity | E137: 265 | F137: ='Dashboard A'!$Q$38 -> kWh | G137: Based on Volvo FL with 4 batteries | H137: https://www.volvotrucks.com/en-en/trucks/trucks/volvo-fl/volvo-fl-electric.html
D138: Battery capacity, annual change | E138: 0 | G138: No speculation input as payload is unaffected | J138: p 29
D139: In-use capacity floor | E139: 0.2 | G139: Mid-point is chosen; it is likely commercial users will prefer to expand the capacity rather than spare lifetime | H139: Battery University, BU-1003: Electric Vehicle | J139: Figure 5
D140: In-use capacity floor, annual change | E140: 0 | G140: No change assumed
D141: Day-charge capacity ceiling | E141: 0.9 | G141: Mid-point is chosen; it is likely commercial users will prefer to expand the capacity rather than spare lifetime | H141: Battery University, BU-1003: Electric Vehicle | J141: Figure 5
D142: Day-charge capacity ceiling, annual change | E142: 0 | G142: No change assumed
D143: Payload capacity, annual change | E143: 0
D144: Vehicle capital cost | E144: 209400 | G144: Assumption generated by scaling difference between large diesel and large BEV based on example small ICEV value.
D145: Vehicle capital cost, annual change | E145: -0.032 | G145: Alignment between MACC tool and Hydrogen Council paper | H145: Hydrogen Council, Path to Hydrogen Competitiveness (Exhibit 20) | I145: Ministry for the Environment, MACC tool, 2020 | J145: Sheet "Trans2", cell AJ111
D146: Vehicle lease cost | E146: 2350
D147: Vehicle lease cost, annual change | E147: -0.032 | H147: Same as capital cost
D148: Fuel efficiency | E148: =395/300 -> 1.316666667 | F148: ='Dashboard A'!$Q$56 -> kWh/km | G148: Based on Volvo FL maximum battery capacity and stated range | H148: https://www.volvotrucks.com/en-en/trucks/trucks/volvo-fl/volvo-fl-electric.html
D149: Fuel efficiency, annual change | E149: -0.0035 | G149: Assumed same as medium BEV | H149: Climate Change Commission, Technical assumptions In ENZ energy and transport, 2021 | J149: Sheet "Road Transport, cell P179
C151: Direct charging
D152: Parameter | E152: Value | G152: Note | H152: Reference
D153: Overnight charger
D154: Infrastructure cost | E154: 0.04 | F154: $ per kWh | H154: Ministry for the Environment, MACC tool, 2020 | J154: Sheet "Trans2", cell AA220
D155: Infrastructure cost, annual change | E155: -0.01 | H155: Ministry for the Environment, MACC tool, 2020 | J155: Sheet "Trans2", cell AJ220
D156: Network cost | E156: 0.038 | F156: $ per kWh | H156: Ministry for the Environment, MACC tool, 2020 | J156: Sheet "Trans2", cell AA213
D157: Network cost, annual change | E157: -0.017 | H157: Ministry for the Environment, MACC tool, 2020 | J157: Sheet "Trans2", cell AJ213
D158: Midday fast charger (no default scenario developed for battery swapping)
D159: Charger wattage (kW) | E159: 300 | F159: kW | H159: ChargeNet Hyperchargers
D160: Charger wattage, annual change | E160: 0 | G160: No change assumed
D161: Infrastructure cost | E161: 0.3 | F161: $ per kWh | G161: Chargenet hyperchargers will be roughly $0.60/kWh, so infrastructure cost has been scaled up to meet this. | H161: ChargeNet Hyperchargers
D162: Infrastructure cost, annual change | E162: 0 | G162: No change assumed | H162: Ministry for the Environment, MACC tool, 2020 | J162: Sheet "Trans2", cell AJ225
D163: Network cost | E163: 0.188 | F163: $ per kWh | G163: Away-from base network cost assumption from MACC tool | H163: Ministry for the Environment, MACC tool, 2020 | J163: Sheet "Trans2", cell AA215 & AA237
D164: Network cost, annual change | E164: 0 | G164: No change assumed | H164: Ministry for the Environment, MACC tool, 2020 | J164: Sheet "Trans2", cell AJ215 & AJ237
E165: 0
E166: 0
E167: 0
C169: BEV payload calculator
D170: Parameter | E170: Value | G170: Note | H170: Reference | J170: Location
D171: Payload gain from powertrain weight reduction | E171: 1 | F171: t | G171: Payload gain is set such that the payload is calibrated to match the BYD payload capabilites.
D172: Battery energy density | E172: 133 | F172: Wh/kg | G172: BYD stated specific energy of their batteries | H172: BYD slideshow on vehicles | J172: p 27
D173: Battery energy density, annual change | E173: 0.05 | G173: Tesla capable of 230 Wh/kg, so took conservative assumption towards this value | H173: National Academies Press - Battery Technology for Medium- and Heavy-Duty Hybrid and Electric Vehicles | J173: Table 8-7
B176: Internal combustion
C177: Internal combustion engine vehicle
D178: Parameter | E178: Value | G178: Note | H178: Reference
D179: Residual value | E179: 0.418 | H179: International Energy Agency, The Future of Hydrogen: Report prepared by the IEA for the G20: Assumptions, Japan, 2020
D180: Residual value, annual change | E180: 0 | G180: Decrease in residual value due to obsoletion seems unlikely in period.
D181: Insurance | E181: 0.006 | F181: of total cost | H181: Fuel Cells Hydrogen Joint Understanding, Roland Berger, Study report - Fuel Cells Hydrogen Trucks: Heavy-Duty High Performance Green Solution, 2020
D182: Insurance, annual change | E182: 0 | G182: No change assumed
D183: Estimated health costs | E183: 0.25 | F183: $/l | G183: Used MACC tool methodology with alternate motor vehicle emissions social cost from HAPINZ model | H183: Ministry for the Environment, MACC tool, 2020 | I183: HAPINZ updated model
D184: Estimated health costs, annual change | E184: 0 | G184: No change assumed, will scale with change in vehicle use mix.
D185: Large HGV
D186: Vehicle capital cost | E186: 250000 | G186: Between average and high-end from industry data, converted to NZD. MACC tool assumption of 175k looks like tractor only, so difference with trailer is roughly 75k. | H186: TBS - How much does a semi truck cost | I186: Fleet owner - Big rigs, big costs | J186: Sheet "Trans2", cell AA101
D187: Vehicle capital cost, annual change | E187: 0 | H187: Ministry for the Environment, MACC tool, 2020 | J187: Sheet "Trans2", cell AJ101
D188: Vehicle lease cost | E188: 4900
D189: Vehicle lease cost, annual change | E189: 0 | H189: Same as capital cost
D190: Fuel efficiency | E190: 0.555 | F190: l/km | H190: Ministry for the Environment, MACC tool, 2020
D191: Fuel efficiency, annual change | E191: 0 | G191: No change assumed
D192: Maintenance cost | E192: 0.092 | F192: $ per km | H192: Climate Change Commission, Technical assumptions In ENZ energy and transport, 2021 | J192: Sheet "Road Transport", cell G205
D193: Maintenance cost, annual change | E193: -0.0013 | H193: Climate Change Commission, Technical assumptions In ENZ energy and transport, 2021 | J193: Sheet "Road Transport", cell P205
D194: Medium HGV
D195: Vehicle capital cost | E195: 209000 | G195: Estimate based on example heavily used truck, converted to NZD. Assuming example value is 58% depreciated (end of first life), default value is inflated from this. | H195: https://www.commercialtrucktrader.com/listing/2016-Freightliner-M211264S-5017553668
D196: Vehicle capital cost, annual change | E196: 0 | H196: Ministry for the Environment, MACC tool, 2020 | J196: Sheet "Trans2", cell AJ101
D197: Vehicle lease cost | E197: 3700
D198: Vehicle lease cost, annual change | E198: 0 | G198: Same as capital cost
D199: Fuel efficiency | E199: 0.51 | F199: l/km | H199: https://www.knowledgehub.transport.govt.nz/assets/TKH-Uploads/TKC-2019/Real-world-fuel-economy-of-heavy-trucks.pdf | J199: p8
D200: Fuel efficiency, annual change | E200: 0 | G200: No change assumed
D201: Maintenance cost | E201: 0.063 | F201: $ per km | H201: Climate Change Commission, Technical assumptions In ENZ energy and transport, 2021 | J201: Sheet "Road Transport", cell G201
D202: Maintenance cost, annual change | E202: -0.0013 | H202: Climate Change Commission, Technical assumptions In ENZ energy and transport, 2021 | J202: Sheet "Road Transport", cell P201
D203: Small HGV
D204: Vehicle capital cost | E204: 128000 | G204: Estimate based on example lightly used truck, converted to NZD. Assuming example value is 25% depreciated from new, default value is inflated from this. | H204: https://www.bastrucks.com/vehicles/used/truck-closed-volvo--2020-4x2-euro_6-70130168 | I204: https://www.finder.com/commercial-vehicle-depreciation
D205: Vehicle capital cost, annual change | E205: 0 | H205: Ministry for the Environment, MACC tool, 2020 | J205: Sheet "Trans2", cell AJ101
D206: Vehicle lease cost | E206: 2100
D207: Vehicle lease cost, annual change | E207: 0 | G207: Same as capital cost
D208: Fuel efficiency | E208: 0.37 | F208: l/km | H208: https://www.knowledgehub.transport.govt.nz/assets/TKH-Uploads/TKC-2019/Real-world-fuel-economy-of-heavy-trucks.pdf | J208: p8
D209: Fuel efficiency, annual change | E209: 0 | G209: No change assumed
D210: Maintenance cost | E210: 0.043 | F210: $ per km | G210: Scaled down assumption based on medium and heavy assumptions in CCC analysis | H210: Climate Change Commission, Technical assumptions In ENZ energy and transport, 2021
D211: Maintenance cost, annual change | E211: -0.0013 | G211: Same as medium and heavy assumptions | H211: Climate Change Commission, Technical assumptions In ENZ energy and transport, 2021
C213: Diesel
D214: Parameter | E214: Value | H214: Reference
... 36 more rows

Sheet Saved scenarios
B2: Saving scenarios | G2: Options
B3: Use the options to save scenarios for later or to compare scenarios, load scenarios and clear saved scenarios.
N4: Name or description of scenario (limit 50 characters)
B5: To save the current scenario inputs in Dashboard A, write a description in the description box and click 'Save current scenario'.
K6: Scenario number to load
B7: To load a scenario, enter the scenario number into the input box and click 'Load scenario'.
K8: Scenario number to clear
B9: To clear one specific saved scenario, enter the scenario number into the input box and click 'Clear scenario'.
J10: Caution - will clear all scenarios saved
B11: To clear all saved scenarios, click 'Clear all scenarios'.
G13: SAVED SCENARIOS
D14: Scenario number | G14: 1 | H14: 2 | I14: 3 | J14: 4 | K14: 5 | L14: 6 | M14: 7 | N14: 8 | O14: 9 | P14: 10 | Q14: 11 | R14: 12 | S14: 13 | T14: 14 | U14: 15 | V14: 16 | W14: 17 | X14: 18 | Y14: 19 | Z14: 20 | AA14: 21 | AB14: 22 | AC14: 23 | AD14: 24 | AE14: 25 | AG14: Loaded scenario
D15: Description
B17: Variable/Result | D17: Current value | G17: Scenario value
B19: Results (tco $ per km)
B20: BEV | D20: ='Dashboard A'!X56 -> 2.414978131 | E20: TCO $ per km
B21: GH2 FCEV | D21: ='Dashboard A'!AI56 -> 2.869459771 | E21: TCO $ per km
B22: Conventional biofuel | D22: ='Dashboard A'!AI90 -> 2.404587339 | E22: TCO $ per km
B23: Drop-in biofuel | D23: ='Dashboard A'!AQ90 -> 3.267599796 | E23: TCO $ per km
B24: ICEV | D24: ='Dashboard A'!P90 -> 2.288331204 | E24: TCO $ per km
B25: Results (tco $ per tkm)
B26: BEV | D26: ='Dashboard A'!X58 -> 0.09572108224 | E26: TCO $t per km
B27: GH2 FCEV | D27: ='Dashboard A'!AI58 -> 0.1043439917 | E27: TCO $t per km
B28: Conventional biofuel | D28: ='Dashboard A'!AI92 -> 0.0874395396 | E28: TCO $t per km
B29: Drop-in biofuel | D29: ='Dashboard A'!AQ92 -> 0.1188218108 | E29: TCO $t per km
B30: ICEV | D30: ='Dashboard A'!P92 -> 0.0832120438 | E30: TCO $t per km
B31: Cost per tonne of carbon abated
B32: BEV | D32: ='Dashboard A'!AQ12 -> 125.6839992 | E32: per tonne
B33: GH2 FCEV | D33: ='Dashboard A'!AQ10 -> 430.2963584 | E33: per tonne
B34: Diesel + H2 | D34: ='Dashboard A'!AQ18 -> 1092.605623 | E34: per tonne
B35: Conventional biofuel | D35: ='Dashboard A'!AQ16 -> 852.4631367 | E35: per tonne
B36: Drop-in biofuel | D36: ='Dashboard A'!AQ14 -> 882.2695401 | E36: per tonne
B38: General inputs
B39: Carbon price | D39: =carbon_price -> 40.8 | E39: per tCO2e
B40: Overnight cost of electricity | D40: =overnight_cost_of_electricity -> 50 | E40: per MWh
B41: Daytime cost of electricity | D41: =daytime_cost_of_electricity -> 88 | E41: per MWh
B42: Grid electricity CO2-e emissions | D42: =emissions_grid_electricity -> 0 | E42: kgCO2e per kWh
B43: Freight operator's WACC | D43: =freight_operator_wacc -> 0.08
B44: Duration of ownership | D44: =duration_of_ownership -> 5 | E44: years
B45: Vehicle leasing | D45: =IF(lease_switch=1,TRUE,FALSE) -> FALSE
B46: Maintenance included in lease | D46: =IF(maintenance_switch=TRUE,TRUE,FALSE) -> TRUE
B47: Driver wages | D47: =driver_wages -> 25 | E47: per hour
B48: Driver days driving/year | D48: =driver_days -> 243 | E48: days
B49: Daily trip distance | D49: =trip_distance -> 630 | E49: km
B50: Length of start/end un/load | D50: =length_of_load -> 0.43 | E50: hour
B51: Number of 60 min stops | D51: =number_stops -> 1.3 | E51: stop
B52: Average driving speed | D52: =average_speed -> 66 | E52: km per hour
B53: Payload for non-BEV | D53: =payload_nonbev -> 27.5 | E53: tonnes
B54: Average loading factor | D54: =average_load_factor -> 1
B55: Road User Charge per km | D55: =RUC_perkm -> 0.599 | E55: per km
B57: Battery electric vehicle
B58: Capacity | D58: =BEV_battery_capacity -> 435 | E58: kWh
B59: In-use capacity floor | D59: =BEV_capacity_floor -> 0.2
B60: Day-charge capacity ceiling | D60: =BEV_day_charge_ceiling -> 0.9
B61: Payload capacity | D61: ='Dashboard A'!P44 -> 25.22932331 | E61: tonnes
B62: Vehicle capital cost | D62: =BEV_vehicle_capital -> 409000
B63: Vehicle lease cost | D63: =BEV_lease_cost -> 6850
B64: Residual value | D64: =BEV_residual_value -> 0.418
B65: Maintenance cost | D65: =BEV_maintenance_cost -> 0.66 | E65: of ICEV
B66: Insurance | D66: =BEV_insurance -> 0.006 | E66: of total cost
B67: Fuel efficiency | D67: =BEV_fuel_efficiency -> 1.75 | E67: kWh per km
B68: Additional required stops | D68: =IF(BEV_switch=0,'Dashboard A'!P58, "") -> 2.215 | E68: hours
B69: Additional required battery swaps | D69: =IF(BEV_switch=0,"",'Dashboard A'!P58) ->  | E69: swaps
B71: Direct charging
B72: Overnight charging
B73: Infrastructure cost | D73: =ON_charger_infrastructure -> 0.04 | E73: per kWh
B74: Network cost | D74: =ON_charger_network_cost -> 0.038 | E74: per kWh
B75: Midday fast charge
B76: Charger wattage | D76: =IF(BEV_switch=0,MD_charger_wattage,"") -> 300 | E76: kW
B77: Infrastructure cost | D77: =IF(BEV_switch=0,MD_charger_infrastructure,"") -> 0.3 | E77: per kWh
B78: Network cost | D78: =IF(BEV_switch = 0, MD_charger_network_cost,"") -> 0.188 | E78: per kWh
B79: Battery swapping
B80: Battery swapping used | D80: =IF(BEV_switch = 0, FALSE, TRUE) -> FALSE
B81: Swap cost | D81: =IF(BEV_switch = 0, "", swap_cost) ->  | E81: per swap
B82: Infrastructure cost | D82: =IF(BEV_switch = 0, "", BS_infrastructure) ->  | E82: per kWh
B83: Network cost | D83: =IF(BEV_switch=0,"",BS_network_cost) ->  | E83: per kWh
B84: Delivered fuel cost per km | D84: ='Dashboard A'!X50 -> 0.7605333333 | E84: per km
B85: Labour hours | D85: ='Dashboard A'!X52 -> 12.92045455 | E85: hours per trip
B86: CO2-e emissions cost per km | D86: ='Dashboard A'!X54 -> 0 | E86: per km
B88: Fuel cell electric vehicle
B89: Vehicle capital cost | D89: =FCEV_vehicle_capital -> 611000
B90: Vehicle lease cost | D90: =FCEV_lease_cost -> 9900
B91: Residual value | D91: =FCEV_residual_value -> 0.418
B92: Maintenance cost | D92: =FCEV_maintenance_cost -> 0.66 | E92: of ICEV
B93: Insurance | D93: =FCEV_insurance -> 0.006 | E93: of total cost
B94: Fuel efficiency | D94: =FCEV_fuel_efficiency -> 0.094 | E94: kgs per km
B96: Green H2 + FCEV
B97: Delivered cost of fuel | D97: ='Dashboard A'!AI48 -> 10.90799233 | E97: per kg
B98: Delivered fuel cost per km | D98: ='Dashboard A'!AI50 -> 1.025351279 | E98: per km
B99: Labour hours | D99: ='Dashboard A'!AI52 -> 11.70545455 | E99: hours per trip
B100: CO2-e emissions cost per km | D100: ='Dashboard A'!AI54 -> 0 | E100: per km
B102: Internal combustion engine vehicle
B103: Vehicle capital cost | D103: =ICEV_vehicle_capital -> 250000
B104: Vehicle lease cost | D104: =ICEV_lease_cost -> 4900
B105: Residual value | D105: =ICEV_residual_value -> 0.418
B106: Maintenance cost | D106: =ICEV_maintenance_cost -> 0.092 | E106: $ per km
B107: Insurance | D107: =ICEV_insurance -> 0.006 | E107: of total cost
B108: Fuel efficiency | D108: =ICEV_fuel_efficiency -> 0.555 | E108: liters per km
B110: Diesel + ICEV
B111: Delivered cost of fuel | D111: =diesel_cost -> 1.15 | E111: per litre
B112: CO2-e emissions per km | D112: =diesel_emissions -> 1.492 | E112: kgCO2e
B113: PM emissions social cost | D113: =ICEV_health_costs -> 0.25 | E113: per litre
B114: Delivered fuel cost per km | D114: ='Dashboard A'!P82 -> 0.63825
B115: Labour hours | D115: ='Dashboard A'!P84 -> 11.70545455 | E115: hours per trip
B116: CO2-e emissions cost per km | D116: ='Dashboard A'!P86 -> 0.0608736
B117: PM emissions social cost per km | D117: ='Dashboard A'!P88 -> 0.13875
B119: Diesel + H2 + ICEV
B120: Retrofit cost | D120: =DH2_retrofit -> 108000
B121: Amount of diesel displacement | D121: =DH2_diesel_displacement -> 0.3 | E121: kgCO2e
B122: H2 conversion factor | D122: =DH2_h2_conversion_factor -> 0.3003343297 | E122: kg to l
B124: Conventional biodiesel + ICEV
B125: Delivered cost of fuel | D125: =CB_cost -> 2.25 | E125: per litre
B126: Biodiesel blend | D126: =CB_blend -> 0.2
B127: Retrofit cost | D127: =CB_retrofit -> 0
B128: CO2-e emissions reduction | D128: =CB_emissions_reduction -> 0.48
B129: PM emissions reduction | D129: =CB_pm_reduction -> 0
B130: Delivered fuel cost per km | D130: ='Dashboard A'!AI82 -> 0.76035 | E130: per km
B131: Labour hours | D131: ='Dashboard A'!AI84 -> 11.70545455 | E131: hours per trip
B132: CO2-e emissions cost per km | D132: ='Dashboard A'!AI86 -> 0.0550297344
B133: PM emissions social cost per km | D133: ='Dashboard A'!AI88 -> 0.13875
B135: Drop-in biodiesel + ICEV
B136: Delivered cost of fuel | D136: =AB_cost -> 3 | E136: per litre
B137: Biodiesel blend | D137: =AB_blend -> 1
B138: CO2-e emissions reduction | D138: =AB_emissions_reduction -> 0.78
B139: PM emissions reduction | D139: =AB_pm_reduction -> 0
B140: Delivered fuel cost per km | D140: ='Dashboard A'!AQ82 -> 1.665 | E140: per km
B141: Labour hours | D141: ='Dashboard A'!AQ84 -> 11.70545455 | E141: hours per trip
B142: CO2-e emissions cost per km | D142: ='Dashboard A'!AQ86 -> 0.013392192
B143: PM emissions social cost per km | D143: ='Dashboard A'!AQ88 -> 0.13875
B145: Road User Charge exempt
B146: Green H2 + FCEV | D146: =RUC_GH2 -> FALSE
B147: Direct charging + BEV | D147: =RUC_BEV -> FALSE
B148: Drop-in biodiesel + ICEV | D148: =RUC_AB -> FALSE
B149: Conventional biodiesel + ICEV | D149: =RUC_CB -> FALSE
B151: Distribution
B152: Compression losses | D152: ='H2 cost calculator'!E18 -> 0.125
B154: Green H2 cost calculator
B155: Electricity cost | D155: ='H2 cost calculator'!E30 -> 73.16 | E155: per MWh
B156: Network costs | D156: ='H2 cost calculator'!E40 -> 0 | E156: per kWh
B157: Utilisation | D157: ='H2 cost calculator'!E50 -> 0.856
B158: Power demand | D158: ='H2 cost calculator'!E60 -> 52 | E158: kWh per kg
B159: Electrolyser cost | D159: ='H2 cost calculator'!E70 -> 1900 | E159: per kW
B160: Stack life | D160: ='H2 cost calculator'!E80 -> 75000 | E160: hours
B161: Energy cost (incl. network cost) | D161: ='H2 cost calculator'!E83 -> 0.07316 | E161: per kWh
B162: Installation (% of cap) | D162: =GH2_installation -> 0.12
B163: WACC | D163: =GH2_wacc -> 0.06
B164: Economic life (years) | D164: =GH2_economic_life -> 25
B165: Annualised CapEx (per kW) | D165: ='H2 cost calculator'!E91 -> 166.4664564
B166: OpEx (as % of CapEx) | D166: =GH2_opex -> 0.05
B167: CapEx+OpEx per kg | D167: ='H2 cost calculator'!E95 -> 1.211278884
B168: Electrolyser stack replacement | D168: =GH2_electrolyser_replacement -> 0.4 | E168: of installed cost
B169: Cost of stack replacement | D169: ='H2 cost calculator'!E99 -> 0.2359498572 | E169: per kg
B170: Estimated levelised cost of H2 | D170: ='H2 cost calculator'!E101 -> 5.251548741 | E170: per kg
B171: Estimated cost of distribution | D171: ='H2 cost calculator'!E111 -> 5
B172: Emissions cost | D172: ='H2 cost calculator'!E114 -> 0 | E172: per kg
B173: Estimated delivered cost of Green H2 | D173: ='H2 cost calculator'!E116 -> 10.90799233 | E173: per kg
B174: Cost choice - delivered cost of H2 | D174: =IF('H2 cost calculator'!T125=1,1,2) -> 1 | E174: =IF(D174=1,"Cost build-up",IF(D174=2,"Trend",IF(D174=3,"User input",""))) -> Cost build-up
B175: Delivered cost of H2 override for Dashboards | D175: ='H2 cost calculator'!E128 -> 10.90799233
B177: BEV payload calculator
B178: Battery capacity (kWh) | D178: ='BEV payload calculator'!E13 -> 435 | E178: kWh
B179: Non-BEV payload (t) | D179: ='BEV payload calculator'!E15 -> 27.5 | E179: tonnes
B180: Payload gain from powertrain weight reduction1 | D180: =BEV_payload_gain -> 1 | E180: tonnes
B181: Battery energy density (Wh/kg) | D181: ='BEV payload calculator'!E28 -> 133 | E181: Wh per kg
B182: Battery weight (t) | D182: ='BEV payload calculator'!E31 -> 3.270676692 | E182: tonnes
B183: BEV payload | D183: ='BEV payload calculator'!E33 -> 25.22932331 | E183: tonnes
B184: Payload choice | D184: =IF('BEV payload calculator'!T43=1,1,2) -> 1 | E184: =IF(D184=1,"Payload build-up",IF(D184=2,"Trend",IF(D184=3,"User input",""))) -> Payload build-up
B185: BEV payload override for Dashboards | D185: ='BEV payload calculator'!E46 -> 25.22932331 | E185: tonnes
B187: Available / unavailable
B188: Green hydrogen | D188: ='Dashboard A'!BC168 -> 1 | E188: Available
B189: Battery electric vehicle | D189: ='Dashboard A'!BD168 -> 1 | E189: Available
B190: Diesel + H2 | D190: =DH2_available -> 1 | E190: Available
B191: Advanced Biofuel | D191: ='Dashboard A'!BE168 -> 1 | E191: Available
B192: Conventional Biofuel | D192: ='Dashboard A'!BF168 -> 1 | E192: Available
B193: Drop-in biofuel | D193: ='Dashboard A'!BH168 -> 1 | E193: Available

Sheet Veh type by distance (hidden)
B2: Percent of all trips taken within a distance band by each weight band
D7: weight band | E7: 700km+ | F7: 600-700km | G7: 500-600km | H7: 400-500km | I7: 300-400km | J7: 200-300km | K7: 100-200km | L7: 0-100km
D8: 3.5t - 7.5t | E8: =SUMIFS('vehicle_weight_category_stats 2'!$D$2:$D$337,'vehicle_weight_category_stats 2'!$A$2:$A$337,$D8,'vehicle_weight_category_stats 2'!$B$2:$B$337,E$7,'vehicle_weight_category_stats 2'!$E$2:$E$337,'vehicle_weight_category_stats 2'!$E$2) -> 16 | F8: =SUMIFS('vehicle_weight_category_stats 2'!$D$2:$D$337,'vehicle_weight_category_stats 2'!$A$2:$A$337,$D8,'vehicle_weight_category_stats 2'!$B$2:$B$337,F$7,'vehicle_weight_category_stats 2'!$E$2:$E$337,'vehicle_weight_category_stats 2'!$E$2) -> 20 | G8: =SUMIFS('vehicle_weight_category_stats 2'!$D$2:$D$337,'vehicle_weight_category_stats 2'!$A$2:$A$337,$D8,'vehicle_weight_category_stats 2'!$B$2:$B$337,G$7,'vehicle_weight_category_stats 2'!$E$2:$E$337,'vehicle_weight_category_stats 2'!$E$2) -> 44 | H8: =SUMIFS('vehicle_weight_category_stats 2'!$D$2:$D$337,'vehicle_weight_category_stats 2'!$A$2:$A$337,$D8,'vehicle_weight_category_stats 2'!$B$2:$B$337,H$7,'vehicle_weight_category_stats 2'!$E$2:$E$337,'vehicle_weight_category_stats 2'!$E$2) -> 205 | I8: =SUMIFS('vehicle_weight_category_stats 2'!$D$2:$D$337,'vehicle_weight_category_stats 2'!$A$2:$A$337,$D8,'vehicle_weight_category_stats 2'!$B$2:$B$337,I$7,'vehicle_weight_category_stats 2'!$E$2:$E$337,'vehicle_weight_category_stats 2'!$E$2) -> 1210 | J8: =SUMIFS('vehicle_weight_category_stats 2'!$D$2:$D$337,'vehicle_weight_category_stats 2'!$A$2:$A$337,$D8,'vehicle_weight_category_stats 2'!$B$2:$B$337,J$7,'vehicle_weight_category_stats 2'!$E$2:$E$337,'vehicle_weight_category_stats 2'!$E$2) -> 7201 | K8: =SUMIFS('vehicle_weight_category_stats 2'!$D$2:$D$337,'vehicle_weight_category_stats 2'!$A$2:$A$337,$D8,'vehicle_weight_category_stats 2'!$B$2:$B$337,K$7,'vehicle_weight_category_stats 2'!$E$2:$E$337,'vehicle_weight_category_stats 2'!$E$2) -> 36722 | L8: =SUMIFS('vehicle_weight_category_stats 2'!$D$2:$D$337,'vehicle_weight_category_stats 2'!$A$2:$A$337,$D8,'vehicle_weight_category_stats 2'!$B$2:$B$337,L$7,'vehicle_weight_category_stats 2'!$E$2:$E$337,'vehicle_weight_category_stats 2'!$E$2) -> 227495
